{"text_format":"1","workbook":"xlsx","n_sheets":16,"sheets":["AER CF","AER NRs","AER lookups","AER ETL","Instructions","CONTENTS","Business & other details","E2. Mains Repex","E3. Mains Augex","E4. Meter replacement","E5. New Connections","E6. Non-network","E10. Overheads","E12. ICT","E13. Other capex","Additional disclosures"],"not_rendered":{"charts":0,"images":5,"macros":1,"external_links":0,"defined_names":645,"comments":1,"pivot_tables":0},"unopened":[],"bounds":{"document_bytes":16777216,"sheet_cells":100000,"rows_first":2000,"rows_last":500,"rows_between":2000,"halvings":0,"cell_chars":16384,"cell_head_chars":4096},"cells_cut":0,"cells_raw":0,"read":"whole","date_system":"1900"}

{"sheet":"AER CF","index":0,"n_rows":127,"n_cols":24,"rows_kept":127,"cut":false,"hidden":true,"merged":[[33,37,33,58],[33,68,33,89],[3,1,3,21],[31,37,31,58],[31,68,31,89],[32,37,32,58],[32,68,32,89]]}
[null,"AER CONDITIONAL FORMATTING"]
[]
[]
[null,"CONDITIONAL FORMATTING MAP"]
[null,null,null,null,null,"=INDEX(dms_CF_3.6.1, MATCH(dms_TradingName,dms_CF_TradingName))=\"Y\"","=INDEX(dms_CF_3.6.5, MATCH(dms_TradingName,dms_CF_TradingName))=\"Y\"","=INDEX(dms_CF_3.6.6, MATCH(dms_TradingName,dms_CF_TradingName))=\"Y\"","=INDEX(dms_CF_3.6.7.1, MATCH(dms_TradingName,dms_CF_TradingName))=\"Y\"","=INDEX(dms_CF_3.6.7.2, MATCH(dms_TradingName,dms_CF_TradingName))=\"Y\"","=INDEX(dms_CF_3.6.7.3, MATCH(dms_TradingName,dms_CF_TradingName))=\"Y\"","=INDEX(dms_CF_3.6.7.4, MATCH(dms_TradingName,dms_CF_TradingName))=\"Y\"","=INDEX(dms_CF_3.6.8, MATCH(dms_TradingName,dms_CF_TradingName))=\"Y\"","=INDEX(dms_CF_4.1, MATCH(dms_TradingName,dms_CF_TradingName))=\"Y\"","=INDEX(dms_CF_6.6.1, MATCH(dms_TradingName,dms_CF_TradingName))=\"Y\"","=INDEX(dms_CF_6.8, MATCH(dms_TradingName,dms_CF_TradingName))=\"Y\"","=INDEX(dms_CF_7.12, MATCH(dms_TradingName,dms_CF_TradingName))=\"Y\"","=INDEX(dms_CF_8.1_A, MATCH(dms_TradingName,dms_CF_TradingName))=\"Y\"","=INDEX(dms_CF_8.1_B, MATCH(dms_TradingName,dms_CF_TradingName))=\"Y\"","=INDEX(dms_CF_8.1_Neg, MATCH(dms_TradingName,dms_CF_TradingName))=\"Y\"","=INDEX(dms_CF_4.4.1_Neg, MATCH(dms_TradingName,dms_CF_TradingName))=\"Y\""]
[null,"dms_CF_TradingName","JurisdictionList","Sector","Segment","dms_CF_3.6.1","dms_CF_3.6.5","dms_CF_3.6.6","dms_CF_3.6.7.1","dms_CF_3.6.7.2","dms_CF_3.6.7.3","dms_CF_3.6.7.4","dms_CF_3.6.8","dms_CF_4.1","dms_CF_6.6.1","dms_CF_6.8","dms_CF_7.12","dms_CF_8.1_A","dms_CF_8.1_B","dms_CF_8.1_Neg","dms_CF_4.4.1","dms_CF_MAIFI_flag","Spare1","Spare2"]
[null,"ActewAGL Distribution","ACT","Electricity","Distribution",null,"Y",null,"Y","Y","N","Y","N","N","N","Y","Y","N","Y","Y","N","N","N","N"]
[null,"Ausgrid","NSW","Electricity","Distribution",null,"Y",null,"N","N","N","Y","N","N","N","Y","Y","N","Y","Y","N","N","N","N"]
[null,"AusNet (D)","Vic","Electricity","Distribution",null,"N",null,"N","N","N","N","N","Y","N","Y","N","N","N","Y","N","N","N","N"]
[null,"AusNet (T)","Vic","Electricity","Transmission",null,"N",null,"N","N","N","N","N","Y","N","Y","N","N","N","Y","N","N","N","N"]
[null,"CitiPower","Vic","Electricity","Distribution",null,"N",null,"N","N","N","N","N","Y","N","Y","N","N","N","Y","N","N","N","N"]
[null,"Directlink","Qld","Electricity","Transmission",null,"N",null,"N","N","N","N","N","Y","N","Y","N","N","Y","Y","N","N","N","N"]
[null,"ElectraNet","SA","Electricity","Transmission",null,"N",null,"N","N","N","N","N","Y","N","Y","N","N","Y","Y","N","N","N","N"]
[null,"Endeavour Energy","NSW","Electricity","Distribution",null,"Y",null,"N","N","N","Y","N","N","N","Y","Y","N","Y","Y","Y","N","N","N"]
[null,"Energex","Qld","Electricity","Distribution",null,"Y",null,"N","N","N","N","N","N","N","Y","Y","N","Y","Y","Y","N","N","N"]
[null,"Ergon Energy","Qld","Electricity","Distribution",null,"Y",null,"N","N","N","N","N","N","N","Y","Y","N","Y","Y","N","N","N","N"]
[null,"Essential Energy","NSW","Electricity","Distribution",null,"Y",null,"N","N","N","Y","N","N","N","Y","Y","N","Y","Y","N","N","N","N"]
[null,"Jemena Electricity","Vic","Electricity","Distribution",null,"N",null,"N","N","N","N","N","Y","N","Y","N","N","N","Y","N","N","N","N"]
[null,"Murraylink","SA","Electricity","Transmission",null,"N",null,"N","N","N","N","N","Y","N","Y","N","N","Y","Y","N","N","N","N"]
[null,"Power and Water","NT","Electricity","Distribution",null,"N",null,"N","Y","N","N","Y","Y","Y","Y","Y","N","Y","Y","N","N","N","N"]
[null,"Powercor Australia","Vic","Electricity","Distribution",null,"N",null,"N","N","N","N","N","Y","N","Y","N","N","N","Y","N","N","N","N"]
[null,"Powerlink","Qld","Electricity","Transmission",null,"N",null,"N","N","N","N","N","Y","N","Y","N","N","Y","Y","N","N","N","N"]
[null,"SA Power Networks","SA","Electricity","Distribution",null,"Y",null,"N","N","N","N","N","Y","N","Y","Y","Y","Y","N","N","N","N","N"]
[null,"TasNetworks (D)","Tas","Electricity","Distribution",null,"Y",null,"N","N","N","N","N","N","N","Y","Y","N","Y","Y","N","N","N","N"]
[null,"TasNetworks (T)","Tas","Electricity","Transmission",null,"N",null,"N","N","N","N","N","Y","N","Y","N","N","Y","Y","N","N","N","N"]
[null,"TransGrid","NSW","Electricity","Transmission",null,"N",null,"N","N","N","N","N","Y","N","Y","N","N","Y","Y","N","N","N","N"]
[null,"United Energy","Vic","Electricity","Distribution",null,"N",null,"N","N","N","N","N","Y","N","Y","N","N","N","Y","N","N","N","N"]
[]
[]
[null,"Confidential"]
[null,"Amended"]
[]
[null,"Worksheet 6.2 STPIS reliability"]
[null,"Formula",null,null,null,"Applied to:"]
[]
[null,"=INDEX(dms_CBD_flag,MATCH(dms_TradingName,dms_TradingName_List))=\"NO\"",null,null,null,"$D$11,$D$17,$D$23,$D$33,$D$39,$D$45,$D$55,$D$61,$D$67,$D$77,$D$83,$D$89"]
[null,"=INDEX(dms_Urban_flag,MATCH(dms_TradingName,dms_TradingName_List))=\"NO\"",null,null,null,"$D$12,$D$18,$D$24,$D$56,$D$62,$D$78,$D$68,$D$84"]
[null,"=INDEX(dms_ShortRural_flag,MATCH(dms_TradingName,dms_TradingName_List))=\"NO\"",null,null,null,"$D$13,$D$19,$D$25,$D$57,$D$63,$D$69,$D$79,$D$85"]
[null,"=INDEX(dms_LongRural_flag,MATCH(dms_TradingName,dms_TradingName_List))=\"NO\"",null,null,null,"$D$14,$D$20,$D$26,$D$58,$D$64,$D$65,$D$70,$D$71,$D$80,$D$86"]
[null,"=INDEX(dms_FeederType_5_flag,MATCH(dms_TradingName,dms_TradingName_List))=\"NO\"",null,null,null,"$D$87,$D$81,$D$71,$D$65,$D$59,$D$49,$D$43,$D$37,$D$21,$D$15"]
[null,"=dms_MAIFI_Flag=\"No\"",null,null,null,"$D$55:$D$72"]
[]
[]
[null,"Business & other details"]
[null,"=(INDEX(dms_Model_Span,MATCH(dms_Model,dms_Model_List))>1)"]
[null,"=(INDEX(dms_Model_Span,MATCH(dms_Model,dms_Model_List))=1)"]
[]
[]
[null,"STYLES IN USE"]
[null,null,"dms_1"]
[null,null,"dms_2"]
[null,null,"dms_3"]
[null,null,"dms_4"]
[null,null,"dms_5"]
[null,null,"dms_NUM"]
[null,null,"dms_NUM%"]
[null,null,"dms_Row_Locked"]
[null,null,"dms_Row1"]
[null,null,"dms_Row2"]
[null,null,"dms_T1"]
[null,null,"dms_T2"]
[null,null,"dms_BH"]
[null,null,"dms_BY1"]
[null,null,"dms_BY2"]
[null,null,"dms_GH"]
[null,null,"dms_GY1"]
[null,null,"dms_GY2"]
[]
[]
[]
[]
[]
[]
[]
[]
[]
[]
[]
[]
[]
[]
[]
[]
[]
[]
[]
[]
[]
[]
[]
[]
[]
[]
[]
[]
[]
[]
[]
[]
[]
[]
[]
[]
[]
[]
[]
[]
[]
[]
[]
[]
[]
[]
[]
[]
[]
[]
[]
[]
[]
[]
[]
[]
[]
[]
[null,null,"0"]
[null,null,{"$f":"IFERROR(IF(dms_Model=\"ARR\",(MAX(0,dms_0608_LastRow-dms_0608_OffsetRows)),\"not an ARR\"),\"0\")","v":0}]

{"sheet":"AER NRs","index":1,"n_rows":226,"n_cols":15,"rows_kept":226,"cut":false,"hidden":true,"merged":[[31,36,31,57],[31,67,31,88],[32,36,32,57],[32,67,32,88],[33,36,33,57],[33,67,33,88],[108,1,113,1],[4,1,26,1],[30,1,53,1],[30,10,30,11],[31,10,33,10],[34,10,38,10],[42,10,43,10],[63,1,76,1],[82,1,95,1],[98,1,105,1],[189,1,190,1],[193,1,194,1],[197,1,198,1],[206,1,211,1],[116,1,130,1],[133,1,148,1],[150,1,156,1],[158,1,172,1],[174,1,175,1],[177,1,182,1]]}
[null,"AER NAMED RANGES"]
[]
[null,"DROP DOWN SELECTORS USED IN WORKBOOKS"]
[]
[null,"COVER SHEET","dms_DataQuality_List","dms_Confid_status_List"]
[null,null,"-- select --","-- select --"]
[null,null,"Actual","Public"]
[null,null,"Estimate","Confidential"]
[null,null,"Consolidated"]
[]
[]
[null,null,"For all files either AER or business needs to be able to specify the type of submission","For PTRM & RFM templates we must provide a choice in case they change their form of control - otherwise it is drawn from the business specific lookup table above."]
[null,null,"dms_SourceList","dms_FormControl_Choices"]
[null,null,"-- select --","Revenue cap"]
[null,null,"After appeal","Revenue yield"]
[null,null,"Draft decision","Weighted average price cap"]
[null,null,"Final decision"]
[null,null,"PTRM update 1"]
[null,null,"PTRM update 2"]
[null,null,"PTRM update 3"]
[null,null,"PTRM update 4"]
[null,null,"PTRM update 5"]
[null,null,"PTRM update 6"]
[null,null,"PTRM update 7"]
[null,null,"Regulatory proposal"]
[null,null,"Reporting"]
[null,null,"Revised regulatory proposal"]
[]
[]
[null,null,null,null,null,null,null,null,null,null,"This is used to create an image to insert on 6.3 STPIS sheet - not for dropdown lists."]
[null,"CA & RESET RINS \nDNSP","dms_DNSP_020301_SubstationType","dms_DNSP_020301_ProjectType","dms_DNSP_020301_ProjectTrigger","dms_DNSP_020302_ProjectType","dms_DNSP_020302_ProjectTrigger","dms_STPIS_Exclusion_List","dms_Reason_Interruption","dms_Reason_Interruption_Detailed","Reason for interruption",null,null,"dms_N0205_AssetType"]
[null,null,"Subtransmission substation","New substation establishment","Demand growth","New line on new route - single circuit","Demand growth","Weather","Animal","Animal impact","Animal","Animal impact",null,"Cast Iron"]
[null,null,"Zone substation","Substation upgrade - capacity"," Voltage issues","New line on new route - dual circuit"," Voltage issues","Equipment failure","Asset failure","Animal nesting/burrowing, etc and other",null,"Animal nesting/burrowing, etc and other",null,"PVC"]
[null,null,"Switching station","Substation upgrade - voltage"," Reactive power issue","New line on new route - other"," Reactive power issue","Operational error","Other","Other",null,"Other",null,"Polyamide"]
[null,null,"Other","Other"," Fault level issues","Line rebuild over existing route - single circuit"," Fault level issues","Vegetation","Overloads","LV","Asset failure","LV",null,"High density polyethylene (80)"]
[null,null,null,null," Safety","Line rebuild over existing route - dual circuit"," Net market benefit","Animals","Planned","Distribution substation",null,"Distribution substation",null,"High density polyethylene (100)"]
[null,null,null,null," Environment","Reconductor - Single circuit"," Safety","Third party impacts","Network business","HV",null,"HV",null,"High density polyethylene (250)"]
[null,null,null,null," Other","Reconductor - Dual circuit"," Environment","Transmission failure","Third party","Zone substation",null,"Zone substation",null,"High density polyethylene (575)"]
[null,null,null,null,null,"Reconductor - Other"," Other","Load shedding","Unknown","Subtransmission",null,"Subtransmission",null,"Medium density polyethylene"]
[null,null,null,null,null,"Line upgrade - raising/retensoring",null,"Inter-distributor connection failure","Vegetation","insert description of 'other'","Other","insert description of 'other'",null,"Unprotected steel"]
[null,null,null,null,null,"Line upgrade - voltage upgrade",null,"Other","Weather","Network error","Overloads",null,null,"Protected steel"]
[null,null,null,null,null,"Line upgrade - capacity",null,null,"2 - STPIS Exclusion (3.3)(a)","Switching and protection error","Planned",null,null,"Other"]
[null,null,null,null,null,"String spare circuit",null,null,"3 - STPIS Exclusion (3.3)(a)","Fire","Network business","Network error"]
[null,null,null,null,null,"Other",null,null,"4 - STPIS Exclusion (3.3)(a)","Other",null,"Switching and protection error"]
[null,null,null,null,null,null,null,null,"5 - STPIS Exclusion (3.3)(a)","Dig-in","Third party","Fire"]
[null,null,null,null,null,null,null,null,"6 - STPIS Exclusion (3.3)(a)","Unauthorised access",null,"Other"]
[null,null,null,null,null,null,null,null,"7 - STPIS Exclusion (3.3)(a)","Vehicle impact",null,"Dig-in"]
[null,null,null,null,null,null,null,null,null,"Unknown",null,"Unauthorised access"]
[null,null,null,null,null,null,null,null,null,"Blow-in/Fall-in - NSP responsibility",null,"Vehicle impact"]
[null,null,null,null,null,null,null,null,null,"Grow-in - NSP responsibility","Unknown","Unknown"]
[null,null,null,null,null,null,null,null,null,"Blow-in/Fall-in - Other responsible party","Vegetation","Blow-in/Fall-in - NSP responsibility"]
[null,null,null,null,null,null,null,null,null,"Grow-in - Other responsible party",null,"Grow-in - NSP responsibility"]
[null,null,null,null,null,null,null,null,null,null,null,"Blow-in/Fall-in - Other responsible party"]
[null,null,null,null,null,null,null,null,null,null,null,"Grow-in - Other responsible party"]
[null,null,null,null,null,null,null,null,null,null,"Weather"]
[null,null,null,null,null,null,null,null,null,null,"2 - STPIS Exclusion (3.3)(a)"]
[null,null,null,null,null,null,null,null,null,null,"3 - STPIS Exclusion (3.3)(a)"]
[null,null,null,null,null,null,null,null,null,null,"4 - STPIS Exclusion (3.3)(a)"]
[null,null,null,null,null,null,null,null,null,null,"5 - STPIS Exclusion (3.3)(a)"]
[null,null,null,null,null,null,null,null,null,null,"6 - STPIS Exclusion (3.3)(a)"]
[null,null,null,null,null,null,null,null,null,null,"7 - STPIS Exclusion (3.3)(a)"]
[]
[]
[null,"CA & RESET RINS \nTNSP ","dms_TNSP_0203_SubstationType","dms_TNSP_020301_ProjectType","dms_TNSP_020301_ProjectTrigger","dms_TNSP_020302_ProjectType","dms_TNSP_0203_ProjectTrigger"]
[null,null,"Terminal station","New substation establishment","Demand growth","New line on new route - single circuit","Demand growth"]
[null,null,"Switching station","Capacity upgrade"," Voltage issues","New line on new route - dual circuit"," Voltage issues"]
[null,null,"Transmission substation","Voltage upgrade"," Reactive power issue","New line on new route - other"," Reactive power issue"]
[null,null,"Other","Other"," Fault level issues","Line rebuild over existing route - single circuit"," Fault level issues"]
[null,null,null,null,"Net market benefit","Line rebuild over existing route - dual circuit"," Net market benefit"]
[null,null,null,null," Safety","Reconductor - Single circuit"," Safety"]
[null,null,null,null," Environment","Reconductor - Dual circuit"," Environment"]
[null,null,null,null," Other","Reconductor - Other"," Other"]
[null,null,null,null,null,"Line upgrade - raising/retensoring"]
[null,null,null,null,null,"Line upgrade - voltage upgrade"]
[null,null,null,null,null,"Line upgrade - capacity"]
[null,null,null,null,null,"String spare circuit"]
[null,null,null,null,null,"Other"]
[]
[]
[]
[null,"NAMED RANGES USED IN ETL PROCESS"]
[]
[null,"CA & RESET RINS \nDNSP ONLY","dms_020303_01_UOM","dms_020501_01_UOM","dms_020501_02_UOM","dms_020501_03_UOM","dms_020501_04_UOM","dms_020701_01_UOM","dms_020701_02_UOM","dms_020701_01_Rows","dms_040102_01_UOM","dms_040102_04_UOM","dms_E050201_UOM","dms_E050302_UOM"]
[null,null,"Circuit line length in km","0's","0's","0's","0's","km","km","Route line length within zone","0's","days","per metre per connection","metres per connection"]
[null,null,"Circuit line length in km","0's","0's","0's","0's","0's","0's","Number of maintenance spans","0's","0's","per service per connection","number per connection"]
[null,null,"Circuit line length in km","MVA added","MVA added","MVA added","MVA added","km","km","Total length of maintenance spans","0's","$0s","number per connection","number per connection"]
[null,null,"Circuit line length in km","0's","0's","0's","0's","km","km","Length of vegetation corridors","$0s","0's"]
[null,null,"Number","total spend $0s","total spend $0s","total spend $0s","total spend $0s","0's","0's","Average number of trees per maintenance span"]
[null,null,"Number","net circuit km added","net circuit km added","net circuit km added","net circuit km added","years","years","Average frequency of cutting cycle"]
[null,null,"Number","total spend $0s","total spend $0s","total spend $0s","total spend $0s"]
[null,null,null,"net circuit km added","net circuit km added","net circuit km added","net circuit km added"]
[null,null,null,"total spend $0s","total spend $0s","total spend $0s","total spend $0s"]
[null,null,null,"0's",null,"$0s"]
[null,null,null,"0's"]
[null,null,null,"0's"]
[null,null,null,"$0s"]
[]
[]
[null,"CA & RESET RINS \nTNSP ONLY","dms_020701_01_UOM"]
[null,null,"km"]
[null,null,"0's"]
[null,null,"km"]
[null,null,"0's"]
[null,null,"km"]
[null,null,"metres"]
[null,null,"years"]
[]
[]
[null,"CA & RESET RINS \nDNSP & TNSP","dms_020603_01_UOM"]
[null,null,"0's"]
[null,null,"0's"]
[null,null,"0's"]
[null,null,"0's"]
[null,null,"(per cent)"]
[]
[]
[null,"EB & RESET RINS \nDNSP ONLY","dms_030601_01_UOM","dms_030601_02_UOM","dms_030701_01_UOM","dms_030702_01_UOM","dms_030703_01_UOM"]
[null,null,"minutes/customer","minutes/customer","Customer / km","%","km"]
[null,null,"minutes/customer","minutes/customer","MWh/customer","Number of spans"]
[null,null,"interruptions/customer","interruptions/customer","kVA / customer","Number of spans"]
[null,null,"interruptions/customer","interruptions/customer",null,"Number of spans"]
[null,null,null,null,null,"Number of spans"]
[null,null,null,null,null,"Years"]
[null,null,null,null,null,"Years"]
[null,null,null,null,null,"Trees"]
[null,null,null,null,null,"Trees"]
[null,null,null,null,null,"Defects"]
[null,null,null,null,null,"Defects"]
[null,null,null,null,null,"Spans"]
[null,null,null,null,null,"km"]
[null,null,null,null,null,"Spans"]
[]
[null,null,"WHEN INSERTING COVER SHEET INTO A TNSP FILE - APPLY THESE NAMED RANGES"]
[null,"EB & RESET RINS \nTNSP ONLY","dms_030601_01_UOM",null,"dms_030701_01_UOM","dms_030702_01_UOM"]
[null,null,"%",null,"Number of spans","km"]
[null,null,"number",null,"Years","%"]
[null,null,"number",null,"Trees","km"]
[null,null,"%",null,"Defects","number"]
[null,null,"number",null,"Number of spans"]
[null,null,"number",null,"km"]
[null,null,"%",null,"km"]
[null,null,"number",null,"Number of spans"]
[null,null,"number"]
[null,null,"%"]
[null,null,"number"]
[null,null,"%"]
[null,null,"number"]
[null,null,"%"]
[null,null,"number"]
[]
[null,"EB & RESET RINS \nDNSP & TNSP","dms_EB_RAB_PIT"]
[null,null,"Beginning of year"]
[null,null,"End of year"]
[null,null,"End of year"]
[null,null,"End of year"]
[null,null,"End of year"]
[null,null,"End of year"]
[]
[null,"ARR \nDNSP ONLY","dms_030605_UOM","dms_03060703_UOM","dms_E020202_UOM","Spare"]
[null,null,"number","number","Length of mains replaced"]
[null,null,"number","number","Number of services replaced"]
[null,null,"number","number"]
[null,null,"number","number"]
[null,null,"number","(per cent)"]
[null,null,"number"]
[null,null,"number"]
[null,null,"number"]
[null,null,"number"]
[null,null,"number"]
[null,null,"number"]
[null,null,"number"]
[null,null,"(per cent)"]
[null,null,"(per cent)",""]
[]
[null,"RFM","dms_Beg","dms_Mid","dms_End"]
[null,null,"Beginning of year","Mid year","End of Year"]
[]
[null,"PTRM","dms_PTRM_RAB_PIT","dms_PTRM_TAB_PIT","DMS_Xfactor"]
[null,null,"Beginning of year","Beginning of year","x factors"]
[null,null,"End of year","End of year"]
[null,null,"End of year","End of year"]
[null,null,"End of year","End of year"]
[null,null,"End of year"]
[]
[]
[null,"STPIS & MIC NAMED RANGES "]
[]
[null,"These \"row descriptions\" are the column headings in the various templates but become row descriptions in the ETL process"]
[]
[null,"Table 6.3 sustained interruptions - row descriptions","dms_060301_CustNo_Affected_Row","dms_060301_Avg_Duration_Sustained_Int_Row","dms_060301_Effect_unplanned_SAIDI_Row","dms_060301_Effect_unplanned_SAIFI_Row"]
[null,null,"Number of customers affected by the interruption","Average duration of sustained customer interruption","Effect on unplanned SAIDI","Effect on unplanned SAIFI"]
[]
[]
[null,"Table 6.1 telephone answering - row descriptions and start date","dms_060101_Rows","dms_060102_Rows","dms_060101_StartDateTxt"]
[null,null,"Total number of calls \n(after removing excluded events)","Number of calls answered within 30 seconds \n(after excluding excluded events) ",{"$f":"dms_060701_StartDateTxt","v":"1-Jan-2017"}]
[]
[]
[null,"Table 6.8.1 - row descriptions","dms_060801_01_Rows","dms_060801_02_Rows","dms_060801_03_Rows","dms_060801_04_Rows"]
[null,null,"Number of interruptions","Duration of interruptions","Total unplanned minutes off supply","Effect on unplanned MAIFI"]
[]
[]
[null,"Table 7.9.4 - market impact component - row descriptions","dms_070904_01_Rows","without exclusions","with exclusions"]
[]
[]
[null,"These headings (Lists) are determined from the INDEX/MATCH function on the NSP selected on the Business & other details sheet"]
[]
[null,"Table 6.7.1 - daily performance data - unplanned - MAIFI  -- row descriptions and header named range values","dms_060701_Feeder_Header_Lvl4",{"$f":"INDEX(dms_FeederName_1,MATCH(dms_TradingName,dms_TradingName_List))","v":"CBD"},{"$f":"INDEX(dms_FeederName_1,MATCH(dms_TradingName,dms_TradingName_List))","v":"CBD"},{"$f":"INDEX(dms_FeederName_2,MATCH(dms_TradingName,dms_TradingName_List))","v":"Urban"},{"$f":"INDEX(dms_FeederName_2,MATCH(dms_TradingName,dms_TradingName_List))","v":"Urban"},{"$f":"INDEX(dms_FeederName_3,MATCH(dms_TradingName,dms_TradingName_List))","v":"Short rural"},{"$f":"INDEX(dms_FeederName_3,MATCH(dms_TradingName,dms_TradingName_List))","v":"Short rural"},{"$f":"INDEX(dms_FeederName_4,MATCH(dms_TradingName,dms_TradingName_List))","v":"Long rural"},{"$f":"INDEX(dms_FeederName_4,MATCH(dms_TradingName,dms_TradingName_List))","v":"Long rural"},{"$f":"IF((INDEX(dms_FeederName_5,MATCH(dms_TradingName,dms_TradingName_List))=0),\"Network\",(INDEX(dms_FeederName_5,MATCH(dms_TradingName,dms_TradingName_List))))","v":"Network"},{"$f":"IF((INDEX(dms_FeederName_5,MATCH(dms_TradingName,dms_TradingName_List))=0),\"Network\",(INDEX(dms_FeederName_5,MATCH(dms_TradingName,dms_TradingName_List))))","v":"Network"},"Network","Network"]
[]
[null,null,"dms_060701_Rows","All events","After removing excluded events","All events","After removing excluded events","All events","After removing excluded events","All events","After removing excluded events","All events","After removing excluded events","All events","After removing excluded events"]
[null,null,null,"the number of column headings changes from 10 to 12 depending on the number of feeder categories for the NSP"]
[]
[null,null,"dms_0603_FeederList",{"$f":"INDEX(dms_FeederName_1,MATCH(dms_TradingName,dms_TradingName_List))","v":"CBD"},{"$f":"INDEX(dms_FeederName_2,MATCH(dms_TradingName,dms_TradingName_List))","v":"Urban"},{"$f":"INDEX(dms_FeederName_3,MATCH(dms_TradingName,dms_TradingName_List))","v":"Short rural"},{"$f":"INDEX(dms_FeederName_4,MATCH(dms_TradingName,dms_TradingName_List))","v":"Long rural"}]
[]
[]
[null,"Use these to add to specific worksheets in existing files","Use these to add to specific worksheets in existing files"]
[]
[]
[null,"ARRs 6.7 STPIS daily performance","dms_060101_Values","dms_060102_Values","dms_060701_Values"]
[null,null,"dms_LeapYear"]
[]
[]
[null,"ARR's  6.8 STPIS exclusions","dms_060801_Event_Date","dms_060801_OutageID","dms_060801_FeederID","dms_060801_FeederClass","dms_060801_CauseID","dms_060801_01_Values","dms_060801_02_Values","dms_060801_03_Values","dms_060801_Excl_Cat","dms_060801_04_Values"]
[null,null,"dms_060801_StartCell"]
[]
[]
[null,"CA 6.3 sustained interruptions","dms_060301_Event_Date","dms_060301_Event_Time","dms_060301_AssetID","dms_060301_FeederClass","dms_060301_Reason","dms_060301_DetailedReason","dms_060301_CustNo_Affected_Values","dms_060301_Avg_Duration_Sustained_Int_Values","dms_060301_Effect_unplanned_SAIDI_Values","dms_060301_Effect_unplanned_SAIFI_Values","dms_060301_MED"]

{"sheet":"AER lookups","index":2,"n_rows":96,"n_cols":38,"rows_kept":96,"cut":false,"hidden":true,"merged":[[30,1,30,4],[13,25,13,28],[13,31,13,35]]}
[null,"AER LOOKUP TABLES"]
[]
[null,"Data in these columns used for data validation and database purposes."]
[null,"Date last modified:","2017-01-16","added (Albury and Victora) for AGN"]
[null,null,"2016-10-17","updated TransGrid's correct legal name, corrected TasNetworks (T) to June financial year"]
[null,null,"2017-02-01","inserted Power and Water, added NRs (dms_FeederCat_1 and dms_FeederCat_2)"]
[null,null,"2017-03-03","inserted AEMO as a business"]
[null,null,"2018-03-28","major changes to accommodate STPIS"]
[null,null,"Template Version",5]
[]
[]
[]
[]
[null,null,null,null,null,null,null,null,null,null,null,null,null,null,null,null,null,null,null,null,null,null,null,null,null,"Feeder Types",null,null,null,"TasNetworks (D)","MAIFI flag","Feeder Names"]
[]
[null,"dms_TradingName_List","dms_TradingNameFull_List","dms_ABN_List","dms_JurisdictionList","dms_Sector_List","dms_Segment_List","dms_FormControl_List","dms_RPT_List","dms_RPTMonth_List","dms_CRCPlength_List","dms_FRCPlength_List","dms_PRCPlength_List","dms_663_List","dms_DeterminationRef_List","dms_Addr1_List","dms_Addr2_List","dms_Suburb_List","dms_State_List","dms_PostCode_List","dms_PAddr1_List","dms_PAddr2_List","dms_PSuburb_List","dms_PState_List","dms_PPostCode_List","dms_CBD_flag","dms_Urban_flag","dms_ShortRural_flag","dms_LongRural_flag","dms_FeederType_5_flag","dms_MAIFI_flag_List","dms_FeederName_1","dms_FeederName_2","dms_FeederName_3","dms_FeederName_4","dms_FeederName_5","dms_Public_Lighting_List","Name"]
[null,"AGN (Albury and Victoria)","Australian Gas Networks Limited (reporting data for Albury and Victoria)",19078551685,"Vic","Gas","Distribution","Weighted average price cap","Calendar","December",5,5,5,"x",null,"Level 6","400 King William Street","ADELAIDE","SA",5000,"PO Box 6468","Halifax Street","ADELAIDE","SA",5000,"NO","NO","NO","NO","NO","-","CBD","Urban","Short rural","Long rural",null,"NO","AGN (Albury)"]
[null,"AGN (Albury)","Australian Gas Networks Limited (reporting data for Albury)",19078551685,"Vic","Gas","Distribution","Weighted average price cap","Calendar","December",5,5,5,"x",null,"Level 6","400 King William Street","ADELAIDE","SA",5000,"PO Box 6468","Halifax Street","ADELAIDE","SA",5000,"NO","NO","NO","NO","NO","-","CBD","Urban","Short rural","Long rural",null,"NO"]
[null,"AGN (SA)","Australian Gas Networks Limited (reporting data for SA)",19078551685,"SA","Gas","Distribution","Weighted average price cap","Financial","June",5,5,5,5,"distribution determination","Level 6","400 King William Street","ADELAIDE","SA",5000,"PO Box 6468","Halifax Street","ADELAIDE","SA",5000,"NO","NO","NO","NO","NO","-","CBD","Urban","Short rural","Long rural",null,"NO","AGN (SA)"]
[null,"AGN (Victoria)","Australian Gas Networks Limited (reporting data for Victoria)",19078551685,"Vic","Gas","Distribution","Weighted average price cap","Calendar","December",5,5,5,"x",null,"Level 6","400 King William Street","ADELAIDE","SA",5000,"PO Box 6468","Halifax Street","ADELAIDE","SA",5000,"NO","NO","NO","NO","NO","-","CBD","Urban","Short rural","Long rural",null,"NO","AGN (Victoria)"]
[null,"AusNet (Gas)","AusNet Gas Services","086015036","Vic","Gas","Distribution","Weighted average price cap","Calendar","December",5,5,5,"X",null,"Level 31","2 Southbank Boulevard","SOUTHBANK","Vic",3008,null,null,null,"Vic","-","NO","NO","NO","NO","NO","-","CBD","Urban","Short rural","Long rural",null,"NO","AusNet (Gas)"]
[null,"Australian Distribution Co. (Gas)","Australian Gas Distribution Co. ",11222333444,"Vic","Gas","Distribution","Weighted average price cap","Calendar","December",5,5,5,null,null,"123 Straight Street",null,"MELBOURNE","Vic",3000,"PO Box 123",null,"MELBOURNE","Vic",3000,"NO","NO","NO","NO","NO","-","CBD","Urban","Short rural","Long rural",null,"NO","Australian Distribution Co. (Vic)"]
[null,"Central Ranges Pipeline (D)","Central Ranges Pipeline Pty Ltd",108218355,"NSW","Gas","Distribution","Weighted average price cap","Financial","June",15,5,5,5,"distribution determination","Level 19","580 George Street","SYDNEY","NSW",2000,"PO Box R41",null,"ROYAL EXCHANGE","NSW",1225,"NO","NO","NO","NO","NO","-","CBD","Urban","Short rural","Long rural",null,"NO"]
[null,"Evoenergy Gas","Evoenergy Gas",76670568688,"ACT","Gas","Distribution","Weighted average price cap","Financial","June",5,5,5,"x",null,"40 Bunda Street",null,"CANBERRA","ACT",2600,"GPO BOX 366",null,"CANBERRA","ACT",2601,"NO","NO","NO","NO","NO","-","CBD","Urban","Short rural","Long rural",null,"NO","ActewAGL Gas"]
[null,"JGN","Jemena Gas Networks (NSW) Ltd","003 004 322","NSW","Gas","Distribution","Weighted average price cap","Financial","June",5,5,5,null,null,"please provide street address",null,null,null,null,"please provide postal address",null,null,null,null,"NO","NO","NO","NO","NO","-","CBD","Urban","Short rural","Long rural",null,"NO","JGN"]
[null,"Multinet Gas","Multinet Gas (DB No.1) Pty Ltd (ACN 086 026 986), Multinet Gas (DB No.2) Pty Ltd (ACN 086 230 122)","086026986","Vic","Gas","Distribution","Weighted average price cap","Calendar","December",5,5,5,"x",null,"43-45 Centreway",null,"MT WAVERLEY","Vic",3149,null,null,null,null,null,"NO","NO","NO","NO","NO","-","CBD","Urban","Short rural","Long rural",null,"NO","Multinet Gas"]
[]
[]
[]
[]
[null,"The Reg Year Ending (dms_RYE) must be set to the last year of the regulatory period. For forecast data is is usually (FRCP_y5) for actual it is a single year (CRY). For historical actual data the RYE will need to be set manually in the business details sheet by setting the dms_Multiyear_flag to 1 and putting the correct value in 'dms_Specified_FinalYear. See cells C67:C68"]
[null,"dms_Model_List ","dms_Model_Name_Format1","dms_Worksheet_List","dms_Model_Span_List"]
[null,"ARR","Annual Reporting",{"$f":"IF(dms_MultiYear_ResponseFlag=\"yes\",\"HISTORICAL ANNUAL REPORTING\",\"ANNUAL REPORTING\")","v":"HISTORICAL ANNUAL REPORTING"},1]
[null,"CA","Category Analysis",{"$f":"IF(dms_MultiYear_ResponseFlag=\"yes\",\"NEW HISTORICAL CATEGORY ANALYSIS\",\"CATEGORY ANALYSIS\")","v":"NEW HISTORICAL CATEGORY ANALYSIS"},1]
[null,"CESS","Capitlal Expenditure","CAPITLAL EXPENDITURE SHARING SCHEMING",5]
[null,"CPI","CPI","CPI",5]
[null,"EB","Economic Benchmarking",{"$f":"IF(dms_MultiYear_ResponseFlag=\"yes\",\"NEW HISTORICAL ECONOMIC BENCHMARKING\",\"ECONOMIC BENCHMARKING\")","v":"NEW HISTORICAL ECONOMIC BENCHMARKING"},1]
[null,"Pricing","Pricing Proposal","PRICING PROPOSAL",5]
[null,"PTRM","Post Tax Revenue Model","POST TAX REVENUE MODEL",5]
[null,"Reset","Regulatory Reporting (Reset)","REGULATORY REPORTING STATEMENT",5]
[null,"RFM","Roll Forward Model","ROLL FORWARD MODEL",5]
[null,"WACC","Weighted Average Cost of Capital","WEIGHTED AVERAGE COST OF CAPITAL",1]
[]
[]
[]
[null,"Financial","Calendar",null,"PREVIOUS",null,"CURRENT",null,"FORTHCOMING"]
[null,"1987-88","1988","PRCP_y1",{"$f":"INDEX(INDIRECT(dms_RPT),dms_PRCP_start_row)","v":2011},"CRCP_y1",{"$f":"INDEX(INDIRECT(dms_RPT),dms_CRCP_start_row)","v":2016},{"$f":"FRCP_y1","v":2021},{"$f":"INDEX(INDIRECT(dms_RPT),dms_FRCP_start_row)","v":2021}]
[null,"1988-89","1989","PRCP_y2",{"$f":"INDEX(INDIRECT(dms_RPT),dms_PRCP_start_row+1)","v":2012},"CRCP_y2",{"$f":"INDEX(INDIRECT(dms_RPT),dms_CRCP_start_row+1)","v":2017},"FRCP_y2",{"$f":"INDEX(INDIRECT(dms_RPT),dms_FRCP_start_row+1)","v":2022}]
[null,"1989-90","1990","PRCP_y3",{"$f":"INDEX(INDIRECT(dms_RPT),dms_PRCP_start_row+2)","v":2013},"CRCP_y3",{"$f":"INDEX(INDIRECT(dms_RPT),dms_CRCP_start_row+2)","v":2018},"FRCP_y3",{"$f":"INDEX(INDIRECT(dms_RPT),dms_FRCP_start_row+2)","v":2023}]
[null,"1990-91","1991","PRCP_y4",{"$f":"INDEX(INDIRECT(dms_RPT),dms_PRCP_start_row+3)","v":2014},"CRCP_y4",{"$f":"INDEX(INDIRECT(dms_RPT),dms_CRCP_start_row+3)","v":2019},"FRCP_y4",{"$f":"INDEX(INDIRECT(dms_RPT),dms_FRCP_start_row+3)","v":2024}]
[null,"1991-92","1992","PRCP_y5",{"$f":"INDEX(INDIRECT(dms_RPT),dms_PRCP_start_row+4)","v":2015},"CRCP_y5",{"$f":"INDEX(INDIRECT(dms_RPT),dms_CRCP_start_row+4)","v":2020},"FRCP_y5",{"$f":"INDEX(INDIRECT(dms_RPT),dms_FRCP_start_row+4)","v":2025}]
[null,"1992-93","1993","PRCP_y6",{"$f":"INDEX(INDIRECT(dms_RPT),dms_PRCP_start_row+5)","v":2016},"CRCP_y6",{"$f":"INDEX(INDIRECT(dms_RPT),dms_CRCP_start_row+5)","v":2021},"FRCP_y6",{"$f":"INDEX(INDIRECT(dms_RPT),dms_FRCP_start_row+5)","v":2026}]
[null,"1993-94","1994","PRCP_y7",{"$f":"INDEX(INDIRECT(dms_RPT),dms_PRCP_start_row+6)","v":2017},"CRCP_y7",{"$f":"INDEX(INDIRECT(dms_RPT),dms_CRCP_start_row+6)","v":2022},"FRCP_y7",{"$f":"INDEX(INDIRECT(dms_RPT),dms_FRCP_start_row+6)","v":2027}]
[null,"1994-95","1995","PRCP_y8",{"$f":"INDEX(INDIRECT(dms_RPT),dms_PRCP_start_row+7)","v":2018},"CRCP_y8",{"$f":"INDEX(INDIRECT(dms_RPT),dms_CRCP_start_row+7)","v":2023},"FRCP_y8",{"$f":"INDEX(INDIRECT(dms_RPT),dms_FRCP_start_row+7)","v":2028}]
[null,"1995-96","1996","PRCP_y9",{"$f":"INDEX(INDIRECT(dms_RPT),dms_PRCP_start_row+8)","v":2019},"CRCP_y9",{"$f":"INDEX(INDIRECT(dms_RPT),dms_CRCP_start_row+8)","v":2024},"FRCP_y9",{"$f":"INDEX(INDIRECT(dms_RPT),dms_FRCP_start_row+8)","v":2029}]
[null,"1996-97","1997","PRCP_y10",{"$f":"INDEX(INDIRECT(dms_RPT),dms_PRCP_start_row+9)","v":2020},"CRCP_y10",{"$f":"INDEX(INDIRECT(dms_RPT),dms_CRCP_start_row+9)","v":2025},"FRCP_y10",{"$f":"INDEX(INDIRECT(dms_RPT),dms_FRCP_start_row+9)","v":2030}]
[null,"1997-98","1998","PRCP_y11",{"$f":"INDEX(INDIRECT(dms_RPT),dms_PRCP_start_row+10)","v":2021},"CRCP_y11",{"$f":"INDEX(INDIRECT(dms_RPT),dms_CRCP_start_row+10)","v":2026},"FRCP_y11",{"$f":"INDEX(INDIRECT(dms_RPT),dms_FRCP_start_row+10)","v":2031}]
[null,"1998-99","1999","PRCP_y12",{"$f":"INDEX(INDIRECT(dms_RPT),dms_PRCP_start_row+11)","v":2022},"CRCP_y12",{"$f":"INDEX(INDIRECT(dms_RPT),dms_CRCP_start_row+11)","v":2027},"FRCP_y12",{"$f":"INDEX(INDIRECT(dms_RPT),dms_FRCP_start_row+11)","v":2032}]
[null,"1999-00","2000","PRCP_y13",{"$f":"INDEX(INDIRECT(dms_RPT),dms_PRCP_start_row+12)","v":2023},"CRCP_y13",{"$f":"INDEX(INDIRECT(dms_RPT),dms_CRCP_start_row+12)","v":2028},"FRCP_y13",{"$f":"INDEX(INDIRECT(dms_RPT),dms_FRCP_start_row+12)","v":2033}]
[null,"2000-01","2001","PRCP_y14",{"$f":"INDEX(INDIRECT(dms_RPT),dms_PRCP_start_row+13)","v":2024},"CRCP_y14",{"$f":"INDEX(INDIRECT(dms_RPT),dms_CRCP_start_row+13)","v":2029},"FRCP_y14",{"$f":"INDEX(INDIRECT(dms_RPT),dms_FRCP_start_row+13)","v":2034}]
[null,"2001-02","2002","PRCP_y15",{"$f":"INDEX(INDIRECT(dms_RPT),dms_PRCP_start_row+14)","v":2025},"CRCP_y15",{"$f":"INDEX(INDIRECT(dms_RPT),dms_CRCP_start_row+14)","v":2030},"FRCP_y15",{"$f":"INDEX(INDIRECT(dms_RPT),dms_FRCP_start_row+14)","v":2035}]
[null,"2002-03","2003","PRCP_y16",{"$f":"INDEX(INDIRECT(dms_RPT),dms_PRCP_start_row+15)","v":2026},"CRCP_y16",{"$f":"INDEX(INDIRECT(dms_RPT),dms_CRCP_start_row+15)","v":2031},"FRCP_y16",{"$f":"INDEX(INDIRECT(dms_RPT),dms_FRCP_start_row+15)","v":2036}]
[null,"2003-04","2004"]
[null,"2004-05","2005"]
[null,"2005-06","2006",null,"CRY - FRY"]
[null,"2006-07","2007","dms_y1",{"$f":"IFERROR(INDEX(INDIRECT(dms_RPT),dms_CRY_start_row),0)","v":2017}]
[null,"2007-08","2008","dms_y2",{"$f":"IFERROR(INDEX(INDIRECT(dms_RPT),dms_CRY_start_row+1),0)","v":2018}]
[null,"2008-09","2009","dms_y3",{"$f":"IFERROR(INDEX(INDIRECT(dms_RPT),dms_CRY_start_row+2),0)","v":2019}]
[null,"2009-10",2010,"dms_y4",{"$f":"IFERROR(INDEX(INDIRECT(dms_RPT),dms_CRY_start_row+3),0)","v":2020}]
[null,"2010-11",2011,"dms_y5",{"$f":"IFERROR(INDEX(INDIRECT(dms_RPT),dms_CRY_start_row+4),0)","v":2021}]
[null,"2011-12",2012,"dms_y6",{"$f":"IFERROR(INDEX(INDIRECT(dms_RPT),dms_CRY_start_row+5),0)","v":2022}]
[null,"2012-13",2013,"dms_y7",{"$f":"IFERROR(INDEX(INDIRECT(dms_RPT),dms_CRY_start_row+6),0)","v":2023}]
[null,"2013-14",2014,"dms_y8",{"$f":"IFERROR(INDEX(INDIRECT(dms_RPT),dms_CRY_start_row+7),0)","v":2024}]
[null,"2014-15",2015,"dms_y9",{"$f":"IFERROR(INDEX(INDIRECT(dms_RPT),dms_CRY_start_row+8),0)","v":2025}]
[null,"2015-16",2016,"dms_y10",{"$f":"IFERROR(INDEX(INDIRECT(dms_RPT),dms_CRY_start_row+9),0)","v":2026}]
[null,"2016-17",2017,"dms_y11",{"$f":"IFERROR(INDEX(INDIRECT(dms_RPT),dms_CRY_start_row+10),0)","v":2027}]
[null,"2017-18",2018,"dms_y12",{"$f":"IFERROR(INDEX(INDIRECT(dms_RPT),dms_CRY_start_row+11),0)","v":2028}]
[null,"2018-19",2019,"dms_y13",{"$f":"IFERROR(INDEX(INDIRECT(dms_RPT),dms_CRY_start_row+12),0)","v":2029}]
[null,"2019-20",2020,"dms_y14",{"$f":"IFERROR(INDEX(INDIRECT(dms_RPT),dms_CRY_start_row+13),0)","v":2030}]
[null,"2020-21",2021,"dms_y15",{"$f":"IFERROR(INDEX(INDIRECT(dms_RPT),dms_CRY_start_row+14),0)","v":2031}]
[null,"2021-22",2022,"dms_y16",{"$f":"IFERROR(INDEX(INDIRECT(dms_RPT),dms_CRY_start_row+15),0)","v":2032}]
[null,"2022-23",2023]
[null,"2023-24",2024]
[null,"2024-25",2025]
[null,"2025-26",2026]
[null,"2026-27",2027]
[null,"2027-28",2028]
[null,"2028-29",2029]
[null,"2029-30",2030]
[null,"2030-31",2031]
[null,"2031-32",2032]
[null,"2032-33",2033]
[null,"2033-34",2034]
[null,"2034-35",2035]
[null,"2035-36",2036]
[null,"2036-37",2037]

{"sheet":"AER ETL","index":3,"n_rows":145,"n_cols":8,"rows_kept":145,"cut":false,"hidden":true,"merged":[[11,0,15,0],[12,4,12,8],[14,2,14,4],[18,0,25,0],[26,0,31,0],[71,1,73,1],[32,68,32,89],[33,37,33,58],[33,68,33,89],[34,0,59,0],[34,37,34,58],[34,68,34,89],[32,37,32,58]]}
[null,"AER ETL INFORMATION"]
[]
[null,"USES NAMED RANGES FLAG","yes","dms_Defined_Names_Used"]
[]
[null,"IF THIS IS AN ABC RIN - make sure the the named range CRY is applied and the named range dms_dollar_nom_UOM is applied"]
[null,"IF THIS IS A RESET RIN - make sure the named ranges CRY and dms_dollar_nom_UOM are NOT present in the workbook"]
[null,"FOR ABC RINS THAT SPAN MULTIPLE YEARS - make sure MultiYear Flag is set and final year entered as required"]
[]
[null,"Full trading name",{"$f":"INDEX(dms_TradingNameFull_List,MATCH(dms_TradingName,dms_TradingName_List))","v":"Australian Gas Networks Limited (reporting data for Albury and Victoria)"},null,"dms_TradingNameFull"]
[null,"Trading name",{"$f":"dms_TradingName","v":"AGN (Albury and Victoria)"}]
["Selected here","Model / RIN","ARR","dms_Model"]
["Read from Business & other details","Source","Reporting","dms_Source"]
[null,"Data quality",{"$f":"dms_Selected_Quality","v":"Actual"},"dms_DQ_1"]
[null,"Data status",{"$f":"dms_Selected_Status","v":"Public"},"dms_DQ_2"]
[null,"Amendment reason",{"$f":"dms_Amendment_Text","v":0},null,null,"dms_AmendmentReason"]
[null,"Submission date",{"$f":"dms_Typed_Submission_Date","v":"2022-07-01"},"dms_SubmissionDate"]
[]
["Redundant","EBSS - First application of scheme in forthcoming period?","No"]
["Pre-populated from lookup table","Data ingestion data quality",{"$f":"dms_Selected_Quality","v":"Actual"},"dms_DataQuality","=IF(dms_DQ_2=\"Confidential\",\"Consolidated\",\"Public\")"]
[null,"Sector",{"$f":"INDEX(dms_Sector_List,MATCH(dms_TradingName,dms_TradingName_List))","v":"Gas"},"dms_Sector","=INDEX(dms_Sector_List,MATCH(dms_TradingName,dms_TradingName_List))"]
[null,"Segment",{"$f":"INDEX(dms_Segment_List,MATCH(dms_TradingName,dms_TradingName_List))","v":"Distribution"},"dms_Segment","=INDEX(dms_Segment_List,MATCH(dms_TradingName,dms_TradingName_List))"]
[null,"Regulatory Year Ending",{"$f":"dms_RYE_result","v":"2021"},"dms_RYE","=IF(dms_MultiYear_Flag=1,LEFT(dms_Specified_FinalYear,2)&RIGHT(dms_Specified_FinalYear,2),INDEX(dms_RYE_Formula_Result,MATCH(dms_Model,dms_Model_List)))"]
[null,"Reporting Period Type",{"$f":"INDEX(dms_RPT_List,MATCH(dms_TradingName,dms_TradingName_List))","v":"Calendar"},"dms_RPT","=INDEX(dms_RPT_List,MATCH(dms_TradingName,dms_TradingName_List))"]
[null,"EB/CA Unit of Measure for Monetary Values","$0s","dms_dollar_nom_UOM","If the cover sheet is attached to an ABC RIN apply the NAMED RANGE to the cell"]
[null,"Security Classification","Public","dms_Classification","Always Public"]
[null,"Jurisdiction",{"$f":"INDEX(dms_JurisdictionList,MATCH(dms_TradingName,dms_TradingName_List))","v":"Vic"},"dms_Jurisdiction","=INDEX(dms_JurisdictionList,MATCH(dms_TradingName,dms_TradingName_List))"]
["Relevant for PTRM, RFMs and Reset RINS","$ REAL REFERENCES"]
[null,"Does the named range CRY exist in this file? ",{"$f":"IFERROR(\"Yes \"&CRY,\"NO\")","v":"Yes 2017"}]
[null,"CRY-1  (last full calendar year before CRY)",{"$f":"IFERROR(IF(dms_RPT=\"calendar\",CRY-1,LEFT(CRY,4)),\"CRY not present\")","v":2016},"dms_Cal_Year_B4_CRY","'=IF(dms_RPT=\"financial\",VALUE(LEFT(dms_SingleYear_FinalYear_Result,4)),VALUE(LEFT(dms_SingleYear_FinalYear_Result,4)-1))"]
[null,"Dollar $ real month",{"$f":"INDEX(dms_RPTMonth_List,MATCH(dms_TradingName,dms_TradingName_List))","v":"December"},"dms_RPTMonth","=INDEX(dms_RPTMonth_List,MATCH(dms_TradingName,dms_TradingName_List))"]
[null,"Dollar $ real  (the last month before the FRCP_y1)",{"$f":"IF(dms_SingleYearModel=\"yes\",CONCATENATE(dms_RPTMonth)&\" \"&VALUE((LEFT(CRY,2))&RIGHT(CRY,2)),CONCATENATE(dms_RPTMonth)&\" \"&dms_DollarReal_year)","v":"December 2017"},"dms_DollarReal","=IF(SUM(dms_SingleYear_Model)>0,CONCATENATE(dms_RPTMonth)&\" \"&VALUE((LEFT(CRY,2))&RIGHT(CRY,2)),CONCATENATE(dms_RPTMonth)&\" \"&VALUE((LEFT(dms_RYE,2)&RIGHT(dms_RYE,2))))"]
[null,"Dollar $ real previous year (PRCP_y5)",{"$f":"IF(dms_SingleYearModel=\"yes\",CONCATENATE(dms_RPTMonth)&\" \"&VALUE((LEFT(CRY,2))&RIGHT(CRY,2)),CONCATENATE(dms_RPTMonth)&\" \"&dms_Previous_DollarReal_year)","v":"December 2017"},"dms_DollarReal_Prev","=IF(SUM(dms_SingleYear_Model)>0,CONCATENATE(dms_RPTMonth)&\" \"&VALUE(((LEFT(CRY,2))&RIGHT(CRY,2))-1),CONCATENATE(dms_RPTMonth)&\" \"&VALUE(((LEFT(dms_CRCP_FirstYear_Result,2)&RIGHT(dms_CRCP_FirstYear_Result,2))))-1)"]
[null,"PTRM/ RFMs"]
[null,"Form of control",{"$f":"INDEX(dms_FormControl_List,MATCH(dms_TradingName,dms_TradingName_List))","v":"Weighted average price cap"},"dms_FormControl","=INDEX(dms_FormControl_List,MATCH(dms_TradingName,dms_TradingName_List))"]
["All potential values for Regulatory Years or RYEs as calculated","This block works out the various RYE's for ALL RIN types and MODELS"]
[null,"dms_start_year",{"$f":"FRCP_y1","v":2021},"FRCP_y1 from cover sheet"]
[null,"dms_CRY_start_year",{"$f":"IFERROR(CRY,CRCP_y4)","v":2017}]
[null,"dms_CRY_start_row",{"$f":"IFERROR(MATCH(dms_CRY_start_year,INDIRECT(dms_RPT),0),0)","v":30}]
[null,"dms_FRCP_start_row",{"$f":"MATCH(dms_start_year,INDIRECT(dms_RPT),0)","v":34},"Uses FRCP_y1 as a start reference"]
[null,"dms_CRCP_start_row",{"$f":"dms_FRCP_start_row-dms_CRCPlength_Num","v":29},"Uses the value in dms_CRCPlength_Num"]
[null,"dms_PRCP_start_row",{"$f":"dms_FRCP_start_row-dms_CRCPlength_Num-dms_PRCPlength_Num","v":24},"Uses the value in dms_CRCPlength_Num and dms_PRCPlength_Num"]
[null,"dms_RYE_start_row",{"$f":"dms_FRCP_start_row+(dms_FRCPlength_Num-1)","v":38},"Uses the value in dms_FRCPlength_Num-1"]
[null,"FRCP_start_year",{"$f":"INDEX(INDIRECT(dms_RPT),dms_FRCP_start_row)","v":2021},"Converts the FRCP start row to display the year"]
[null,"CRCP_start_year",{"$f":"INDEX(INDIRECT(dms_RPT),dms_CRCP_start_row)","v":2016},"Converts the CRCP start row to display the year"]
[null,"PRCP_start_year",{"$f":"INDEX(INDIRECT(dms_RPT),dms_PRCP_start_row)","v":2011},"Converts the PRCP start row to display the year"]
[null,"FRCP_final_year",{"$f":"INDEX(INDIRECT(dms_RPT),dms_FRCP_start_row+dms_FRCPlength_Num-1)","v":2025},"Finds the FRCP final year"]
[null,"CRCP_final_year",{"$f":"INDEX(INDIRECT(dms_RPT),dms_CRCP_start_row+dms_CRCPlength_Num-1)","v":2020},"Finds the CRCP final year"]
[null,"PRCP_final_year",{"$f":"INDEX(INDIRECT(dms_RPT),dms_PRCP_start_row+dms_FRCPlength_Num-1)","v":2015},"Finds the PRCP final year"]
[null,"dms_Reset_final_year",{"$f":"INDEX(INDIRECT(dms_RPT),dms_RYE_start_row)","v":2025},"For Resets and PTRM/RFMs (same as FRCP_final_year)"]
[null,"dms_SpecifiedYear_final_year",{"$f":"FRY","v":2021},"FRY from cover sheet"]
[null,"dms_DollarReal_year",{"$f":"LEFT(CRCP_final_year,2)&RIGHT(CRCP_final_year,2)","v":"2020"},"Uses the value in CRCP_final_year"]
[null,"dms_Previous_DollarReal_year",{"$f":"LEFT(PRCP_final_year,2)&RIGHT(PRCP_final_year,2)","v":"2015"},"Uses the value in PRCP_final_year"]
[null,"dms_CRY_RYE",{"$f":"IFERROR(LEFT(CRY,2)&RIGHT(CRY,2),0)","v":"2017"},"For ABC single year RINS"]
[null,"dms_Reset_RYE",{"$f":"IF(dms_Model_Span>1,IF(dms_Model=\"RFM\",(LEFT(dms_DollarReal_year,2)&RIGHT(dms_DollarReal_year,2)),(LEFT(dms_Reset_final_year,2)&RIGHT(dms_Reset_final_year,2))),0)","v":0},"If model span > 1 then uses dms_Reset_RYE otherwise it's a multi year ABC and uses dms_Specified_RYE"]
[null,"dms_Specified_RYE",{"$f":"IF(dms_MultiYear_ResponseFlag=\"Yes\",(LEFT(dms_Specified_FinalYear,2)&RIGHT(dms_Specified_FinalYear,2)),0)","v":"2021"},"If multi year ABC - uses dms_Specified_FinalYear"]
[null,"dms_Model_Span",{"$f":"INDEX(dms_Model_Span_List,MATCH(dms_Model,dms_Model_List))","v":1},"A result of 5 is used to signify that it is more than 1 year span"]
[null,"dms_RYE_result",{"$f":"IF(dms_MultiYear_ResponseFlag=\"yes\",dms_Specified_RYE,(IF(dms_Model_Span>1,dms_Reset_RYE,dms_CRY_RYE)))","v":"2021"},"Nested IF - feeds into dms_RYE"]
[null,"dms_Reset_Span",{"$f":"IF(dms_Reset_RYE>0,CONCATENATE(FRCP_y1,\" to \",FRCP_final_year),0)","v":0},"Reset span of years as text"]
[null,"dms_SpecifiedYear_Span",{"$f":"IF(dms_Specified_RYE>0,CONCATENATE(CRY,\" to \",dms_Specified_FinalYear),0)","v":"2017 to 2021"},"Multi year ABC span of years as text"]
[null,"dms_Header_Span",{"$f":"IF(dms_MultiYear_Flag=1,dms_SpecifiedYear_Span,IF(dms_Model_Span>1,dms_Reset_Span,CRY))","v":"2017 to 2021"},"NESTED IF - for Sheet Headers"]
[null,"ABC RINS THAT SPAN MULTIPLE YEARS"]
[null,"This is a multi year ABC RIN?","Yes"]
[null,null,{"$f":"IF(dms_MultiYear_ResponseFlag=\"No\",0,1)","v":1},"dms_MultiYear_Flag","This is set from the answer provided above"]
[null,null,{"$f":"IF(dms_MultiYear_Flag=1,FRY,\"not a Multiple year submission\")","v":2021},"dms_Specified_FinalYear","The result here is returned to dms_CRCP_FinalYear_Result if response to Q in C73 is \"yes\" and dms_MultiYear_Flag is set to 1"]
[null," Start year for 5.2 in Multi year ABC RINS",{"$f":"IFERROR(IF(dms_MultiYear_Flag=1,FRY,CRY),\"not an ABC\")","v":2021},"dms_0502_Inst_Year","=IF(dms_MultiYear_Flag=1,FRY,CRY)",null,"For single year RINS this is CRY - multi year RINS need to start a the end of the span of years (ie. FRY)"]
[null,"WHAT IS THE RYE?"]
[null,"Reg Period Lengths"]
[null,"PRCP length in years",{"$f":"INDEX(dms_PRCPlength_List,MATCH(dms_TradingName,dms_TradingName_List))","v":5},"dms_PRCPlength_Num","=INDEX(dms_PRCPlength_List,MATCH(dms_TradingName,dms_TradingName_List))"]
[null,"CRCP length in years",{"$f":"INDEX(dms_CRCPlength_List,MATCH(dms_TradingName,dms_TradingName_List))","v":5},"dms_CRCPlength_Num","=INDEX(dms_CRCPlength_List,MATCH(dms_TradingName,dms_TradingName_List))"]
[null,"FRCP length in years",{"$f":"INDEX(dms_FRCPlength_List,MATCH(dms_TradingName,dms_TradingName_List))","v":5},"dms_FRCPlength_Num","=INDEX(dms_FRCPlength_List,MATCH(dms_TradingName,dms_TradingName_List))"]
[null,"Single year RIN?"]
[null,"Single Year ABC RIN ?",{"$f":"IF(dms_Model=\"EB\",1,0)","v":0},"dms_EB"]
[null,null,{"$f":"IF(dms_Model=\"CA\",1,0)","v":0},"dms_CA","=dms_SingleYear_Model"]
[null,null,{"$f":"IF(dms_Model=\"ARR\",1,0)","v":1},"dms_ARR"]
[null,"Is this a single Year ABC RIN?",{"$f":"IF(SUM(dms_SingleYear_Model)=1,\"yes\",\"no\")","v":"yes"},"dms_SingleYearModel","=IF(SUM(dms_SingleYear_Model)=1,\"yes\",\"no\")"]
[null,"Single Year Final Year Result",{"$f":"IF(AND(dms_SingleYearModel=\"yes\",dms_MultiYear_Flag=0),CRY,0)","v":0},"dms_SingleYear_FinalYear_Result","=IFERROR(IF(SUM(dms_SingleYear_Model)<>0,(INDIRECT(dms_SingleYear_FinalYear_Ref)),\"not a single year RIN\"),\"CRY not present\")"]
[null,"Multi year RIN?"]
[]
[null,"Multi Year Reset/Model?",{"$f":"IF(dms_Model_Span>1,\"yes\",\"no\")","v":"no"}]
[null,"Final year result for Reset/Model",{"$f":"IF(dms_Model_Span>1,dms_Reset_final_year,0)","v":0},"dms_MultiYear_FinalYear_Result"]
[]
[null,"Multi Year ABC RIN?",{"$f":"IF(dms_MultiYear_Flag=1,\"yes\",\"no\")","v":"yes"},"dms_MultiYear_ABC_RIN"]
[null,"Final year result for ABC multi year",{"$f":"IF(dms_MultiYear_Flag=1,C50,0)","v":2021}]
[]
[null,"EB RINS"]
[null,"Calendar Year for table 3.6 data",{"$f":"IFERROR(IF(dms_Segment=\"Transmission\",dms_Cal_Year_B4_CRY,CRY),\"CRY not present\")","v":2017},"dms_0306_Year","=IF(dms_Segment=\"Transmission\",dms_Cal_Year_B4_CRY,CRY)"]
[null,"CA RINS"]
[null,"Find how many rows in tables 6.3 sustained interruptions?",null,null,"dms_060301_MaxRows only returns a valid value when cover sheet is attached to a CA file"]
[null,null,{"$f":"IF(dms_Model<>\"CA\",\"not a CA\",\"Is a CA\")","v":"not a CA"},null,"=IF(dms_Model<>\"CA\",\"not a CA\",\"Is a CA\")"]
[null,"dms_060301_Avg_Duration_Sustained_Int_Values present?",{"$f":"IFERROR(IF(INDEX(dms_060301_Avg_Duration_Sustained_Int_Values,1,1)<>\"\",\"yes\",\"no\"),\"no\")","v":"no"},"dms_060301_checkvalue","=IFERROR(IF(INDEX(dms_060301_Avg_Duration_Sustained_Int_Values,1,1)<>\"\",\"yes\",\"no\"),\"no\")"]
[null,null,{"$f":"IF(AND(dms_Model=\"CA\",(dms_060301_checkvalue=\"no\")),\"error - NR not present\",\"no errors\")","v":"no errors"},null,"=IF(AND(dms_Model=\"CA\",(dms_060301_checkvalue=\"no\")),\"error - NR not present\",\"no errors\")"]
[null,"Table 6.3.1 - last row reference",{"$f":"IFERROR(IF(dms_Model=\"CA\",LOOKUP(2,1/(dms_060301_Avg_Duration_Sustained_Int_Values<>\"\"),(ROW(dms_060301_Avg_Duration_Sustained_Int_Values))),\"not a CA\"),\"6.3 not present\")","v":"not a CA"},"dms_060301_LastRow","=IFERROR(IF(dms_Model=\"CA\",LOOKUP(2,1/(dms_060301_Avg_Duration_Sustained_Int_Values<>\"\"),(ROW(dms_060301_Avg_Duration_Sustained_Int_Values))),\"not a CA\"),\"6.3 not present\")"]
[null,"Table 6.3.1 - max number rows",{"$f":"IFERROR(IF(dms_Model=\"CA\",(dms_060301_LastRow-15),\"not a CA\"),\"error\")","v":"not a CA"},"dms_060301_MaxRows","=IFERROR(IF(dms_Model=\"CA\",(dms_060301_LastRow-15),\"not a CA\"),\"error\")"]
[null,"Table 6.6.3 - Public lighting repair - no. business days",{"$f":"INDEX(dms_663_List,MATCH(dms_TradingName,dms_TradingName_List))","v":"x"},"dms_663","=INDEX(dms_663_List,MATCH(dms_TradingName,dms_TradingName_List))"]
[null,"ARR or RESET RINS"]
[null,"How many rows in tables 6.1 or 6.7?  (leap year?)","insert dms_LeapYear NR if required",null,"'dms_LeapYear is used to determine dms_060701_Max_Rows BUT it is only found on worksheet 6.1 or 6.7 and the date value in the cell is used to determine whether it is a leap year"]
[null,"Is dms_LeapYear named range present?",{"$f":"IFERROR(IF(dms_LeapYear,\"yes\"),\"no\")","v":"no"}]
[null,"Table 6.7.1 - includes a leap year?",{"$f":"\nIFERROR(IF(MONTH(DATE(YEAR(dms_LeapYear),2,29))=2,\"is a leap year\",\"not a leap year\"),\n\"dms_LeapYear not present\")","v":"dms_LeapYear not present"},"dms_LeapYear_Result","=IFERROR(IF(MONTH(DATE(YEAR(dms_LeapYear),2,29))=2,\"is a leap year\",\"not a leap year\"),\"dms_LeapYear not present\")"]
[null,"MaxRows if Reset and leap year",{"$f":"IF(dms_LeapYear_Result=\"is a leap year\",1827,1826)","v":1826},"dms_060701_Reset_MaxRows","=IF(dms_LeapYear_Result=\"is a leap year\",1827,1826)",null,null,"number of days present in Reset RIN table"]
[null,"MaxRows if ARR and leap year",{"$f":"IF(dms_LeapYear_Result=\"is a leap year\",366,365)","v":365},"dms_060701_ARR_MaxRows","=IF(dms_LeapYear_Result=\"is a leap year\",366,365)",null,null,"number of days present in ARR RIN table"]
[null,"Table 6.7.1 - Max Rows (leap year/ non leap year)",{"$f":"IF(dms_Model=\"ARR\",dms_060701_ARR_MaxRows,IF(dms_Model=\"Reset\",dms_060701_Reset_MaxRows,\"not a relevant RIN type\"))","v":365},"dms_060701_MaxRows","=IF(dms_Model=\"ARR\",dms_060701_ARR_MaxRows,IF(dms_Model=\"Reset\",dms_060701_Reset_MaxRows,\"not a relevant RIN type\"))"]
[null,"How many columns in 6.7?   (4 or 5 feeder categories)",{"$f":"IF(dms_FifthFeeder_flag_NSP=\"NO\",\"This NSP has only 4 feeder categories\",\"This NSP has 5 feeder categories\")","v":"This NSP has only 4 feeder categories"}]
[null,"Table 6.7.1 - Last column (# of feeder categories > 4)",{"$f":"IF(dms_FifthFeeder_flag_NSP=\"NO\",10,12)","v":10},"dms_060701_MaxCols","=IF(dms_FifthFeeder_flag_NSP=\"NO\",8,10)"]
[null,"Table 6.7.1 - Number of offset rows",{"$f":"IF(dms_Model=\"ARR\",15,9)","v":15},"dms_060701_OffsetRows","=IF(dms_Model=\"ARR\",15,9)"]
[null,"Start date for telephone answering in 6.1 or 6.7?",null,null,"Using 060101 as naming standard not 060701 for start dates"]
[null,"Table 6.1.1 and 6.7.1 - Start Date as Text",{"$f":"IF(dms_SingleYearModel=\"yes\",(CONCATENATE(IF(LEN(CRY)=4,\"1-Jan-\",\"1-Jul-\"),LEFT(CRY,4))),(CONCATENATE(IF(LEN(PRCP_y4)=4,\"1-Jan-\",\"1-Jul-\"),LEFT(PRCP_y4,4))))","v":"1-Jan-2017"},"dms_060101_StartDateTxt","=IF(SUM(dms_SingleYear_Model)>1,(CONCATENATE(IF(LEN(CRY)=4,\"1-Jan-\",\"1-Jul-\"),LEFT(CRY,4))),(CONCATENATE(IF(LEN(CRCP_y4)=4,\"1-Jan-\",\"1-Jul-\"),LEFT(CRCP_y4,4))))"]
[null,"Table 6.1.1 and 6.7.1 - Start Date as Date Value",{"$f":"DATEVALUE(dms_060701_StartDateTxt)","v":42736},"dms_060101_StartDateVal","=DATEVALUE(dms_060701_StartDateTxt)"]
[null,"ARRs"]
[null,"How many rows in table 6.8?","insert dms_060801_StartCell NR if required",null,"dms_060801_StartCell is only found on worksheet 6.8 and is used to determine the starting date for the date range"]
[null,"Is dms_060801_StartCell named range present?","yes",null,"=IFERROR(IF((ROW(dms_060801_StartCell)-1)=1,\"yes\",\"yes\"),\"no\")"]
[null,"Table 6.8 - Number of offset rows",12,"dms_0608_OffsetRows","=IFERROR(IF(dms_Model=\"ARR\",(ROW(dms_060801_StartCell)-1),\"not an ARR\"),\"6.8 error\")"]
[null,"Table 6.8 - Last row","0","dms_0608_LastRow","=IFERROR(IF(dms_060801_StartCell<>\"\",IF(dms_Model=\"ARR\",(LOOKUP(2,1/(dms_060801_01_Values<>\"\"),(ROW(dms_060801_01_Values)))),\"not an ARR\"),0),\"0\")"]
[null,"Table 6.8 - MaxRows",{"$f":"IFERROR(IF(dms_Model=\"ARR\",(MAX(0,dms_0608_LastRow-dms_0608_OffsetRows)),\"not an ARR\"),\"0\")","v":0},"dms_060801_MaxRows","=IFERROR(IF(dms_Model=\"ARR\",(MAX(0,dms_0608_LastRow-dms_0608_OffsetRows)),\"not an ARR\"),\"0\")"]
[null,"TNSP RESET RINS"]
[null,"Table 7.9.4 only appears in TNSPs Reset RIN"]
[null,"Table 7.9.4 - first year",{"$f":"LEFT(PRCP_y3,4)","v":"2013"},"dms_070904_Start_Year","=LEFT(PRCP_y3,4)"]
[]
[null,"MISC"]
[null,"Distribution Determination Reference",{"$f":"INDEX(dms_DeterminationRef_List,MATCH(dms_TradingName,dms_TradingName_List))","v":0},"dms_DeterminationRef"]
[null,"Public lighting NSP?",{"$f":"INDEX(dms_Public_Lighting_List,MATCH(dms_TradingName,dms_TradingName_List))","v":"NO"},"dms_Public_Lighting","=INDEX(dms_Public_Lighting_List,MATCH(dms_TradingName,dms_TradingName_List))"]
[null,"CBD Feeder for this business",{"$f":"INDEX(dms_CBD_flag,MATCH(dms_TradingName,dms_TradingName_List))","v":"NO"},"dms_CBD_flag_NSP"]
[null,"Urban Feeder for this business",{"$f":"INDEX(dms_Urban_flag,MATCH(dms_TradingName,dms_TradingName_List))","v":"NO"},"dms_Urban_flag_NSP"]
[null,"Short rural Feeder for this business",{"$f":"INDEX(dms_ShortRural_flag,MATCH(dms_TradingName,dms_TradingName_List))","v":"NO"},"dms_ShortRural_flag_NSP"]
[null,"Long rural Feeder for this business",{"$f":"INDEX(dms_LongRural_flag,MATCH(dms_TradingName,dms_TradingName_List))","v":"NO"},"dms_LongRural_flag_NSP"]
[null,"Fifth Feeder Category (eg. TasNetworks (D))",{"$f":"INDEX(dms_FeederType_5_flag,MATCH(dms_TradingName,dms_TradingName_List))","v":"NO"},"dms_FifthFeeder_flag_NSP","=INDEX(dms_FeederType_5_flag,MATCH(dms_TradingName,dms_TradingName_List))"]
[]
[null,"DISCARD FILES"]
[null,"discard this record?","NO","dms_DISCARD","If record is to be discarded from DB set this flag to YES"]
[]
[null,"SUBSET FILES"]
[null,"Is this Submission File a Subset File","NO","dms_Partial"]
[]
[]
[null,"REGULATORY YEARS FOR MULTI RYE SUBMISSIONS"]
[null,"Multiple RYE flag","YES","dms_Multi_RYE_flag"]
[null,null,"Manually specify RYE","Named ranges to apply"]
[null,null,2015,"dms_RYE_01"]
[null,null,2016,"dms_RYE_02"]
[null,null,2017,"dms_RYE_03"]
[null,null,2018,"dms_RYE_04"]
[null,null,2019,"dms_RYE_05"]
[null,null,2020,"dms_RYE_06"]
[null,null,2021,"dms_RYE_07"]
[null,null,2022,"dms_RYE_08"]
[null,null,2023,"dms_RYE_09"]

{"sheet":"Instructions","index":4,"n_rows":27,"n_cols":4,"rows_kept":27,"cut":false,"hidden":false,"merged":[[7,1,8,1],[7,2,7,3],[8,2,8,4],[1,1,1,4],[2,1,2,4],[3,1,3,4],[4,1,4,4],[5,2,5,4],[18,1,24,1],[18,2,18,4],[26,2,26,4],[10,2,10,4],[12,1,14,1],[12,2,12,4],[13,2,13,3],[14,2,14,4],[16,2,16,4]]}
[]
[null,{"$f":"CONCATENATE(dms_Sector,\" \",dms_Segment,\" \", \"Pipeline Service Provider\")","v":"Gas Distribution Pipeline Service Provider"}]
[null,{"$f":"IF(dms_Model=\"Reset\",\"Regulatory Proposal RIN Template\",\"Annual Reporting RIN\")","v":"Annual Reporting RIN"}]
[]
[null,"INSTRUCTIONS"]
[null,"GENERAL","Complete the Business & other details worksheet before entering data or values in any other worksheets. The Business & other details worksheet is linked to other worksheets within the workbook and automatically generates certain column headings and conditional formatting."]
[]
[null,"CONFIDENTIAL INFORMATION","\nPlease use the macro at the top of each \nworksheet to identify confidential information\nin the confidential workbook. \n\n"]
[null,null,"-Do this by selecting the cell or cells that contain confidential information and then run the Mark selection as CONFIDENTIAL macro. This will format the cells a specific colour that is identified by the AER's database which in turn marks that information as confidential.\n\n-To reverse this, select the cell or cells and run the Return selection to NON-CONFIDENTIAL macro."]
[]
[null,"RESPONSES","\nPlease return two (2) files to the AER: \n\n1. A confidential version which must contain a complete set of all responses with confidential information marked using the Mark selection CONFIDENTIAL macro and which has been completed using the locked template file provided by the AER. \n\n2. A public version with confidential information either removed completely or aggregated in some form together with writtten consent to disclose the public version of the response.\n\nUse the drop down box on the Business and other details worksheet to identify the file as either confidential ('consolidated') or public. "]
[]
[null,"AMENDMENTS","\nIf an NSP wishes to correct data previously submitted to the AER it should resubmit that data using the original completed submission as the starting point. Please make any necessary changes to the data. Data that is not being amended should be left unchanged. \n\nNSPs must identify the reason for the amendments in the Amendment Reason box on the  Business and other details worksheet. NSPs may provide further details regarding any amendments in the Amendments worksheet. \n\n."]
[null,null,"NSP may use Amended Data macro \nto highlight cells that contain amended data.\nNB: if data is also CONFIDENTIAL, re-apply \nthe Confidentiality macro after applying the \nAmended macro"]
[null,null,"Please resubmit two (2) files - a confidential version and a public version of the amended submission to the AER"]
[]
[null,"UNITS OF MEASURE","\nAll amounts are to be unrounded and reported on a one for one basis: that is 1000 is to be entered as '1000'. Applicable units of measure may be identified in the table column headings or row descriptors.\n\n"]
[]
[null,"INPUT / NON-INPUT CELLS"]
[null,null,null,"Yellow = Input cell (mandatory)"]
[null,null,null,"Darker yellow = input cell (mandatory)"]
[null,null,null,"Orange = input cell (if data available)"]
[null,null,null,"Grey = Not applicable/No inputs required"]
[null,null,null," \nPLEASE DO NOT ENTER TEXT into cells that are to contain numeric data."]
[]
[]
[null,"NAVIGATION","\nMany tables in the worksheets have been \"grouped\" to allow for easy navigation. To ungroup or group data use the outline symbols in the left margin (for Row groupings) or above the columns (for column groupings). \n\n\n\n"]

{"sheet":"CONTENTS","index":5,"n_rows":22,"n_cols":4,"rows_kept":22,"cut":false,"hidden":false,"merged":[[6,2,6,3]]}
[null,{"$f":"INDEX(dms_Worksheet_List,MATCH(dms_Model,dms_Model_List))","v":"HISTORICAL ANNUAL REPORTING"}]
[null,{"$f":"dms_TradingName","v":"AGN (Albury and Victoria)"}]
[null,{"$f":"dms_Header_Span","v":"2017 to 2021"}]
[]
[]
[]
[null,null,"CONTENTS"]
[]
[null,null,"TEMPLATE","FINAL RIN MARCH 2022"]
[]
[null,null,"SUBMISSION","Business & other details"]
[]
[null,null,"EXPENDITURE","E2. Mains Repex"]
[null,null,null,"E3. Mains Augex"]
[null,null,null,"E4. Meter replacement"]
[null,null,null,"E5. New Connections"]
[null,null,null,"E6. Non-network"]
[null,null,null,"E10. Overheads"]
[null,null,null,"E12. ICT"]
[null,null,null,"E13. Other capex"]
[]
[null,null,"ADMIN","Additional disclosures"]

{"sheet":"Business & other details","index":6,"n_rows":74,"n_cols":79,"rows_kept":74,"cut":false,"hidden":false,"merged":[[0,7,2,15],[3,21,3,57],[6,21,6,75],[8,16,8,93],[15,21,15,35],[15,37,15,58],[23,21,23,35],[23,37,23,58],[23,60,23,66],[23,68,23,89],[24,21,24,35],[24,37,24,51],[24,60,24,66],[24,68,24,82],[16,21,16,35],[16,37,16,48],[22,21,22,35],[22,37,22,58],[22,60,22,66],[22,68,22,89],[31,21,31,35],[31,37,31,58],[31,60,31,66],[31,68,31,89],[32,21,32,35],[32,37,32,58],[32,60,32,66],[32,68,32,89],[25,21,25,35],[25,37,25,40],[25,49,25,51],[25,60,25,66],[25,68,25,71],[25,80,25,82],[33,21,33,35],[33,37,33,58],[33,60,33,66],[33,68,33,89],[41,25,41,34],[41,37,41,44],[41,46,41,53],[41,55,41,62],[41,64,41,71],[41,73,41,80],[45,25,45,34],[45,37,45,44],[45,46,45,53],[45,55,45,62],[45,64,45,71],[45,73,45,80],[42,37,42,44],[42,46,42,53],[42,55,42,62],[42,64,42,71],[42,73,42,80],[43,37,43,44],[43,46,43,53],[43,55,43,62],[43,64,43,71],[43,73,43,80],[46,37,46,44],[46,46,46,53],[46,55,46,62],[46,64,46,71],[46,73,46,80],[47,37,47,44],[47,46,47,53],[47,55,47,62],[47,64,47,71],[47,73,47,80],[50,64,50,71],[50,73,50,80],[51,37,51,44],[51,46,51,53],[51,55,51,62],[51,64,51,71],[51,73,51,80],[49,25,49,34],[49,37,49,44],[49,46,49,53],[49,55,49,62],[49,64,49,71],[49,73,49,80],[53,25,53,34],[53,37,53,44],[55,25,55,34],[55,37,55,44],[61,25,61,34],[61,37,61,52],[50,37,50,44],[50,46,50,53],[50,55,50,62],[69,25,71,34],[69,37,71,81],[73,25,73,34],[73,37,73,52],[63,25,63,34],[63,37,63,52],[65,25,65,34],[65,37,65,52],[67,25,67,34],[67,37,67,52]]}
[null,null,null,null,null,null,null,null,null,null,null,null,null,null,null,null,null,null,null,null,null,{"$f":"INDEX(dms_Worksheet_List,MATCH(dms_Model,dms_Model_List))","v":"HISTORICAL ANNUAL REPORTING"}]
[null,null,null,null,null,null,null,null,null,null,null,null,null,null,null,null,null,null,null,null,null,{"$f":"dms_TradingName","v":"AGN (Albury and Victoria)"}]
[null,null,null,null,null,null,null,null,null,null,null,null,null,null,null,null,null,null,null,null,null,{"$f":"dms_Header_Span","v":"2017 to 2021"}]
[null,null,null,null,null,null,null,null,null,null,null,null,null,null,null,null,null,null,null,null,null,"BUSINESS & OTHER DETAILS"]
[]
[null,null,null,null,null,null,null,null,null,null,null,null,null,null,null,null,null,null,null,null,null,"INSTRUCTIONS"]
[null,null,null,null,null,null,null,null,null,null,null,null,null,null,null,null,null,null,null,null,null,"Complete the following business details regulatory template before entering data or values in any other regulatory template. This regulatory template is linked to other cells within the spreadsheet and automatically generates column headings and conditional formatting to distinguish business specific input and non-input cells. "]
[]
[null,null,null,null,null,null,null,null,null,null,null,null,null,null,null,null,"SUBMISSION PARTICULARS INPUT SHEET"]
[]
[]
[null,null,null,null,null,null,null,null,null,null,null,null,null,null,null,null,null,null,null,null,null,"ENTITY DETAILS"]
[]
[null,null,null,null,null,null,null,null,null,null,null,null,null,null,null,null,null,null,null,null,null,"Business Name"]
[]
[null,null,null,null,null,null,null,null,null,null,null,null,null,null,null,null,null,null,null,null,null,"Short name",null,null,null,null,null,null,null,null,null,null,null,null,null,null,null,"AGN (Albury and Victoria)"]
[null,null,null,null,null,null,null,null,null,null,null,null,null,null,null,null,null,null,null,null,null,"ACN/ABN",null,null,null,null,null,null,null,null,null,null,null,null,null,null,null,{"$f":"INDEX(dms_ABN_List,MATCH(dms_TradingName,dms_TradingName_List))","v":19078551685}]
[]
[]
[]
[null,null,null,null,null,null,null,null,null,null,null,null,null,null,null,null,null,null,null,null,null,"Business Address",null,null,null,null,null,null,null,null,null,null,null,null,null,null,null,null,null,null,null,null,null,null,null,null,null,null,null,null,null,null,null,null,null,null,null,null,null,null,null,null,null,null,null,null,null,null,"Postal Address"]
[]
[null,null,null,null,null,null,null,null,null,null,null,null,null,null,null,null,null,null,null,null,null,"Address 1",null,null,null,null,null,null,null,null,null,null,null,null,null,null,null,{"$f":"INDEX(dms_Addr1_List,MATCH(dms_TradingName,dms_TradingName_List))","v":"Level 6"},null,null,null,null,null,null,null,null,null,null,null,null,null,null,null,null,null,null,null,null,null,null,"Address 1",null,null,null,null,null,null,null,{"$f":"INDEX(dms_PAddr1_List,MATCH(dms_TradingName,dms_TradingName_List))","v":"PO Box 6468"}]
[null,null,null,null,null,null,null,null,null,null,null,null,null,null,null,null,null,null,null,null,null,"Address 2",null,null,null,null,null,null,null,null,null,null,null,null,null,null,null,{"$f":"IF(ISBLANK(INDEX(dms_Addr2_List,MATCH(dms_TradingName,dms_TradingName_List))),\"\",(INDEX(dms_Addr2_List,MATCH(dms_TradingName,dms_TradingName_List))))","v":"400 King William Street"},null,null,null,null,null,null,null,null,null,null,null,null,null,null,null,null,null,null,null,null,null,null,"Address 2",null,null,null,null,null,null,null,{"$f":"IF(ISBLANK(INDEX(dms_PAddr2_List,MATCH(dms_TradingName,dms_TradingName_List))),\"\",(INDEX(dms_PAddr2_List,MATCH(dms_TradingName,dms_TradingName_List))))","v":"Halifax Street"}]
[null,null,null,null,null,null,null,null,null,null,null,null,null,null,null,null,null,null,null,null,null,"Suburb",null,null,null,null,null,null,null,null,null,null,null,null,null,null,null,{"$f":"INDEX(dms_Suburb_List,MATCH(dms_TradingName,dms_TradingName_List))","v":"ADELAIDE"},null,null,null,null,null,null,null,null,null,null,null,null,null,null,null,null,null,null,null,null,null,null,"Suburb",null,null,null,null,null,null,null,{"$f":"INDEX(dms_PSuburb_List,MATCH(dms_TradingName,dms_TradingName_List))","v":"ADELAIDE"}]
[null,null,null,null,null,null,null,null,null,null,null,null,null,null,null,null,null,null,null,null,null,"State",null,null,null,null,null,null,null,null,null,null,null,null,null,null,null,{"$f":"INDEX(dms_State_List,MATCH(dms_TradingName,dms_TradingName_List))","v":"SA"},null,null,null,null,null,null,null,null,null,"Post code",null,null,null,null,null,null,null,null,null,null,null,null,"State",null,null,null,null,null,null,null,{"$f":"INDEX(dms_PState_List,MATCH(dms_TradingName,dms_TradingName_List))","v":"SA"},null,null,null,null,null,null,null,null,null,"Post code"]
[]
[null,null,null,null,null,null,null,null,null,null,null,null,null,null,null,null,null,null,null,null,null,null,null,null,null,null,null,null,null,null,null,null,null,null,null,null,null,null,null,null,null,null,null,null,null,null,null,null,null,null,null,null,"`"]
[]
[null,null,null,null,null,null,null,null,null,null,null,null,null,null,null,null,null,null,null,null,null,"Contact Names"]
[]
[null,null,null,null,null,null,null,null,null,null,null,null,null,null,null,null,null,null,null,null,null,"Name",null,null,null,null,null,null,null,null,null,null,null,null,null,null,null,null,null,null,null,null,null,null,null,null,null,null,null,null,null,null,null,null,null,null,null,null,null,null,"Name"]
[null,null,null,null,null,null,null,null,null,null,null,null,null,null,null,null,null,null,null,null,null,"Phone",null,null,null,null,null,null,null,null,null,null,null,null,null,null,null,null,null,null,null,null,null,null,null,null,null,null,null,null,null,null,null,null,null,null,null,null,null,null,"Phone"]
[null,null,null,null,null,null,null,null,null,null,null,null,null,null,null,null,null,null,null,null,null,"Email",null,null,null,null,null,null,null,null,null,null,null,null,null,null,null,null,null,null,null,null,null,null,null,null,null,null,null,null,null,null,null,null,null,null,null,null,null,null,"Email"]
[]
[]
[]
[]
[null,null,null,null,null,null,null,null,null,null,null,null,null,null,null,null,"REGULATORY PERIODS"]
[]
[]
[null,null,null,null,null,null,null,null,null,null,null,null,null,null,null,null,null,null,null,null,null,null,null,null,null,"Forthcoming period",null,null,null,null,null,null,null,null,null,null,null,2021,null,null,null,null,null,null,null,null,{"$f":"FRCP_y2","v":2022},null,null,null,null,null,null,null,null,{"$f":"FRCP_y3","v":2023},null,null,null,null,null,null,null,null,{"$f":"FRCP_y4","v":2024},null,null,null,null,null,null,null,null,{"$f":"FRCP_y5","v":2025}]
[null,null,null,null,null,null,null,null,null,null,null,null,null,null,null,null,null,null,null,null,null,null,null,null,null,null,null,null,null,null,null,null,null,null,null,null,null,{"$f":"FRCP_y6","v":2026},null,null,null,null,null,null,null,null,{"$f":"FRCP_y7","v":2027},null,null,null,null,null,null,null,null,{"$f":"FRCP_y8","v":2028},null,null,null,null,null,null,null,null,{"$f":"FRCP_y9","v":2029},null,null,null,null,null,null,null,null,{"$f":"FRCP_y10","v":2030}]
[null,null,null,null,null,null,null,null,null,null,null,null,null,null,null,null,null,null,null,null,null,null,null,null,null,null,null,null,null,null,null,null,null,null,null,null,null,{"$f":"FRCP_y11","v":2031},null,null,null,null,null,null,null,null,{"$f":"FRCP_y12","v":2032},null,null,null,null,null,null,null,null,{"$f":"FRCP_y13","v":2033},null,null,null,null,null,null,null,null,{"$f":"FRCP_y14","v":2034},null,null,null,null,null,null,null,null,{"$f":"FRCP_y15","v":2035}]
[]
[null,null,null,null,null,null,null,null,null,null,null,null,null,null,null,null,null,null,null,null,null,null,null,"RESETS",null,"Current period",null,null,null,null,null,null,null,null,null,null,null,{"$f":"CRCP_y1","v":2016},null,null,null,null,null,null,null,null,{"$f":"CRCP_y2","v":2017},null,null,null,null,null,null,null,null,{"$f":"CRCP_y3","v":2018},null,null,null,null,null,null,null,null,{"$f":"CRCP_y4","v":2019},null,null,null,null,null,null,null,null,{"$f":"CRCP_y5","v":2020}]
[null,null,null,null,null,null,null,null,null,null,null,null,null,null,null,null,null,null,null,null,null,null,null,null,null,null,null,null,null,null,null,null,null,null,null,null,null,{"$f":"CRCP_y6","v":2021},null,null,null,null,null,null,null,null,{"$f":"CRCP_y7","v":2022},null,null,null,null,null,null,null,null,{"$f":"CRCP_y8","v":2023},null,null,null,null,null,null,null,null,{"$f":"CRCP_y9","v":2024},null,null,null,null,null,null,null,null,{"$f":"CRCP_y10","v":2025}]
[null,null,null,null,null,null,null,null,null,null,null,null,null,null,null,null,null,null,null,null,null,null,null,null,null,null,null,null,null,null,null,null,null,null,null,null,null,{"$f":"CRCP_y11","v":2026},null,null,null,null,null,null,null,null,{"$f":"CRCP_y12","v":2027},null,null,null,null,null,null,null,null,{"$f":"CRCP_y13","v":2028},null,null,null,null,null,null,null,null,{"$f":"CRCP_y14","v":2029},null,null,null,null,null,null,null,null,{"$f":"CRCP_y15","v":2030}]
[]
[null,null,null,null,null,null,null,null,null,null,null,null,null,null,null,null,null,null,null,null,null,null,null,null,null,"Previous period",null,null,null,null,null,null,null,null,null,null,null,{"$f":"PRCP_y1","v":2011},null,null,null,null,null,null,null,null,{"$f":"PRCP_y2","v":2012},null,null,null,null,null,null,null,null,{"$f":"PRCP_y3","v":2013},null,null,null,null,null,null,null,null,{"$f":"PRCP_y4","v":2014},null,null,null,null,null,null,null,null,{"$f":"PRCP_y5","v":2015}]
[null,null,null,null,null,null,null,null,null,null,null,null,null,null,null,null,null,null,null,null,null,null,null,null,null,null,null,null,null,null,null,null,null,null,null,null,null,{"$f":"PRCP_y6","v":2016},null,null,null,null,null,null,null,null,{"$f":"PRCP_y7","v":2017},null,null,null,null,null,null,null,null,{"$f":"PRCP_y8","v":2018},null,null,null,null,null,null,null,null,{"$f":"PRCP_y9","v":2019},null,null,null,null,null,null,null,null,{"$f":"PRCP_y10","v":2020}]
[null,null,null,null,null,null,null,null,null,null,null,null,null,null,null,null,null,null,null,null,null,null,null,null,null,null,null,null,null,null,null,null,null,null,null,null,null,{"$f":"PRCP_y11","v":2021},null,null,null,null,null,null,null,null,{"$f":"PRCP_y12","v":2022},null,null,null,null,null,null,null,null,{"$f":"PRCP_y13","v":2023},null,null,null,null,null,null,null,null,{"$f":"PRCP_y14","v":2024},null,null,null,null,null,null,null,null,{"$f":"PRCP_y15","v":2025}]
[]
[null,null,null,null,null,null,null,null,null,null,null,null,null,null,null,null,null,null,null,null,null,null,null,null,null,"Commencing year",null,null,null,null,null,null,null,null,null,null,null,2017]
[null,null,null,null,null,null,null,null,null,null,null,null,null,null,null,null,null,null,null,null,null,null,null,"ANNUAL RINS"]
[null,null,null,null,null,null,null,null,null,null,null,null,null,null,null,null,null,null,null,null,null,null,null,null,null,"Final year",null,null,null,null,null,null,null,null,null,null,null,2021]
[]
[]
[]
[null,null,null,null,null,null,null,null,null,null,null,null,null,null,null,null,"SUBMISSION DETAILS"]
[]
[null,null,null,null,null,null,null,null,null,null,null,null,null,null,null,null,null,null,null,null,null,null,null,null,null,"RIN type",null,null,null,null,null,null,null,null,null,null,null,{"$f":"INDIRECT(dms_Model)","v":"Annual Reporting"}]
[]
[null,null,null,null,null,null,null,null,null,null,null,null,null,null,null,null,null,null,null,null,null,null,null,null,null,"Source",null,null,null,null,null,null,null,null,null,null,null,"Reporting"]
[]
[null,null,null,null,null,null,null,null,null,null,null,null,null,null,null,null,null,null,null,null,null,null,null,"THIS FILE",null,"Data Quality",null,null,null,null,null,null,null,null,null,null,null,"Actual"]
[]
[null,null,null,null,null,null,null,null,null,null,null,null,null,null,null,null,null,null,null,null,null,null,null,null,null,"Confidentiality Status",null,null,null,null,null,null,null,null,null,null,null,"Public"]
[]
[null,null,null,null,null,null,null,null,null,null,null,null,null,null,null,null,null,null,null,null,null,null,null,null,null,"Amended RIN \nAmendment Reason"]
[]
[]
[]
[null,null,null,null,null,null,null,null,null,null,null,null,null,null,null,null,null,null,null,null,null,null,null,null,null,"Submission Date",null,null,null,null,null,null,null,null,null,null,null,"2022-07-01",null,null,null,null,null,null,null,null,null,null,null,null,null,null,null,null,null,null,"Please enter date this file submitted to AER"]

{"sheet":"E2. Mains Repex","index":7,"n_rows":794,"n_cols":8,"rows_kept":794,"cut":false,"hidden":false,"merged":[[62,3,62,7],[119,3,119,7],[120,3,120,7],[176,3,176,7],[177,3,177,7],[348,3,348,7],[407,3,407,7],[233,3,233,7],[234,3,234,7],[290,3,290,7],[291,3,291,7],[347,3,347,7]]}
[null,{"$f":"INDEX(dms_Worksheet_List,MATCH(dms_Model,dms_Model_List))","v":"HISTORICAL ANNUAL REPORTING"}]
[null,{"$f":"dms_TradingName","v":"AGN (Albury and Victoria)"}]
[null,{"$f":"dms_Header_Span","v":"2017 to 2021"}]
[null,"E2. MAINS REPLACEMENT"]
[]
[]
[null,"Please list all projects here:"]
[null,"2350 MAINS RENEWAL - PRESSURE INCREASE BLOCK - Abbortsford"]
[null,"2350 MAINS RENEWAL - PRESSURE INCREASE BLOCK - Alphington"]
[null,"2350 MAINS RENEWAL - PRESSURE INCREASE BLOCK - Benalla"]
[null,"2350 MAINS RENEWAL - PRESSURE INCREASE BLOCK - Brunswick"]
[null,"2350 MAINS RENEWAL - PRESSURE INCREASE BLOCK - Brunswick West"]
[null,"2350 MAINS RENEWAL - PRESSURE INCREASE BLOCK - Carlton"]
[null,"2350 MAINS RENEWAL - PRESSURE INCREASE BLOCK - Carlton North"]
[null,"2350 MAINS RENEWAL - PRESSURE INCREASE BLOCK - Clifton Hill"]
[null,"2350 MAINS RENEWAL - PRESSURE INCREASE BLOCK - Collingwood"]
[null,"2350 MAINS RENEWAL - PRESSURE INCREASE BLOCK - East Melbourne"]
[null,"2350 MAINS RENEWAL - PRESSURE INCREASE BLOCK - East Preston"]
[null,"2350 MAINS RENEWAL - PRESSURE INCREASE BLOCK - East Richmond"]
[null,"2350 MAINS RENEWAL - PRESSURE INCREASE BLOCK - Fitzroy"]
[null,"2350 MAINS RENEWAL - PRESSURE INCREASE BLOCK - Fitzroy North"]
[null,"2350 MAINS RENEWAL - PRESSURE INCREASE BLOCK - Heidelberg"]
[null,"2350 MAINS RENEWAL - PRESSURE INCREASE BLOCK - Ivanhoe"]
[null,"2350 MAINS RENEWAL - PRESSURE INCREASE BLOCK - Melbourne"]
[null,"2350 MAINS RENEWAL - PRESSURE INCREASE BLOCK - Mornington"]
[null,"2350 MAINS RENEWAL - PRESSURE INCREASE BLOCK - North Melbourne"]
[null,"2350 MAINS RENEWAL - PRESSURE INCREASE BLOCK - Northcote"]
[null,"2350 MAINS RENEWAL - PRESSURE INCREASE BLOCK - Pakenham"]
[null,"2350 MAINS RENEWAL - PRESSURE INCREASE BLOCK - Parkville"]
[null,"2350 MAINS RENEWAL - PRESSURE INCREASE BLOCK - Preston"]
[null,"2350 MAINS RENEWAL - PRESSURE INCREASE BLOCK - Richmond"]
[null,"2350 MAINS RENEWAL - PRESSURE INCREASE BLOCK - Shepparton"]
[null,"2350 MAINS RENEWAL - PRESSURE INCREASE BLOCK - Thomastown"]
[null,"2350 MAINS RENEWAL - PRESSURE INCREASE BLOCK - Thornbury"]
[null,"2350 MAINS RENEWAL - PRESSURE INCREASE BLOCK - Traralgon"]
[null,"2350 MAINS RENEWAL - PRESSURE INCREASE BLOCK - West Melbourne"]
[null,"2350 MAINS RENEWAL - PRESSURE INCREASE BLOCK - West Preston"]
[null,"2356 MAINS RENEWAL - PRESSURE INCREASE CBD BLOCK"]
[null,"2358 MAINS RENEWAL - PRESSURE INCREASE CBD TRUNK"]
[null,"2359 MAINS RENEWAL - PRESSURE INCREASE CBD TRUNK DECOMMISSIONED"]
[null,"2354 MAINS RENEWAL - PRESSURE INCREASE TRUNK"]
[null,"2365 MAINS RENEWAL - PRESSURE INCREASE TRUNK DECOMMISSIONED"]
[null,"2357 MAINS RENEWAL - PRESSURE INCREASE CBD BLOCK DECOMMISSIONED"]
[]
[]
[]
[]
[]
[]
[]
[]
[]
[]
[]
[]
[]
[]
[]
[]
[null,"E2.1 - CAPEX"]
[null,"E2.1.1 - PROACTIVE - BY PROJECT"]
[null,null,null,"EXPENDITURE"]
[null,null,null,"$0's, Nominal"]
[null,null,null,{"$f":"dms_y1","v":2017},{"$f":"dms_y2","v":2018},{"$f":"dms_y3","v":2019},{"$f":"dms_y4","v":2020},{"$f":"dms_y5","v":2021}]
[null,"A. DIRECT INTERNAL LABOUR EXPENDITURE"]
[null,{"$f":"IF(ISBLANK(dms_E2_Projects_01),\"\",dms_E2_Projects_01)","v":"2350 MAINS RENEWAL - PRESSURE INCREASE BLOCK - Abbortsford"}]
[null,{"$f":"IF(ISBLANK(dms_E2_Projects_02),\"\",dms_E2_Projects_02)","v":"2350 MAINS RENEWAL - PRESSURE INCREASE BLOCK - Alphington"}]
[null,{"$f":"IF(ISBLANK(dms_E2_Projects_03),\"\",dms_E2_Projects_03)","v":"2350 MAINS RENEWAL - PRESSURE INCREASE BLOCK - Benalla"}]
[null,{"$f":"IF(ISBLANK(dms_E2_Projects_04),\"\",dms_E2_Projects_04)","v":"2350 MAINS RENEWAL - PRESSURE INCREASE BLOCK - Brunswick"}]
[null,{"$f":"IF(ISBLANK(dms_E2_Projects_05),\"\",dms_E2_Projects_05)","v":"2350 MAINS RENEWAL - PRESSURE INCREASE BLOCK - Brunswick West"}]
[null,{"$f":"IF(ISBLANK(dms_E2_Projects_06),\"\",dms_E2_Projects_06)","v":"2350 MAINS RENEWAL - PRESSURE INCREASE BLOCK - Carlton"}]
[null,{"$f":"IF(ISBLANK(dms_E2_Projects_07),\"\",dms_E2_Projects_07)","v":"2350 MAINS RENEWAL - PRESSURE INCREASE BLOCK - Carlton North"}]
[null,{"$f":"IF(ISBLANK(dms_E2_Projects_08),\"\",dms_E2_Projects_08)","v":"2350 MAINS RENEWAL - PRESSURE INCREASE BLOCK - Clifton Hill"}]
[null,{"$f":"IF(ISBLANK(dms_E2_Projects_09),\"\",dms_E2_Projects_09)","v":"2350 MAINS RENEWAL - PRESSURE INCREASE BLOCK - Collingwood"}]
[null,{"$f":"IF(ISBLANK(dms_E2_Projects_10),\"\",dms_E2_Projects_10)","v":"2350 MAINS RENEWAL - PRESSURE INCREASE BLOCK - East Melbourne"}]
[null,{"$f":"IF(ISBLANK(dms_E2_Projects_11),\"\",dms_E2_Projects_11)","v":"2350 MAINS RENEWAL - PRESSURE INCREASE BLOCK - East Preston"}]
[null,{"$f":"IF(ISBLANK(dms_E2_Projects_12),\"\",dms_E2_Projects_12)","v":"2350 MAINS RENEWAL - PRESSURE INCREASE BLOCK - East Richmond"}]
[null,{"$f":"IF(ISBLANK(dms_E2_Projects_13),\"\",dms_E2_Projects_13)","v":"2350 MAINS RENEWAL - PRESSURE INCREASE BLOCK - Fitzroy"}]
[null,{"$f":"IF(ISBLANK(dms_E2_Projects_14),\"\",dms_E2_Projects_14)","v":"2350 MAINS RENEWAL - PRESSURE INCREASE BLOCK - Fitzroy North"}]
[null,{"$f":"IF(ISBLANK(dms_E2_Projects_15),\"\",dms_E2_Projects_15)","v":"2350 MAINS RENEWAL - PRESSURE INCREASE BLOCK - Heidelberg"}]
[null,{"$f":"IF(ISBLANK(dms_E2_Projects_16),\"\",dms_E2_Projects_16)","v":"2350 MAINS RENEWAL - PRESSURE INCREASE BLOCK - Ivanhoe"}]
[null,{"$f":"IF(ISBLANK(dms_E2_Projects_17),\"\",dms_E2_Projects_17)","v":"2350 MAINS RENEWAL - PRESSURE INCREASE BLOCK - Melbourne"}]
[null,{"$f":"IF(ISBLANK(dms_E2_Projects_18),\"\",dms_E2_Projects_18)","v":"2350 MAINS RENEWAL - PRESSURE INCREASE BLOCK - Mornington"}]
[null,{"$f":"IF(ISBLANK(dms_E2_Projects_19),\"\",dms_E2_Projects_19)","v":"2350 MAINS RENEWAL - PRESSURE INCREASE BLOCK - North Melbourne"}]
[null,{"$f":"IF(ISBLANK(dms_E2_Projects_20),\"\",dms_E2_Projects_20)","v":"2350 MAINS RENEWAL - PRESSURE INCREASE BLOCK - Northcote"}]
[null,{"$f":"IF(ISBLANK(dms_E2_Projects_21),\"\",dms_E2_Projects_21)","v":"2350 MAINS RENEWAL - PRESSURE INCREASE BLOCK - Pakenham"}]
[null,{"$f":"IF(ISBLANK(dms_E2_Projects_22),\"\",dms_E2_Projects_22)","v":"2350 MAINS RENEWAL - PRESSURE INCREASE BLOCK - Parkville"}]
[null,{"$f":"IF(ISBLANK(dms_E2_Projects_23),\"\",dms_E2_Projects_23)","v":"2350 MAINS RENEWAL - PRESSURE INCREASE BLOCK - Preston"}]
[null,{"$f":"IF(ISBLANK(dms_E2_Projects_24),\"\",dms_E2_Projects_24)","v":"2350 MAINS RENEWAL - PRESSURE INCREASE BLOCK - Richmond"}]
[null,{"$f":"IF(ISBLANK(dms_E2_Projects_25),\"\",dms_E2_Projects_25)","v":"2350 MAINS RENEWAL - PRESSURE INCREASE BLOCK - Shepparton"}]
[null,{"$f":"IF(ISBLANK(dms_E2_Projects_25),\"\",dms_E2_Projects_26)","v":"2350 MAINS RENEWAL - PRESSURE INCREASE BLOCK - Thomastown"}]
[null,{"$f":"IF(ISBLANK(dms_E2_Projects_27),\"\",dms_E2_Projects_27)","v":"2350 MAINS RENEWAL - PRESSURE INCREASE BLOCK - Thornbury"}]
[null,{"$f":"IF(ISBLANK(dms_E2_Projects_28),\"\",dms_E2_Projects_28)","v":"2350 MAINS RENEWAL - PRESSURE INCREASE BLOCK - Traralgon"}]
[null,{"$f":"IF(ISBLANK(dms_E2_Projects_29),\"\",dms_E2_Projects_29)","v":"2350 MAINS RENEWAL - PRESSURE INCREASE BLOCK - West Melbourne"}]
[null,{"$f":"IF(ISBLANK(dms_E2_Projects_30),\"\",dms_E2_Projects_30)","v":"2350 MAINS RENEWAL - PRESSURE INCREASE BLOCK - West Preston"}]
[null,{"$f":"IF(ISBLANK(dms_E2_Projects_31),\"\",dms_E2_Projects_31)","v":"2356 MAINS RENEWAL - PRESSURE INCREASE CBD BLOCK"}]
[null,{"$f":"IF(ISBLANK(dms_E2_Projects_32),\"\",dms_E2_Projects_32)","v":"2358 MAINS RENEWAL - PRESSURE INCREASE CBD TRUNK"}]
[null,{"$f":"IF(ISBLANK(dms_E2_Projects_33),\"\",dms_E2_Projects_33)","v":"2359 MAINS RENEWAL - PRESSURE INCREASE CBD TRUNK DECOMMISSIONED"}]
[null,{"$f":"IF(ISBLANK(dms_E2_Projects_34),\"\",dms_E2_Projects_34)","v":"2354 MAINS RENEWAL - PRESSURE INCREASE TRUNK"}]
[null,{"$f":"IF(ISBLANK(dms_E2_Projects_35),\"\",dms_E2_Projects_35)","v":"2365 MAINS RENEWAL - PRESSURE INCREASE TRUNK DECOMMISSIONED"}]
[null,{"$f":"IF(ISBLANK(dms_E2_Projects_36),\"\",dms_E2_Projects_36)","v":"2357 MAINS RENEWAL - PRESSURE INCREASE CBD BLOCK DECOMMISSIONED"}]
[null,{"$f":"IF(ISBLANK(dms_E2_Projects_37),\"\",dms_E2_Projects_37)","v":""}]
[null,{"$f":"IF(ISBLANK(dms_E2_Projects_38),\"\",dms_E2_Projects_38)","v":""}]
[null,{"$f":"IF(ISBLANK(dms_E2_Projects_39),\"\",dms_E2_Projects_39)","v":""}]
[null,{"$f":"IF(ISBLANK(dms_E2_Projects_40),\"\",dms_E2_Projects_40)","v":""}]
[null,{"$f":"IF(ISBLANK(dms_E2_Projects_41),\"\",dms_E2_Projects_41)","v":""}]
[null,{"$f":"IF(ISBLANK(dms_E2_Projects_42),\"\",dms_E2_Projects_42)","v":""}]
[null,{"$f":"IF(ISBLANK(dms_E2_Projects_43),\"\",dms_E2_Projects_43)","v":""}]
[null,{"$f":"IF(ISBLANK(dms_E2_Projects_44),\"\",dms_E2_Projects_44)","v":""}]
[null,{"$f":"IF(ISBLANK(dms_E2_Projects_45),\"\",dms_E2_Projects_45)","v":""}]
[null,{"$f":"IF(ISBLANK(dms_E2_Projects_46),\"\",dms_E2_Projects_46)","v":""}]
[null,{"$f":"IF(ISBLANK(dms_E2_Projects_47),\"\",dms_E2_Projects_47)","v":""}]
[null,{"$f":"IF(ISBLANK(dms_E2_Projects_48),\"\",dms_E2_Projects_48)","v":""}]
[null,{"$f":"IF(ISBLANK(dms_E2_Projects_49),\"\",dms_E2_Projects_49)","v":""}]
[null,{"$f":"IF(ISBLANK(dms_E2_Projects_50),\"\",dms_E2_Projects_50)","v":""}]
[null,"Other projects with expenditure of less than $500,000"]
[null,null,"Total",{"$f":"SUM(D66:D116)","v":0},{"$f":"SUM(E66:E116)","v":0},{"$f":"SUM(F66:F116)","v":0},{"$f":"SUM(G66:G116)","v":0},{"$f":"SUM(H66:H116)","v":0}]
[]
[null,"B. DIRECT CONTRACTOR EXPENDITURE"]
[null,null,null,"EXPENDITURE"]
[null,null,null,"$0's, Nominal"]
[null,null,null,{"$f":"dms_y1","v":2017},{"$f":"dms_y2","v":2018},{"$f":"dms_y3","v":2019},{"$f":"dms_y4","v":2020},{"$f":"dms_y5","v":2021}]
[null,{"$f":"IF(ISBLANK(dms_E2_Projects_01),\"\",dms_E2_Projects_01)","v":"2350 MAINS RENEWAL - PRESSURE INCREASE BLOCK - Abbortsford"}]
[null,{"$f":"IF(ISBLANK(dms_E2_Projects_02),\"\",dms_E2_Projects_02)","v":"2350 MAINS RENEWAL - PRESSURE INCREASE BLOCK - Alphington"}]
[null,{"$f":"IF(ISBLANK(dms_E2_Projects_03),\"\",dms_E2_Projects_03)","v":"2350 MAINS RENEWAL - PRESSURE INCREASE BLOCK - Benalla"}]
[null,{"$f":"IF(ISBLANK(dms_E2_Projects_04),\"\",dms_E2_Projects_04)","v":"2350 MAINS RENEWAL - PRESSURE INCREASE BLOCK - Brunswick"}]
[null,{"$f":"IF(ISBLANK(dms_E2_Projects_05),\"\",dms_E2_Projects_05)","v":"2350 MAINS RENEWAL - PRESSURE INCREASE BLOCK - Brunswick West"}]
[null,{"$f":"IF(ISBLANK(dms_E2_Projects_06),\"\",dms_E2_Projects_06)","v":"2350 MAINS RENEWAL - PRESSURE INCREASE BLOCK - Carlton"}]
[null,{"$f":"IF(ISBLANK(dms_E2_Projects_07),\"\",dms_E2_Projects_07)","v":"2350 MAINS RENEWAL - PRESSURE INCREASE BLOCK - Carlton North"}]
[null,{"$f":"IF(ISBLANK(dms_E2_Projects_08),\"\",dms_E2_Projects_08)","v":"2350 MAINS RENEWAL - PRESSURE INCREASE BLOCK - Clifton Hill"}]
[null,{"$f":"IF(ISBLANK(dms_E2_Projects_09),\"\",dms_E2_Projects_09)","v":"2350 MAINS RENEWAL - PRESSURE INCREASE BLOCK - Collingwood"}]
[null,{"$f":"IF(ISBLANK(dms_E2_Projects_10),\"\",dms_E2_Projects_10)","v":"2350 MAINS RENEWAL - PRESSURE INCREASE BLOCK - East Melbourne"}]
[null,{"$f":"IF(ISBLANK(dms_E2_Projects_11),\"\",dms_E2_Projects_11)","v":"2350 MAINS RENEWAL - PRESSURE INCREASE BLOCK - East Preston"}]
[null,{"$f":"IF(ISBLANK(dms_E2_Projects_12),\"\",dms_E2_Projects_12)","v":"2350 MAINS RENEWAL - PRESSURE INCREASE BLOCK - East Richmond"}]
[null,{"$f":"IF(ISBLANK(dms_E2_Projects_13),\"\",dms_E2_Projects_13)","v":"2350 MAINS RENEWAL - PRESSURE INCREASE BLOCK - Fitzroy"}]
[null,{"$f":"IF(ISBLANK(dms_E2_Projects_14),\"\",dms_E2_Projects_14)","v":"2350 MAINS RENEWAL - PRESSURE INCREASE BLOCK - Fitzroy North"}]
[null,{"$f":"IF(ISBLANK(dms_E2_Projects_15),\"\",dms_E2_Projects_15)","v":"2350 MAINS RENEWAL - PRESSURE INCREASE BLOCK - Heidelberg"}]
[null,{"$f":"IF(ISBLANK(dms_E2_Projects_16),\"\",dms_E2_Projects_16)","v":"2350 MAINS RENEWAL - PRESSURE INCREASE BLOCK - Ivanhoe"}]
[null,{"$f":"IF(ISBLANK(dms_E2_Projects_17),\"\",dms_E2_Projects_17)","v":"2350 MAINS RENEWAL - PRESSURE INCREASE BLOCK - Melbourne"}]
[null,{"$f":"IF(ISBLANK(dms_E2_Projects_18),\"\",dms_E2_Projects_18)","v":"2350 MAINS RENEWAL - PRESSURE INCREASE BLOCK - Mornington"}]
[null,{"$f":"IF(ISBLANK(dms_E2_Projects_19),\"\",dms_E2_Projects_19)","v":"2350 MAINS RENEWAL - PRESSURE INCREASE BLOCK - North Melbourne"}]
[null,{"$f":"IF(ISBLANK(dms_E2_Projects_20),\"\",dms_E2_Projects_20)","v":"2350 MAINS RENEWAL - PRESSURE INCREASE BLOCK - Northcote"}]
[null,{"$f":"IF(ISBLANK(dms_E2_Projects_21),\"\",dms_E2_Projects_21)","v":"2350 MAINS RENEWAL - PRESSURE INCREASE BLOCK - Pakenham"}]
[null,{"$f":"IF(ISBLANK(dms_E2_Projects_22),\"\",dms_E2_Projects_22)","v":"2350 MAINS RENEWAL - PRESSURE INCREASE BLOCK - Parkville"}]
[null,{"$f":"IF(ISBLANK(dms_E2_Projects_23),\"\",dms_E2_Projects_23)","v":"2350 MAINS RENEWAL - PRESSURE INCREASE BLOCK - Preston"}]
[null,{"$f":"IF(ISBLANK(dms_E2_Projects_24),\"\",dms_E2_Projects_24)","v":"2350 MAINS RENEWAL - PRESSURE INCREASE BLOCK - Richmond"}]
[null,{"$f":"IF(ISBLANK(dms_E2_Projects_25),\"\",dms_E2_Projects_25)","v":"2350 MAINS RENEWAL - PRESSURE INCREASE BLOCK - Shepparton"}]
[null,{"$f":"IF(ISBLANK(dms_E2_Projects_25),\"\",dms_E2_Projects_26)","v":"2350 MAINS RENEWAL - PRESSURE INCREASE BLOCK - Thomastown"}]
[null,{"$f":"IF(ISBLANK(dms_E2_Projects_27),\"\",dms_E2_Projects_27)","v":"2350 MAINS RENEWAL - PRESSURE INCREASE BLOCK - Thornbury"}]
[null,{"$f":"IF(ISBLANK(dms_E2_Projects_28),\"\",dms_E2_Projects_28)","v":"2350 MAINS RENEWAL - PRESSURE INCREASE BLOCK - Traralgon"}]
[null,{"$f":"IF(ISBLANK(dms_E2_Projects_29),\"\",dms_E2_Projects_29)","v":"2350 MAINS RENEWAL - PRESSURE INCREASE BLOCK - West Melbourne"}]
[null,{"$f":"IF(ISBLANK(dms_E2_Projects_30),\"\",dms_E2_Projects_30)","v":"2350 MAINS RENEWAL - PRESSURE INCREASE BLOCK - West Preston"}]
[null,{"$f":"IF(ISBLANK(dms_E2_Projects_31),\"\",dms_E2_Projects_31)","v":"2356 MAINS RENEWAL - PRESSURE INCREASE CBD BLOCK"}]
[null,{"$f":"IF(ISBLANK(dms_E2_Projects_32),\"\",dms_E2_Projects_32)","v":"2358 MAINS RENEWAL - PRESSURE INCREASE CBD TRUNK"}]
[null,{"$f":"IF(ISBLANK(dms_E2_Projects_33),\"\",dms_E2_Projects_33)","v":"2359 MAINS RENEWAL - PRESSURE INCREASE CBD TRUNK DECOMMISSIONED"}]
[null,{"$f":"IF(ISBLANK(dms_E2_Projects_34),\"\",dms_E2_Projects_34)","v":"2354 MAINS RENEWAL - PRESSURE INCREASE TRUNK"}]
[null,{"$f":"IF(ISBLANK(dms_E2_Projects_35),\"\",dms_E2_Projects_35)","v":"2365 MAINS RENEWAL - PRESSURE INCREASE TRUNK DECOMMISSIONED"}]
[null,{"$f":"IF(ISBLANK(dms_E2_Projects_36),\"\",dms_E2_Projects_36)","v":"2357 MAINS RENEWAL - PRESSURE INCREASE CBD BLOCK DECOMMISSIONED"}]
[null,{"$f":"IF(ISBLANK(dms_E2_Projects_37),\"\",dms_E2_Projects_37)","v":""}]
[null,{"$f":"IF(ISBLANK(dms_E2_Projects_38),\"\",dms_E2_Projects_38)","v":""}]
[null,{"$f":"IF(ISBLANK(dms_E2_Projects_39),\"\",dms_E2_Projects_39)","v":""}]
[null,{"$f":"IF(ISBLANK(dms_E2_Projects_40),\"\",dms_E2_Projects_40)","v":""}]
[null,{"$f":"IF(ISBLANK(dms_E2_Projects_41),\"\",dms_E2_Projects_41)","v":""}]
[null,{"$f":"IF(ISBLANK(dms_E2_Projects_42),\"\",dms_E2_Projects_42)","v":""}]
[null,{"$f":"IF(ISBLANK(dms_E2_Projects_43),\"\",dms_E2_Projects_43)","v":""}]
[null,{"$f":"IF(ISBLANK(dms_E2_Projects_44),\"\",dms_E2_Projects_44)","v":""}]
[null,{"$f":"IF(ISBLANK(dms_E2_Projects_45),\"\",dms_E2_Projects_45)","v":""}]
[null,{"$f":"IF(ISBLANK(dms_E2_Projects_46),\"\",dms_E2_Projects_46)","v":""}]
[null,{"$f":"IF(ISBLANK(dms_E2_Projects_47),\"\",dms_E2_Projects_47)","v":""}]
[null,{"$f":"IF(ISBLANK(dms_E2_Projects_48),\"\",dms_E2_Projects_48)","v":""}]
[null,{"$f":"IF(ISBLANK(dms_E2_Projects_49),\"\",dms_E2_Projects_49)","v":""}]
[null,{"$f":"IF(ISBLANK(dms_E2_Projects_50),\"\",dms_E2_Projects_50)","v":""}]
[null,"Other projects with expenditure of less than $500,000"]
[null,null,"Total"]
[]
[null,"C. DIRECT MATERIAL EXPENDITURE"]
[null,null,null,"EXPENDITURE"]
[null,null,null,"$0's, Nominal"]
[null,null,null,{"$f":"dms_y1","v":2017},{"$f":"dms_y2","v":2018},{"$f":"dms_y3","v":2019},{"$f":"dms_y4","v":2020},{"$f":"dms_y5","v":2021}]
[null,{"$f":"IF(ISBLANK(dms_E2_Projects_01),\"\",dms_E2_Projects_01)","v":"2350 MAINS RENEWAL - PRESSURE INCREASE BLOCK - Abbortsford"}]
[null,{"$f":"IF(ISBLANK(dms_E2_Projects_02),\"\",dms_E2_Projects_02)","v":"2350 MAINS RENEWAL - PRESSURE INCREASE BLOCK - Alphington"}]
[null,{"$f":"IF(ISBLANK(dms_E2_Projects_03),\"\",dms_E2_Projects_03)","v":"2350 MAINS RENEWAL - PRESSURE INCREASE BLOCK - Benalla"}]
[null,{"$f":"IF(ISBLANK(dms_E2_Projects_04),\"\",dms_E2_Projects_04)","v":"2350 MAINS RENEWAL - PRESSURE INCREASE BLOCK - Brunswick"}]
[null,{"$f":"IF(ISBLANK(dms_E2_Projects_05),\"\",dms_E2_Projects_05)","v":"2350 MAINS RENEWAL - PRESSURE INCREASE BLOCK - Brunswick West"}]
[null,{"$f":"IF(ISBLANK(dms_E2_Projects_06),\"\",dms_E2_Projects_06)","v":"2350 MAINS RENEWAL - PRESSURE INCREASE BLOCK - Carlton"}]
[null,{"$f":"IF(ISBLANK(dms_E2_Projects_07),\"\",dms_E2_Projects_07)","v":"2350 MAINS RENEWAL - PRESSURE INCREASE BLOCK - Carlton North"}]
[null,{"$f":"IF(ISBLANK(dms_E2_Projects_08),\"\",dms_E2_Projects_08)","v":"2350 MAINS RENEWAL - PRESSURE INCREASE BLOCK - Clifton Hill"}]
[null,{"$f":"IF(ISBLANK(dms_E2_Projects_09),\"\",dms_E2_Projects_09)","v":"2350 MAINS RENEWAL - PRESSURE INCREASE BLOCK - Collingwood"}]
[null,{"$f":"IF(ISBLANK(dms_E2_Projects_10),\"\",dms_E2_Projects_10)","v":"2350 MAINS RENEWAL - PRESSURE INCREASE BLOCK - East Melbourne"}]
[null,{"$f":"IF(ISBLANK(dms_E2_Projects_11),\"\",dms_E2_Projects_11)","v":"2350 MAINS RENEWAL - PRESSURE INCREASE BLOCK - East Preston"}]
[null,{"$f":"IF(ISBLANK(dms_E2_Projects_12),\"\",dms_E2_Projects_12)","v":"2350 MAINS RENEWAL - PRESSURE INCREASE BLOCK - East Richmond"}]
[null,{"$f":"IF(ISBLANK(dms_E2_Projects_13),\"\",dms_E2_Projects_13)","v":"2350 MAINS RENEWAL - PRESSURE INCREASE BLOCK - Fitzroy"}]
[null,{"$f":"IF(ISBLANK(dms_E2_Projects_14),\"\",dms_E2_Projects_14)","v":"2350 MAINS RENEWAL - PRESSURE INCREASE BLOCK - Fitzroy North"}]
[null,{"$f":"IF(ISBLANK(dms_E2_Projects_15),\"\",dms_E2_Projects_15)","v":"2350 MAINS RENEWAL - PRESSURE INCREASE BLOCK - Heidelberg"}]
[null,{"$f":"IF(ISBLANK(dms_E2_Projects_16),\"\",dms_E2_Projects_16)","v":"2350 MAINS RENEWAL - PRESSURE INCREASE BLOCK - Ivanhoe"}]
[null,{"$f":"IF(ISBLANK(dms_E2_Projects_17),\"\",dms_E2_Projects_17)","v":"2350 MAINS RENEWAL - PRESSURE INCREASE BLOCK - Melbourne"}]
[null,{"$f":"IF(ISBLANK(dms_E2_Projects_18),\"\",dms_E2_Projects_18)","v":"2350 MAINS RENEWAL - PRESSURE INCREASE BLOCK - Mornington"}]
[null,{"$f":"IF(ISBLANK(dms_E2_Projects_19),\"\",dms_E2_Projects_19)","v":"2350 MAINS RENEWAL - PRESSURE INCREASE BLOCK - North Melbourne"}]
[null,{"$f":"IF(ISBLANK(dms_E2_Projects_20),\"\",dms_E2_Projects_20)","v":"2350 MAINS RENEWAL - PRESSURE INCREASE BLOCK - Northcote"}]
[null,{"$f":"IF(ISBLANK(dms_E2_Projects_21),\"\",dms_E2_Projects_21)","v":"2350 MAINS RENEWAL - PRESSURE INCREASE BLOCK - Pakenham"}]
[null,{"$f":"IF(ISBLANK(dms_E2_Projects_22),\"\",dms_E2_Projects_22)","v":"2350 MAINS RENEWAL - PRESSURE INCREASE BLOCK - Parkville"}]
[null,{"$f":"IF(ISBLANK(dms_E2_Projects_23),\"\",dms_E2_Projects_23)","v":"2350 MAINS RENEWAL - PRESSURE INCREASE BLOCK - Preston"}]
[null,{"$f":"IF(ISBLANK(dms_E2_Projects_24),\"\",dms_E2_Projects_24)","v":"2350 MAINS RENEWAL - PRESSURE INCREASE BLOCK - Richmond"}]
[null,{"$f":"IF(ISBLANK(dms_E2_Projects_25),\"\",dms_E2_Projects_25)","v":"2350 MAINS RENEWAL - PRESSURE INCREASE BLOCK - Shepparton"}]
[null,{"$f":"IF(ISBLANK(dms_E2_Projects_25),\"\",dms_E2_Projects_26)","v":"2350 MAINS RENEWAL - PRESSURE INCREASE BLOCK - Thomastown"}]
[null,{"$f":"IF(ISBLANK(dms_E2_Projects_27),\"\",dms_E2_Projects_27)","v":"2350 MAINS RENEWAL - PRESSURE INCREASE BLOCK - Thornbury"}]
[null,{"$f":"IF(ISBLANK(dms_E2_Projects_28),\"\",dms_E2_Projects_28)","v":"2350 MAINS RENEWAL - PRESSURE INCREASE BLOCK - Traralgon"}]
[null,{"$f":"IF(ISBLANK(dms_E2_Projects_29),\"\",dms_E2_Projects_29)","v":"2350 MAINS RENEWAL - PRESSURE INCREASE BLOCK - West Melbourne"}]
[null,{"$f":"IF(ISBLANK(dms_E2_Projects_30),\"\",dms_E2_Projects_30)","v":"2350 MAINS RENEWAL - PRESSURE INCREASE BLOCK - West Preston"}]
[null,{"$f":"IF(ISBLANK(dms_E2_Projects_31),\"\",dms_E2_Projects_31)","v":"2356 MAINS RENEWAL - PRESSURE INCREASE CBD BLOCK"}]
[null,{"$f":"IF(ISBLANK(dms_E2_Projects_32),\"\",dms_E2_Projects_32)","v":"2358 MAINS RENEWAL - PRESSURE INCREASE CBD TRUNK"}]
[null,{"$f":"IF(ISBLANK(dms_E2_Projects_33),\"\",dms_E2_Projects_33)","v":"2359 MAINS RENEWAL - PRESSURE INCREASE CBD TRUNK DECOMMISSIONED"}]
[null,{"$f":"IF(ISBLANK(dms_E2_Projects_34),\"\",dms_E2_Projects_34)","v":"2354 MAINS RENEWAL - PRESSURE INCREASE TRUNK"}]
[null,{"$f":"IF(ISBLANK(dms_E2_Projects_35),\"\",dms_E2_Projects_35)","v":"2365 MAINS RENEWAL - PRESSURE INCREASE TRUNK DECOMMISSIONED"}]
[null,{"$f":"IF(ISBLANK(dms_E2_Projects_36),\"\",dms_E2_Projects_36)","v":"2357 MAINS RENEWAL - PRESSURE INCREASE CBD BLOCK DECOMMISSIONED"}]
[null,{"$f":"IF(ISBLANK(dms_E2_Projects_37),\"\",dms_E2_Projects_37)","v":""}]
[null,{"$f":"IF(ISBLANK(dms_E2_Projects_38),\"\",dms_E2_Projects_38)","v":""}]
[null,{"$f":"IF(ISBLANK(dms_E2_Projects_39),\"\",dms_E2_Projects_39)","v":""}]
[null,{"$f":"IF(ISBLANK(dms_E2_Projects_40),\"\",dms_E2_Projects_40)","v":""}]
[null,{"$f":"IF(ISBLANK(dms_E2_Projects_41),\"\",dms_E2_Projects_41)","v":""}]
[null,{"$f":"IF(ISBLANK(dms_E2_Projects_42),\"\",dms_E2_Projects_42)","v":""}]
[null,{"$f":"IF(ISBLANK(dms_E2_Projects_43),\"\",dms_E2_Projects_43)","v":""}]
[null,{"$f":"IF(ISBLANK(dms_E2_Projects_44),\"\",dms_E2_Projects_44)","v":""}]
[null,{"$f":"IF(ISBLANK(dms_E2_Projects_45),\"\",dms_E2_Projects_45)","v":""}]
[null,{"$f":"IF(ISBLANK(dms_E2_Projects_46),\"\",dms_E2_Projects_46)","v":""}]
[null,{"$f":"IF(ISBLANK(dms_E2_Projects_47),\"\",dms_E2_Projects_47)","v":""}]
[null,{"$f":"IF(ISBLANK(dms_E2_Projects_48),\"\",dms_E2_Projects_48)","v":""}]
[null,{"$f":"IF(ISBLANK(dms_E2_Projects_49),\"\",dms_E2_Projects_49)","v":""}]
[null,{"$f":"IF(ISBLANK(dms_E2_Projects_50),\"\",dms_E2_Projects_50)","v":""}]
[null,"Other projects with expenditure of less than $500,000"]
[null,null,"Total",{"$f":"SUM(D180:D230)","v":0},{"$f":"SUM(E180:E230)","v":0},{"$f":"SUM(F180:F230)","v":0},{"$f":"SUM(G180:G230)","v":0},{"$f":"SUM(H180:H230)","v":0}]
[]
[null,"D. OTHER DIRECT EXPENDITURE"]
[null,null,null,"EXPENDITURE"]
[null,null,null,"$0's, Nominal"]
[null,null,null,{"$f":"dms_y1","v":2017},{"$f":"dms_y2","v":2018},{"$f":"dms_y3","v":2019},{"$f":"dms_y4","v":2020},{"$f":"dms_y5","v":2021}]
[null,{"$f":"IF(ISBLANK(dms_E2_Projects_01),\"\",dms_E2_Projects_01)","v":"2350 MAINS RENEWAL - PRESSURE INCREASE BLOCK - Abbortsford"}]
[null,{"$f":"IF(ISBLANK(dms_E2_Projects_02),\"\",dms_E2_Projects_02)","v":"2350 MAINS RENEWAL - PRESSURE INCREASE BLOCK - Alphington"}]
[null,{"$f":"IF(ISBLANK(dms_E2_Projects_03),\"\",dms_E2_Projects_03)","v":"2350 MAINS RENEWAL - PRESSURE INCREASE BLOCK - Benalla"}]
[null,{"$f":"IF(ISBLANK(dms_E2_Projects_04),\"\",dms_E2_Projects_04)","v":"2350 MAINS RENEWAL - PRESSURE INCREASE BLOCK - Brunswick"}]
[null,{"$f":"IF(ISBLANK(dms_E2_Projects_05),\"\",dms_E2_Projects_05)","v":"2350 MAINS RENEWAL - PRESSURE INCREASE BLOCK - Brunswick West"}]
[null,{"$f":"IF(ISBLANK(dms_E2_Projects_06),\"\",dms_E2_Projects_06)","v":"2350 MAINS RENEWAL - PRESSURE INCREASE BLOCK - Carlton"}]
[null,{"$f":"IF(ISBLANK(dms_E2_Projects_07),\"\",dms_E2_Projects_07)","v":"2350 MAINS RENEWAL - PRESSURE INCREASE BLOCK - Carlton North"}]
[null,{"$f":"IF(ISBLANK(dms_E2_Projects_08),\"\",dms_E2_Projects_08)","v":"2350 MAINS RENEWAL - PRESSURE INCREASE BLOCK - Clifton Hill"}]
[null,{"$f":"IF(ISBLANK(dms_E2_Projects_09),\"\",dms_E2_Projects_09)","v":"2350 MAINS RENEWAL - PRESSURE INCREASE BLOCK - Collingwood"}]
[null,{"$f":"IF(ISBLANK(dms_E2_Projects_10),\"\",dms_E2_Projects_10)","v":"2350 MAINS RENEWAL - PRESSURE INCREASE BLOCK - East Melbourne"}]
[null,{"$f":"IF(ISBLANK(dms_E2_Projects_11),\"\",dms_E2_Projects_11)","v":"2350 MAINS RENEWAL - PRESSURE INCREASE BLOCK - East Preston"}]
[null,{"$f":"IF(ISBLANK(dms_E2_Projects_12),\"\",dms_E2_Projects_12)","v":"2350 MAINS RENEWAL - PRESSURE INCREASE BLOCK - East Richmond"}]
[null,{"$f":"IF(ISBLANK(dms_E2_Projects_13),\"\",dms_E2_Projects_13)","v":"2350 MAINS RENEWAL - PRESSURE INCREASE BLOCK - Fitzroy"}]
[null,{"$f":"IF(ISBLANK(dms_E2_Projects_14),\"\",dms_E2_Projects_14)","v":"2350 MAINS RENEWAL - PRESSURE INCREASE BLOCK - Fitzroy North"}]
[null,{"$f":"IF(ISBLANK(dms_E2_Projects_15),\"\",dms_E2_Projects_15)","v":"2350 MAINS RENEWAL - PRESSURE INCREASE BLOCK - Heidelberg"}]
[null,{"$f":"IF(ISBLANK(dms_E2_Projects_16),\"\",dms_E2_Projects_16)","v":"2350 MAINS RENEWAL - PRESSURE INCREASE BLOCK - Ivanhoe"}]
[null,{"$f":"IF(ISBLANK(dms_E2_Projects_17),\"\",dms_E2_Projects_17)","v":"2350 MAINS RENEWAL - PRESSURE INCREASE BLOCK - Melbourne"}]
[null,{"$f":"IF(ISBLANK(dms_E2_Projects_18),\"\",dms_E2_Projects_18)","v":"2350 MAINS RENEWAL - PRESSURE INCREASE BLOCK - Mornington"}]
[null,{"$f":"IF(ISBLANK(dms_E2_Projects_19),\"\",dms_E2_Projects_19)","v":"2350 MAINS RENEWAL - PRESSURE INCREASE BLOCK - North Melbourne"}]
[null,{"$f":"IF(ISBLANK(dms_E2_Projects_20),\"\",dms_E2_Projects_20)","v":"2350 MAINS RENEWAL - PRESSURE INCREASE BLOCK - Northcote"}]
[null,{"$f":"IF(ISBLANK(dms_E2_Projects_21),\"\",dms_E2_Projects_21)","v":"2350 MAINS RENEWAL - PRESSURE INCREASE BLOCK - Pakenham"}]
[null,{"$f":"IF(ISBLANK(dms_E2_Projects_22),\"\",dms_E2_Projects_22)","v":"2350 MAINS RENEWAL - PRESSURE INCREASE BLOCK - Parkville"}]
[null,{"$f":"IF(ISBLANK(dms_E2_Projects_23),\"\",dms_E2_Projects_23)","v":"2350 MAINS RENEWAL - PRESSURE INCREASE BLOCK - Preston"}]
[null,{"$f":"IF(ISBLANK(dms_E2_Projects_24),\"\",dms_E2_Projects_24)","v":"2350 MAINS RENEWAL - PRESSURE INCREASE BLOCK - Richmond"}]
[null,{"$f":"IF(ISBLANK(dms_E2_Projects_25),\"\",dms_E2_Projects_25)","v":"2350 MAINS RENEWAL - PRESSURE INCREASE BLOCK - Shepparton"}]
[null,{"$f":"IF(ISBLANK(dms_E2_Projects_25),\"\",dms_E2_Projects_26)","v":"2350 MAINS RENEWAL - PRESSURE INCREASE BLOCK - Thomastown"}]
[null,{"$f":"IF(ISBLANK(dms_E2_Projects_27),\"\",dms_E2_Projects_27)","v":"2350 MAINS RENEWAL - PRESSURE INCREASE BLOCK - Thornbury"}]
[null,{"$f":"IF(ISBLANK(dms_E2_Projects_28),\"\",dms_E2_Projects_28)","v":"2350 MAINS RENEWAL - PRESSURE INCREASE BLOCK - Traralgon"}]
[null,{"$f":"IF(ISBLANK(dms_E2_Projects_29),\"\",dms_E2_Projects_29)","v":"2350 MAINS RENEWAL - PRESSURE INCREASE BLOCK - West Melbourne"}]
[null,{"$f":"IF(ISBLANK(dms_E2_Projects_30),\"\",dms_E2_Projects_30)","v":"2350 MAINS RENEWAL - PRESSURE INCREASE BLOCK - West Preston"}]
[null,{"$f":"IF(ISBLANK(dms_E2_Projects_31),\"\",dms_E2_Projects_31)","v":"2356 MAINS RENEWAL - PRESSURE INCREASE CBD BLOCK"}]
[null,{"$f":"IF(ISBLANK(dms_E2_Projects_32),\"\",dms_E2_Projects_32)","v":"2358 MAINS RENEWAL - PRESSURE INCREASE CBD TRUNK"}]
[null,{"$f":"IF(ISBLANK(dms_E2_Projects_33),\"\",dms_E2_Projects_33)","v":"2359 MAINS RENEWAL - PRESSURE INCREASE CBD TRUNK DECOMMISSIONED"}]
[null,{"$f":"IF(ISBLANK(dms_E2_Projects_34),\"\",dms_E2_Projects_34)","v":"2354 MAINS RENEWAL - PRESSURE INCREASE TRUNK"}]
[null,{"$f":"IF(ISBLANK(dms_E2_Projects_35),\"\",dms_E2_Projects_35)","v":"2365 MAINS RENEWAL - PRESSURE INCREASE TRUNK DECOMMISSIONED"}]
[null,{"$f":"IF(ISBLANK(dms_E2_Projects_36),\"\",dms_E2_Projects_36)","v":"2357 MAINS RENEWAL - PRESSURE INCREASE CBD BLOCK DECOMMISSIONED"}]
[null,{"$f":"IF(ISBLANK(dms_E2_Projects_37),\"\",dms_E2_Projects_37)","v":""}]
[null,{"$f":"IF(ISBLANK(dms_E2_Projects_38),\"\",dms_E2_Projects_38)","v":""}]
[null,{"$f":"IF(ISBLANK(dms_E2_Projects_39),\"\",dms_E2_Projects_39)","v":""}]
[null,{"$f":"IF(ISBLANK(dms_E2_Projects_40),\"\",dms_E2_Projects_40)","v":""}]
[null,{"$f":"IF(ISBLANK(dms_E2_Projects_41),\"\",dms_E2_Projects_41)","v":""}]
[null,{"$f":"IF(ISBLANK(dms_E2_Projects_42),\"\",dms_E2_Projects_42)","v":""}]
[null,{"$f":"IF(ISBLANK(dms_E2_Projects_43),\"\",dms_E2_Projects_43)","v":""}]
[null,{"$f":"IF(ISBLANK(dms_E2_Projects_44),\"\",dms_E2_Projects_44)","v":""}]
[null,{"$f":"IF(ISBLANK(dms_E2_Projects_45),\"\",dms_E2_Projects_45)","v":""}]
[null,{"$f":"IF(ISBLANK(dms_E2_Projects_46),\"\",dms_E2_Projects_46)","v":""}]
[null,{"$f":"IF(ISBLANK(dms_E2_Projects_47),\"\",dms_E2_Projects_47)","v":""}]
[null,{"$f":"IF(ISBLANK(dms_E2_Projects_48),\"\",dms_E2_Projects_48)","v":""}]
[null,{"$f":"IF(ISBLANK(dms_E2_Projects_49),\"\",dms_E2_Projects_49)","v":""}]
[null,{"$f":"IF(ISBLANK(dms_E2_Projects_50),\"\",dms_E2_Projects_50)","v":""}]
[null,"Other projects with expenditure of less than $500,000"]
[null,null,"Total"]
[]
[null,"E. RELATED PARTY MARGIN EXPENDITURE"]
[null,null,null,"EXPENDITURE"]
[null,null,null,"$0's, Nominal"]
[null,null,null,{"$f":"dms_y1","v":2017},{"$f":"dms_y2","v":2018},{"$f":"dms_y3","v":2019},{"$f":"dms_y4","v":2020},{"$f":"dms_y5","v":2021}]
[null,{"$f":"IF(ISBLANK(dms_E2_Projects_01),\"\",dms_E2_Projects_01)","v":"2350 MAINS RENEWAL - PRESSURE INCREASE BLOCK - Abbortsford"}]
[null,{"$f":"IF(ISBLANK(dms_E2_Projects_02),\"\",dms_E2_Projects_02)","v":"2350 MAINS RENEWAL - PRESSURE INCREASE BLOCK - Alphington"}]
[null,{"$f":"IF(ISBLANK(dms_E2_Projects_03),\"\",dms_E2_Projects_03)","v":"2350 MAINS RENEWAL - PRESSURE INCREASE BLOCK - Benalla"}]
[null,{"$f":"IF(ISBLANK(dms_E2_Projects_04),\"\",dms_E2_Projects_04)","v":"2350 MAINS RENEWAL - PRESSURE INCREASE BLOCK - Brunswick"}]
[null,{"$f":"IF(ISBLANK(dms_E2_Projects_05),\"\",dms_E2_Projects_05)","v":"2350 MAINS RENEWAL - PRESSURE INCREASE BLOCK - Brunswick West"}]
[null,{"$f":"IF(ISBLANK(dms_E2_Projects_06),\"\",dms_E2_Projects_06)","v":"2350 MAINS RENEWAL - PRESSURE INCREASE BLOCK - Carlton"}]
[null,{"$f":"IF(ISBLANK(dms_E2_Projects_07),\"\",dms_E2_Projects_07)","v":"2350 MAINS RENEWAL - PRESSURE INCREASE BLOCK - Carlton North"}]
[null,{"$f":"IF(ISBLANK(dms_E2_Projects_08),\"\",dms_E2_Projects_08)","v":"2350 MAINS RENEWAL - PRESSURE INCREASE BLOCK - Clifton Hill"}]
[null,{"$f":"IF(ISBLANK(dms_E2_Projects_09),\"\",dms_E2_Projects_09)","v":"2350 MAINS RENEWAL - PRESSURE INCREASE BLOCK - Collingwood"}]
[null,{"$f":"IF(ISBLANK(dms_E2_Projects_10),\"\",dms_E2_Projects_10)","v":"2350 MAINS RENEWAL - PRESSURE INCREASE BLOCK - East Melbourne"}]
[null,{"$f":"IF(ISBLANK(dms_E2_Projects_11),\"\",dms_E2_Projects_11)","v":"2350 MAINS RENEWAL - PRESSURE INCREASE BLOCK - East Preston"}]
[null,{"$f":"IF(ISBLANK(dms_E2_Projects_12),\"\",dms_E2_Projects_12)","v":"2350 MAINS RENEWAL - PRESSURE INCREASE BLOCK - East Richmond"}]
[null,{"$f":"IF(ISBLANK(dms_E2_Projects_13),\"\",dms_E2_Projects_13)","v":"2350 MAINS RENEWAL - PRESSURE INCREASE BLOCK - Fitzroy"}]
[null,{"$f":"IF(ISBLANK(dms_E2_Projects_14),\"\",dms_E2_Projects_14)","v":"2350 MAINS RENEWAL - PRESSURE INCREASE BLOCK - Fitzroy North"}]
[null,{"$f":"IF(ISBLANK(dms_E2_Projects_15),\"\",dms_E2_Projects_15)","v":"2350 MAINS RENEWAL - PRESSURE INCREASE BLOCK - Heidelberg"}]
[null,{"$f":"IF(ISBLANK(dms_E2_Projects_16),\"\",dms_E2_Projects_16)","v":"2350 MAINS RENEWAL - PRESSURE INCREASE BLOCK - Ivanhoe"}]
[null,{"$f":"IF(ISBLANK(dms_E2_Projects_17),\"\",dms_E2_Projects_17)","v":"2350 MAINS RENEWAL - PRESSURE INCREASE BLOCK - Melbourne"}]
[null,{"$f":"IF(ISBLANK(dms_E2_Projects_18),\"\",dms_E2_Projects_18)","v":"2350 MAINS RENEWAL - PRESSURE INCREASE BLOCK - Mornington"}]
[null,{"$f":"IF(ISBLANK(dms_E2_Projects_19),\"\",dms_E2_Projects_19)","v":"2350 MAINS RENEWAL - PRESSURE INCREASE BLOCK - North Melbourne"}]
[null,{"$f":"IF(ISBLANK(dms_E2_Projects_20),\"\",dms_E2_Projects_20)","v":"2350 MAINS RENEWAL - PRESSURE INCREASE BLOCK - Northcote"}]
[null,{"$f":"IF(ISBLANK(dms_E2_Projects_21),\"\",dms_E2_Projects_21)","v":"2350 MAINS RENEWAL - PRESSURE INCREASE BLOCK - Pakenham"}]
[null,{"$f":"IF(ISBLANK(dms_E2_Projects_22),\"\",dms_E2_Projects_22)","v":"2350 MAINS RENEWAL - PRESSURE INCREASE BLOCK - Parkville"}]
[null,{"$f":"IF(ISBLANK(dms_E2_Projects_23),\"\",dms_E2_Projects_23)","v":"2350 MAINS RENEWAL - PRESSURE INCREASE BLOCK - Preston"}]
[null,{"$f":"IF(ISBLANK(dms_E2_Projects_24),\"\",dms_E2_Projects_24)","v":"2350 MAINS RENEWAL - PRESSURE INCREASE BLOCK - Richmond"}]
[null,{"$f":"IF(ISBLANK(dms_E2_Projects_25),\"\",dms_E2_Projects_25)","v":"2350 MAINS RENEWAL - PRESSURE INCREASE BLOCK - Shepparton"}]
[null,{"$f":"IF(ISBLANK(dms_E2_Projects_25),\"\",dms_E2_Projects_26)","v":"2350 MAINS RENEWAL - PRESSURE INCREASE BLOCK - Thomastown"}]
[null,{"$f":"IF(ISBLANK(dms_E2_Projects_27),\"\",dms_E2_Projects_27)","v":"2350 MAINS RENEWAL - PRESSURE INCREASE BLOCK - Thornbury"}]
[null,{"$f":"IF(ISBLANK(dms_E2_Projects_28),\"\",dms_E2_Projects_28)","v":"2350 MAINS RENEWAL - PRESSURE INCREASE BLOCK - Traralgon"}]
[null,{"$f":"IF(ISBLANK(dms_E2_Projects_29),\"\",dms_E2_Projects_29)","v":"2350 MAINS RENEWAL - PRESSURE INCREASE BLOCK - West Melbourne"}]
[null,{"$f":"IF(ISBLANK(dms_E2_Projects_30),\"\",dms_E2_Projects_30)","v":"2350 MAINS RENEWAL - PRESSURE INCREASE BLOCK - West Preston"}]
[null,{"$f":"IF(ISBLANK(dms_E2_Projects_31),\"\",dms_E2_Projects_31)","v":"2356 MAINS RENEWAL - PRESSURE INCREASE CBD BLOCK"}]
[null,{"$f":"IF(ISBLANK(dms_E2_Projects_32),\"\",dms_E2_Projects_32)","v":"2358 MAINS RENEWAL - PRESSURE INCREASE CBD TRUNK"}]
[null,{"$f":"IF(ISBLANK(dms_E2_Projects_33),\"\",dms_E2_Projects_33)","v":"2359 MAINS RENEWAL - PRESSURE INCREASE CBD TRUNK DECOMMISSIONED"}]
[null,{"$f":"IF(ISBLANK(dms_E2_Projects_34),\"\",dms_E2_Projects_34)","v":"2354 MAINS RENEWAL - PRESSURE INCREASE TRUNK"}]
[null,{"$f":"IF(ISBLANK(dms_E2_Projects_35),\"\",dms_E2_Projects_35)","v":"2365 MAINS RENEWAL - PRESSURE INCREASE TRUNK DECOMMISSIONED"}]
[null,{"$f":"IF(ISBLANK(dms_E2_Projects_36),\"\",dms_E2_Projects_36)","v":"2357 MAINS RENEWAL - PRESSURE INCREASE CBD BLOCK DECOMMISSIONED"}]
[null,{"$f":"IF(ISBLANK(dms_E2_Projects_37),\"\",dms_E2_Projects_37)","v":""}]
[null,{"$f":"IF(ISBLANK(dms_E2_Projects_38),\"\",dms_E2_Projects_38)","v":""}]
[null,{"$f":"IF(ISBLANK(dms_E2_Projects_39),\"\",dms_E2_Projects_39)","v":""}]
[null,{"$f":"IF(ISBLANK(dms_E2_Projects_40),\"\",dms_E2_Projects_40)","v":""}]
[null,{"$f":"IF(ISBLANK(dms_E2_Projects_41),\"\",dms_E2_Projects_41)","v":""}]
[null,{"$f":"IF(ISBLANK(dms_E2_Projects_42),\"\",dms_E2_Projects_42)","v":""}]
[null,{"$f":"IF(ISBLANK(dms_E2_Projects_43),\"\",dms_E2_Projects_43)","v":""}]
[null,{"$f":"IF(ISBLANK(dms_E2_Projects_44),\"\",dms_E2_Projects_44)","v":""}]
[null,{"$f":"IF(ISBLANK(dms_E2_Projects_45),\"\",dms_E2_Projects_45)","v":""}]
[null,{"$f":"IF(ISBLANK(dms_E2_Projects_46),\"\",dms_E2_Projects_46)","v":""}]
[null,{"$f":"IF(ISBLANK(dms_E2_Projects_47),\"\",dms_E2_Projects_47)","v":""}]
[null,{"$f":"IF(ISBLANK(dms_E2_Projects_48),\"\",dms_E2_Projects_48)","v":""}]
[null,{"$f":"IF(ISBLANK(dms_E2_Projects_49),\"\",dms_E2_Projects_49)","v":""}]
[null,{"$f":"IF(ISBLANK(dms_E2_Projects_50),\"\",dms_E2_Projects_50)","v":""}]
[null,"Other projects with expenditure of less than $500,000"]
[null,null,"Total",{"$f":"SUM(D294:D344)","v":0},{"$f":"SUM(E294:E344)","v":0},{"$f":"SUM(F294:F344)","v":0},{"$f":"SUM(G294:G344)","v":0},{"$f":"SUM(H294:H344)","v":0}]
[]
[null,"F. CAPITAL CONTRIBUTIONS included in the above"]
[null,null,null,"EXPENDITURE"]
[null,null,null,"$0's, Nominal"]
[null,null,null,{"$f":"dms_y1","v":2017},{"$f":"dms_y2","v":2018},{"$f":"dms_y3","v":2019},{"$f":"dms_y4","v":2020},{"$f":"dms_y5","v":2021}]
[null,{"$f":"IF(ISBLANK(dms_E2_Projects_01),\"\",dms_E2_Projects_01)","v":"2350 MAINS RENEWAL - PRESSURE INCREASE BLOCK - Abbortsford"}]
[null,{"$f":"IF(ISBLANK(dms_E2_Projects_02),\"\",dms_E2_Projects_02)","v":"2350 MAINS RENEWAL - PRESSURE INCREASE BLOCK - Alphington"}]
[null,{"$f":"IF(ISBLANK(dms_E2_Projects_03),\"\",dms_E2_Projects_03)","v":"2350 MAINS RENEWAL - PRESSURE INCREASE BLOCK - Benalla"}]
[null,{"$f":"IF(ISBLANK(dms_E2_Projects_04),\"\",dms_E2_Projects_04)","v":"2350 MAINS RENEWAL - PRESSURE INCREASE BLOCK - Brunswick"}]
[null,{"$f":"IF(ISBLANK(dms_E2_Projects_05),\"\",dms_E2_Projects_05)","v":"2350 MAINS RENEWAL - PRESSURE INCREASE BLOCK - Brunswick West"}]
[null,{"$f":"IF(ISBLANK(dms_E2_Projects_06),\"\",dms_E2_Projects_06)","v":"2350 MAINS RENEWAL - PRESSURE INCREASE BLOCK - Carlton"}]
[null,{"$f":"IF(ISBLANK(dms_E2_Projects_07),\"\",dms_E2_Projects_07)","v":"2350 MAINS RENEWAL - PRESSURE INCREASE BLOCK - Carlton North"}]
[null,{"$f":"IF(ISBLANK(dms_E2_Projects_08),\"\",dms_E2_Projects_08)","v":"2350 MAINS RENEWAL - PRESSURE INCREASE BLOCK - Clifton Hill"}]
[null,{"$f":"IF(ISBLANK(dms_E2_Projects_09),\"\",dms_E2_Projects_09)","v":"2350 MAINS RENEWAL - PRESSURE INCREASE BLOCK - Collingwood"}]
[null,{"$f":"IF(ISBLANK(dms_E2_Projects_10),\"\",dms_E2_Projects_10)","v":"2350 MAINS RENEWAL - PRESSURE INCREASE BLOCK - East Melbourne"}]
[null,{"$f":"IF(ISBLANK(dms_E2_Projects_11),\"\",dms_E2_Projects_11)","v":"2350 MAINS RENEWAL - PRESSURE INCREASE BLOCK - East Preston"}]
[null,{"$f":"IF(ISBLANK(dms_E2_Projects_12),\"\",dms_E2_Projects_12)","v":"2350 MAINS RENEWAL - PRESSURE INCREASE BLOCK - East Richmond"}]
[null,{"$f":"IF(ISBLANK(dms_E2_Projects_13),\"\",dms_E2_Projects_13)","v":"2350 MAINS RENEWAL - PRESSURE INCREASE BLOCK - Fitzroy"}]
[null,{"$f":"IF(ISBLANK(dms_E2_Projects_14),\"\",dms_E2_Projects_14)","v":"2350 MAINS RENEWAL - PRESSURE INCREASE BLOCK - Fitzroy North"}]
[null,{"$f":"IF(ISBLANK(dms_E2_Projects_15),\"\",dms_E2_Projects_15)","v":"2350 MAINS RENEWAL - PRESSURE INCREASE BLOCK - Heidelberg"}]
[null,{"$f":"IF(ISBLANK(dms_E2_Projects_16),\"\",dms_E2_Projects_16)","v":"2350 MAINS RENEWAL - PRESSURE INCREASE BLOCK - Ivanhoe"}]
[null,{"$f":"IF(ISBLANK(dms_E2_Projects_17),\"\",dms_E2_Projects_17)","v":"2350 MAINS RENEWAL - PRESSURE INCREASE BLOCK - Melbourne"}]
[null,{"$f":"IF(ISBLANK(dms_E2_Projects_18),\"\",dms_E2_Projects_18)","v":"2350 MAINS RENEWAL - PRESSURE INCREASE BLOCK - Mornington"}]
[null,{"$f":"IF(ISBLANK(dms_E2_Projects_19),\"\",dms_E2_Projects_19)","v":"2350 MAINS RENEWAL - PRESSURE INCREASE BLOCK - North Melbourne"}]
[null,{"$f":"IF(ISBLANK(dms_E2_Projects_20),\"\",dms_E2_Projects_20)","v":"2350 MAINS RENEWAL - PRESSURE INCREASE BLOCK - Northcote"}]
[null,{"$f":"IF(ISBLANK(dms_E2_Projects_21),\"\",dms_E2_Projects_21)","v":"2350 MAINS RENEWAL - PRESSURE INCREASE BLOCK - Pakenham"}]
[null,{"$f":"IF(ISBLANK(dms_E2_Projects_22),\"\",dms_E2_Projects_22)","v":"2350 MAINS RENEWAL - PRESSURE INCREASE BLOCK - Parkville"}]
[null,{"$f":"IF(ISBLANK(dms_E2_Projects_23),\"\",dms_E2_Projects_23)","v":"2350 MAINS RENEWAL - PRESSURE INCREASE BLOCK - Preston"}]
[null,{"$f":"IF(ISBLANK(dms_E2_Projects_24),\"\",dms_E2_Projects_24)","v":"2350 MAINS RENEWAL - PRESSURE INCREASE BLOCK - Richmond"}]
[null,{"$f":"IF(ISBLANK(dms_E2_Projects_25),\"\",dms_E2_Projects_25)","v":"2350 MAINS RENEWAL - PRESSURE INCREASE BLOCK - Shepparton"}]
[null,{"$f":"IF(ISBLANK(dms_E2_Projects_25),\"\",dms_E2_Projects_26)","v":"2350 MAINS RENEWAL - PRESSURE INCREASE BLOCK - Thomastown"}]
[null,{"$f":"IF(ISBLANK(dms_E2_Projects_27),\"\",dms_E2_Projects_27)","v":"2350 MAINS RENEWAL - PRESSURE INCREASE BLOCK - Thornbury"}]
[null,{"$f":"IF(ISBLANK(dms_E2_Projects_28),\"\",dms_E2_Projects_28)","v":"2350 MAINS RENEWAL - PRESSURE INCREASE BLOCK - Traralgon"}]
[null,{"$f":"IF(ISBLANK(dms_E2_Projects_29),\"\",dms_E2_Projects_29)","v":"2350 MAINS RENEWAL - PRESSURE INCREASE BLOCK - West Melbourne"}]
[null,{"$f":"IF(ISBLANK(dms_E2_Projects_30),\"\",dms_E2_Projects_30)","v":"2350 MAINS RENEWAL - PRESSURE INCREASE BLOCK - West Preston"}]
[null,{"$f":"IF(ISBLANK(dms_E2_Projects_31),\"\",dms_E2_Projects_31)","v":"2356 MAINS RENEWAL - PRESSURE INCREASE CBD BLOCK"}]
[null,{"$f":"IF(ISBLANK(dms_E2_Projects_32),\"\",dms_E2_Projects_32)","v":"2358 MAINS RENEWAL - PRESSURE INCREASE CBD TRUNK"}]
[null,{"$f":"IF(ISBLANK(dms_E2_Projects_33),\"\",dms_E2_Projects_33)","v":"2359 MAINS RENEWAL - PRESSURE INCREASE CBD TRUNK DECOMMISSIONED"}]
[null,{"$f":"IF(ISBLANK(dms_E2_Projects_34),\"\",dms_E2_Projects_34)","v":"2354 MAINS RENEWAL - PRESSURE INCREASE TRUNK"}]
[null,{"$f":"IF(ISBLANK(dms_E2_Projects_35),\"\",dms_E2_Projects_35)","v":"2365 MAINS RENEWAL - PRESSURE INCREASE TRUNK DECOMMISSIONED"}]
[null,{"$f":"IF(ISBLANK(dms_E2_Projects_36),\"\",dms_E2_Projects_36)","v":"2357 MAINS RENEWAL - PRESSURE INCREASE CBD BLOCK DECOMMISSIONED"}]
[null,{"$f":"IF(ISBLANK(dms_E2_Projects_37),\"\",dms_E2_Projects_37)","v":""}]
[null,{"$f":"IF(ISBLANK(dms_E2_Projects_38),\"\",dms_E2_Projects_38)","v":""}]
[null,{"$f":"IF(ISBLANK(dms_E2_Projects_39),\"\",dms_E2_Projects_39)","v":""}]
[null,{"$f":"IF(ISBLANK(dms_E2_Projects_40),\"\",dms_E2_Projects_40)","v":""}]
[null,{"$f":"IF(ISBLANK(dms_E2_Projects_41),\"\",dms_E2_Projects_41)","v":""}]
[null,{"$f":"IF(ISBLANK(dms_E2_Projects_42),\"\",dms_E2_Projects_42)","v":""}]
[null,{"$f":"IF(ISBLANK(dms_E2_Projects_43),\"\",dms_E2_Projects_43)","v":""}]
[null,{"$f":"IF(ISBLANK(dms_E2_Projects_44),\"\",dms_E2_Projects_44)","v":""}]
[null,{"$f":"IF(ISBLANK(dms_E2_Projects_45),\"\",dms_E2_Projects_45)","v":""}]
[null,{"$f":"IF(ISBLANK(dms_E2_Projects_46),\"\",dms_E2_Projects_46)","v":""}]
[null,{"$f":"IF(ISBLANK(dms_E2_Projects_47),\"\",dms_E2_Projects_47)","v":""}]
[null,{"$f":"IF(ISBLANK(dms_E2_Projects_48),\"\",dms_E2_Projects_48)","v":""}]
[null,{"$f":"IF(ISBLANK(dms_E2_Projects_49),\"\",dms_E2_Projects_49)","v":""}]
[null,{"$f":"IF(ISBLANK(dms_E2_Projects_50),\"\",dms_E2_Projects_50)","v":""}]
[null,"Other projects with expenditure of less than $500,000"]
[null,null,"Total",{"$f":"SUM(D351:D401)","v":0},{"$f":"SUM(E351:E401)","v":0},{"$f":"SUM(F351:F401)","v":0},{"$f":"SUM(G351:G401)","v":0},{"$f":"SUM(H351:H401)","v":0}]
[]
[]
[]
[null,"E2.1.2 - REACTIVE - BY CONNECTION TYPE"]
[null,null,null,"EXPENDITURE"]
[null,null,null,"$0's, Nominal"]
[null,null,null,{"$f":"dms_y1","v":2017},{"$f":"dms_y2","v":2018},{"$f":"dms_y3","v":2019},{"$f":"dms_y4","v":2020},{"$f":"dms_y5","v":2021}]
[null,"A. DIRECT INTERNAL LABOUR EXPENDITURE"]
[null,"Mains"]
[null,"Services"]
[null,null,"Total",{"$f":"SUM(D411:D412)","v":0},{"$f":"SUM(E411:E412)","v":0},{"$f":"SUM(F411:F412)","v":0},{"$f":"SUM(G411:G412)","v":0},{"$f":"SUM(H411:H412)","v":0}]
[null,"B. DIRECT CONTRACTOR EXPENDITURE"]
[null,"Mains"]
[null,"Services"]
[null,null,"Total",{"$f":"SUM(D415:D416)","v":0},{"$f":"SUM(E415:E416)","v":0},{"$f":"SUM(F415:F416)","v":0},{"$f":"SUM(G415:G416)","v":0},{"$f":"SUM(H415:H416)","v":0}]
[null,"C. DIRECT MATERIAL EXPENDITURE"]
[null,"Mains"]
[null,"Services"]
[null,null,"Total",{"$f":"SUM(D419:D420)","v":0},{"$f":"SUM(E419:E420)","v":0},{"$f":"SUM(F419:F420)","v":0},{"$f":"SUM(G419:G420)","v":0},{"$f":"SUM(H419:H420)","v":0}]
[null,"D. OTHER DIRECT EXPENDITURE"]
[null,"Mains"]
[null,"Services"]
[null,null,"Total",{"$f":"SUM(D423:D424)","v":0},{"$f":"SUM(E423:E424)","v":0},{"$f":"SUM(F423:F424)","v":0},{"$f":"SUM(G423:G424)","v":0},{"$f":"SUM(H423:H424)","v":0}]
[null,"E. RELATED PARTY MARGIN EXPENDITURE"]
[null,"Mains"]
[null,"Services"]
[null,null,"Total",{"$f":"SUM(D427:D428)","v":0},{"$f":"SUM(E427:E428)","v":0},{"$f":"SUM(F427:F428)","v":0},{"$f":"SUM(G427:G428)","v":0},{"$f":"SUM(H427:H428)","v":0}]
[null,"F. CAPITAL CONTRIBUTIONS included in the above"]
[null,"Mains"]
[null,"Services"]
[null,null,"Total",{"$f":"SUM(D431:D432)","v":0},{"$f":"SUM(E431:E432)","v":0},{"$f":"SUM(F431:F432)","v":0},{"$f":"SUM(G431:G432)","v":0},{"$f":"SUM(H431:H432)","v":0}]
[null,null,"TOTAL",{"$f":"SUM(D433,D429,D425,D421,D417,D413)","v":0},{"$f":"SUM(E433,E429,E425,E421,E417,E413)","v":0},{"$f":"SUM(F433,F429,F425,F421,F417,F413)","v":0},{"$f":"SUM(G433,G429,G425,G421,G417,G413)","v":0},{"$f":"SUM(H433,H429,H425,H421,H417,H413)","v":0}]
[]
[]
[null,"E2.2 - VOLUMES"]
[null,"E2.2.1 - PROACTIVE - BY CONNECTION TYPE - BY PROJECT"]
[null,null,null,"LENGTH"]
[null,null,null,"0s, metres"]
[null,null,null,{"$f":"dms_y1","v":2017},{"$f":"dms_y2","v":2018},{"$f":"dms_y3","v":2019},{"$f":"dms_y4","v":2020},{"$f":"dms_y5","v":2021}]
[null,"A. LOW PRESSURE TO HIGH PRESSURE"]
[null,{"$f":"IF(ISBLANK(dms_E2_Projects_01),\"\",dms_E2_Projects_01)","v":"2350 MAINS RENEWAL - PRESSURE INCREASE BLOCK - Abbortsford"},null,0,0,0,0,0]
[null,{"$f":"IF(ISBLANK(dms_E2_Projects_02),\"\",dms_E2_Projects_02)","v":"2350 MAINS RENEWAL - PRESSURE INCREASE BLOCK - Alphington"},null,2657,0,0,0,0]
[null,{"$f":"IF(ISBLANK(dms_E2_Projects_03),\"\",dms_E2_Projects_03)","v":"2350 MAINS RENEWAL - PRESSURE INCREASE BLOCK - Benalla"},null,0,0,0,0,0]
[null,{"$f":"IF(ISBLANK(dms_E2_Projects_04),\"\",dms_E2_Projects_04)","v":"2350 MAINS RENEWAL - PRESSURE INCREASE BLOCK - Brunswick"},null,0,0,0,0,0]
[null,{"$f":"IF(ISBLANK(dms_E2_Projects_05),\"\",dms_E2_Projects_05)","v":"2350 MAINS RENEWAL - PRESSURE INCREASE BLOCK - Brunswick West"},null,0,0,0,0,0]
[null,{"$f":"IF(ISBLANK(dms_E2_Projects_06),\"\",dms_E2_Projects_06)","v":"2350 MAINS RENEWAL - PRESSURE INCREASE BLOCK - Carlton"},null,3049,7025,0,7376,1253]
[null,{"$f":"IF(ISBLANK(dms_E2_Projects_07),\"\",dms_E2_Projects_07)","v":"2350 MAINS RENEWAL - PRESSURE INCREASE BLOCK - Carlton North"},null,8076,4145,0,1854,3479]
[null,{"$f":"IF(ISBLANK(dms_E2_Projects_08),\"\",dms_E2_Projects_08)","v":"2350 MAINS RENEWAL - PRESSURE INCREASE BLOCK - Clifton Hill"},null,5876,2213,2500,126,0]
[null,{"$f":"IF(ISBLANK(dms_E2_Projects_09),\"\",dms_E2_Projects_09)","v":"2350 MAINS RENEWAL - PRESSURE INCREASE BLOCK - Collingwood"},null,184,0,0,0,0]
[null,{"$f":"IF(ISBLANK(dms_E2_Projects_10),\"\",dms_E2_Projects_10)","v":"2350 MAINS RENEWAL - PRESSURE INCREASE BLOCK - East Melbourne"},null,2662,0,0,668,2687]
[null,{"$f":"IF(ISBLANK(dms_E2_Projects_11),\"\",dms_E2_Projects_11)","v":"2350 MAINS RENEWAL - PRESSURE INCREASE BLOCK - East Preston"},null,4058.5,0,0,0,0]
[null,{"$f":"IF(ISBLANK(dms_E2_Projects_12),\"\",dms_E2_Projects_12)","v":"2350 MAINS RENEWAL - PRESSURE INCREASE BLOCK - East Richmond"},null,0,0,0,289,3350]
[null,{"$f":"IF(ISBLANK(dms_E2_Projects_13),\"\",dms_E2_Projects_13)","v":"2350 MAINS RENEWAL - PRESSURE INCREASE BLOCK - Fitzroy"},null,4468,7837,2931,0,249]
[null,{"$f":"IF(ISBLANK(dms_E2_Projects_14),\"\",dms_E2_Projects_14)","v":"2350 MAINS RENEWAL - PRESSURE INCREASE BLOCK - Fitzroy North"},null,0,9320,4425,0,0]
[null,{"$f":"IF(ISBLANK(dms_E2_Projects_15),\"\",dms_E2_Projects_15)","v":"2350 MAINS RENEWAL - PRESSURE INCREASE BLOCK - Heidelberg"},null,0,0,0,0,0]
[null,{"$f":"IF(ISBLANK(dms_E2_Projects_16),\"\",dms_E2_Projects_16)","v":"2350 MAINS RENEWAL - PRESSURE INCREASE BLOCK - Ivanhoe"},null,1629.5,960,5888,11819,13762]
[null,{"$f":"IF(ISBLANK(dms_E2_Projects_17),\"\",dms_E2_Projects_17)","v":"2350 MAINS RENEWAL - PRESSURE INCREASE BLOCK - Melbourne"},null,153,0,0,0,0]
[null,{"$f":"IF(ISBLANK(dms_E2_Projects_18),\"\",dms_E2_Projects_18)","v":"2350 MAINS RENEWAL - PRESSURE INCREASE BLOCK - Mornington"},null,0,0,0,0,0]
[null,{"$f":"IF(ISBLANK(dms_E2_Projects_19),\"\",dms_E2_Projects_19)","v":"2350 MAINS RENEWAL - PRESSURE INCREASE BLOCK - North Melbourne"},null,13076,0,0,7726,6932]
[null,{"$f":"IF(ISBLANK(dms_E2_Projects_20),\"\",dms_E2_Projects_20)","v":"2350 MAINS RENEWAL - PRESSURE INCREASE BLOCK - Northcote"},null,497,0,0,0,0]
[null,{"$f":"IF(ISBLANK(dms_E2_Projects_21),\"\",dms_E2_Projects_21)","v":"2350 MAINS RENEWAL - PRESSURE INCREASE BLOCK - Pakenham"},null,0,0,0,0,0]
[null,{"$f":"IF(ISBLANK(dms_E2_Projects_22),\"\",dms_E2_Projects_22)","v":"2350 MAINS RENEWAL - PRESSURE INCREASE BLOCK - Parkville"},null,0,0,0,0,0]
[null,{"$f":"IF(ISBLANK(dms_E2_Projects_23),\"\",dms_E2_Projects_23)","v":"2350 MAINS RENEWAL - PRESSURE INCREASE BLOCK - Preston"},null,0,0,0,0,0]
[null,{"$f":"IF(ISBLANK(dms_E2_Projects_24),\"\",dms_E2_Projects_24)","v":"2350 MAINS RENEWAL - PRESSURE INCREASE BLOCK - Richmond"},null,22059.5,7908,9657,2969,0]
[null,{"$f":"IF(ISBLANK(dms_E2_Projects_25),\"\",dms_E2_Projects_25)","v":"2350 MAINS RENEWAL - PRESSURE INCREASE BLOCK - Shepparton"},null,0,0,0,0,0]
[null,{"$f":"IF(ISBLANK(dms_E2_Projects_25),\"\",dms_E2_Projects_26)","v":"2350 MAINS RENEWAL - PRESSURE INCREASE BLOCK - Thomastown"},null,0,0,0,0,0]
[null,{"$f":"IF(ISBLANK(dms_E2_Projects_27),\"\",dms_E2_Projects_27)","v":"2350 MAINS RENEWAL - PRESSURE INCREASE BLOCK - Thornbury"},null,0,0,0,0,0]
[null,{"$f":"IF(ISBLANK(dms_E2_Projects_28),\"\",dms_E2_Projects_28)","v":"2350 MAINS RENEWAL - PRESSURE INCREASE BLOCK - Traralgon"},null,0,0,0,0,0]
[null,{"$f":"IF(ISBLANK(dms_E2_Projects_29),\"\",dms_E2_Projects_29)","v":"2350 MAINS RENEWAL - PRESSURE INCREASE BLOCK - West Melbourne"},null,0,0,5146,7483,1152]
[null,{"$f":"IF(ISBLANK(dms_E2_Projects_30),\"\",dms_E2_Projects_30)","v":"2350 MAINS RENEWAL - PRESSURE INCREASE BLOCK - West Preston"},null,2925,0,0,0,0]
[null,{"$f":"IF(ISBLANK(dms_E2_Projects_31),\"\",dms_E2_Projects_31)","v":"2356 MAINS RENEWAL - PRESSURE INCREASE CBD BLOCK"},null,0,0,0,0,0]
[null,{"$f":"IF(ISBLANK(dms_E2_Projects_32),\"\",dms_E2_Projects_32)","v":"2358 MAINS RENEWAL - PRESSURE INCREASE CBD TRUNK"},null,0,0,0,0,0]
[null,{"$f":"IF(ISBLANK(dms_E2_Projects_33),\"\",dms_E2_Projects_33)","v":"2359 MAINS RENEWAL - PRESSURE INCREASE CBD TRUNK DECOMMISSIONED"},null,0,0,0,0,0]
[null,{"$f":"IF(ISBLANK(dms_E2_Projects_34),\"\",dms_E2_Projects_34)","v":"2354 MAINS RENEWAL - PRESSURE INCREASE TRUNK"},null,0,0,0,0,0]
[null,{"$f":"IF(ISBLANK(dms_E2_Projects_35),\"\",dms_E2_Projects_35)","v":"2365 MAINS RENEWAL - PRESSURE INCREASE TRUNK DECOMMISSIONED"},null,0,0,0,0,0]
[null,{"$f":"IF(ISBLANK(dms_E2_Projects_36),\"\",dms_E2_Projects_36)","v":"2357 MAINS RENEWAL - PRESSURE INCREASE CBD BLOCK DECOMMISSIONED"},null,0,0,0,0,0]
[null,{"$f":"IF(ISBLANK(dms_E2_Projects_37),\"\",dms_E2_Projects_37)","v":""}]
[null,{"$f":"IF(ISBLANK(dms_E2_Projects_38),\"\",dms_E2_Projects_38)","v":""}]
[null,{"$f":"IF(ISBLANK(dms_E2_Projects_39),\"\",dms_E2_Projects_39)","v":""}]
[null,{"$f":"IF(ISBLANK(dms_E2_Projects_40),\"\",dms_E2_Projects_40)","v":""}]
[null,{"$f":"IF(ISBLANK(dms_E2_Projects_41),\"\",dms_E2_Projects_41)","v":""}]
[null,{"$f":"IF(ISBLANK(dms_E2_Projects_42),\"\",dms_E2_Projects_42)","v":""}]
[null,{"$f":"IF(ISBLANK(dms_E2_Projects_43),\"\",dms_E2_Projects_43)","v":""}]
[null,{"$f":"IF(ISBLANK(dms_E2_Projects_44),\"\",dms_E2_Projects_44)","v":""}]
[null,{"$f":"IF(ISBLANK(dms_E2_Projects_45),\"\",dms_E2_Projects_45)","v":""}]
[null,{"$f":"IF(ISBLANK(dms_E2_Projects_46),\"\",dms_E2_Projects_46)","v":""}]
[null,{"$f":"IF(ISBLANK(dms_E2_Projects_47),\"\",dms_E2_Projects_47)","v":""}]
[null,{"$f":"IF(ISBLANK(dms_E2_Projects_48),\"\",dms_E2_Projects_48)","v":""}]
[null,{"$f":"IF(ISBLANK(dms_E2_Projects_49),\"\",dms_E2_Projects_49)","v":""}]
[null,{"$f":"IF(ISBLANK(dms_E2_Projects_50),\"\",dms_E2_Projects_50)","v":""}]
[null,"Aggregate of other projects with total expenditure of less than $500,000"]
[null,null,"Total",{"$f":"SUM(D443:D493)","v":71370.5},{"$f":"SUM(E443:E493)","v":39408},{"$f":"SUM(F443:F493)","v":30547},{"$f":"SUM(G443:G493)","v":40310},{"$f":"SUM(H443:H493)","v":32864}]
[]
[null,"B. LOW PRESSURE TO MEDIUM PRESSURE"]
[null,{"$f":"IF(ISBLANK(dms_E2_Projects_01),\"\",dms_E2_Projects_01)","v":"2350 MAINS RENEWAL - PRESSURE INCREASE BLOCK - Abbortsford"}]
[null,{"$f":"IF(ISBLANK(dms_E2_Projects_02),\"\",dms_E2_Projects_02)","v":"2350 MAINS RENEWAL - PRESSURE INCREASE BLOCK - Alphington"}]
[null,{"$f":"IF(ISBLANK(dms_E2_Projects_03),\"\",dms_E2_Projects_03)","v":"2350 MAINS RENEWAL - PRESSURE INCREASE BLOCK - Benalla"}]
[null,{"$f":"IF(ISBLANK(dms_E2_Projects_04),\"\",dms_E2_Projects_04)","v":"2350 MAINS RENEWAL - PRESSURE INCREASE BLOCK - Brunswick"}]
[null,{"$f":"IF(ISBLANK(dms_E2_Projects_05),\"\",dms_E2_Projects_05)","v":"2350 MAINS RENEWAL - PRESSURE INCREASE BLOCK - Brunswick West"}]
[null,{"$f":"IF(ISBLANK(dms_E2_Projects_06),\"\",dms_E2_Projects_06)","v":"2350 MAINS RENEWAL - PRESSURE INCREASE BLOCK - Carlton"}]
[null,{"$f":"IF(ISBLANK(dms_E2_Projects_07),\"\",dms_E2_Projects_07)","v":"2350 MAINS RENEWAL - PRESSURE INCREASE BLOCK - Carlton North"}]
[null,{"$f":"IF(ISBLANK(dms_E2_Projects_08),\"\",dms_E2_Projects_08)","v":"2350 MAINS RENEWAL - PRESSURE INCREASE BLOCK - Clifton Hill"}]
[null,{"$f":"IF(ISBLANK(dms_E2_Projects_09),\"\",dms_E2_Projects_09)","v":"2350 MAINS RENEWAL - PRESSURE INCREASE BLOCK - Collingwood"}]
[null,{"$f":"IF(ISBLANK(dms_E2_Projects_10),\"\",dms_E2_Projects_10)","v":"2350 MAINS RENEWAL - PRESSURE INCREASE BLOCK - East Melbourne"}]
[null,{"$f":"IF(ISBLANK(dms_E2_Projects_11),\"\",dms_E2_Projects_11)","v":"2350 MAINS RENEWAL - PRESSURE INCREASE BLOCK - East Preston"}]
[null,{"$f":"IF(ISBLANK(dms_E2_Projects_12),\"\",dms_E2_Projects_12)","v":"2350 MAINS RENEWAL - PRESSURE INCREASE BLOCK - East Richmond"}]
[null,{"$f":"IF(ISBLANK(dms_E2_Projects_13),\"\",dms_E2_Projects_13)","v":"2350 MAINS RENEWAL - PRESSURE INCREASE BLOCK - Fitzroy"}]
[null,{"$f":"IF(ISBLANK(dms_E2_Projects_14),\"\",dms_E2_Projects_14)","v":"2350 MAINS RENEWAL - PRESSURE INCREASE BLOCK - Fitzroy North"}]
[null,{"$f":"IF(ISBLANK(dms_E2_Projects_15),\"\",dms_E2_Projects_15)","v":"2350 MAINS RENEWAL - PRESSURE INCREASE BLOCK - Heidelberg"}]
[null,{"$f":"IF(ISBLANK(dms_E2_Projects_16),\"\",dms_E2_Projects_16)","v":"2350 MAINS RENEWAL - PRESSURE INCREASE BLOCK - Ivanhoe"}]
[null,{"$f":"IF(ISBLANK(dms_E2_Projects_17),\"\",dms_E2_Projects_17)","v":"2350 MAINS RENEWAL - PRESSURE INCREASE BLOCK - Melbourne"}]
[null,{"$f":"IF(ISBLANK(dms_E2_Projects_18),\"\",dms_E2_Projects_18)","v":"2350 MAINS RENEWAL - PRESSURE INCREASE BLOCK - Mornington"}]
[null,{"$f":"IF(ISBLANK(dms_E2_Projects_19),\"\",dms_E2_Projects_19)","v":"2350 MAINS RENEWAL - PRESSURE INCREASE BLOCK - North Melbourne"}]
[null,{"$f":"IF(ISBLANK(dms_E2_Projects_20),\"\",dms_E2_Projects_20)","v":"2350 MAINS RENEWAL - PRESSURE INCREASE BLOCK - Northcote"}]
[null,{"$f":"IF(ISBLANK(dms_E2_Projects_21),\"\",dms_E2_Projects_21)","v":"2350 MAINS RENEWAL - PRESSURE INCREASE BLOCK - Pakenham"}]
[null,{"$f":"IF(ISBLANK(dms_E2_Projects_22),\"\",dms_E2_Projects_22)","v":"2350 MAINS RENEWAL - PRESSURE INCREASE BLOCK - Parkville"}]
[null,{"$f":"IF(ISBLANK(dms_E2_Projects_23),\"\",dms_E2_Projects_23)","v":"2350 MAINS RENEWAL - PRESSURE INCREASE BLOCK - Preston"}]
[null,{"$f":"IF(ISBLANK(dms_E2_Projects_24),\"\",dms_E2_Projects_24)","v":"2350 MAINS RENEWAL - PRESSURE INCREASE BLOCK - Richmond"}]
[null,{"$f":"IF(ISBLANK(dms_E2_Projects_25),\"\",dms_E2_Projects_25)","v":"2350 MAINS RENEWAL - PRESSURE INCREASE BLOCK - Shepparton"}]
[null,{"$f":"IF(ISBLANK(dms_E2_Projects_25),\"\",dms_E2_Projects_26)","v":"2350 MAINS RENEWAL - PRESSURE INCREASE BLOCK - Thomastown"}]
[null,{"$f":"IF(ISBLANK(dms_E2_Projects_27),\"\",dms_E2_Projects_27)","v":"2350 MAINS RENEWAL - PRESSURE INCREASE BLOCK - Thornbury"}]
[null,{"$f":"IF(ISBLANK(dms_E2_Projects_28),\"\",dms_E2_Projects_28)","v":"2350 MAINS RENEWAL - PRESSURE INCREASE BLOCK - Traralgon"}]
[null,{"$f":"IF(ISBLANK(dms_E2_Projects_29),\"\",dms_E2_Projects_29)","v":"2350 MAINS RENEWAL - PRESSURE INCREASE BLOCK - West Melbourne"}]
[null,{"$f":"IF(ISBLANK(dms_E2_Projects_30),\"\",dms_E2_Projects_30)","v":"2350 MAINS RENEWAL - PRESSURE INCREASE BLOCK - West Preston"}]
[null,{"$f":"IF(ISBLANK(dms_E2_Projects_31),\"\",dms_E2_Projects_31)","v":"2356 MAINS RENEWAL - PRESSURE INCREASE CBD BLOCK"}]
[null,{"$f":"IF(ISBLANK(dms_E2_Projects_32),\"\",dms_E2_Projects_32)","v":"2358 MAINS RENEWAL - PRESSURE INCREASE CBD TRUNK"}]
[null,{"$f":"IF(ISBLANK(dms_E2_Projects_33),\"\",dms_E2_Projects_33)","v":"2359 MAINS RENEWAL - PRESSURE INCREASE CBD TRUNK DECOMMISSIONED"}]
[null,{"$f":"IF(ISBLANK(dms_E2_Projects_34),\"\",dms_E2_Projects_34)","v":"2354 MAINS RENEWAL - PRESSURE INCREASE TRUNK"}]
[null,{"$f":"IF(ISBLANK(dms_E2_Projects_35),\"\",dms_E2_Projects_35)","v":"2365 MAINS RENEWAL - PRESSURE INCREASE TRUNK DECOMMISSIONED"}]
[null,{"$f":"IF(ISBLANK(dms_E2_Projects_36),\"\",dms_E2_Projects_36)","v":"2357 MAINS RENEWAL - PRESSURE INCREASE CBD BLOCK DECOMMISSIONED"}]
[null,{"$f":"IF(ISBLANK(dms_E2_Projects_37),\"\",dms_E2_Projects_37)","v":""}]
[null,{"$f":"IF(ISBLANK(dms_E2_Projects_38),\"\",dms_E2_Projects_38)","v":""}]
[null,{"$f":"IF(ISBLANK(dms_E2_Projects_39),\"\",dms_E2_Projects_39)","v":""}]
[null,{"$f":"IF(ISBLANK(dms_E2_Projects_40),\"\",dms_E2_Projects_40)","v":""}]
[null,{"$f":"IF(ISBLANK(dms_E2_Projects_41),\"\",dms_E2_Projects_41)","v":""}]
[null,{"$f":"IF(ISBLANK(dms_E2_Projects_42),\"\",dms_E2_Projects_42)","v":""}]
[null,{"$f":"IF(ISBLANK(dms_E2_Projects_43),\"\",dms_E2_Projects_43)","v":""}]
[null,{"$f":"IF(ISBLANK(dms_E2_Projects_44),\"\",dms_E2_Projects_44)","v":""}]
[null,{"$f":"IF(ISBLANK(dms_E2_Projects_45),\"\",dms_E2_Projects_45)","v":""}]
[null,{"$f":"IF(ISBLANK(dms_E2_Projects_46),\"\",dms_E2_Projects_46)","v":""}]
[null,{"$f":"IF(ISBLANK(dms_E2_Projects_47),\"\",dms_E2_Projects_47)","v":""}]
[null,{"$f":"IF(ISBLANK(dms_E2_Projects_48),\"\",dms_E2_Projects_48)","v":""}]
[null,{"$f":"IF(ISBLANK(dms_E2_Projects_49),\"\",dms_E2_Projects_49)","v":""}]
[null,{"$f":"IF(ISBLANK(dms_E2_Projects_50),\"\",dms_E2_Projects_50)","v":""}]
[null,"Aggregate of other projects with total expenditure of less than $500,000"]
[null,null,"Total",{"$f":"SUM(D497:D547)","v":0},{"$f":"SUM(E497:E547)","v":0},{"$f":"SUM(F497:F547)","v":0},{"$f":"SUM(G497:G547)","v":0},{"$f":"SUM(H497:H547)","v":0}]
[]
[null,"C. LOW PRESSURE TO LOW PRESSURE"]
[null,{"$f":"IF(ISBLANK(dms_E2_Projects_01),\"\",dms_E2_Projects_01)","v":"2350 MAINS RENEWAL - PRESSURE INCREASE BLOCK - Abbortsford"},null,0,0,0,0,0]
[null,{"$f":"IF(ISBLANK(dms_E2_Projects_02),\"\",dms_E2_Projects_02)","v":"2350 MAINS RENEWAL - PRESSURE INCREASE BLOCK - Alphington"},null,0,0,0,0,0]
[null,{"$f":"IF(ISBLANK(dms_E2_Projects_03),\"\",dms_E2_Projects_03)","v":"2350 MAINS RENEWAL - PRESSURE INCREASE BLOCK - Benalla"},null,0,0,0,0,0]
[null,{"$f":"IF(ISBLANK(dms_E2_Projects_04),\"\",dms_E2_Projects_04)","v":"2350 MAINS RENEWAL - PRESSURE INCREASE BLOCK - Brunswick"},null,0,120,0,0,693]
[null,{"$f":"IF(ISBLANK(dms_E2_Projects_05),\"\",dms_E2_Projects_05)","v":"2350 MAINS RENEWAL - PRESSURE INCREASE BLOCK - Brunswick West"},null,0,1800,0,0,0]
[null,{"$f":"IF(ISBLANK(dms_E2_Projects_06),\"\",dms_E2_Projects_06)","v":"2350 MAINS RENEWAL - PRESSURE INCREASE BLOCK - Carlton"},null,0,0,0,0,100]
[null,{"$f":"IF(ISBLANK(dms_E2_Projects_07),\"\",dms_E2_Projects_07)","v":"2350 MAINS RENEWAL - PRESSURE INCREASE BLOCK - Carlton North"},null,0,0,0,0,0]
[null,{"$f":"IF(ISBLANK(dms_E2_Projects_08),\"\",dms_E2_Projects_08)","v":"2350 MAINS RENEWAL - PRESSURE INCREASE BLOCK - Clifton Hill"},null,0,0,0,0,0]
[null,{"$f":"IF(ISBLANK(dms_E2_Projects_09),\"\",dms_E2_Projects_09)","v":"2350 MAINS RENEWAL - PRESSURE INCREASE BLOCK - Collingwood"},null,0,0,0,0,0]
[null,{"$f":"IF(ISBLANK(dms_E2_Projects_10),\"\",dms_E2_Projects_10)","v":"2350 MAINS RENEWAL - PRESSURE INCREASE BLOCK - East Melbourne"},null,0,0,0,0,0]
[null,{"$f":"IF(ISBLANK(dms_E2_Projects_11),\"\",dms_E2_Projects_11)","v":"2350 MAINS RENEWAL - PRESSURE INCREASE BLOCK - East Preston"},null,0,0,0,0,0]
[null,{"$f":"IF(ISBLANK(dms_E2_Projects_12),\"\",dms_E2_Projects_12)","v":"2350 MAINS RENEWAL - PRESSURE INCREASE BLOCK - East Richmond"},null,0,0,0,0,0]
[null,{"$f":"IF(ISBLANK(dms_E2_Projects_13),\"\",dms_E2_Projects_13)","v":"2350 MAINS RENEWAL - PRESSURE INCREASE BLOCK - Fitzroy"},null,0,2426,0,0,0]
[null,{"$f":"IF(ISBLANK(dms_E2_Projects_14),\"\",dms_E2_Projects_14)","v":"2350 MAINS RENEWAL - PRESSURE INCREASE BLOCK - Fitzroy North"},null,0,0,0,0,0]
[null,{"$f":"IF(ISBLANK(dms_E2_Projects_15),\"\",dms_E2_Projects_15)","v":"2350 MAINS RENEWAL - PRESSURE INCREASE BLOCK - Heidelberg"},null,0,0,0,0,0]
[null,{"$f":"IF(ISBLANK(dms_E2_Projects_16),\"\",dms_E2_Projects_16)","v":"2350 MAINS RENEWAL - PRESSURE INCREASE BLOCK - Ivanhoe"},null,0,0,0,0,0]
[null,{"$f":"IF(ISBLANK(dms_E2_Projects_17),\"\",dms_E2_Projects_17)","v":"2350 MAINS RENEWAL - PRESSURE INCREASE BLOCK - Melbourne"},null,0,318,0,170,0]
[null,{"$f":"IF(ISBLANK(dms_E2_Projects_18),\"\",dms_E2_Projects_18)","v":"2350 MAINS RENEWAL - PRESSURE INCREASE BLOCK - Mornington"},null,0,0,0,0,0]
[null,{"$f":"IF(ISBLANK(dms_E2_Projects_19),\"\",dms_E2_Projects_19)","v":"2350 MAINS RENEWAL - PRESSURE INCREASE BLOCK - North Melbourne"},null,0,0,0,0,712]
[null,{"$f":"IF(ISBLANK(dms_E2_Projects_20),\"\",dms_E2_Projects_20)","v":"2350 MAINS RENEWAL - PRESSURE INCREASE BLOCK - Northcote"},null,0,0,0,0,0]
[null,{"$f":"IF(ISBLANK(dms_E2_Projects_21),\"\",dms_E2_Projects_21)","v":"2350 MAINS RENEWAL - PRESSURE INCREASE BLOCK - Pakenham"},null,0,0,0,0,0]
[null,{"$f":"IF(ISBLANK(dms_E2_Projects_22),\"\",dms_E2_Projects_22)","v":"2350 MAINS RENEWAL - PRESSURE INCREASE BLOCK - Parkville"},null,0,2200,0,0,0]
[null,{"$f":"IF(ISBLANK(dms_E2_Projects_23),\"\",dms_E2_Projects_23)","v":"2350 MAINS RENEWAL - PRESSURE INCREASE BLOCK - Preston"},null,0,0,0,0,0]
[null,{"$f":"IF(ISBLANK(dms_E2_Projects_24),\"\",dms_E2_Projects_24)","v":"2350 MAINS RENEWAL - PRESSURE INCREASE BLOCK - Richmond"},null,0,0,0,0,0]
[null,{"$f":"IF(ISBLANK(dms_E2_Projects_25),\"\",dms_E2_Projects_25)","v":"2350 MAINS RENEWAL - PRESSURE INCREASE BLOCK - Shepparton"},null,0,0,0,0,0]
[null,{"$f":"IF(ISBLANK(dms_E2_Projects_25),\"\",dms_E2_Projects_26)","v":"2350 MAINS RENEWAL - PRESSURE INCREASE BLOCK - Thomastown"},null,0,0,0,0,0]
[null,{"$f":"IF(ISBLANK(dms_E2_Projects_27),\"\",dms_E2_Projects_27)","v":"2350 MAINS RENEWAL - PRESSURE INCREASE BLOCK - Thornbury"},null,0,0,0,0,0]
[null,{"$f":"IF(ISBLANK(dms_E2_Projects_28),\"\",dms_E2_Projects_28)","v":"2350 MAINS RENEWAL - PRESSURE INCREASE BLOCK - Traralgon"},null,0,0,0,0,0]
[null,{"$f":"IF(ISBLANK(dms_E2_Projects_29),\"\",dms_E2_Projects_29)","v":"2350 MAINS RENEWAL - PRESSURE INCREASE BLOCK - West Melbourne"},null,0,0,0,0,0]
[null,{"$f":"IF(ISBLANK(dms_E2_Projects_30),\"\",dms_E2_Projects_30)","v":"2350 MAINS RENEWAL - PRESSURE INCREASE BLOCK - West Preston"},null,0,0,0,0,0]
[null,{"$f":"IF(ISBLANK(dms_E2_Projects_31),\"\",dms_E2_Projects_31)","v":"2356 MAINS RENEWAL - PRESSURE INCREASE CBD BLOCK"},null,0,340,3931,7331.7,5885]
[null,{"$f":"IF(ISBLANK(dms_E2_Projects_32),\"\",dms_E2_Projects_32)","v":"2358 MAINS RENEWAL - PRESSURE INCREASE CBD TRUNK"},null,0,0,0,0,167.1]
[null,{"$f":"IF(ISBLANK(dms_E2_Projects_33),\"\",dms_E2_Projects_33)","v":"2359 MAINS RENEWAL - PRESSURE INCREASE CBD TRUNK DECOMMISSIONED"},null,0,0,0,0,0]
[null,{"$f":"IF(ISBLANK(dms_E2_Projects_34),\"\",dms_E2_Projects_34)","v":"2354 MAINS RENEWAL - PRESSURE INCREASE TRUNK"},null,0,0,0,0,1838]
[null,{"$f":"IF(ISBLANK(dms_E2_Projects_35),\"\",dms_E2_Projects_35)","v":"2365 MAINS RENEWAL - PRESSURE INCREASE TRUNK DECOMMISSIONED"},null,0,0,0,0,3935]
[null,{"$f":"IF(ISBLANK(dms_E2_Projects_36),\"\",dms_E2_Projects_36)","v":"2357 MAINS RENEWAL - PRESSURE INCREASE CBD BLOCK DECOMMISSIONED"},null,0,0,1377,3238,2009]
[null,{"$f":"IF(ISBLANK(dms_E2_Projects_37),\"\",dms_E2_Projects_37)","v":""}]
[null,{"$f":"IF(ISBLANK(dms_E2_Projects_38),\"\",dms_E2_Projects_38)","v":""}]
[null,{"$f":"IF(ISBLANK(dms_E2_Projects_39),\"\",dms_E2_Projects_39)","v":""}]
[null,{"$f":"IF(ISBLANK(dms_E2_Projects_40),\"\",dms_E2_Projects_40)","v":""}]
[null,{"$f":"IF(ISBLANK(dms_E2_Projects_41),\"\",dms_E2_Projects_41)","v":""}]
[null,{"$f":"IF(ISBLANK(dms_E2_Projects_42),\"\",dms_E2_Projects_42)","v":""}]
[null,{"$f":"IF(ISBLANK(dms_E2_Projects_43),\"\",dms_E2_Projects_43)","v":""}]
[null,{"$f":"IF(ISBLANK(dms_E2_Projects_44),\"\",dms_E2_Projects_44)","v":""}]
[null,{"$f":"IF(ISBLANK(dms_E2_Projects_45),\"\",dms_E2_Projects_45)","v":""}]
[null,{"$f":"IF(ISBLANK(dms_E2_Projects_46),\"\",dms_E2_Projects_46)","v":""}]
[null,{"$f":"IF(ISBLANK(dms_E2_Projects_47),\"\",dms_E2_Projects_47)","v":""}]
[null,{"$f":"IF(ISBLANK(dms_E2_Projects_48),\"\",dms_E2_Projects_48)","v":""}]
[null,{"$f":"IF(ISBLANK(dms_E2_Projects_49),\"\",dms_E2_Projects_49)","v":""}]
[null,{"$f":"IF(ISBLANK(dms_E2_Projects_50),\"\",dms_E2_Projects_50)","v":""}]
[null,"Aggregate of other projects with total expenditure of less than $500,000"]
[null,null,"Total",{"$f":"SUM(D551:D601)","v":0},{"$f":"SUM(E551:E601)","v":7204},{"$f":"SUM(F551:F601)","v":5308},{"$f":"SUM(G551:G601)","v":10739.7},{"$f":"SUM(H551:H601)","v":15339.1}]
[]
[null,"D. MEDIUM PRESSURE TO MEDIUM PRESSURE"]
[null,{"$f":"IF(ISBLANK(dms_E2_Projects_01),\"\",dms_E2_Projects_01)","v":"2350 MAINS RENEWAL - PRESSURE INCREASE BLOCK - Abbortsford"},null,0,0,0,0,0]
[null,{"$f":"IF(ISBLANK(dms_E2_Projects_02),\"\",dms_E2_Projects_02)","v":"2350 MAINS RENEWAL - PRESSURE INCREASE BLOCK - Alphington"},null,0,0,0,0,0]
[null,{"$f":"IF(ISBLANK(dms_E2_Projects_03),\"\",dms_E2_Projects_03)","v":"2350 MAINS RENEWAL - PRESSURE INCREASE BLOCK - Benalla"},null,0,0,0,0,0]
[null,{"$f":"IF(ISBLANK(dms_E2_Projects_04),\"\",dms_E2_Projects_04)","v":"2350 MAINS RENEWAL - PRESSURE INCREASE BLOCK - Brunswick"},null,0,0,0,0,0]
[null,{"$f":"IF(ISBLANK(dms_E2_Projects_05),\"\",dms_E2_Projects_05)","v":"2350 MAINS RENEWAL - PRESSURE INCREASE BLOCK - Brunswick West"},null,0,0,0,0,0]
[null,{"$f":"IF(ISBLANK(dms_E2_Projects_06),\"\",dms_E2_Projects_06)","v":"2350 MAINS RENEWAL - PRESSURE INCREASE BLOCK - Carlton"},null,0,0,0,0,0]
[null,{"$f":"IF(ISBLANK(dms_E2_Projects_07),\"\",dms_E2_Projects_07)","v":"2350 MAINS RENEWAL - PRESSURE INCREASE BLOCK - Carlton North"},null,0,0,0,0,0]
[null,{"$f":"IF(ISBLANK(dms_E2_Projects_08),\"\",dms_E2_Projects_08)","v":"2350 MAINS RENEWAL - PRESSURE INCREASE BLOCK - Clifton Hill"},null,0,0,0,0,0]
[null,{"$f":"IF(ISBLANK(dms_E2_Projects_09),\"\",dms_E2_Projects_09)","v":"2350 MAINS RENEWAL - PRESSURE INCREASE BLOCK - Collingwood"},null,0,0,0,0,0]
[null,{"$f":"IF(ISBLANK(dms_E2_Projects_10),\"\",dms_E2_Projects_10)","v":"2350 MAINS RENEWAL - PRESSURE INCREASE BLOCK - East Melbourne"},null,0,0,0,0,0]
[null,{"$f":"IF(ISBLANK(dms_E2_Projects_11),\"\",dms_E2_Projects_11)","v":"2350 MAINS RENEWAL - PRESSURE INCREASE BLOCK - East Preston"},null,0,0,0,0,0]
[null,{"$f":"IF(ISBLANK(dms_E2_Projects_12),\"\",dms_E2_Projects_12)","v":"2350 MAINS RENEWAL - PRESSURE INCREASE BLOCK - East Richmond"},null,0,0,0,0,0]
[null,{"$f":"IF(ISBLANK(dms_E2_Projects_13),\"\",dms_E2_Projects_13)","v":"2350 MAINS RENEWAL - PRESSURE INCREASE BLOCK - Fitzroy"},null,0,0,0,0,0]
[null,{"$f":"IF(ISBLANK(dms_E2_Projects_14),\"\",dms_E2_Projects_14)","v":"2350 MAINS RENEWAL - PRESSURE INCREASE BLOCK - Fitzroy North"},null,0,0,0,0,0]
[null,{"$f":"IF(ISBLANK(dms_E2_Projects_15),\"\",dms_E2_Projects_15)","v":"2350 MAINS RENEWAL - PRESSURE INCREASE BLOCK - Heidelberg"},null,0,0,0,0,0]
[null,{"$f":"IF(ISBLANK(dms_E2_Projects_16),\"\",dms_E2_Projects_16)","v":"2350 MAINS RENEWAL - PRESSURE INCREASE BLOCK - Ivanhoe"},null,0,0,0,0,0]
[null,{"$f":"IF(ISBLANK(dms_E2_Projects_17),\"\",dms_E2_Projects_17)","v":"2350 MAINS RENEWAL - PRESSURE INCREASE BLOCK - Melbourne"},null,0,0,0,0,0]
[null,{"$f":"IF(ISBLANK(dms_E2_Projects_18),\"\",dms_E2_Projects_18)","v":"2350 MAINS RENEWAL - PRESSURE INCREASE BLOCK - Mornington"},null,0,0,0,0,0]
[null,{"$f":"IF(ISBLANK(dms_E2_Projects_19),\"\",dms_E2_Projects_19)","v":"2350 MAINS RENEWAL - PRESSURE INCREASE BLOCK - North Melbourne"},null,0,0,0,0,0]
[null,{"$f":"IF(ISBLANK(dms_E2_Projects_20),\"\",dms_E2_Projects_20)","v":"2350 MAINS RENEWAL - PRESSURE INCREASE BLOCK - Northcote"},null,0,0,0,0,0]
[null,{"$f":"IF(ISBLANK(dms_E2_Projects_21),\"\",dms_E2_Projects_21)","v":"2350 MAINS RENEWAL - PRESSURE INCREASE BLOCK - Pakenham"},null,0,0,0,0,0]
[null,{"$f":"IF(ISBLANK(dms_E2_Projects_22),\"\",dms_E2_Projects_22)","v":"2350 MAINS RENEWAL - PRESSURE INCREASE BLOCK - Parkville"},null,0,0,0,0,0]
[null,{"$f":"IF(ISBLANK(dms_E2_Projects_23),\"\",dms_E2_Projects_23)","v":"2350 MAINS RENEWAL - PRESSURE INCREASE BLOCK - Preston"},null,0,3140,0,0,0]
[null,{"$f":"IF(ISBLANK(dms_E2_Projects_24),\"\",dms_E2_Projects_24)","v":"2350 MAINS RENEWAL - PRESSURE INCREASE BLOCK - Richmond"},null,0,0,0,0,0]
[null,{"$f":"IF(ISBLANK(dms_E2_Projects_25),\"\",dms_E2_Projects_25)","v":"2350 MAINS RENEWAL - PRESSURE INCREASE BLOCK - Shepparton"},null,0,0,0,0,0]
[null,{"$f":"IF(ISBLANK(dms_E2_Projects_25),\"\",dms_E2_Projects_26)","v":"2350 MAINS RENEWAL - PRESSURE INCREASE BLOCK - Thomastown"},null,0,0,0,0,0]
[null,{"$f":"IF(ISBLANK(dms_E2_Projects_27),\"\",dms_E2_Projects_27)","v":"2350 MAINS RENEWAL - PRESSURE INCREASE BLOCK - Thornbury"},null,0,0,0,0,0]
[null,{"$f":"IF(ISBLANK(dms_E2_Projects_28),\"\",dms_E2_Projects_28)","v":"2350 MAINS RENEWAL - PRESSURE INCREASE BLOCK - Traralgon"},null,0,0,0,0,0]
[null,{"$f":"IF(ISBLANK(dms_E2_Projects_29),\"\",dms_E2_Projects_29)","v":"2350 MAINS RENEWAL - PRESSURE INCREASE BLOCK - West Melbourne"},null,0,0,0,0,0]
[null,{"$f":"IF(ISBLANK(dms_E2_Projects_30),\"\",dms_E2_Projects_30)","v":"2350 MAINS RENEWAL - PRESSURE INCREASE BLOCK - West Preston"},null,0,0,0,0,0]
[null,{"$f":"IF(ISBLANK(dms_E2_Projects_31),\"\",dms_E2_Projects_31)","v":"2356 MAINS RENEWAL - PRESSURE INCREASE CBD BLOCK"},null,0,0,0,0,0]
[null,{"$f":"IF(ISBLANK(dms_E2_Projects_32),\"\",dms_E2_Projects_32)","v":"2358 MAINS RENEWAL - PRESSURE INCREASE CBD TRUNK"},null,0,0,0,0,0]
[null,{"$f":"IF(ISBLANK(dms_E2_Projects_33),\"\",dms_E2_Projects_33)","v":"2359 MAINS RENEWAL - PRESSURE INCREASE CBD TRUNK DECOMMISSIONED"},null,0,0,0,0,0]
[null,{"$f":"IF(ISBLANK(dms_E2_Projects_34),\"\",dms_E2_Projects_34)","v":"2354 MAINS RENEWAL - PRESSURE INCREASE TRUNK"},null,0,0,0,0,0]
[null,{"$f":"IF(ISBLANK(dms_E2_Projects_35),\"\",dms_E2_Projects_35)","v":"2365 MAINS RENEWAL - PRESSURE INCREASE TRUNK DECOMMISSIONED"},null,0,0,0,0,0]
[null,{"$f":"IF(ISBLANK(dms_E2_Projects_36),\"\",dms_E2_Projects_36)","v":"2357 MAINS RENEWAL - PRESSURE INCREASE CBD BLOCK DECOMMISSIONED"},null,0,0,0,0,0]
[null,{"$f":"IF(ISBLANK(dms_E2_Projects_37),\"\",dms_E2_Projects_37)","v":""}]
[null,{"$f":"IF(ISBLANK(dms_E2_Projects_38),\"\",dms_E2_Projects_38)","v":""}]
[null,{"$f":"IF(ISBLANK(dms_E2_Projects_39),\"\",dms_E2_Projects_39)","v":""}]
[null,{"$f":"IF(ISBLANK(dms_E2_Projects_40),\"\",dms_E2_Projects_40)","v":""}]
[null,{"$f":"IF(ISBLANK(dms_E2_Projects_41),\"\",dms_E2_Projects_41)","v":""}]
[null,{"$f":"IF(ISBLANK(dms_E2_Projects_42),\"\",dms_E2_Projects_42)","v":""}]
[null,{"$f":"IF(ISBLANK(dms_E2_Projects_43),\"\",dms_E2_Projects_43)","v":""}]
[null,{"$f":"IF(ISBLANK(dms_E2_Projects_44),\"\",dms_E2_Projects_44)","v":""}]
[null,{"$f":"IF(ISBLANK(dms_E2_Projects_45),\"\",dms_E2_Projects_45)","v":""}]
[null,{"$f":"IF(ISBLANK(dms_E2_Projects_46),\"\",dms_E2_Projects_46)","v":""}]
[null,{"$f":"IF(ISBLANK(dms_E2_Projects_47),\"\",dms_E2_Projects_47)","v":""}]
[null,{"$f":"IF(ISBLANK(dms_E2_Projects_48),\"\",dms_E2_Projects_48)","v":""}]
[null,{"$f":"IF(ISBLANK(dms_E2_Projects_49),\"\",dms_E2_Projects_49)","v":""}]
[null,{"$f":"IF(ISBLANK(dms_E2_Projects_50),\"\",dms_E2_Projects_50)","v":""}]
[null,"Aggregate of other projects with total expenditure of less than $500,000",null,11990]
[null,null,"Total",{"$f":"SUM(D605:D655)","v":11990},{"$f":"SUM(E605:E655)","v":3140},{"$f":"SUM(F605:F655)","v":0},{"$f":"SUM(G605:G655)","v":0},{"$f":"SUM(H605:H655)","v":0}]
[]
[null,"E. MEDIUM PRESSURE TO HIGH PRESSURE"]
[null,{"$f":"IF(ISBLANK(dms_E2_Projects_01),\"\",dms_E2_Projects_01)","v":"2350 MAINS RENEWAL - PRESSURE INCREASE BLOCK - Abbortsford"},null,0,0,0,0,0]
[null,{"$f":"IF(ISBLANK(dms_E2_Projects_02),\"\",dms_E2_Projects_02)","v":"2350 MAINS RENEWAL - PRESSURE INCREASE BLOCK - Alphington"},null,0,0,0,0,0]
[null,{"$f":"IF(ISBLANK(dms_E2_Projects_03),\"\",dms_E2_Projects_03)","v":"2350 MAINS RENEWAL - PRESSURE INCREASE BLOCK - Benalla"},null,0,0,0,0,0]
[null,{"$f":"IF(ISBLANK(dms_E2_Projects_04),\"\",dms_E2_Projects_04)","v":"2350 MAINS RENEWAL - PRESSURE INCREASE BLOCK - Brunswick"},null,0,0,0,0,0]
[null,{"$f":"IF(ISBLANK(dms_E2_Projects_05),\"\",dms_E2_Projects_05)","v":"2350 MAINS RENEWAL - PRESSURE INCREASE BLOCK - Brunswick West"},null,0,0,0,0,0]
[null,{"$f":"IF(ISBLANK(dms_E2_Projects_06),\"\",dms_E2_Projects_06)","v":"2350 MAINS RENEWAL - PRESSURE INCREASE BLOCK - Carlton"},null,0,0,0,0,0]
[null,{"$f":"IF(ISBLANK(dms_E2_Projects_07),\"\",dms_E2_Projects_07)","v":"2350 MAINS RENEWAL - PRESSURE INCREASE BLOCK - Carlton North"},null,0,0,0,0,0]
[null,{"$f":"IF(ISBLANK(dms_E2_Projects_08),\"\",dms_E2_Projects_08)","v":"2350 MAINS RENEWAL - PRESSURE INCREASE BLOCK - Clifton Hill"},null,0,0,0,0,0]
[null,{"$f":"IF(ISBLANK(dms_E2_Projects_09),\"\",dms_E2_Projects_09)","v":"2350 MAINS RENEWAL - PRESSURE INCREASE BLOCK - Collingwood"},null,0,0,0,0,0]
[null,{"$f":"IF(ISBLANK(dms_E2_Projects_10),\"\",dms_E2_Projects_10)","v":"2350 MAINS RENEWAL - PRESSURE INCREASE BLOCK - East Melbourne"},null,0,0,0,0,0]
[null,{"$f":"IF(ISBLANK(dms_E2_Projects_11),\"\",dms_E2_Projects_11)","v":"2350 MAINS RENEWAL - PRESSURE INCREASE BLOCK - East Preston"},null,0,0,0,0,138]
[null,{"$f":"IF(ISBLANK(dms_E2_Projects_12),\"\",dms_E2_Projects_12)","v":"2350 MAINS RENEWAL - PRESSURE INCREASE BLOCK - East Richmond"},null,0,0,0,0,0]
[null,{"$f":"IF(ISBLANK(dms_E2_Projects_13),\"\",dms_E2_Projects_13)","v":"2350 MAINS RENEWAL - PRESSURE INCREASE BLOCK - Fitzroy"},null,0,0,0,0,0]
[null,{"$f":"IF(ISBLANK(dms_E2_Projects_14),\"\",dms_E2_Projects_14)","v":"2350 MAINS RENEWAL - PRESSURE INCREASE BLOCK - Fitzroy North"},null,0,0,0,0,0]
[null,{"$f":"IF(ISBLANK(dms_E2_Projects_15),\"\",dms_E2_Projects_15)","v":"2350 MAINS RENEWAL - PRESSURE INCREASE BLOCK - Heidelberg"},null,0,0,0,0,0]
[null,{"$f":"IF(ISBLANK(dms_E2_Projects_16),\"\",dms_E2_Projects_16)","v":"2350 MAINS RENEWAL - PRESSURE INCREASE BLOCK - Ivanhoe"},null,0,0,0,0,0]
[null,{"$f":"IF(ISBLANK(dms_E2_Projects_17),\"\",dms_E2_Projects_17)","v":"2350 MAINS RENEWAL - PRESSURE INCREASE BLOCK - Melbourne"},null,0,0,0,0,0]
[null,{"$f":"IF(ISBLANK(dms_E2_Projects_18),\"\",dms_E2_Projects_18)","v":"2350 MAINS RENEWAL - PRESSURE INCREASE BLOCK - Mornington"},null,0,0,0,0,0]
[null,{"$f":"IF(ISBLANK(dms_E2_Projects_19),\"\",dms_E2_Projects_19)","v":"2350 MAINS RENEWAL - PRESSURE INCREASE BLOCK - North Melbourne"},null,0,0,0,0,0]
[null,{"$f":"IF(ISBLANK(dms_E2_Projects_20),\"\",dms_E2_Projects_20)","v":"2350 MAINS RENEWAL - PRESSURE INCREASE BLOCK - Northcote"},null,0,0,0,0,0]
[null,{"$f":"IF(ISBLANK(dms_E2_Projects_21),\"\",dms_E2_Projects_21)","v":"2350 MAINS RENEWAL - PRESSURE INCREASE BLOCK - Pakenham"},null,0,0,0,0,0]
[null,{"$f":"IF(ISBLANK(dms_E2_Projects_22),\"\",dms_E2_Projects_22)","v":"2350 MAINS RENEWAL - PRESSURE INCREASE BLOCK - Parkville"},null,0,0,0,0,0]
[null,{"$f":"IF(ISBLANK(dms_E2_Projects_23),\"\",dms_E2_Projects_23)","v":"2350 MAINS RENEWAL - PRESSURE INCREASE BLOCK - Preston"},null,0,0,0,0,0]
[null,{"$f":"IF(ISBLANK(dms_E2_Projects_24),\"\",dms_E2_Projects_24)","v":"2350 MAINS RENEWAL - PRESSURE INCREASE BLOCK - Richmond"},null,0,0,0,0,0]
[null,{"$f":"IF(ISBLANK(dms_E2_Projects_25),\"\",dms_E2_Projects_25)","v":"2350 MAINS RENEWAL - PRESSURE INCREASE BLOCK - Shepparton"},null,0,0,0,0,0]
[null,{"$f":"IF(ISBLANK(dms_E2_Projects_25),\"\",dms_E2_Projects_26)","v":"2350 MAINS RENEWAL - PRESSURE INCREASE BLOCK - Thomastown"},null,0,0,0,0,0]
[null,{"$f":"IF(ISBLANK(dms_E2_Projects_27),\"\",dms_E2_Projects_27)","v":"2350 MAINS RENEWAL - PRESSURE INCREASE BLOCK - Thornbury"},null,0,0,0,0,0]
[null,{"$f":"IF(ISBLANK(dms_E2_Projects_28),\"\",dms_E2_Projects_28)","v":"2350 MAINS RENEWAL - PRESSURE INCREASE BLOCK - Traralgon"},null,0,0,0,0,0]
[null,{"$f":"IF(ISBLANK(dms_E2_Projects_29),\"\",dms_E2_Projects_29)","v":"2350 MAINS RENEWAL - PRESSURE INCREASE BLOCK - West Melbourne"},null,0,0,0,0,0]
[null,{"$f":"IF(ISBLANK(dms_E2_Projects_30),\"\",dms_E2_Projects_30)","v":"2350 MAINS RENEWAL - PRESSURE INCREASE BLOCK - West Preston"},null,0,0,0,0,0]
[null,{"$f":"IF(ISBLANK(dms_E2_Projects_31),\"\",dms_E2_Projects_31)","v":"2356 MAINS RENEWAL - PRESSURE INCREASE CBD BLOCK"},null,0,0,0,0,0]
[null,{"$f":"IF(ISBLANK(dms_E2_Projects_32),\"\",dms_E2_Projects_32)","v":"2358 MAINS RENEWAL - PRESSURE INCREASE CBD TRUNK"},null,0,0,0,0,0]
[null,{"$f":"IF(ISBLANK(dms_E2_Projects_33),\"\",dms_E2_Projects_33)","v":"2359 MAINS RENEWAL - PRESSURE INCREASE CBD TRUNK DECOMMISSIONED"},null,0,0,0,0,0]
[null,{"$f":"IF(ISBLANK(dms_E2_Projects_34),\"\",dms_E2_Projects_34)","v":"2354 MAINS RENEWAL - PRESSURE INCREASE TRUNK"},null,0,0,0,0,0]
[null,{"$f":"IF(ISBLANK(dms_E2_Projects_35),\"\",dms_E2_Projects_35)","v":"2365 MAINS RENEWAL - PRESSURE INCREASE TRUNK DECOMMISSIONED"},null,0,0,0,0,0]
[null,{"$f":"IF(ISBLANK(dms_E2_Projects_36),\"\",dms_E2_Projects_36)","v":"2357 MAINS RENEWAL - PRESSURE INCREASE CBD BLOCK DECOMMISSIONED"},null,0,0,0,0,0]
[null,{"$f":"IF(ISBLANK(dms_E2_Projects_37),\"\",dms_E2_Projects_37)","v":""}]
[null,{"$f":"IF(ISBLANK(dms_E2_Projects_38),\"\",dms_E2_Projects_38)","v":""}]
[null,{"$f":"IF(ISBLANK(dms_E2_Projects_39),\"\",dms_E2_Projects_39)","v":""}]
[null,{"$f":"IF(ISBLANK(dms_E2_Projects_40),\"\",dms_E2_Projects_40)","v":""}]
[null,{"$f":"IF(ISBLANK(dms_E2_Projects_41),\"\",dms_E2_Projects_41)","v":""}]
[null,{"$f":"IF(ISBLANK(dms_E2_Projects_42),\"\",dms_E2_Projects_42)","v":""}]
[null,{"$f":"IF(ISBLANK(dms_E2_Projects_43),\"\",dms_E2_Projects_43)","v":""}]
[null,{"$f":"IF(ISBLANK(dms_E2_Projects_44),\"\",dms_E2_Projects_44)","v":""}]
[null,{"$f":"IF(ISBLANK(dms_E2_Projects_45),\"\",dms_E2_Projects_45)","v":""}]
[null,{"$f":"IF(ISBLANK(dms_E2_Projects_46),\"\",dms_E2_Projects_46)","v":""}]
[null,{"$f":"IF(ISBLANK(dms_E2_Projects_47),\"\",dms_E2_Projects_47)","v":""}]
[null,{"$f":"IF(ISBLANK(dms_E2_Projects_48),\"\",dms_E2_Projects_48)","v":""}]
[null,{"$f":"IF(ISBLANK(dms_E2_Projects_49),\"\",dms_E2_Projects_49)","v":""}]
[null,{"$f":"IF(ISBLANK(dms_E2_Projects_50),\"\",dms_E2_Projects_50)","v":""}]
[null,"Aggregate of other projects with total expenditure of less than $500,000"]
[null,null,"Total",{"$f":"SUM(D659:D709)","v":0},{"$f":"SUM(E659:E709)","v":0},{"$f":"SUM(F659:F709)","v":0},{"$f":"SUM(G659:G709)","v":0},{"$f":"SUM(H659:H709)","v":138}]
[]
[null,"F. HIGH PRESSURE TO HIGH PRESSURE"]
[null,{"$f":"IF(ISBLANK(dms_E2_Projects_01),\"\",dms_E2_Projects_01)","v":"2350 MAINS RENEWAL - PRESSURE INCREASE BLOCK - Abbortsford"},null,0,0,0,0,0]
[null,{"$f":"IF(ISBLANK(dms_E2_Projects_02),\"\",dms_E2_Projects_02)","v":"2350 MAINS RENEWAL - PRESSURE INCREASE BLOCK - Alphington"},null,680,0,0,0,0]
[null,{"$f":"IF(ISBLANK(dms_E2_Projects_03),\"\",dms_E2_Projects_03)","v":"2350 MAINS RENEWAL - PRESSURE INCREASE BLOCK - Benalla"},null,0,0,0,0,0]
[null,{"$f":"IF(ISBLANK(dms_E2_Projects_04),\"\",dms_E2_Projects_04)","v":"2350 MAINS RENEWAL - PRESSURE INCREASE BLOCK - Brunswick"},null,0,0,0,0,0]
[null,{"$f":"IF(ISBLANK(dms_E2_Projects_05),\"\",dms_E2_Projects_05)","v":"2350 MAINS RENEWAL - PRESSURE INCREASE BLOCK - Brunswick West"},null,0,0,0,0,0]
[null,{"$f":"IF(ISBLANK(dms_E2_Projects_06),\"\",dms_E2_Projects_06)","v":"2350 MAINS RENEWAL - PRESSURE INCREASE BLOCK - Carlton"},null,0,0,0,0,0]
[null,{"$f":"IF(ISBLANK(dms_E2_Projects_07),\"\",dms_E2_Projects_07)","v":"2350 MAINS RENEWAL - PRESSURE INCREASE BLOCK - Carlton North"},null,0,0,0,0,0]
[null,{"$f":"IF(ISBLANK(dms_E2_Projects_08),\"\",dms_E2_Projects_08)","v":"2350 MAINS RENEWAL - PRESSURE INCREASE BLOCK - Clifton Hill"},null,0,0,0,0,0]
[null,{"$f":"IF(ISBLANK(dms_E2_Projects_09),\"\",dms_E2_Projects_09)","v":"2350 MAINS RENEWAL - PRESSURE INCREASE BLOCK - Collingwood"},null,0,0,0,0,0]
[null,{"$f":"IF(ISBLANK(dms_E2_Projects_10),\"\",dms_E2_Projects_10)","v":"2350 MAINS RENEWAL - PRESSURE INCREASE BLOCK - East Melbourne"},null,0,0,0,0,0]
[null,{"$f":"IF(ISBLANK(dms_E2_Projects_11),\"\",dms_E2_Projects_11)","v":"2350 MAINS RENEWAL - PRESSURE INCREASE BLOCK - East Preston"},null,0,0,0,0,0]
[null,{"$f":"IF(ISBLANK(dms_E2_Projects_12),\"\",dms_E2_Projects_12)","v":"2350 MAINS RENEWAL - PRESSURE INCREASE BLOCK - East Richmond"},null,0,0,0,0,0]
[null,{"$f":"IF(ISBLANK(dms_E2_Projects_13),\"\",dms_E2_Projects_13)","v":"2350 MAINS RENEWAL - PRESSURE INCREASE BLOCK - Fitzroy"},null,0,0,0,0,0]
[null,{"$f":"IF(ISBLANK(dms_E2_Projects_14),\"\",dms_E2_Projects_14)","v":"2350 MAINS RENEWAL - PRESSURE INCREASE BLOCK - Fitzroy North"},null,0,0,0,0,0]
[null,{"$f":"IF(ISBLANK(dms_E2_Projects_15),\"\",dms_E2_Projects_15)","v":"2350 MAINS RENEWAL - PRESSURE INCREASE BLOCK - Heidelberg"},null,0,0,0,0,0]
[null,{"$f":"IF(ISBLANK(dms_E2_Projects_16),\"\",dms_E2_Projects_16)","v":"2350 MAINS RENEWAL - PRESSURE INCREASE BLOCK - Ivanhoe"},null,0,0,0,0,0]
[null,{"$f":"IF(ISBLANK(dms_E2_Projects_17),\"\",dms_E2_Projects_17)","v":"2350 MAINS RENEWAL - PRESSURE INCREASE BLOCK - Melbourne"},null,235,1227,0,0,0]
[null,{"$f":"IF(ISBLANK(dms_E2_Projects_18),\"\",dms_E2_Projects_18)","v":"2350 MAINS RENEWAL - PRESSURE INCREASE BLOCK - Mornington"},null,0,0,0,0,0]
[null,{"$f":"IF(ISBLANK(dms_E2_Projects_19),\"\",dms_E2_Projects_19)","v":"2350 MAINS RENEWAL - PRESSURE INCREASE BLOCK - North Melbourne"},null,0,0,0,0,0]
[null,{"$f":"IF(ISBLANK(dms_E2_Projects_20),\"\",dms_E2_Projects_20)","v":"2350 MAINS RENEWAL - PRESSURE INCREASE BLOCK - Northcote"},null,0,0,0,0,0]
[null,{"$f":"IF(ISBLANK(dms_E2_Projects_21),\"\",dms_E2_Projects_21)","v":"2350 MAINS RENEWAL - PRESSURE INCREASE BLOCK - Pakenham"},null,0,150,0,0,0]
[null,{"$f":"IF(ISBLANK(dms_E2_Projects_22),\"\",dms_E2_Projects_22)","v":"2350 MAINS RENEWAL - PRESSURE INCREASE BLOCK - Parkville"},null,0,298,0,0,0]
[null,{"$f":"IF(ISBLANK(dms_E2_Projects_23),\"\",dms_E2_Projects_23)","v":"2350 MAINS RENEWAL - PRESSURE INCREASE BLOCK - Preston"},null,0,0,0,0,0]
[null,{"$f":"IF(ISBLANK(dms_E2_Projects_24),\"\",dms_E2_Projects_24)","v":"2350 MAINS RENEWAL - PRESSURE INCREASE BLOCK - Richmond"},null,0,0,0,0,0]
[null,{"$f":"IF(ISBLANK(dms_E2_Projects_25),\"\",dms_E2_Projects_25)","v":"2350 MAINS RENEWAL - PRESSURE INCREASE BLOCK - Shepparton"},null,0,0,0,0,0]
[null,{"$f":"IF(ISBLANK(dms_E2_Projects_25),\"\",dms_E2_Projects_26)","v":"2350 MAINS RENEWAL - PRESSURE INCREASE BLOCK - Thomastown"},null,0,0,0,0,0]
[null,{"$f":"IF(ISBLANK(dms_E2_Projects_27),\"\",dms_E2_Projects_27)","v":"2350 MAINS RENEWAL - PRESSURE INCREASE BLOCK - Thornbury"},null,0,0,0,0,0]
[null,{"$f":"IF(ISBLANK(dms_E2_Projects_28),\"\",dms_E2_Projects_28)","v":"2350 MAINS RENEWAL - PRESSURE INCREASE BLOCK - Traralgon"},null,0,0,0,0,0]
[null,{"$f":"IF(ISBLANK(dms_E2_Projects_29),\"\",dms_E2_Projects_29)","v":"2350 MAINS RENEWAL - PRESSURE INCREASE BLOCK - West Melbourne"},null,0,0,0,0,0]
[null,{"$f":"IF(ISBLANK(dms_E2_Projects_30),\"\",dms_E2_Projects_30)","v":"2350 MAINS RENEWAL - PRESSURE INCREASE BLOCK - West Preston"},null,0,0,0,0,0]
[null,{"$f":"IF(ISBLANK(dms_E2_Projects_31),\"\",dms_E2_Projects_31)","v":"2356 MAINS RENEWAL - PRESSURE INCREASE CBD BLOCK"},null,0,0,0,0,0]
[null,{"$f":"IF(ISBLANK(dms_E2_Projects_32),\"\",dms_E2_Projects_32)","v":"2358 MAINS RENEWAL - PRESSURE INCREASE CBD TRUNK"},null,0,0,0,0,0]
[null,{"$f":"IF(ISBLANK(dms_E2_Projects_33),\"\",dms_E2_Projects_33)","v":"2359 MAINS RENEWAL - PRESSURE INCREASE CBD TRUNK DECOMMISSIONED"},null,0,0,0,0,0]
[null,{"$f":"IF(ISBLANK(dms_E2_Projects_34),\"\",dms_E2_Projects_34)","v":"2354 MAINS RENEWAL - PRESSURE INCREASE TRUNK"},null,0,0,0,0,0]
[null,{"$f":"IF(ISBLANK(dms_E2_Projects_35),\"\",dms_E2_Projects_35)","v":"2365 MAINS RENEWAL - PRESSURE INCREASE TRUNK DECOMMISSIONED"},null,0,0,0,0,0]
[null,{"$f":"IF(ISBLANK(dms_E2_Projects_36),\"\",dms_E2_Projects_36)","v":"2357 MAINS RENEWAL - PRESSURE INCREASE CBD BLOCK DECOMMISSIONED"},null,0,0,0,0,0]
[null,{"$f":"IF(ISBLANK(dms_E2_Projects_37),\"\",dms_E2_Projects_37)","v":""}]
[null,{"$f":"IF(ISBLANK(dms_E2_Projects_38),\"\",dms_E2_Projects_38)","v":""}]
[null,{"$f":"IF(ISBLANK(dms_E2_Projects_39),\"\",dms_E2_Projects_39)","v":""}]
[null,{"$f":"IF(ISBLANK(dms_E2_Projects_40),\"\",dms_E2_Projects_40)","v":""}]
[null,{"$f":"IF(ISBLANK(dms_E2_Projects_41),\"\",dms_E2_Projects_41)","v":""}]
[null,{"$f":"IF(ISBLANK(dms_E2_Projects_42),\"\",dms_E2_Projects_42)","v":""}]
[null,{"$f":"IF(ISBLANK(dms_E2_Projects_43),\"\",dms_E2_Projects_43)","v":""}]
[null,{"$f":"IF(ISBLANK(dms_E2_Projects_44),\"\",dms_E2_Projects_44)","v":""}]
[null,{"$f":"IF(ISBLANK(dms_E2_Projects_45),\"\",dms_E2_Projects_45)","v":""}]
[null,{"$f":"IF(ISBLANK(dms_E2_Projects_46),\"\",dms_E2_Projects_46)","v":""}]
[null,{"$f":"IF(ISBLANK(dms_E2_Projects_47),\"\",dms_E2_Projects_47)","v":""}]
[null,{"$f":"IF(ISBLANK(dms_E2_Projects_48),\"\",dms_E2_Projects_48)","v":""}]
[null,{"$f":"IF(ISBLANK(dms_E2_Projects_49),\"\",dms_E2_Projects_49)","v":""}]
[null,{"$f":"IF(ISBLANK(dms_E2_Projects_50),\"\",dms_E2_Projects_50)","v":""}]
[null,"Aggregate of other projects with total expenditure of less than $500,000",null,10202,3502,0,0,0]
[null,null,"Total",{"$f":"SUM(D713:D763)","v":11117},{"$f":"SUM(E713:E763)","v":5177},{"$f":"SUM(F713:F763)","v":0},{"$f":"SUM(G713:G763)","v":0},{"$f":"SUM(H713:H763)","v":0}]
[]
[]
[null,"E2.2.2 - REACTIVE - BY CONNECTION TYPE"]
[null,null,null,"VOLUMES"]
[null,null,null,"0s"]
[null,null,null,{"$f":"dms_y1","v":2017},{"$f":"dms_y2","v":2018},{"$f":"dms_y3","v":2019},{"$f":"dms_y4","v":2020},{"$f":"dms_y5","v":2021}]
[null,"A. LOW PRESSURE TO HIGH PRESSURE"]
[null,"Mains","Length of mains replaced (km)",0,21,78,15,19]
[null,"Services","Number of services replaced",29,14,176,128,119]
[null,null,"Total",{"$f":"SUM(D772:D773)","v":29},{"$f":"SUM(E772:E773)","v":35},{"$f":"SUM(F772:F773)","v":254},{"$f":"SUM(G772:G773)","v":143},{"$f":"SUM(H772:H773)","v":138}]
[null,"B. LOW PRESSURE TO MEDIUM PRESSURE"]
[null,"Mains","Length of mains replaced (km)"]
[null,"Services","Number of services replaced"]
[null,null,"Total",{"$f":"SUM(D776:D777)","v":0},{"$f":"SUM(E776:E777)","v":0},{"$f":"SUM(F776:F777)","v":0},{"$f":"SUM(G776:G777)","v":0},{"$f":"SUM(H776:H777)","v":0}]
[null,"C. LOW PRESSURE TO LOW PRESSURE"]
[null,"Mains","Length of mains replaced (km)"]
[null,"Services","Number of services replaced"]
[null,null,"Total",{"$f":"SUM(D780:D781)","v":0},{"$f":"SUM(E780:E781)","v":0},{"$f":"SUM(F780:F781)","v":0},{"$f":"SUM(G780:G781)","v":0},{"$f":"SUM(H780:H781)","v":0}]
[null,"D. MEDIUM PRESSURE TO MEDIUM PRESSURE"]
[null,"Mains","Length of mains replaced (km)"]
[null,"Services","Number of services replaced"]
[null,null,"Total",{"$f":"SUM(D784:D785)","v":0},{"$f":"SUM(E784:E785)","v":0},{"$f":"SUM(F784:F785)","v":0},{"$f":"SUM(G784:G785)","v":0},{"$f":"SUM(H784:H785)","v":0}]
[null,"E. MEDIUM PRESSURE TO HIGH PRESSURE"]
[null,"Mains","Length of mains replaced (km)"]
[null,"Services","Number of services replaced"]
[null,null,"Total",{"$f":"SUM(D788:D789)","v":0},{"$f":"SUM(E788:E789)","v":0},{"$f":"SUM(F788:F789)","v":0},{"$f":"SUM(G788:G789)","v":0},{"$f":"SUM(H788:H789)","v":0}]
[null,"F. HIGH PRESSURE TO HIGH PRESSURE"]
[null,"Mains","Length of mains replaced (km)",0,386,2597,244,177]
[null,"Services","Number of services replaced",7054,3542,4897,5934,4568]
[null,null,"Total",{"$f":"SUM(D792:D793)","v":7054},{"$f":"SUM(E792:E793)","v":3928},{"$f":"SUM(F792:F793)","v":7494},{"$f":"SUM(G792:G793)","v":6178},{"$f":"SUM(H792:H793)","v":4745}]

{"sheet":"E3. Mains Augex","index":8,"n_rows":746,"n_cols":7,"rows_kept":746,"cut":false,"hidden":false,"merged":[]}
[null,{"$f":"INDEX(dms_Worksheet_List,MATCH(dms_Model,dms_Model_List))","v":"HISTORICAL ANNUAL REPORTING"}]
[null,{"$f":"dms_TradingName","v":"AGN (Albury and Victoria)"}]
[null,{"$f":"dms_Header_Span","v":"2017 to 2021"}]
[null,"E3. MAINS AUGMENTATION"]
[]
[]
[null,"Please list all projects here:"]
[null,"3055 MAJOR PROJECTS - PLENTY VALLEY NETWORK AUGMENTATION"]
[null,"3093 MAJOR PROJECTS - DANDENONG TO CRIB POINT DUPLICATION"]
[null,"3049 MAJOR PROJECTS - CRANBOURNE EAST"]
[null,"3106 MAJOR PROJECTS - H07 CRANBOURNE HP AUGMENTATION"]
[null,"5"]
[null,"6"]
[null,"7"]
[null,"8"]
[null,"9"]
[null,"10"]
[null,"11"]
[null,"12"]
[null,"13"]
[null,"14"]
[null,"15"]
[null,"16"]
[null,"17"]
[null,"18"]
[null,"19"]
[null,"20"]
[null,"21"]
[null,"22"]
[null,"23"]
[null,"24"]
[null,"25"]
[null,"26"]
[null,"27"]
[null,"28"]
[null,"29"]
[null,"30"]
[null,"31"]
[null,"32"]
[null,"33"]
[null,"34"]
[null,"35"]
[null,"36"]
[null,"37"]
[null,"38"]
[null,"39"]
[null,"40"]
[null,"41"]
[null,"42"]
[null,"43"]
[null,"44"]
[null,"45"]
[null,"46"]
[null,"47"]
[null,"48"]
[null,"49"]
[null,"50"]
[]
[]
[null,"E3.1 - CAPEX BY PROJECT"]
[null,"A. DIRECT INTERNAL LABOUR EXPENDITURE"]
[null,null,"EXPENDITURE"]
[null,null,"$0's, Nominal"]
[null,null,{"$f":"dms_y1","v":2017},{"$f":"dms_y2","v":2018},{"$f":"dms_y3","v":2019},{"$f":"dms_y4","v":2020},{"$f":"dms_y5","v":2021}]
[null,{"$f":"IF(ISBLANK(dms_E3_Projects_01),\"\",dms_E3_Projects_01)","v":"3055 MAJOR PROJECTS - PLENTY VALLEY NETWORK AUGMENTATION"}]
[null,{"$f":"IF(ISBLANK(dms_E3_Projects_02),\"\",dms_E3_Projects_02)","v":"3093 MAJOR PROJECTS - DANDENONG TO CRIB POINT DUPLICATION"}]
[null,{"$f":"IF(ISBLANK(dms_E3_Projects_03),\"\",dms_E3_Projects_03)","v":"3049 MAJOR PROJECTS - CRANBOURNE EAST"}]
[null,{"$f":"IF(ISBLANK(dms_E3_Projects_04),\"\",dms_E3_Projects_04)","v":"3106 MAJOR PROJECTS - H07 CRANBOURNE HP AUGMENTATION"}]
[null,{"$f":"IF(ISBLANK(dms_E3_Projects_05),\"\",dms_E3_Projects_05)","v":"5"}]
[null,{"$f":"IF(ISBLANK(dms_E3_Projects_06),\"\",dms_E3_Projects_06)","v":"6"}]
[null,{"$f":"IF(ISBLANK(dms_E3_Projects_07),\"\",dms_E3_Projects_07)","v":"7"}]
[null,{"$f":"IF(ISBLANK(dms_E3_Projects_08),\"\",dms_E3_Projects_08)","v":"8"}]
[null,{"$f":"IF(ISBLANK(dms_E3_Projects_09),\"\",dms_E3_Projects_09)","v":"9"}]
[null,{"$f":"IF(ISBLANK(dms_E3_Projects_10),\"\",dms_E3_Projects_10)","v":"10"}]
[null,{"$f":"IF(ISBLANK(dms_E3_Projects_11),\"\",dms_E3_Projects_11)","v":"11"}]
[null,{"$f":"IF(ISBLANK(dms_E3_Projects_12),\"\",dms_E3_Projects_12)","v":"12"}]
[null,{"$f":"IF(ISBLANK(dms_E3_Projects_13),\"\",dms_E3_Projects_13)","v":"13"}]
[null,{"$f":"IF(ISBLANK(dms_E3_Projects_14),\"\",dms_E3_Projects_14)","v":"14"}]
[null,{"$f":"IF(ISBLANK(dms_E3_Projects_15),\"\",dms_E3_Projects_15)","v":"15"}]
[null,{"$f":"IF(ISBLANK(dms_E3_Projects_16),\"\",dms_E3_Projects_16)","v":"16"}]
[null,{"$f":"IF(ISBLANK(dms_E3_Projects_17),\"\",dms_E3_Projects_17)","v":"17"}]
[null,{"$f":"IF(ISBLANK(dms_E3_Projects_18),\"\",dms_E3_Projects_18)","v":"18"}]
[null,{"$f":"IF(ISBLANK(dms_E3_Projects_19),\"\",dms_E3_Projects_19)","v":"19"}]
[null,{"$f":"IF(ISBLANK(dms_E3_Projects_20),\"\",dms_E3_Projects_20)","v":"20"}]
[null,{"$f":"IF(ISBLANK(dms_E3_Projects_21),\"\",dms_E3_Projects_21)","v":"21"}]
[null,{"$f":"IF(ISBLANK(dms_E3_Projects_22),\"\",dms_E3_Projects_22)","v":"22"}]
[null,{"$f":"IF(ISBLANK(dms_E3_Projects_23),\"\",dms_E3_Projects_23)","v":"23"}]
[null,{"$f":"IF(ISBLANK(dms_E3_Projects_24),\"\",dms_E3_Projects_24)","v":"24"}]
[null,{"$f":"IF(ISBLANK(dms_E3_Projects_25),\"\",dms_E3_Projects_25)","v":"25"}]
[null,{"$f":"IF(ISBLANK(dms_E3_Projects_25),\"\",dms_E3_Projects_26)","v":"26"}]
[null,{"$f":"IF(ISBLANK(dms_E3_Projects_27),\"\",dms_E3_Projects_27)","v":"27"}]
[null,{"$f":"IF(ISBLANK(dms_E3_Projects_28),\"\",dms_E3_Projects_28)","v":"28"}]
[null,{"$f":"IF(ISBLANK(dms_E3_Projects_29),\"\",dms_E3_Projects_29)","v":"29"}]
[null,{"$f":"IF(ISBLANK(dms_E3_Projects_30),\"\",dms_E3_Projects_30)","v":"30"}]
[null,{"$f":"IF(ISBLANK(dms_E3_Projects_31),\"\",dms_E3_Projects_31)","v":"31"}]
[null,{"$f":"IF(ISBLANK(dms_E3_Projects_32),\"\",dms_E3_Projects_32)","v":"32"}]
[null,{"$f":"IF(ISBLANK(dms_E3_Projects_33),\"\",dms_E3_Projects_33)","v":"33"}]
[null,{"$f":"IF(ISBLANK(dms_E3_Projects_34),\"\",dms_E3_Projects_34)","v":"34"}]
[null,{"$f":"IF(ISBLANK(dms_E3_Projects_35),\"\",dms_E3_Projects_35)","v":"35"}]
[null,{"$f":"IF(ISBLANK(dms_E3_Projects_36),\"\",dms_E3_Projects_36)","v":"36"}]
[null,{"$f":"IF(ISBLANK(dms_E3_Projects_37),\"\",dms_E3_Projects_37)","v":"37"}]
[null,{"$f":"IF(ISBLANK(dms_E3_Projects_38),\"\",dms_E3_Projects_38)","v":"38"}]
[null,{"$f":"IF(ISBLANK(dms_E3_Projects_39),\"\",dms_E3_Projects_39)","v":"39"}]
[null,{"$f":"IF(ISBLANK(dms_E3_Projects_40),\"\",dms_E3_Projects_40)","v":"40"}]
[null,{"$f":"IF(ISBLANK(dms_E3_Projects_41),\"\",dms_E3_Projects_41)","v":"41"}]
[null,{"$f":"IF(ISBLANK(dms_E3_Projects_42),\"\",dms_E3_Projects_42)","v":"42"}]
[null,{"$f":"IF(ISBLANK(dms_E3_Projects_43),\"\",dms_E3_Projects_43)","v":"43"}]
[null,{"$f":"IF(ISBLANK(dms_E3_Projects_44),\"\",dms_E3_Projects_44)","v":"44"}]
[null,{"$f":"IF(ISBLANK(dms_E3_Projects_45),\"\",dms_E3_Projects_45)","v":"45"}]
[null,{"$f":"IF(ISBLANK(dms_E3_Projects_46),\"\",dms_E3_Projects_46)","v":"46"}]
[null,{"$f":"IF(ISBLANK(dms_E3_Projects_47),\"\",dms_E3_Projects_47)","v":"47"}]
[null,{"$f":"IF(ISBLANK(dms_E3_Projects_48),\"\",dms_E3_Projects_48)","v":"48"}]
[null,{"$f":"IF(ISBLANK(dms_E3_Projects_49),\"\",dms_E3_Projects_49)","v":"49"}]
[null,{"$f":"IF(ISBLANK(dms_E3_Projects_50),\"\",dms_E3_Projects_50)","v":"50"}]
[null,"Aggregate of other projects with total expenditure of less than $500,000"]
[null,"Total",{"$f":"SUM(C65:C115)","v":0},{"$f":"SUM(D65:D115)","v":0},{"$f":"SUM(E65:E115)","v":0},{"$f":"SUM(F65:F115)","v":0},{"$f":"SUM(G65:G115)","v":0}]
[]
[null,"B. DIRECT CONTRACTOR EXPENDITURE"]
[null,null,"EXPENDITURE"]
[null,null,"$0's, Nominal"]
[null,null,{"$f":"dms_y1","v":2017},{"$f":"dms_y2","v":2018},{"$f":"dms_y3","v":2019},{"$f":"dms_y4","v":2020},{"$f":"dms_y5","v":2021}]
[null,{"$f":"IF(ISBLANK(dms_E3_Projects_01),\"\",dms_E3_Projects_01)","v":"3055 MAJOR PROJECTS - PLENTY VALLEY NETWORK AUGMENTATION"}]
[null,{"$f":"IF(ISBLANK(dms_E3_Projects_02),\"\",dms_E3_Projects_02)","v":"3093 MAJOR PROJECTS - DANDENONG TO CRIB POINT DUPLICATION"}]
[null,{"$f":"IF(ISBLANK(dms_E3_Projects_03),\"\",dms_E3_Projects_03)","v":"3049 MAJOR PROJECTS - CRANBOURNE EAST"}]
[null,{"$f":"IF(ISBLANK(dms_E3_Projects_04),\"\",dms_E3_Projects_04)","v":"3106 MAJOR PROJECTS - H07 CRANBOURNE HP AUGMENTATION"}]
[null,{"$f":"IF(ISBLANK(dms_E3_Projects_05),\"\",dms_E3_Projects_05)","v":"5"}]
[null,{"$f":"IF(ISBLANK(dms_E3_Projects_06),\"\",dms_E3_Projects_06)","v":"6"}]
[null,{"$f":"IF(ISBLANK(dms_E3_Projects_07),\"\",dms_E3_Projects_07)","v":"7"}]
[null,{"$f":"IF(ISBLANK(dms_E3_Projects_08),\"\",dms_E3_Projects_08)","v":"8"}]
[null,{"$f":"IF(ISBLANK(dms_E3_Projects_09),\"\",dms_E3_Projects_09)","v":"9"}]
[null,{"$f":"IF(ISBLANK(dms_E3_Projects_10),\"\",dms_E3_Projects_10)","v":"10"}]
[null,{"$f":"IF(ISBLANK(dms_E3_Projects_11),\"\",dms_E3_Projects_11)","v":"11"}]
[null,{"$f":"IF(ISBLANK(dms_E3_Projects_12),\"\",dms_E3_Projects_12)","v":"12"}]
[null,{"$f":"IF(ISBLANK(dms_E3_Projects_13),\"\",dms_E3_Projects_13)","v":"13"}]
[null,{"$f":"IF(ISBLANK(dms_E3_Projects_14),\"\",dms_E3_Projects_14)","v":"14"}]
[null,{"$f":"IF(ISBLANK(dms_E3_Projects_15),\"\",dms_E3_Projects_15)","v":"15"}]
[null,{"$f":"IF(ISBLANK(dms_E3_Projects_16),\"\",dms_E3_Projects_16)","v":"16"}]
[null,{"$f":"IF(ISBLANK(dms_E3_Projects_17),\"\",dms_E3_Projects_17)","v":"17"}]
[null,{"$f":"IF(ISBLANK(dms_E3_Projects_18),\"\",dms_E3_Projects_18)","v":"18"}]
[null,{"$f":"IF(ISBLANK(dms_E3_Projects_19),\"\",dms_E3_Projects_19)","v":"19"}]
[null,{"$f":"IF(ISBLANK(dms_E3_Projects_20),\"\",dms_E3_Projects_20)","v":"20"}]
[null,{"$f":"IF(ISBLANK(dms_E3_Projects_21),\"\",dms_E3_Projects_21)","v":"21"}]
[null,{"$f":"IF(ISBLANK(dms_E3_Projects_22),\"\",dms_E3_Projects_22)","v":"22"}]
[null,{"$f":"IF(ISBLANK(dms_E3_Projects_23),\"\",dms_E3_Projects_23)","v":"23"}]
[null,{"$f":"IF(ISBLANK(dms_E3_Projects_24),\"\",dms_E3_Projects_24)","v":"24"}]
[null,{"$f":"IF(ISBLANK(dms_E3_Projects_25),\"\",dms_E3_Projects_25)","v":"25"}]
[null,{"$f":"IF(ISBLANK(dms_E3_Projects_25),\"\",dms_E3_Projects_26)","v":"26"}]
[null,{"$f":"IF(ISBLANK(dms_E3_Projects_27),\"\",dms_E3_Projects_27)","v":"27"}]
[null,{"$f":"IF(ISBLANK(dms_E3_Projects_28),\"\",dms_E3_Projects_28)","v":"28"}]
[null,{"$f":"IF(ISBLANK(dms_E3_Projects_29),\"\",dms_E3_Projects_29)","v":"29"}]
[null,{"$f":"IF(ISBLANK(dms_E3_Projects_30),\"\",dms_E3_Projects_30)","v":"30"}]
[null,{"$f":"IF(ISBLANK(dms_E3_Projects_31),\"\",dms_E3_Projects_31)","v":"31"}]
[null,{"$f":"IF(ISBLANK(dms_E3_Projects_32),\"\",dms_E3_Projects_32)","v":"32"}]
[null,{"$f":"IF(ISBLANK(dms_E3_Projects_33),\"\",dms_E3_Projects_33)","v":"33"}]
[null,{"$f":"IF(ISBLANK(dms_E3_Projects_34),\"\",dms_E3_Projects_34)","v":"34"}]
[null,{"$f":"IF(ISBLANK(dms_E3_Projects_35),\"\",dms_E3_Projects_35)","v":"35"}]
[null,{"$f":"IF(ISBLANK(dms_E3_Projects_36),\"\",dms_E3_Projects_36)","v":"36"}]
[null,{"$f":"IF(ISBLANK(dms_E3_Projects_37),\"\",dms_E3_Projects_37)","v":"37"}]
[null,{"$f":"IF(ISBLANK(dms_E3_Projects_38),\"\",dms_E3_Projects_38)","v":"38"}]
[null,{"$f":"IF(ISBLANK(dms_E3_Projects_39),\"\",dms_E3_Projects_39)","v":"39"}]
[null,{"$f":"IF(ISBLANK(dms_E3_Projects_40),\"\",dms_E3_Projects_40)","v":"40"}]
[null,{"$f":"IF(ISBLANK(dms_E3_Projects_41),\"\",dms_E3_Projects_41)","v":"41"}]
[null,{"$f":"IF(ISBLANK(dms_E3_Projects_42),\"\",dms_E3_Projects_42)","v":"42"}]
[null,{"$f":"IF(ISBLANK(dms_E3_Projects_43),\"\",dms_E3_Projects_43)","v":"43"}]
[null,{"$f":"IF(ISBLANK(dms_E3_Projects_44),\"\",dms_E3_Projects_44)","v":"44"}]
[null,{"$f":"IF(ISBLANK(dms_E3_Projects_45),\"\",dms_E3_Projects_45)","v":"45"}]
[null,{"$f":"IF(ISBLANK(dms_E3_Projects_46),\"\",dms_E3_Projects_46)","v":"46"}]
[null,{"$f":"IF(ISBLANK(dms_E3_Projects_47),\"\",dms_E3_Projects_47)","v":"47"}]
[null,{"$f":"IF(ISBLANK(dms_E3_Projects_48),\"\",dms_E3_Projects_48)","v":"48"}]
[null,{"$f":"IF(ISBLANK(dms_E3_Projects_49),\"\",dms_E3_Projects_49)","v":"49"}]
[null,{"$f":"IF(ISBLANK(dms_E3_Projects_50),\"\",dms_E3_Projects_50)","v":"50"}]
[null,"Aggregate of other projects with total expenditure of less than $500,000"]
[null,"Total"]
[]
[null,"C. DIRECT MATERIAL EXPENDITURE"]
[null,null,"EXPENDITURE"]
[null,null,"$0's, Nominal"]
[null,null,{"$f":"dms_y1","v":2017},{"$f":"dms_y2","v":2018},{"$f":"dms_y3","v":2019},{"$f":"dms_y4","v":2020},{"$f":"dms_y5","v":2021}]
[null,{"$f":"IF(ISBLANK(dms_E3_Projects_01),\"\",dms_E3_Projects_01)","v":"3055 MAJOR PROJECTS - PLENTY VALLEY NETWORK AUGMENTATION"}]
[null,{"$f":"IF(ISBLANK(dms_E3_Projects_02),\"\",dms_E3_Projects_02)","v":"3093 MAJOR PROJECTS - DANDENONG TO CRIB POINT DUPLICATION"}]
[null,{"$f":"IF(ISBLANK(dms_E3_Projects_03),\"\",dms_E3_Projects_03)","v":"3049 MAJOR PROJECTS - CRANBOURNE EAST"}]
[null,{"$f":"IF(ISBLANK(dms_E3_Projects_04),\"\",dms_E3_Projects_04)","v":"3106 MAJOR PROJECTS - H07 CRANBOURNE HP AUGMENTATION"}]
[null,{"$f":"IF(ISBLANK(dms_E3_Projects_05),\"\",dms_E3_Projects_05)","v":"5"}]
[null,{"$f":"IF(ISBLANK(dms_E3_Projects_06),\"\",dms_E3_Projects_06)","v":"6"}]
[null,{"$f":"IF(ISBLANK(dms_E3_Projects_07),\"\",dms_E3_Projects_07)","v":"7"}]
[null,{"$f":"IF(ISBLANK(dms_E3_Projects_08),\"\",dms_E3_Projects_08)","v":"8"}]
[null,{"$f":"IF(ISBLANK(dms_E3_Projects_09),\"\",dms_E3_Projects_09)","v":"9"}]
[null,{"$f":"IF(ISBLANK(dms_E3_Projects_10),\"\",dms_E3_Projects_10)","v":"10"}]
[null,{"$f":"IF(ISBLANK(dms_E3_Projects_11),\"\",dms_E3_Projects_11)","v":"11"}]
[null,{"$f":"IF(ISBLANK(dms_E3_Projects_12),\"\",dms_E3_Projects_12)","v":"12"}]
[null,{"$f":"IF(ISBLANK(dms_E3_Projects_13),\"\",dms_E3_Projects_13)","v":"13"}]
[null,{"$f":"IF(ISBLANK(dms_E3_Projects_14),\"\",dms_E3_Projects_14)","v":"14"}]
[null,{"$f":"IF(ISBLANK(dms_E3_Projects_15),\"\",dms_E3_Projects_15)","v":"15"}]
[null,{"$f":"IF(ISBLANK(dms_E3_Projects_16),\"\",dms_E3_Projects_16)","v":"16"}]
[null,{"$f":"IF(ISBLANK(dms_E3_Projects_17),\"\",dms_E3_Projects_17)","v":"17"}]
[null,{"$f":"IF(ISBLANK(dms_E3_Projects_18),\"\",dms_E3_Projects_18)","v":"18"}]
[null,{"$f":"IF(ISBLANK(dms_E3_Projects_19),\"\",dms_E3_Projects_19)","v":"19"}]
[null,{"$f":"IF(ISBLANK(dms_E3_Projects_20),\"\",dms_E3_Projects_20)","v":"20"}]
[null,{"$f":"IF(ISBLANK(dms_E3_Projects_21),\"\",dms_E3_Projects_21)","v":"21"}]
[null,{"$f":"IF(ISBLANK(dms_E3_Projects_22),\"\",dms_E3_Projects_22)","v":"22"}]
[null,{"$f":"IF(ISBLANK(dms_E3_Projects_23),\"\",dms_E3_Projects_23)","v":"23"}]
[null,{"$f":"IF(ISBLANK(dms_E3_Projects_24),\"\",dms_E3_Projects_24)","v":"24"}]
[null,{"$f":"IF(ISBLANK(dms_E3_Projects_25),\"\",dms_E3_Projects_25)","v":"25"}]
[null,{"$f":"IF(ISBLANK(dms_E3_Projects_25),\"\",dms_E3_Projects_26)","v":"26"}]
[null,{"$f":"IF(ISBLANK(dms_E3_Projects_27),\"\",dms_E3_Projects_27)","v":"27"}]
[null,{"$f":"IF(ISBLANK(dms_E3_Projects_28),\"\",dms_E3_Projects_28)","v":"28"}]
[null,{"$f":"IF(ISBLANK(dms_E3_Projects_29),\"\",dms_E3_Projects_29)","v":"29"}]
[null,{"$f":"IF(ISBLANK(dms_E3_Projects_30),\"\",dms_E3_Projects_30)","v":"30"}]
[null,{"$f":"IF(ISBLANK(dms_E3_Projects_31),\"\",dms_E3_Projects_31)","v":"31"}]
[null,{"$f":"IF(ISBLANK(dms_E3_Projects_32),\"\",dms_E3_Projects_32)","v":"32"}]
[null,{"$f":"IF(ISBLANK(dms_E3_Projects_33),\"\",dms_E3_Projects_33)","v":"33"}]
[null,{"$f":"IF(ISBLANK(dms_E3_Projects_34),\"\",dms_E3_Projects_34)","v":"34"}]
[null,{"$f":"IF(ISBLANK(dms_E3_Projects_35),\"\",dms_E3_Projects_35)","v":"35"}]
[null,{"$f":"IF(ISBLANK(dms_E3_Projects_36),\"\",dms_E3_Projects_36)","v":"36"}]
[null,{"$f":"IF(ISBLANK(dms_E3_Projects_37),\"\",dms_E3_Projects_37)","v":"37"}]
[null,{"$f":"IF(ISBLANK(dms_E3_Projects_38),\"\",dms_E3_Projects_38)","v":"38"}]
[null,{"$f":"IF(ISBLANK(dms_E3_Projects_39),\"\",dms_E3_Projects_39)","v":"39"}]
[null,{"$f":"IF(ISBLANK(dms_E3_Projects_40),\"\",dms_E3_Projects_40)","v":"40"}]
[null,{"$f":"IF(ISBLANK(dms_E3_Projects_41),\"\",dms_E3_Projects_41)","v":"41"}]
[null,{"$f":"IF(ISBLANK(dms_E3_Projects_42),\"\",dms_E3_Projects_42)","v":"42"}]
[null,{"$f":"IF(ISBLANK(dms_E3_Projects_43),\"\",dms_E3_Projects_43)","v":"43"}]
[null,{"$f":"IF(ISBLANK(dms_E3_Projects_44),\"\",dms_E3_Projects_44)","v":"44"}]
[null,{"$f":"IF(ISBLANK(dms_E3_Projects_45),\"\",dms_E3_Projects_45)","v":"45"}]
[null,{"$f":"IF(ISBLANK(dms_E3_Projects_46),\"\",dms_E3_Projects_46)","v":"46"}]
[null,{"$f":"IF(ISBLANK(dms_E3_Projects_47),\"\",dms_E3_Projects_47)","v":"47"}]
[null,{"$f":"IF(ISBLANK(dms_E3_Projects_48),\"\",dms_E3_Projects_48)","v":"48"}]
[null,{"$f":"IF(ISBLANK(dms_E3_Projects_49),\"\",dms_E3_Projects_49)","v":"49"}]
[null,{"$f":"IF(ISBLANK(dms_E3_Projects_50),\"\",dms_E3_Projects_50)","v":"50"}]
[null,"Aggregate of other projects with total expenditure of less than $500,000"]
[null,"Total",{"$f":"SUM(C179:C229)","v":0},{"$f":"SUM(D179:D229)","v":0},{"$f":"SUM(E179:E229)","v":0},{"$f":"SUM(F179:F229)","v":0},{"$f":"SUM(G179:G229)","v":0}]
[]
[null,"D. OTHER DIRECT EXPENDITURE"]
[null,null,"EXPENDITURE"]
[null,null,"$0's, Nominal"]
[null,null,{"$f":"dms_y1","v":2017},{"$f":"dms_y2","v":2018},{"$f":"dms_y3","v":2019},{"$f":"dms_y4","v":2020},{"$f":"dms_y5","v":2021}]
[null,{"$f":"IF(ISBLANK(dms_E3_Projects_01),\"\",dms_E3_Projects_01)","v":"3055 MAJOR PROJECTS - PLENTY VALLEY NETWORK AUGMENTATION"}]
[null,{"$f":"IF(ISBLANK(dms_E3_Projects_02),\"\",dms_E3_Projects_02)","v":"3093 MAJOR PROJECTS - DANDENONG TO CRIB POINT DUPLICATION"}]
[null,{"$f":"IF(ISBLANK(dms_E3_Projects_03),\"\",dms_E3_Projects_03)","v":"3049 MAJOR PROJECTS - CRANBOURNE EAST"}]
[null,{"$f":"IF(ISBLANK(dms_E3_Projects_04),\"\",dms_E3_Projects_04)","v":"3106 MAJOR PROJECTS - H07 CRANBOURNE HP AUGMENTATION"}]
[null,{"$f":"IF(ISBLANK(dms_E3_Projects_05),\"\",dms_E3_Projects_05)","v":"5"}]
[null,{"$f":"IF(ISBLANK(dms_E3_Projects_06),\"\",dms_E3_Projects_06)","v":"6"}]
[null,{"$f":"IF(ISBLANK(dms_E3_Projects_07),\"\",dms_E3_Projects_07)","v":"7"}]
[null,{"$f":"IF(ISBLANK(dms_E3_Projects_08),\"\",dms_E3_Projects_08)","v":"8"}]
[null,{"$f":"IF(ISBLANK(dms_E3_Projects_09),\"\",dms_E3_Projects_09)","v":"9"}]
[null,{"$f":"IF(ISBLANK(dms_E3_Projects_10),\"\",dms_E3_Projects_10)","v":"10"}]
[null,{"$f":"IF(ISBLANK(dms_E3_Projects_11),\"\",dms_E3_Projects_11)","v":"11"}]
[null,{"$f":"IF(ISBLANK(dms_E3_Projects_12),\"\",dms_E3_Projects_12)","v":"12"}]
[null,{"$f":"IF(ISBLANK(dms_E3_Projects_13),\"\",dms_E3_Projects_13)","v":"13"}]
[null,{"$f":"IF(ISBLANK(dms_E3_Projects_14),\"\",dms_E3_Projects_14)","v":"14"}]
[null,{"$f":"IF(ISBLANK(dms_E3_Projects_15),\"\",dms_E3_Projects_15)","v":"15"}]
[null,{"$f":"IF(ISBLANK(dms_E3_Projects_16),\"\",dms_E3_Projects_16)","v":"16"}]
[null,{"$f":"IF(ISBLANK(dms_E3_Projects_17),\"\",dms_E3_Projects_17)","v":"17"}]
[null,{"$f":"IF(ISBLANK(dms_E3_Projects_18),\"\",dms_E3_Projects_18)","v":"18"}]
[null,{"$f":"IF(ISBLANK(dms_E3_Projects_19),\"\",dms_E3_Projects_19)","v":"19"}]
[null,{"$f":"IF(ISBLANK(dms_E3_Projects_20),\"\",dms_E3_Projects_20)","v":"20"}]
[null,{"$f":"IF(ISBLANK(dms_E3_Projects_21),\"\",dms_E3_Projects_21)","v":"21"}]
[null,{"$f":"IF(ISBLANK(dms_E3_Projects_22),\"\",dms_E3_Projects_22)","v":"22"}]
[null,{"$f":"IF(ISBLANK(dms_E3_Projects_23),\"\",dms_E3_Projects_23)","v":"23"}]
[null,{"$f":"IF(ISBLANK(dms_E3_Projects_24),\"\",dms_E3_Projects_24)","v":"24"}]
[null,{"$f":"IF(ISBLANK(dms_E3_Projects_25),\"\",dms_E3_Projects_25)","v":"25"}]
[null,{"$f":"IF(ISBLANK(dms_E3_Projects_25),\"\",dms_E3_Projects_26)","v":"26"}]
[null,{"$f":"IF(ISBLANK(dms_E3_Projects_27),\"\",dms_E3_Projects_27)","v":"27"}]
[null,{"$f":"IF(ISBLANK(dms_E3_Projects_28),\"\",dms_E3_Projects_28)","v":"28"}]
[null,{"$f":"IF(ISBLANK(dms_E3_Projects_29),\"\",dms_E3_Projects_29)","v":"29"}]
[null,{"$f":"IF(ISBLANK(dms_E3_Projects_30),\"\",dms_E3_Projects_30)","v":"30"}]
[null,{"$f":"IF(ISBLANK(dms_E3_Projects_31),\"\",dms_E3_Projects_31)","v":"31"}]
[null,{"$f":"IF(ISBLANK(dms_E3_Projects_32),\"\",dms_E3_Projects_32)","v":"32"}]
[null,{"$f":"IF(ISBLANK(dms_E3_Projects_33),\"\",dms_E3_Projects_33)","v":"33"}]
[null,{"$f":"IF(ISBLANK(dms_E3_Projects_34),\"\",dms_E3_Projects_34)","v":"34"}]
[null,{"$f":"IF(ISBLANK(dms_E3_Projects_35),\"\",dms_E3_Projects_35)","v":"35"}]
[null,{"$f":"IF(ISBLANK(dms_E3_Projects_36),\"\",dms_E3_Projects_36)","v":"36"}]
[null,{"$f":"IF(ISBLANK(dms_E3_Projects_37),\"\",dms_E3_Projects_37)","v":"37"}]
[null,{"$f":"IF(ISBLANK(dms_E3_Projects_38),\"\",dms_E3_Projects_38)","v":"38"}]
[null,{"$f":"IF(ISBLANK(dms_E3_Projects_39),\"\",dms_E3_Projects_39)","v":"39"}]
[null,{"$f":"IF(ISBLANK(dms_E3_Projects_40),\"\",dms_E3_Projects_40)","v":"40"}]
[null,{"$f":"IF(ISBLANK(dms_E3_Projects_41),\"\",dms_E3_Projects_41)","v":"41"}]
[null,{"$f":"IF(ISBLANK(dms_E3_Projects_42),\"\",dms_E3_Projects_42)","v":"42"}]
[null,{"$f":"IF(ISBLANK(dms_E3_Projects_43),\"\",dms_E3_Projects_43)","v":"43"}]
[null,{"$f":"IF(ISBLANK(dms_E3_Projects_44),\"\",dms_E3_Projects_44)","v":"44"}]
[null,{"$f":"IF(ISBLANK(dms_E3_Projects_45),\"\",dms_E3_Projects_45)","v":"45"}]
[null,{"$f":"IF(ISBLANK(dms_E3_Projects_46),\"\",dms_E3_Projects_46)","v":"46"}]
[null,{"$f":"IF(ISBLANK(dms_E3_Projects_47),\"\",dms_E3_Projects_47)","v":"47"}]
[null,{"$f":"IF(ISBLANK(dms_E3_Projects_48),\"\",dms_E3_Projects_48)","v":"48"}]
[null,{"$f":"IF(ISBLANK(dms_E3_Projects_49),\"\",dms_E3_Projects_49)","v":"49"}]
[null,{"$f":"IF(ISBLANK(dms_E3_Projects_50),\"\",dms_E3_Projects_50)","v":"50"}]
[null,"Aggregate of other projects with total expenditure of less than $500,000"]
[null,"Total"]
[]
[null,"E. RELATED PARTY MARGIN EXPENDITURE"]
[null,null,"EXPENDITURE"]
[null,null,"$0's, Nominal"]
[null,null,{"$f":"dms_y1","v":2017},{"$f":"dms_y2","v":2018},{"$f":"dms_y3","v":2019},{"$f":"dms_y4","v":2020},{"$f":"dms_y5","v":2021}]
[null,{"$f":"IF(ISBLANK(dms_E3_Projects_01),\"\",dms_E3_Projects_01)","v":"3055 MAJOR PROJECTS - PLENTY VALLEY NETWORK AUGMENTATION"}]
[null,{"$f":"IF(ISBLANK(dms_E3_Projects_02),\"\",dms_E3_Projects_02)","v":"3093 MAJOR PROJECTS - DANDENONG TO CRIB POINT DUPLICATION"}]
[null,{"$f":"IF(ISBLANK(dms_E3_Projects_03),\"\",dms_E3_Projects_03)","v":"3049 MAJOR PROJECTS - CRANBOURNE EAST"}]
[null,{"$f":"IF(ISBLANK(dms_E3_Projects_04),\"\",dms_E3_Projects_04)","v":"3106 MAJOR PROJECTS - H07 CRANBOURNE HP AUGMENTATION"}]
[null,{"$f":"IF(ISBLANK(dms_E3_Projects_05),\"\",dms_E3_Projects_05)","v":"5"}]
[null,{"$f":"IF(ISBLANK(dms_E3_Projects_06),\"\",dms_E3_Projects_06)","v":"6"}]
[null,{"$f":"IF(ISBLANK(dms_E3_Projects_07),\"\",dms_E3_Projects_07)","v":"7"}]
[null,{"$f":"IF(ISBLANK(dms_E3_Projects_08),\"\",dms_E3_Projects_08)","v":"8"}]
[null,{"$f":"IF(ISBLANK(dms_E3_Projects_09),\"\",dms_E3_Projects_09)","v":"9"}]
[null,{"$f":"IF(ISBLANK(dms_E3_Projects_10),\"\",dms_E3_Projects_10)","v":"10"}]
[null,{"$f":"IF(ISBLANK(dms_E3_Projects_11),\"\",dms_E3_Projects_11)","v":"11"}]
[null,{"$f":"IF(ISBLANK(dms_E3_Projects_12),\"\",dms_E3_Projects_12)","v":"12"}]
[null,{"$f":"IF(ISBLANK(dms_E3_Projects_13),\"\",dms_E3_Projects_13)","v":"13"}]
[null,{"$f":"IF(ISBLANK(dms_E3_Projects_14),\"\",dms_E3_Projects_14)","v":"14"}]
[null,{"$f":"IF(ISBLANK(dms_E3_Projects_15),\"\",dms_E3_Projects_15)","v":"15"}]
[null,{"$f":"IF(ISBLANK(dms_E3_Projects_16),\"\",dms_E3_Projects_16)","v":"16"}]
[null,{"$f":"IF(ISBLANK(dms_E3_Projects_17),\"\",dms_E3_Projects_17)","v":"17"}]
[null,{"$f":"IF(ISBLANK(dms_E3_Projects_18),\"\",dms_E3_Projects_18)","v":"18"}]
[null,{"$f":"IF(ISBLANK(dms_E3_Projects_19),\"\",dms_E3_Projects_19)","v":"19"}]
[null,{"$f":"IF(ISBLANK(dms_E3_Projects_20),\"\",dms_E3_Projects_20)","v":"20"}]
[null,{"$f":"IF(ISBLANK(dms_E3_Projects_21),\"\",dms_E3_Projects_21)","v":"21"}]
[null,{"$f":"IF(ISBLANK(dms_E3_Projects_22),\"\",dms_E3_Projects_22)","v":"22"}]
[null,{"$f":"IF(ISBLANK(dms_E3_Projects_23),\"\",dms_E3_Projects_23)","v":"23"}]
[null,{"$f":"IF(ISBLANK(dms_E3_Projects_24),\"\",dms_E3_Projects_24)","v":"24"}]
[null,{"$f":"IF(ISBLANK(dms_E3_Projects_25),\"\",dms_E3_Projects_25)","v":"25"}]
[null,{"$f":"IF(ISBLANK(dms_E3_Projects_25),\"\",dms_E3_Projects_26)","v":"26"}]
[null,{"$f":"IF(ISBLANK(dms_E3_Projects_27),\"\",dms_E3_Projects_27)","v":"27"}]
[null,{"$f":"IF(ISBLANK(dms_E3_Projects_28),\"\",dms_E3_Projects_28)","v":"28"}]
[null,{"$f":"IF(ISBLANK(dms_E3_Projects_29),\"\",dms_E3_Projects_29)","v":"29"}]
[null,{"$f":"IF(ISBLANK(dms_E3_Projects_30),\"\",dms_E3_Projects_30)","v":"30"}]
[null,{"$f":"IF(ISBLANK(dms_E3_Projects_31),\"\",dms_E3_Projects_31)","v":"31"}]
[null,{"$f":"IF(ISBLANK(dms_E3_Projects_32),\"\",dms_E3_Projects_32)","v":"32"}]
[null,{"$f":"IF(ISBLANK(dms_E3_Projects_33),\"\",dms_E3_Projects_33)","v":"33"}]
[null,{"$f":"IF(ISBLANK(dms_E3_Projects_34),\"\",dms_E3_Projects_34)","v":"34"}]
[null,{"$f":"IF(ISBLANK(dms_E3_Projects_35),\"\",dms_E3_Projects_35)","v":"35"}]
[null,{"$f":"IF(ISBLANK(dms_E3_Projects_36),\"\",dms_E3_Projects_36)","v":"36"}]
[null,{"$f":"IF(ISBLANK(dms_E3_Projects_37),\"\",dms_E3_Projects_37)","v":"37"}]
[null,{"$f":"IF(ISBLANK(dms_E3_Projects_38),\"\",dms_E3_Projects_38)","v":"38"}]
[null,{"$f":"IF(ISBLANK(dms_E3_Projects_39),\"\",dms_E3_Projects_39)","v":"39"}]
[null,{"$f":"IF(ISBLANK(dms_E3_Projects_40),\"\",dms_E3_Projects_40)","v":"40"}]
[null,{"$f":"IF(ISBLANK(dms_E3_Projects_41),\"\",dms_E3_Projects_41)","v":"41"}]
[null,{"$f":"IF(ISBLANK(dms_E3_Projects_42),\"\",dms_E3_Projects_42)","v":"42"}]
[null,{"$f":"IF(ISBLANK(dms_E3_Projects_43),\"\",dms_E3_Projects_43)","v":"43"}]
[null,{"$f":"IF(ISBLANK(dms_E3_Projects_44),\"\",dms_E3_Projects_44)","v":"44"}]
[null,{"$f":"IF(ISBLANK(dms_E3_Projects_45),\"\",dms_E3_Projects_45)","v":"45"}]
[null,{"$f":"IF(ISBLANK(dms_E3_Projects_46),\"\",dms_E3_Projects_46)","v":"46"}]
[null,{"$f":"IF(ISBLANK(dms_E3_Projects_47),\"\",dms_E3_Projects_47)","v":"47"}]
[null,{"$f":"IF(ISBLANK(dms_E3_Projects_48),\"\",dms_E3_Projects_48)","v":"48"}]
[null,{"$f":"IF(ISBLANK(dms_E3_Projects_49),\"\",dms_E3_Projects_49)","v":"49"}]
[null,{"$f":"IF(ISBLANK(dms_E3_Projects_50),\"\",dms_E3_Projects_50)","v":"50"}]
[null,"Aggregate of other projects with total expenditure of less than $500,000"]
[null,"Total",{"$f":"SUM(C293:C343)","v":0},{"$f":"SUM(D293:D343)","v":0},{"$f":"SUM(E293:E343)","v":0},{"$f":"SUM(F293:F343)","v":0},{"$f":"SUM(G293:G343)","v":0}]
[]
[null,"F. CAPITAL CONTRIBUTIONS included in the above"]
[null,null,"EXPENDITURE"]
[null,null,"$0's, Nominal"]
[null,null,{"$f":"dms_y1","v":2017},{"$f":"dms_y2","v":2018},{"$f":"dms_y3","v":2019},{"$f":"dms_y4","v":2020},{"$f":"dms_y5","v":2021}]
[null,{"$f":"IF(ISBLANK(dms_E3_Projects_01),\"\",dms_E3_Projects_01)","v":"3055 MAJOR PROJECTS - PLENTY VALLEY NETWORK AUGMENTATION"}]
[null,{"$f":"IF(ISBLANK(dms_E3_Projects_02),\"\",dms_E3_Projects_02)","v":"3093 MAJOR PROJECTS - DANDENONG TO CRIB POINT DUPLICATION"}]
[null,{"$f":"IF(ISBLANK(dms_E3_Projects_03),\"\",dms_E3_Projects_03)","v":"3049 MAJOR PROJECTS - CRANBOURNE EAST"}]
[null,{"$f":"IF(ISBLANK(dms_E3_Projects_04),\"\",dms_E3_Projects_04)","v":"3106 MAJOR PROJECTS - H07 CRANBOURNE HP AUGMENTATION"}]
[null,{"$f":"IF(ISBLANK(dms_E3_Projects_05),\"\",dms_E3_Projects_05)","v":"5"}]
[null,{"$f":"IF(ISBLANK(dms_E3_Projects_06),\"\",dms_E3_Projects_06)","v":"6"}]
[null,{"$f":"IF(ISBLANK(dms_E3_Projects_07),\"\",dms_E3_Projects_07)","v":"7"}]
[null,{"$f":"IF(ISBLANK(dms_E3_Projects_08),\"\",dms_E3_Projects_08)","v":"8"}]
[null,{"$f":"IF(ISBLANK(dms_E3_Projects_09),\"\",dms_E3_Projects_09)","v":"9"}]
[null,{"$f":"IF(ISBLANK(dms_E3_Projects_10),\"\",dms_E3_Projects_10)","v":"10"}]
[null,{"$f":"IF(ISBLANK(dms_E3_Projects_11),\"\",dms_E3_Projects_11)","v":"11"}]
[null,{"$f":"IF(ISBLANK(dms_E3_Projects_12),\"\",dms_E3_Projects_12)","v":"12"}]
[null,{"$f":"IF(ISBLANK(dms_E3_Projects_13),\"\",dms_E3_Projects_13)","v":"13"}]
[null,{"$f":"IF(ISBLANK(dms_E3_Projects_14),\"\",dms_E3_Projects_14)","v":"14"}]
[null,{"$f":"IF(ISBLANK(dms_E3_Projects_15),\"\",dms_E3_Projects_15)","v":"15"}]
[null,{"$f":"IF(ISBLANK(dms_E3_Projects_16),\"\",dms_E3_Projects_16)","v":"16"}]
[null,{"$f":"IF(ISBLANK(dms_E3_Projects_17),\"\",dms_E3_Projects_17)","v":"17"}]
[null,{"$f":"IF(ISBLANK(dms_E3_Projects_18),\"\",dms_E3_Projects_18)","v":"18"}]
[null,{"$f":"IF(ISBLANK(dms_E3_Projects_19),\"\",dms_E3_Projects_19)","v":"19"}]
[null,{"$f":"IF(ISBLANK(dms_E3_Projects_20),\"\",dms_E3_Projects_20)","v":"20"}]
[null,{"$f":"IF(ISBLANK(dms_E3_Projects_21),\"\",dms_E3_Projects_21)","v":"21"}]
[null,{"$f":"IF(ISBLANK(dms_E3_Projects_22),\"\",dms_E3_Projects_22)","v":"22"}]
[null,{"$f":"IF(ISBLANK(dms_E3_Projects_23),\"\",dms_E3_Projects_23)","v":"23"}]
[null,{"$f":"IF(ISBLANK(dms_E3_Projects_24),\"\",dms_E3_Projects_24)","v":"24"}]
[null,{"$f":"IF(ISBLANK(dms_E3_Projects_25),\"\",dms_E3_Projects_25)","v":"25"}]
[null,{"$f":"IF(ISBLANK(dms_E3_Projects_25),\"\",dms_E3_Projects_26)","v":"26"}]
[null,{"$f":"IF(ISBLANK(dms_E3_Projects_27),\"\",dms_E3_Projects_27)","v":"27"}]
[null,{"$f":"IF(ISBLANK(dms_E3_Projects_28),\"\",dms_E3_Projects_28)","v":"28"}]
[null,{"$f":"IF(ISBLANK(dms_E3_Projects_29),\"\",dms_E3_Projects_29)","v":"29"}]
[null,{"$f":"IF(ISBLANK(dms_E3_Projects_30),\"\",dms_E3_Projects_30)","v":"30"}]
[null,{"$f":"IF(ISBLANK(dms_E3_Projects_31),\"\",dms_E3_Projects_31)","v":"31"}]
[null,{"$f":"IF(ISBLANK(dms_E3_Projects_32),\"\",dms_E3_Projects_32)","v":"32"}]
[null,{"$f":"IF(ISBLANK(dms_E3_Projects_33),\"\",dms_E3_Projects_33)","v":"33"}]
[null,{"$f":"IF(ISBLANK(dms_E3_Projects_34),\"\",dms_E3_Projects_34)","v":"34"}]
[null,{"$f":"IF(ISBLANK(dms_E3_Projects_35),\"\",dms_E3_Projects_35)","v":"35"}]
[null,{"$f":"IF(ISBLANK(dms_E3_Projects_36),\"\",dms_E3_Projects_36)","v":"36"}]
[null,{"$f":"IF(ISBLANK(dms_E3_Projects_37),\"\",dms_E3_Projects_37)","v":"37"}]
[null,{"$f":"IF(ISBLANK(dms_E3_Projects_38),\"\",dms_E3_Projects_38)","v":"38"}]
[null,{"$f":"IF(ISBLANK(dms_E3_Projects_39),\"\",dms_E3_Projects_39)","v":"39"}]
[null,{"$f":"IF(ISBLANK(dms_E3_Projects_40),\"\",dms_E3_Projects_40)","v":"40"}]
[null,{"$f":"IF(ISBLANK(dms_E3_Projects_41),\"\",dms_E3_Projects_41)","v":"41"}]
[null,{"$f":"IF(ISBLANK(dms_E3_Projects_42),\"\",dms_E3_Projects_42)","v":"42"}]
[null,{"$f":"IF(ISBLANK(dms_E3_Projects_43),\"\",dms_E3_Projects_43)","v":"43"}]
[null,{"$f":"IF(ISBLANK(dms_E3_Projects_44),\"\",dms_E3_Projects_44)","v":"44"}]
[null,{"$f":"IF(ISBLANK(dms_E3_Projects_45),\"\",dms_E3_Projects_45)","v":"45"}]
[null,{"$f":"IF(ISBLANK(dms_E3_Projects_46),\"\",dms_E3_Projects_46)","v":"46"}]
[null,{"$f":"IF(ISBLANK(dms_E3_Projects_47),\"\",dms_E3_Projects_47)","v":"47"}]
[null,{"$f":"IF(ISBLANK(dms_E3_Projects_48),\"\",dms_E3_Projects_48)","v":"48"}]
[null,{"$f":"IF(ISBLANK(dms_E3_Projects_49),\"\",dms_E3_Projects_49)","v":"49"}]
[null,{"$f":"IF(ISBLANK(dms_E3_Projects_50),\"\",dms_E3_Projects_50)","v":"50"}]
[null,"Aggregate of other projects with total expenditure of less than $500,000"]
[null,"Total",{"$f":"SUM(C350:C400)","v":0},{"$f":"SUM(D350:D400)","v":0},{"$f":"SUM(E350:E400)","v":0},{"$f":"SUM(F350:F400)","v":0},{"$f":"SUM(G350:G400)","v":0}]
[]
[]
[]
[null,"E3.2 - VOLUMES - BY PRESSURE TYPE - BY PROJECT"]
[null,"A. LOW PRESSURE TO LOW PRESSURE"]
[null,null,"LENGTH"]
[null,null,"0s, metres"]
[null,null,{"$f":"dms_y1","v":2017},{"$f":"dms_y2","v":2018},{"$f":"dms_y3","v":2019},{"$f":"dms_y4","v":2020},{"$f":"dms_y5","v":2021}]
[null,{"$f":"IF(ISBLANK(dms_E3_Projects_01),\"\",dms_E3_Projects_01)","v":"3055 MAJOR PROJECTS - PLENTY VALLEY NETWORK AUGMENTATION"}]
[null,{"$f":"IF(ISBLANK(dms_E3_Projects_02),\"\",dms_E3_Projects_02)","v":"3093 MAJOR PROJECTS - DANDENONG TO CRIB POINT DUPLICATION"}]
[null,{"$f":"IF(ISBLANK(dms_E3_Projects_03),\"\",dms_E3_Projects_03)","v":"3049 MAJOR PROJECTS - CRANBOURNE EAST"}]
[null,{"$f":"IF(ISBLANK(dms_E3_Projects_04),\"\",dms_E3_Projects_04)","v":"3106 MAJOR PROJECTS - H07 CRANBOURNE HP AUGMENTATION"}]
[null,{"$f":"IF(ISBLANK(dms_E3_Projects_05),\"\",dms_E3_Projects_05)","v":"5"}]
[null,{"$f":"IF(ISBLANK(dms_E3_Projects_06),\"\",dms_E3_Projects_06)","v":"6"}]
[null,{"$f":"IF(ISBLANK(dms_E3_Projects_07),\"\",dms_E3_Projects_07)","v":"7"}]
[null,{"$f":"IF(ISBLANK(dms_E3_Projects_08),\"\",dms_E3_Projects_08)","v":"8"}]
[null,{"$f":"IF(ISBLANK(dms_E3_Projects_09),\"\",dms_E3_Projects_09)","v":"9"}]
[null,{"$f":"IF(ISBLANK(dms_E3_Projects_10),\"\",dms_E3_Projects_10)","v":"10"}]
[null,{"$f":"IF(ISBLANK(dms_E3_Projects_11),\"\",dms_E3_Projects_11)","v":"11"}]
[null,{"$f":"IF(ISBLANK(dms_E3_Projects_12),\"\",dms_E3_Projects_12)","v":"12"}]
[null,{"$f":"IF(ISBLANK(dms_E3_Projects_13),\"\",dms_E3_Projects_13)","v":"13"}]
[null,{"$f":"IF(ISBLANK(dms_E3_Projects_14),\"\",dms_E3_Projects_14)","v":"14"}]
[null,{"$f":"IF(ISBLANK(dms_E3_Projects_15),\"\",dms_E3_Projects_15)","v":"15"}]
[null,{"$f":"IF(ISBLANK(dms_E3_Projects_16),\"\",dms_E3_Projects_16)","v":"16"}]
[null,{"$f":"IF(ISBLANK(dms_E3_Projects_17),\"\",dms_E3_Projects_17)","v":"17"}]
[null,{"$f":"IF(ISBLANK(dms_E3_Projects_18),\"\",dms_E3_Projects_18)","v":"18"}]
[null,{"$f":"IF(ISBLANK(dms_E3_Projects_19),\"\",dms_E3_Projects_19)","v":"19"}]
[null,{"$f":"IF(ISBLANK(dms_E3_Projects_20),\"\",dms_E3_Projects_20)","v":"20"}]
[null,{"$f":"IF(ISBLANK(dms_E3_Projects_21),\"\",dms_E3_Projects_21)","v":"21"}]
[null,{"$f":"IF(ISBLANK(dms_E3_Projects_22),\"\",dms_E3_Projects_22)","v":"22"}]
[null,{"$f":"IF(ISBLANK(dms_E3_Projects_23),\"\",dms_E3_Projects_23)","v":"23"}]
[null,{"$f":"IF(ISBLANK(dms_E3_Projects_24),\"\",dms_E3_Projects_24)","v":"24"}]
[null,{"$f":"IF(ISBLANK(dms_E3_Projects_25),\"\",dms_E3_Projects_25)","v":"25"}]
[null,{"$f":"IF(ISBLANK(dms_E3_Projects_25),\"\",dms_E3_Projects_26)","v":"26"}]
[null,{"$f":"IF(ISBLANK(dms_E3_Projects_27),\"\",dms_E3_Projects_27)","v":"27"}]
[null,{"$f":"IF(ISBLANK(dms_E3_Projects_28),\"\",dms_E3_Projects_28)","v":"28"}]
[null,{"$f":"IF(ISBLANK(dms_E3_Projects_29),\"\",dms_E3_Projects_29)","v":"29"}]
[null,{"$f":"IF(ISBLANK(dms_E3_Projects_30),\"\",dms_E3_Projects_30)","v":"30"}]
[null,{"$f":"IF(ISBLANK(dms_E3_Projects_31),\"\",dms_E3_Projects_31)","v":"31"}]
[null,{"$f":"IF(ISBLANK(dms_E3_Projects_32),\"\",dms_E3_Projects_32)","v":"32"}]
[null,{"$f":"IF(ISBLANK(dms_E3_Projects_33),\"\",dms_E3_Projects_33)","v":"33"}]
[null,{"$f":"IF(ISBLANK(dms_E3_Projects_34),\"\",dms_E3_Projects_34)","v":"34"}]
[null,{"$f":"IF(ISBLANK(dms_E3_Projects_35),\"\",dms_E3_Projects_35)","v":"35"}]
[null,{"$f":"IF(ISBLANK(dms_E3_Projects_36),\"\",dms_E3_Projects_36)","v":"36"}]
[null,{"$f":"IF(ISBLANK(dms_E3_Projects_37),\"\",dms_E3_Projects_37)","v":"37"}]
[null,{"$f":"IF(ISBLANK(dms_E3_Projects_38),\"\",dms_E3_Projects_38)","v":"38"}]
[null,{"$f":"IF(ISBLANK(dms_E3_Projects_39),\"\",dms_E3_Projects_39)","v":"39"}]
[null,{"$f":"IF(ISBLANK(dms_E3_Projects_40),\"\",dms_E3_Projects_40)","v":"40"}]
[null,{"$f":"IF(ISBLANK(dms_E3_Projects_41),\"\",dms_E3_Projects_41)","v":"41"}]
[null,{"$f":"IF(ISBLANK(dms_E3_Projects_42),\"\",dms_E3_Projects_42)","v":"42"}]
[null,{"$f":"IF(ISBLANK(dms_E3_Projects_43),\"\",dms_E3_Projects_43)","v":"43"}]
[null,{"$f":"IF(ISBLANK(dms_E3_Projects_44),\"\",dms_E3_Projects_44)","v":"44"}]
[null,{"$f":"IF(ISBLANK(dms_E3_Projects_45),\"\",dms_E3_Projects_45)","v":"45"}]
[null,{"$f":"IF(ISBLANK(dms_E3_Projects_46),\"\",dms_E3_Projects_46)","v":"46"}]
[null,{"$f":"IF(ISBLANK(dms_E3_Projects_47),\"\",dms_E3_Projects_47)","v":"47"}]
[null,{"$f":"IF(ISBLANK(dms_E3_Projects_48),\"\",dms_E3_Projects_48)","v":"48"}]
[null,{"$f":"IF(ISBLANK(dms_E3_Projects_49),\"\",dms_E3_Projects_49)","v":"49"}]
[null,{"$f":"IF(ISBLANK(dms_E3_Projects_50),\"\",dms_E3_Projects_50)","v":"50"}]
[null,"Aggregate of other projects with total expenditure of less than $500,000"]
[null,"Total",{"$f":"SUM(C410:C460)","v":0},{"$f":"SUM(D410:D460)","v":0},{"$f":"SUM(E410:E460)","v":0},{"$f":"SUM(F410:F460)","v":0},{"$f":"SUM(G410:G460)","v":0}]
[]
[null,"B. LOW PRESSURE TO MEDIUM PRESSURE"]
[null,null,"LENGTH"]
[null,null,"0s, metres"]
[null,null,{"$f":"dms_y1","v":2017},{"$f":"dms_y2","v":2018},{"$f":"dms_y3","v":2019},{"$f":"dms_y4","v":2020},{"$f":"dms_y5","v":2021}]
[null,{"$f":"IF(ISBLANK(dms_E3_Projects_01),\"\",dms_E3_Projects_01)","v":"3055 MAJOR PROJECTS - PLENTY VALLEY NETWORK AUGMENTATION"}]
[null,{"$f":"IF(ISBLANK(dms_E3_Projects_02),\"\",dms_E3_Projects_02)","v":"3093 MAJOR PROJECTS - DANDENONG TO CRIB POINT DUPLICATION"}]
[null,{"$f":"IF(ISBLANK(dms_E3_Projects_03),\"\",dms_E3_Projects_03)","v":"3049 MAJOR PROJECTS - CRANBOURNE EAST"}]
[null,{"$f":"IF(ISBLANK(dms_E3_Projects_04),\"\",dms_E3_Projects_04)","v":"3106 MAJOR PROJECTS - H07 CRANBOURNE HP AUGMENTATION"}]
[null,{"$f":"IF(ISBLANK(dms_E3_Projects_05),\"\",dms_E3_Projects_05)","v":"5"}]
[null,{"$f":"IF(ISBLANK(dms_E3_Projects_06),\"\",dms_E3_Projects_06)","v":"6"}]
[null,{"$f":"IF(ISBLANK(dms_E3_Projects_07),\"\",dms_E3_Projects_07)","v":"7"}]
[null,{"$f":"IF(ISBLANK(dms_E3_Projects_08),\"\",dms_E3_Projects_08)","v":"8"}]
[null,{"$f":"IF(ISBLANK(dms_E3_Projects_09),\"\",dms_E3_Projects_09)","v":"9"}]
[null,{"$f":"IF(ISBLANK(dms_E3_Projects_10),\"\",dms_E3_Projects_10)","v":"10"}]
[null,{"$f":"IF(ISBLANK(dms_E3_Projects_11),\"\",dms_E3_Projects_11)","v":"11"}]
[null,{"$f":"IF(ISBLANK(dms_E3_Projects_12),\"\",dms_E3_Projects_12)","v":"12"}]
[null,{"$f":"IF(ISBLANK(dms_E3_Projects_13),\"\",dms_E3_Projects_13)","v":"13"}]
[null,{"$f":"IF(ISBLANK(dms_E3_Projects_14),\"\",dms_E3_Projects_14)","v":"14"}]
[null,{"$f":"IF(ISBLANK(dms_E3_Projects_15),\"\",dms_E3_Projects_15)","v":"15"}]
[null,{"$f":"IF(ISBLANK(dms_E3_Projects_16),\"\",dms_E3_Projects_16)","v":"16"}]
[null,{"$f":"IF(ISBLANK(dms_E3_Projects_17),\"\",dms_E3_Projects_17)","v":"17"}]
[null,{"$f":"IF(ISBLANK(dms_E3_Projects_18),\"\",dms_E3_Projects_18)","v":"18"}]
[null,{"$f":"IF(ISBLANK(dms_E3_Projects_19),\"\",dms_E3_Projects_19)","v":"19"}]
[null,{"$f":"IF(ISBLANK(dms_E3_Projects_20),\"\",dms_E3_Projects_20)","v":"20"}]
[null,{"$f":"IF(ISBLANK(dms_E3_Projects_21),\"\",dms_E3_Projects_21)","v":"21"}]
[null,{"$f":"IF(ISBLANK(dms_E3_Projects_22),\"\",dms_E3_Projects_22)","v":"22"}]
[null,{"$f":"IF(ISBLANK(dms_E3_Projects_23),\"\",dms_E3_Projects_23)","v":"23"}]
[null,{"$f":"IF(ISBLANK(dms_E3_Projects_24),\"\",dms_E3_Projects_24)","v":"24"}]
[null,{"$f":"IF(ISBLANK(dms_E3_Projects_25),\"\",dms_E3_Projects_25)","v":"25"}]
[null,{"$f":"IF(ISBLANK(dms_E3_Projects_25),\"\",dms_E3_Projects_26)","v":"26"}]
[null,{"$f":"IF(ISBLANK(dms_E3_Projects_27),\"\",dms_E3_Projects_27)","v":"27"}]
[null,{"$f":"IF(ISBLANK(dms_E3_Projects_28),\"\",dms_E3_Projects_28)","v":"28"}]
[null,{"$f":"IF(ISBLANK(dms_E3_Projects_29),\"\",dms_E3_Projects_29)","v":"29"}]
[null,{"$f":"IF(ISBLANK(dms_E3_Projects_30),\"\",dms_E3_Projects_30)","v":"30"}]
[null,{"$f":"IF(ISBLANK(dms_E3_Projects_31),\"\",dms_E3_Projects_31)","v":"31"}]
[null,{"$f":"IF(ISBLANK(dms_E3_Projects_32),\"\",dms_E3_Projects_32)","v":"32"}]
[null,{"$f":"IF(ISBLANK(dms_E3_Projects_33),\"\",dms_E3_Projects_33)","v":"33"}]
[null,{"$f":"IF(ISBLANK(dms_E3_Projects_34),\"\",dms_E3_Projects_34)","v":"34"}]
[null,{"$f":"IF(ISBLANK(dms_E3_Projects_35),\"\",dms_E3_Projects_35)","v":"35"}]
[null,{"$f":"IF(ISBLANK(dms_E3_Projects_36),\"\",dms_E3_Projects_36)","v":"36"}]
[null,{"$f":"IF(ISBLANK(dms_E3_Projects_37),\"\",dms_E3_Projects_37)","v":"37"}]
[null,{"$f":"IF(ISBLANK(dms_E3_Projects_38),\"\",dms_E3_Projects_38)","v":"38"}]
[null,{"$f":"IF(ISBLANK(dms_E3_Projects_39),\"\",dms_E3_Projects_39)","v":"39"}]
[null,{"$f":"IF(ISBLANK(dms_E3_Projects_40),\"\",dms_E3_Projects_40)","v":"40"}]
[null,{"$f":"IF(ISBLANK(dms_E3_Projects_41),\"\",dms_E3_Projects_41)","v":"41"}]
[null,{"$f":"IF(ISBLANK(dms_E3_Projects_42),\"\",dms_E3_Projects_42)","v":"42"}]
[null,{"$f":"IF(ISBLANK(dms_E3_Projects_43),\"\",dms_E3_Projects_43)","v":"43"}]
[null,{"$f":"IF(ISBLANK(dms_E3_Projects_44),\"\",dms_E3_Projects_44)","v":"44"}]
[null,{"$f":"IF(ISBLANK(dms_E3_Projects_45),\"\",dms_E3_Projects_45)","v":"45"}]
[null,{"$f":"IF(ISBLANK(dms_E3_Projects_46),\"\",dms_E3_Projects_46)","v":"46"}]
[null,{"$f":"IF(ISBLANK(dms_E3_Projects_47),\"\",dms_E3_Projects_47)","v":"47"}]
[null,{"$f":"IF(ISBLANK(dms_E3_Projects_48),\"\",dms_E3_Projects_48)","v":"48"}]
[null,{"$f":"IF(ISBLANK(dms_E3_Projects_49),\"\",dms_E3_Projects_49)","v":"49"}]
[null,{"$f":"IF(ISBLANK(dms_E3_Projects_50),\"\",dms_E3_Projects_50)","v":"50"}]
[null,"Aggregate of other projects with total expenditure of less than $500,000"]
[null,"Total",{"$f":"SUM(C467:C517)","v":0},{"$f":"SUM(D467:D517)","v":0},{"$f":"SUM(E467:E517)","v":0},{"$f":"SUM(F467:F517)","v":0},{"$f":"SUM(G467:G517)","v":0}]
[]
[null,"C. LOW PRESSURE TO HIGH PRESSURE"]
[null,null,"LENGTH"]
[null,null,"0s, metres"]
[null,null,{"$f":"dms_y1","v":2017},{"$f":"dms_y2","v":2018},{"$f":"dms_y3","v":2019},{"$f":"dms_y4","v":2020},{"$f":"dms_y5","v":2021}]
[null,{"$f":"IF(ISBLANK(dms_E3_Projects_01),\"\",dms_E3_Projects_01)","v":"3055 MAJOR PROJECTS - PLENTY VALLEY NETWORK AUGMENTATION"}]
[null,{"$f":"IF(ISBLANK(dms_E3_Projects_02),\"\",dms_E3_Projects_02)","v":"3093 MAJOR PROJECTS - DANDENONG TO CRIB POINT DUPLICATION"}]
[null,{"$f":"IF(ISBLANK(dms_E3_Projects_03),\"\",dms_E3_Projects_03)","v":"3049 MAJOR PROJECTS - CRANBOURNE EAST"}]
[null,{"$f":"IF(ISBLANK(dms_E3_Projects_04),\"\",dms_E3_Projects_04)","v":"3106 MAJOR PROJECTS - H07 CRANBOURNE HP AUGMENTATION"}]
[null,{"$f":"IF(ISBLANK(dms_E3_Projects_05),\"\",dms_E3_Projects_05)","v":"5"}]
[null,{"$f":"IF(ISBLANK(dms_E3_Projects_06),\"\",dms_E3_Projects_06)","v":"6"}]
[null,{"$f":"IF(ISBLANK(dms_E3_Projects_07),\"\",dms_E3_Projects_07)","v":"7"}]
[null,{"$f":"IF(ISBLANK(dms_E3_Projects_08),\"\",dms_E3_Projects_08)","v":"8"}]
[null,{"$f":"IF(ISBLANK(dms_E3_Projects_09),\"\",dms_E3_Projects_09)","v":"9"}]
[null,{"$f":"IF(ISBLANK(dms_E3_Projects_10),\"\",dms_E3_Projects_10)","v":"10"}]
[null,{"$f":"IF(ISBLANK(dms_E3_Projects_11),\"\",dms_E3_Projects_11)","v":"11"}]
[null,{"$f":"IF(ISBLANK(dms_E3_Projects_12),\"\",dms_E3_Projects_12)","v":"12"}]
[null,{"$f":"IF(ISBLANK(dms_E3_Projects_13),\"\",dms_E3_Projects_13)","v":"13"}]
[null,{"$f":"IF(ISBLANK(dms_E3_Projects_14),\"\",dms_E3_Projects_14)","v":"14"}]
[null,{"$f":"IF(ISBLANK(dms_E3_Projects_15),\"\",dms_E3_Projects_15)","v":"15"}]
[null,{"$f":"IF(ISBLANK(dms_E3_Projects_16),\"\",dms_E3_Projects_16)","v":"16"}]
[null,{"$f":"IF(ISBLANK(dms_E3_Projects_17),\"\",dms_E3_Projects_17)","v":"17"}]
[null,{"$f":"IF(ISBLANK(dms_E3_Projects_18),\"\",dms_E3_Projects_18)","v":"18"}]
[null,{"$f":"IF(ISBLANK(dms_E3_Projects_19),\"\",dms_E3_Projects_19)","v":"19"}]
[null,{"$f":"IF(ISBLANK(dms_E3_Projects_20),\"\",dms_E3_Projects_20)","v":"20"}]
[null,{"$f":"IF(ISBLANK(dms_E3_Projects_21),\"\",dms_E3_Projects_21)","v":"21"}]
[null,{"$f":"IF(ISBLANK(dms_E3_Projects_22),\"\",dms_E3_Projects_22)","v":"22"}]
[null,{"$f":"IF(ISBLANK(dms_E3_Projects_23),\"\",dms_E3_Projects_23)","v":"23"}]
[null,{"$f":"IF(ISBLANK(dms_E3_Projects_24),\"\",dms_E3_Projects_24)","v":"24"}]
[null,{"$f":"IF(ISBLANK(dms_E3_Projects_25),\"\",dms_E3_Projects_25)","v":"25"}]
[null,{"$f":"IF(ISBLANK(dms_E3_Projects_25),\"\",dms_E3_Projects_26)","v":"26"}]
[null,{"$f":"IF(ISBLANK(dms_E3_Projects_27),\"\",dms_E3_Projects_27)","v":"27"}]
[null,{"$f":"IF(ISBLANK(dms_E3_Projects_28),\"\",dms_E3_Projects_28)","v":"28"}]
[null,{"$f":"IF(ISBLANK(dms_E3_Projects_29),\"\",dms_E3_Projects_29)","v":"29"}]
[null,{"$f":"IF(ISBLANK(dms_E3_Projects_30),\"\",dms_E3_Projects_30)","v":"30"}]
[null,{"$f":"IF(ISBLANK(dms_E3_Projects_31),\"\",dms_E3_Projects_31)","v":"31"}]
[null,{"$f":"IF(ISBLANK(dms_E3_Projects_32),\"\",dms_E3_Projects_32)","v":"32"}]
[null,{"$f":"IF(ISBLANK(dms_E3_Projects_33),\"\",dms_E3_Projects_33)","v":"33"}]
[null,{"$f":"IF(ISBLANK(dms_E3_Projects_34),\"\",dms_E3_Projects_34)","v":"34"}]
[null,{"$f":"IF(ISBLANK(dms_E3_Projects_35),\"\",dms_E3_Projects_35)","v":"35"}]
[null,{"$f":"IF(ISBLANK(dms_E3_Projects_36),\"\",dms_E3_Projects_36)","v":"36"}]
[null,{"$f":"IF(ISBLANK(dms_E3_Projects_37),\"\",dms_E3_Projects_37)","v":"37"}]
[null,{"$f":"IF(ISBLANK(dms_E3_Projects_38),\"\",dms_E3_Projects_38)","v":"38"}]
[null,{"$f":"IF(ISBLANK(dms_E3_Projects_39),\"\",dms_E3_Projects_39)","v":"39"}]
[null,{"$f":"IF(ISBLANK(dms_E3_Projects_40),\"\",dms_E3_Projects_40)","v":"40"}]
[null,{"$f":"IF(ISBLANK(dms_E3_Projects_41),\"\",dms_E3_Projects_41)","v":"41"}]
[null,{"$f":"IF(ISBLANK(dms_E3_Projects_42),\"\",dms_E3_Projects_42)","v":"42"}]
[null,{"$f":"IF(ISBLANK(dms_E3_Projects_43),\"\",dms_E3_Projects_43)","v":"43"}]
[null,{"$f":"IF(ISBLANK(dms_E3_Projects_44),\"\",dms_E3_Projects_44)","v":"44"}]
[null,{"$f":"IF(ISBLANK(dms_E3_Projects_45),\"\",dms_E3_Projects_45)","v":"45"}]
[null,{"$f":"IF(ISBLANK(dms_E3_Projects_46),\"\",dms_E3_Projects_46)","v":"46"}]
[null,{"$f":"IF(ISBLANK(dms_E3_Projects_47),\"\",dms_E3_Projects_47)","v":"47"}]
[null,{"$f":"IF(ISBLANK(dms_E3_Projects_48),\"\",dms_E3_Projects_48)","v":"48"}]
[null,{"$f":"IF(ISBLANK(dms_E3_Projects_49),\"\",dms_E3_Projects_49)","v":"49"}]
[null,{"$f":"IF(ISBLANK(dms_E3_Projects_50),\"\",dms_E3_Projects_50)","v":"50"}]
[null,"Aggregate of other projects with total expenditure of less than $500,000"]
[null,"Total",{"$f":"SUM(C524:C574)","v":0},{"$f":"SUM(D524:D574)","v":0},{"$f":"SUM(E524:E574)","v":0},{"$f":"SUM(F524:F574)","v":0},{"$f":"SUM(G524:G574)","v":0}]
[]
[null,"D. MEDIUM PRESSURE TO MEDIUM PRESSURE"]
[null,null,"LENGTH"]
[null,null,"0s, metres"]
[null,null,{"$f":"dms_y1","v":2017},{"$f":"dms_y2","v":2018},{"$f":"dms_y3","v":2019},{"$f":"dms_y4","v":2020},{"$f":"dms_y5","v":2021}]
[null,{"$f":"IF(ISBLANK(dms_E3_Projects_01),\"\",dms_E3_Projects_01)","v":"3055 MAJOR PROJECTS - PLENTY VALLEY NETWORK AUGMENTATION"}]
[null,{"$f":"IF(ISBLANK(dms_E3_Projects_02),\"\",dms_E3_Projects_02)","v":"3093 MAJOR PROJECTS - DANDENONG TO CRIB POINT DUPLICATION"}]
[null,{"$f":"IF(ISBLANK(dms_E3_Projects_03),\"\",dms_E3_Projects_03)","v":"3049 MAJOR PROJECTS - CRANBOURNE EAST"}]
[null,{"$f":"IF(ISBLANK(dms_E3_Projects_04),\"\",dms_E3_Projects_04)","v":"3106 MAJOR PROJECTS - H07 CRANBOURNE HP AUGMENTATION"}]
[null,{"$f":"IF(ISBLANK(dms_E3_Projects_05),\"\",dms_E3_Projects_05)","v":"5"}]
[null,{"$f":"IF(ISBLANK(dms_E3_Projects_06),\"\",dms_E3_Projects_06)","v":"6"}]
[null,{"$f":"IF(ISBLANK(dms_E3_Projects_07),\"\",dms_E3_Projects_07)","v":"7"}]
[null,{"$f":"IF(ISBLANK(dms_E3_Projects_08),\"\",dms_E3_Projects_08)","v":"8"}]
[null,{"$f":"IF(ISBLANK(dms_E3_Projects_09),\"\",dms_E3_Projects_09)","v":"9"}]
[null,{"$f":"IF(ISBLANK(dms_E3_Projects_10),\"\",dms_E3_Projects_10)","v":"10"}]
[null,{"$f":"IF(ISBLANK(dms_E3_Projects_11),\"\",dms_E3_Projects_11)","v":"11"}]
[null,{"$f":"IF(ISBLANK(dms_E3_Projects_12),\"\",dms_E3_Projects_12)","v":"12"}]
[null,{"$f":"IF(ISBLANK(dms_E3_Projects_13),\"\",dms_E3_Projects_13)","v":"13"}]
[null,{"$f":"IF(ISBLANK(dms_E3_Projects_14),\"\",dms_E3_Projects_14)","v":"14"}]
[null,{"$f":"IF(ISBLANK(dms_E3_Projects_15),\"\",dms_E3_Projects_15)","v":"15"}]
[null,{"$f":"IF(ISBLANK(dms_E3_Projects_16),\"\",dms_E3_Projects_16)","v":"16"}]
[null,{"$f":"IF(ISBLANK(dms_E3_Projects_17),\"\",dms_E3_Projects_17)","v":"17"}]
[null,{"$f":"IF(ISBLANK(dms_E3_Projects_18),\"\",dms_E3_Projects_18)","v":"18"}]
[null,{"$f":"IF(ISBLANK(dms_E3_Projects_19),\"\",dms_E3_Projects_19)","v":"19"}]
[null,{"$f":"IF(ISBLANK(dms_E3_Projects_20),\"\",dms_E3_Projects_20)","v":"20"}]
[null,{"$f":"IF(ISBLANK(dms_E3_Projects_21),\"\",dms_E3_Projects_21)","v":"21"}]
[null,{"$f":"IF(ISBLANK(dms_E3_Projects_22),\"\",dms_E3_Projects_22)","v":"22"}]
[null,{"$f":"IF(ISBLANK(dms_E3_Projects_23),\"\",dms_E3_Projects_23)","v":"23"}]
[null,{"$f":"IF(ISBLANK(dms_E3_Projects_24),\"\",dms_E3_Projects_24)","v":"24"}]
[null,{"$f":"IF(ISBLANK(dms_E3_Projects_25),\"\",dms_E3_Projects_25)","v":"25"}]
[null,{"$f":"IF(ISBLANK(dms_E3_Projects_25),\"\",dms_E3_Projects_26)","v":"26"}]
[null,{"$f":"IF(ISBLANK(dms_E3_Projects_27),\"\",dms_E3_Projects_27)","v":"27"}]
[null,{"$f":"IF(ISBLANK(dms_E3_Projects_28),\"\",dms_E3_Projects_28)","v":"28"}]
[null,{"$f":"IF(ISBLANK(dms_E3_Projects_29),\"\",dms_E3_Projects_29)","v":"29"}]
[null,{"$f":"IF(ISBLANK(dms_E3_Projects_30),\"\",dms_E3_Projects_30)","v":"30"}]
[null,{"$f":"IF(ISBLANK(dms_E3_Projects_31),\"\",dms_E3_Projects_31)","v":"31"}]
[null,{"$f":"IF(ISBLANK(dms_E3_Projects_32),\"\",dms_E3_Projects_32)","v":"32"}]
[null,{"$f":"IF(ISBLANK(dms_E3_Projects_33),\"\",dms_E3_Projects_33)","v":"33"}]
[null,{"$f":"IF(ISBLANK(dms_E3_Projects_34),\"\",dms_E3_Projects_34)","v":"34"}]
[null,{"$f":"IF(ISBLANK(dms_E3_Projects_35),\"\",dms_E3_Projects_35)","v":"35"}]
[null,{"$f":"IF(ISBLANK(dms_E3_Projects_36),\"\",dms_E3_Projects_36)","v":"36"}]
[null,{"$f":"IF(ISBLANK(dms_E3_Projects_37),\"\",dms_E3_Projects_37)","v":"37"}]
[null,{"$f":"IF(ISBLANK(dms_E3_Projects_38),\"\",dms_E3_Projects_38)","v":"38"}]
[null,{"$f":"IF(ISBLANK(dms_E3_Projects_39),\"\",dms_E3_Projects_39)","v":"39"}]
[null,{"$f":"IF(ISBLANK(dms_E3_Projects_40),\"\",dms_E3_Projects_40)","v":"40"}]
[null,{"$f":"IF(ISBLANK(dms_E3_Projects_41),\"\",dms_E3_Projects_41)","v":"41"}]
[null,{"$f":"IF(ISBLANK(dms_E3_Projects_42),\"\",dms_E3_Projects_42)","v":"42"}]
[null,{"$f":"IF(ISBLANK(dms_E3_Projects_43),\"\",dms_E3_Projects_43)","v":"43"}]
[null,{"$f":"IF(ISBLANK(dms_E3_Projects_44),\"\",dms_E3_Projects_44)","v":"44"}]
[null,{"$f":"IF(ISBLANK(dms_E3_Projects_45),\"\",dms_E3_Projects_45)","v":"45"}]
[null,{"$f":"IF(ISBLANK(dms_E3_Projects_46),\"\",dms_E3_Projects_46)","v":"46"}]
[null,{"$f":"IF(ISBLANK(dms_E3_Projects_47),\"\",dms_E3_Projects_47)","v":"47"}]
[null,{"$f":"IF(ISBLANK(dms_E3_Projects_48),\"\",dms_E3_Projects_48)","v":"48"}]
[null,{"$f":"IF(ISBLANK(dms_E3_Projects_49),\"\",dms_E3_Projects_49)","v":"49"}]
[null,{"$f":"IF(ISBLANK(dms_E3_Projects_50),\"\",dms_E3_Projects_50)","v":"50"}]
[null,"Aggregate of other projects with total expenditure of less than $500,000"]
[null,"Total",{"$f":"SUM(C581:C631)","v":0},{"$f":"SUM(D581:D631)","v":0},{"$f":"SUM(E581:E631)","v":0},{"$f":"SUM(F581:F631)","v":0},{"$f":"SUM(G581:G631)","v":0}]
[]
[null,"E. MEDIUM PRESSURE TO HIGH PRESSURE"]
[null,null,"LENGTH"]
[null,null,"0s, metres"]
[null,null,{"$f":"dms_y1","v":2017},{"$f":"dms_y2","v":2018},{"$f":"dms_y3","v":2019},{"$f":"dms_y4","v":2020},{"$f":"dms_y5","v":2021}]
[null,{"$f":"IF(ISBLANK(dms_E3_Projects_01),\"\",dms_E3_Projects_01)","v":"3055 MAJOR PROJECTS - PLENTY VALLEY NETWORK AUGMENTATION"}]
[null,{"$f":"IF(ISBLANK(dms_E3_Projects_02),\"\",dms_E3_Projects_02)","v":"3093 MAJOR PROJECTS - DANDENONG TO CRIB POINT DUPLICATION"}]
[null,{"$f":"IF(ISBLANK(dms_E3_Projects_03),\"\",dms_E3_Projects_03)","v":"3049 MAJOR PROJECTS - CRANBOURNE EAST"}]
[null,{"$f":"IF(ISBLANK(dms_E3_Projects_04),\"\",dms_E3_Projects_04)","v":"3106 MAJOR PROJECTS - H07 CRANBOURNE HP AUGMENTATION"}]
[null,{"$f":"IF(ISBLANK(dms_E3_Projects_05),\"\",dms_E3_Projects_05)","v":"5"}]
[null,{"$f":"IF(ISBLANK(dms_E3_Projects_06),\"\",dms_E3_Projects_06)","v":"6"}]
[null,{"$f":"IF(ISBLANK(dms_E3_Projects_07),\"\",dms_E3_Projects_07)","v":"7"}]
[null,{"$f":"IF(ISBLANK(dms_E3_Projects_08),\"\",dms_E3_Projects_08)","v":"8"}]
[null,{"$f":"IF(ISBLANK(dms_E3_Projects_09),\"\",dms_E3_Projects_09)","v":"9"}]
[null,{"$f":"IF(ISBLANK(dms_E3_Projects_10),\"\",dms_E3_Projects_10)","v":"10"}]
[null,{"$f":"IF(ISBLANK(dms_E3_Projects_11),\"\",dms_E3_Projects_11)","v":"11"}]
[null,{"$f":"IF(ISBLANK(dms_E3_Projects_12),\"\",dms_E3_Projects_12)","v":"12"}]
[null,{"$f":"IF(ISBLANK(dms_E3_Projects_13),\"\",dms_E3_Projects_13)","v":"13"}]
[null,{"$f":"IF(ISBLANK(dms_E3_Projects_14),\"\",dms_E3_Projects_14)","v":"14"}]
[null,{"$f":"IF(ISBLANK(dms_E3_Projects_15),\"\",dms_E3_Projects_15)","v":"15"}]
[null,{"$f":"IF(ISBLANK(dms_E3_Projects_16),\"\",dms_E3_Projects_16)","v":"16"}]
[null,{"$f":"IF(ISBLANK(dms_E3_Projects_17),\"\",dms_E3_Projects_17)","v":"17"}]
[null,{"$f":"IF(ISBLANK(dms_E3_Projects_18),\"\",dms_E3_Projects_18)","v":"18"}]
[null,{"$f":"IF(ISBLANK(dms_E3_Projects_19),\"\",dms_E3_Projects_19)","v":"19"}]
[null,{"$f":"IF(ISBLANK(dms_E3_Projects_20),\"\",dms_E3_Projects_20)","v":"20"}]
[null,{"$f":"IF(ISBLANK(dms_E3_Projects_21),\"\",dms_E3_Projects_21)","v":"21"}]
[null,{"$f":"IF(ISBLANK(dms_E3_Projects_22),\"\",dms_E3_Projects_22)","v":"22"}]
[null,{"$f":"IF(ISBLANK(dms_E3_Projects_23),\"\",dms_E3_Projects_23)","v":"23"}]
[null,{"$f":"IF(ISBLANK(dms_E3_Projects_24),\"\",dms_E3_Projects_24)","v":"24"}]
[null,{"$f":"IF(ISBLANK(dms_E3_Projects_25),\"\",dms_E3_Projects_25)","v":"25"}]
[null,{"$f":"IF(ISBLANK(dms_E3_Projects_25),\"\",dms_E3_Projects_26)","v":"26"}]
[null,{"$f":"IF(ISBLANK(dms_E3_Projects_27),\"\",dms_E3_Projects_27)","v":"27"}]
[null,{"$f":"IF(ISBLANK(dms_E3_Projects_28),\"\",dms_E3_Projects_28)","v":"28"}]
[null,{"$f":"IF(ISBLANK(dms_E3_Projects_29),\"\",dms_E3_Projects_29)","v":"29"}]
[null,{"$f":"IF(ISBLANK(dms_E3_Projects_30),\"\",dms_E3_Projects_30)","v":"30"}]
[null,{"$f":"IF(ISBLANK(dms_E3_Projects_31),\"\",dms_E3_Projects_31)","v":"31"}]
[null,{"$f":"IF(ISBLANK(dms_E3_Projects_32),\"\",dms_E3_Projects_32)","v":"32"}]
[null,{"$f":"IF(ISBLANK(dms_E3_Projects_33),\"\",dms_E3_Projects_33)","v":"33"}]
[null,{"$f":"IF(ISBLANK(dms_E3_Projects_34),\"\",dms_E3_Projects_34)","v":"34"}]
[null,{"$f":"IF(ISBLANK(dms_E3_Projects_35),\"\",dms_E3_Projects_35)","v":"35"}]
[null,{"$f":"IF(ISBLANK(dms_E3_Projects_36),\"\",dms_E3_Projects_36)","v":"36"}]
[null,{"$f":"IF(ISBLANK(dms_E3_Projects_37),\"\",dms_E3_Projects_37)","v":"37"}]
[null,{"$f":"IF(ISBLANK(dms_E3_Projects_38),\"\",dms_E3_Projects_38)","v":"38"}]
[null,{"$f":"IF(ISBLANK(dms_E3_Projects_39),\"\",dms_E3_Projects_39)","v":"39"}]
[null,{"$f":"IF(ISBLANK(dms_E3_Projects_40),\"\",dms_E3_Projects_40)","v":"40"}]
[null,{"$f":"IF(ISBLANK(dms_E3_Projects_41),\"\",dms_E3_Projects_41)","v":"41"}]
[null,{"$f":"IF(ISBLANK(dms_E3_Projects_42),\"\",dms_E3_Projects_42)","v":"42"}]
[null,{"$f":"IF(ISBLANK(dms_E3_Projects_43),\"\",dms_E3_Projects_43)","v":"43"}]
[null,{"$f":"IF(ISBLANK(dms_E3_Projects_44),\"\",dms_E3_Projects_44)","v":"44"}]
[null,{"$f":"IF(ISBLANK(dms_E3_Projects_45),\"\",dms_E3_Projects_45)","v":"45"}]
[null,{"$f":"IF(ISBLANK(dms_E3_Projects_46),\"\",dms_E3_Projects_46)","v":"46"}]
[null,{"$f":"IF(ISBLANK(dms_E3_Projects_47),\"\",dms_E3_Projects_47)","v":"47"}]
[null,{"$f":"IF(ISBLANK(dms_E3_Projects_48),\"\",dms_E3_Projects_48)","v":"48"}]
[null,{"$f":"IF(ISBLANK(dms_E3_Projects_49),\"\",dms_E3_Projects_49)","v":"49"}]
[null,{"$f":"IF(ISBLANK(dms_E3_Projects_50),\"\",dms_E3_Projects_50)","v":"50"}]
[null,"Aggregate of other projects with total expenditure of less than $500,000"]
[null,"Total",{"$f":"SUM(C638:C688)","v":0},{"$f":"SUM(D638:D688)","v":0},{"$f":"SUM(E638:E688)","v":0},{"$f":"SUM(F638:F688)","v":0},{"$f":"SUM(G638:G688)","v":0}]
[]
[null,"F. HIGH PRESSURE TO HIGH PRESSURE"]
[null,null,"LENGTH"]
[null,null,"0s, metres"]
[null,null,{"$f":"dms_y1","v":2017},{"$f":"dms_y2","v":2018},{"$f":"dms_y3","v":2019},{"$f":"dms_y4","v":2020},{"$f":"dms_y5","v":2021}]
[null,{"$f":"IF(ISBLANK(dms_E3_Projects_01),\"\",dms_E3_Projects_01)","v":"3055 MAJOR PROJECTS - PLENTY VALLEY NETWORK AUGMENTATION"}]
[null,{"$f":"IF(ISBLANK(dms_E3_Projects_02),\"\",dms_E3_Projects_02)","v":"3093 MAJOR PROJECTS - DANDENONG TO CRIB POINT DUPLICATION"}]
[null,{"$f":"IF(ISBLANK(dms_E3_Projects_03),\"\",dms_E3_Projects_03)","v":"3049 MAJOR PROJECTS - CRANBOURNE EAST"}]
[null,{"$f":"IF(ISBLANK(dms_E3_Projects_04),\"\",dms_E3_Projects_04)","v":"3106 MAJOR PROJECTS - H07 CRANBOURNE HP AUGMENTATION"}]
[null,{"$f":"IF(ISBLANK(dms_E3_Projects_05),\"\",dms_E3_Projects_05)","v":"5"}]
[null,{"$f":"IF(ISBLANK(dms_E3_Projects_06),\"\",dms_E3_Projects_06)","v":"6"}]
[null,{"$f":"IF(ISBLANK(dms_E3_Projects_07),\"\",dms_E3_Projects_07)","v":"7"}]
[null,{"$f":"IF(ISBLANK(dms_E3_Projects_08),\"\",dms_E3_Projects_08)","v":"8"}]
[null,{"$f":"IF(ISBLANK(dms_E3_Projects_09),\"\",dms_E3_Projects_09)","v":"9"}]
[null,{"$f":"IF(ISBLANK(dms_E3_Projects_10),\"\",dms_E3_Projects_10)","v":"10"}]
[null,{"$f":"IF(ISBLANK(dms_E3_Projects_11),\"\",dms_E3_Projects_11)","v":"11"}]
[null,{"$f":"IF(ISBLANK(dms_E3_Projects_12),\"\",dms_E3_Projects_12)","v":"12"}]
[null,{"$f":"IF(ISBLANK(dms_E3_Projects_13),\"\",dms_E3_Projects_13)","v":"13"}]
[null,{"$f":"IF(ISBLANK(dms_E3_Projects_14),\"\",dms_E3_Projects_14)","v":"14"}]
[null,{"$f":"IF(ISBLANK(dms_E3_Projects_15),\"\",dms_E3_Projects_15)","v":"15"}]
[null,{"$f":"IF(ISBLANK(dms_E3_Projects_16),\"\",dms_E3_Projects_16)","v":"16"}]
[null,{"$f":"IF(ISBLANK(dms_E3_Projects_17),\"\",dms_E3_Projects_17)","v":"17"}]
[null,{"$f":"IF(ISBLANK(dms_E3_Projects_18),\"\",dms_E3_Projects_18)","v":"18"}]
[null,{"$f":"IF(ISBLANK(dms_E3_Projects_19),\"\",dms_E3_Projects_19)","v":"19"}]
[null,{"$f":"IF(ISBLANK(dms_E3_Projects_20),\"\",dms_E3_Projects_20)","v":"20"}]
[null,{"$f":"IF(ISBLANK(dms_E3_Projects_21),\"\",dms_E3_Projects_21)","v":"21"}]
[null,{"$f":"IF(ISBLANK(dms_E3_Projects_22),\"\",dms_E3_Projects_22)","v":"22"}]
[null,{"$f":"IF(ISBLANK(dms_E3_Projects_23),\"\",dms_E3_Projects_23)","v":"23"}]
[null,{"$f":"IF(ISBLANK(dms_E3_Projects_24),\"\",dms_E3_Projects_24)","v":"24"}]
[null,{"$f":"IF(ISBLANK(dms_E3_Projects_25),\"\",dms_E3_Projects_25)","v":"25"}]
[null,{"$f":"IF(ISBLANK(dms_E3_Projects_25),\"\",dms_E3_Projects_26)","v":"26"}]
[null,{"$f":"IF(ISBLANK(dms_E3_Projects_27),\"\",dms_E3_Projects_27)","v":"27"}]
[null,{"$f":"IF(ISBLANK(dms_E3_Projects_28),\"\",dms_E3_Projects_28)","v":"28"}]
[null,{"$f":"IF(ISBLANK(dms_E3_Projects_29),\"\",dms_E3_Projects_29)","v":"29"}]
[null,{"$f":"IF(ISBLANK(dms_E3_Projects_30),\"\",dms_E3_Projects_30)","v":"30"}]
[null,{"$f":"IF(ISBLANK(dms_E3_Projects_31),\"\",dms_E3_Projects_31)","v":"31"}]
[null,{"$f":"IF(ISBLANK(dms_E3_Projects_32),\"\",dms_E3_Projects_32)","v":"32"}]
[null,{"$f":"IF(ISBLANK(dms_E3_Projects_33),\"\",dms_E3_Projects_33)","v":"33"}]
[null,{"$f":"IF(ISBLANK(dms_E3_Projects_34),\"\",dms_E3_Projects_34)","v":"34"}]
[null,{"$f":"IF(ISBLANK(dms_E3_Projects_35),\"\",dms_E3_Projects_35)","v":"35"}]
[null,{"$f":"IF(ISBLANK(dms_E3_Projects_36),\"\",dms_E3_Projects_36)","v":"36"}]
[null,{"$f":"IF(ISBLANK(dms_E3_Projects_37),\"\",dms_E3_Projects_37)","v":"37"}]
[null,{"$f":"IF(ISBLANK(dms_E3_Projects_38),\"\",dms_E3_Projects_38)","v":"38"}]
[null,{"$f":"IF(ISBLANK(dms_E3_Projects_39),\"\",dms_E3_Projects_39)","v":"39"}]
[null,{"$f":"IF(ISBLANK(dms_E3_Projects_40),\"\",dms_E3_Projects_40)","v":"40"}]
[null,{"$f":"IF(ISBLANK(dms_E3_Projects_41),\"\",dms_E3_Projects_41)","v":"41"}]
[null,{"$f":"IF(ISBLANK(dms_E3_Projects_42),\"\",dms_E3_Projects_42)","v":"42"}]
[null,{"$f":"IF(ISBLANK(dms_E3_Projects_43),\"\",dms_E3_Projects_43)","v":"43"}]
[null,{"$f":"IF(ISBLANK(dms_E3_Projects_44),\"\",dms_E3_Projects_44)","v":"44"}]
[null,{"$f":"IF(ISBLANK(dms_E3_Projects_45),\"\",dms_E3_Projects_45)","v":"45"}]
[null,{"$f":"IF(ISBLANK(dms_E3_Projects_46),\"\",dms_E3_Projects_46)","v":"46"}]
[null,{"$f":"IF(ISBLANK(dms_E3_Projects_47),\"\",dms_E3_Projects_47)","v":"47"}]
[null,{"$f":"IF(ISBLANK(dms_E3_Projects_48),\"\",dms_E3_Projects_48)","v":"48"}]
[null,{"$f":"IF(ISBLANK(dms_E3_Projects_49),\"\",dms_E3_Projects_49)","v":"49"}]
[null,{"$f":"IF(ISBLANK(dms_E3_Projects_50),\"\",dms_E3_Projects_50)","v":"50"}]
[null,"Aggregate of other projects with total expenditure of less than $500,000"]
[null,"Total",{"$f":"SUM(C695:C745)","v":0},{"$f":"SUM(D695:D745)","v":0},{"$f":"SUM(E695:E745)","v":0},{"$f":"SUM(F695:F745)","v":0},{"$f":"SUM(G695:G745)","v":0}]

{"sheet":"E4. Meter replacement","index":9,"n_rows":207,"n_cols":7,"rows_kept":207,"cut":false,"hidden":false,"merged":[]}
[null,{"$f":"INDEX(dms_Worksheet_List,MATCH(dms_Model,dms_Model_List))","v":"HISTORICAL ANNUAL REPORTING"}]
[null,{"$f":"dms_TradingName","v":"AGN (Albury and Victoria)"}]
[null,{"$f":"dms_Header_Span","v":"2017 to 2021"}]
[null,"E4. METER REPLACEMENT"]
[]
[null,"E4.1 - CAPEX"]
[null,"E4.1.1 - NEW METERS ACQUIRED"]
[null,null,"EXPENDITURE"]
[null,null,"$0's, Nominal"]
[null,null,{"$f":"dms_y1","v":2017},{"$f":"dms_y2","v":2018},{"$f":"dms_y3","v":2019},{"$f":"dms_y4","v":2020},{"$f":"dms_y5","v":2021}]
[null,"A. DIRECT INTERNAL LABOUR EXPENDITURE"]
[null,"Residential"]
[null,"Industrial and Commercial"]
[null,"Other"]
[null,"Total",{"$f":"SUM(C12:C14)","v":0},{"$f":"SUM(D12:D14)","v":0},{"$f":"SUM(E12:E14)","v":0},{"$f":"SUM(F12:F14)","v":0},{"$f":"SUM(G12:G14)","v":0}]
[null,"B. DIRECT CONTRACTOR EXPENDITURE"]
[null,"Residential"]
[null,"Industrial and Commercial"]
[null,"Other"]
[null,"Total"]
[null,"C. DIRECT MATERIAL EXPENDITURE"]
[null,"Residential"]
[null,"Industrial and Commercial"]
[null,"Other"]
[null,"Total",{"$f":"SUM(C22:C24)","v":0},{"$f":"SUM(D22:D24)","v":0},{"$f":"SUM(E22:E24)","v":0},{"$f":"SUM(F22:F24)","v":0},{"$f":"SUM(G22:G24)","v":0}]
[null,"D. OTHER DIRECT EXPENDITURE"]
[null,"Residential"]
[null,"Industrial and Commercial"]
[null,"Other"]
[null,"Total"]
[null,"E. RELATED PARTY MARGIN EXPENDITURE"]
[null,"Residential"]
[null,"Industrial and Commercial"]
[null,"Other"]
[null,"Total",{"$f":"SUM(C32:C34)","v":0},{"$f":"SUM(D32:D34)","v":0},{"$f":"SUM(E32:E34)","v":0},{"$f":"SUM(F32:F34)","v":0},{"$f":"SUM(G32:G34)","v":0}]
[null,"F. CAPITAL CONTRIBUTIONS included in the above"]
[null,"Residential"]
[null,"Industrial and Commercial"]
[null,"Other"]
[null,"Total",{"$f":"SUM(C37:C39)","v":0},{"$f":"SUM(D37:D39)","v":0},{"$f":"SUM(E37:E39)","v":0},{"$f":"SUM(F37:F39)","v":0},{"$f":"SUM(G37:G39)","v":0}]
[null,"TOTAL"]
[]
[null,"E4.1.2 - METER REFURBISHMENT"]
[null,null,"EXPENDITURE"]
[null,null,"$0's, Nominal"]
[null,null,{"$f":"dms_y1","v":2017},{"$f":"dms_y2","v":2018},{"$f":"dms_y3","v":2019},{"$f":"dms_y4","v":2020},{"$f":"dms_y5","v":2021}]
[null,"A. DIRECT INTERNAL LABOUR EXPENDITURE"]
[null,"Residential"]
[null,"Industrial and Commercial"]
[null,"Other"]
[null,"Total",{"$f":"SUM(C48:C50)","v":0},{"$f":"SUM(D48:D50)","v":0},{"$f":"SUM(E48:E50)","v":0},{"$f":"SUM(F48:F50)","v":0},{"$f":"SUM(G48:G50)","v":0}]
[null,"B. DIRECT CONTRACTOR EXPENDITURE"]
[null,"Residential"]
[null,"Industrial and Commercial"]
[null,"Other"]
[null,"Total"]
[null,"C. DIRECT MATERIAL EXPENDITURE"]
[null,"Residential"]
[null,"Industrial and Commercial"]
[null,"Other"]
[null,"Total",{"$f":"SUM(C58:C60)","v":0},{"$f":"SUM(D58:D60)","v":0},{"$f":"SUM(E58:E60)","v":0},{"$f":"SUM(F58:F60)","v":0},{"$f":"SUM(G58:G60)","v":0}]
[null,"D. OTHER DIRECT EXPENDITURE"]
[null,"Residential"]
[null,"Industrial and Commercial"]
[null,"Other"]
[null,"Total"]
[null,"E. RELATED PARTY MARGIN EXPENDITURE"]
[null,"Residential"]
[null,"Industrial and Commercial"]
[null,"Other"]
[null,"Total",{"$f":"SUM(C68:C70)","v":0},{"$f":"SUM(D68:D70)","v":0},{"$f":"SUM(E68:E70)","v":0},{"$f":"SUM(F68:F70)","v":0},{"$f":"SUM(G68:G70)","v":0}]
[null,"F. CAPITAL CONTRIBUTIONS included in the above"]
[null,"Residential"]
[null,"Industrial and Commercial"]
[null,"Other"]
[null,"Total",{"$f":"SUM(C73:C75)","v":0},{"$f":"SUM(D73:D75)","v":0},{"$f":"SUM(E73:E75)","v":0},{"$f":"SUM(F73:F75)","v":0},{"$f":"SUM(G73:G75)","v":0}]
[null,"TOTAL"]
[]
[null,"E4.1.3 - METER INSTALLATION"]
[null,null,"EXPENDITURE"]
[null,null,"$0's, Nominal"]
[null,null,{"$f":"dms_y1","v":2017},{"$f":"dms_y2","v":2018},{"$f":"dms_y3","v":2019},{"$f":"dms_y4","v":2020},{"$f":"dms_y5","v":2021}]
[null,"A. DIRECT INTERNAL LABOUR EXPENDITURE"]
[null,"Residential"]
[null,"Industrial and Commercial"]
[null,"Other"]
[null,"Total",{"$f":"SUM(C84:C86)","v":0},{"$f":"SUM(D84:D86)","v":0},{"$f":"SUM(E84:E86)","v":0},{"$f":"SUM(F84:F86)","v":0},{"$f":"SUM(G84:G86)","v":0}]
[null,"B. DIRECT CONTRACTOR EXPENDITURE"]
[null,"Residential"]
[null,"Industrial and Commercial"]
[null,"Other"]
[null,"Total",{"$f":"SUM(C89:C91)","v":0},{"$f":"SUM(D89:D91)","v":0},{"$f":"SUM(E89:E91)","v":0},{"$f":"SUM(F89:F91)","v":0},{"$f":"SUM(G89:G91)","v":0}]
[null,"C. DIRECT MATERIAL EXPENDITURE"]
[null,"Residential"]
[null,"Industrial and Commercial"]
[null,"Other"]
[null,"Total",{"$f":"SUM(C94:C96)","v":0},{"$f":"SUM(D94:D96)","v":0},{"$f":"SUM(E94:E96)","v":0},{"$f":"SUM(F94:F96)","v":0},{"$f":"SUM(G94:G96)","v":0}]
[null,"D. OTHER DIRECT EXPENDITURE"]
[null,"Residential"]
[null,"Industrial and Commercial"]
[null,"Other"]
[null,"Total",{"$f":"SUM(C99:C101)","v":0},{"$f":"SUM(D99:D101)","v":0},{"$f":"SUM(E99:E101)","v":0},{"$f":"SUM(F99:F101)","v":0},{"$f":"SUM(G99:G101)","v":0}]
[null,"E. RELATED PARTY MARGIN EXPENDITURE"]
[null,"Residential"]
[null,"Industrial and Commercial"]
[null,"Other"]
[null,"Total",{"$f":"SUM(C104:C106)","v":0},{"$f":"SUM(D104:D106)","v":0},{"$f":"SUM(E104:E106)","v":0},{"$f":"SUM(F104:F106)","v":0},{"$f":"SUM(G104:G106)","v":0}]
[null,"F. CAPITAL CONTRIBUTIONS included in the above"]
[null,"Residential"]
[null,"Industrial and Commercial"]
[null,"Other"]
[null,"Total",{"$f":"SUM(C109:C111)","v":0},{"$f":"SUM(D109:D111)","v":0},{"$f":"SUM(E109:E111)","v":0},{"$f":"SUM(F109:F111)","v":0},{"$f":"SUM(G109:G111)","v":0}]
[null,"TOTAL",{"$f":"SUM(C87,C92,C97,C102,C107,C112)","v":0},{"$f":"SUM(D87,D92,D97,D102,D107,D112)","v":0},{"$f":"SUM(E87,E92,E97,E102,E107,E112)","v":0},{"$f":"SUM(F87,F92,F97,F102,F107,F112)","v":0},{"$f":"SUM(G87,G92,G97,G102,G107,G112)","v":0}]
[]
[null,"E4.1.4 - OTHER METER REPLACEMENT CAPEX"]
[null,null,"EXPENDITURE"]
[null,null,"$0's, Nominal"]
[null,null,{"$f":"dms_y1","v":2017},{"$f":"dms_y2","v":2018},{"$f":"dms_y3","v":2019},{"$f":"dms_y4","v":2020},{"$f":"dms_y5","v":2021}]
[null,"A. DIRECT INTERNAL LABOUR EXPENDITURE"]
[null,"Residential"]
[null,"Industrial and Commercial"]
[null,"Other"]
[null,"Total",{"$f":"SUM(C120:C122)","v":0},{"$f":"SUM(D120:D122)","v":0},{"$f":"SUM(E120:E122)","v":0},{"$f":"SUM(F120:F122)","v":0},{"$f":"SUM(G120:G122)","v":0}]
[null,"B. DIRECT CONTRACTOR EXPENDITURE"]
[null,"Residential"]
[null,"Industrial and Commercial"]
[null,"Other"]
[null,"Total",{"$f":"SUM(C125:C127)","v":0},{"$f":"SUM(D125:D127)","v":0},{"$f":"SUM(E125:E127)","v":0},{"$f":"SUM(F125:F127)","v":0},{"$f":"SUM(G125:G127)","v":0}]
[null,"C. DIRECT MATERIAL EXPENDITURE"]
[null,"Residential"]
[null,"Industrial and Commercial"]
[null,"Other"]
[null,"Total",{"$f":"SUM(C130:C132)","v":0},{"$f":"SUM(D130:D132)","v":0},{"$f":"SUM(E130:E132)","v":0},{"$f":"SUM(F130:F132)","v":0},{"$f":"SUM(G130:G132)","v":0}]
[null,"D. OTHER DIRECT EXPENDITURE"]
[null,"Residential"]
[null,"Industrial and Commercial"]
[null,"Other"]
[null,"Total",{"$f":"SUM(C135:C137)","v":0},{"$f":"SUM(D135:D137)","v":0},{"$f":"SUM(E135:E137)","v":0},{"$f":"SUM(F135:F137)","v":0},{"$f":"SUM(G135:G137)","v":0}]
[null,"E. RELATED PARTY MARGIN EXPENDITURE"]
[null,"Residential"]
[null,"Industrial and Commercial"]
[null,"Other"]
[null,"Total",{"$f":"SUM(C140:C142)","v":0},{"$f":"SUM(D140:D142)","v":0},{"$f":"SUM(E140:E142)","v":0},{"$f":"SUM(F140:F142)","v":0},{"$f":"SUM(G140:G142)","v":0}]
[null,"F. CAPITAL CONTRIBUTIONS included in the above"]
[null,"Residential"]
[null,"Industrial and Commercial"]
[null,"Other"]
[null,"Total",{"$f":"SUM(C145:C147)","v":0},{"$f":"SUM(D145:D147)","v":0},{"$f":"SUM(E145:E147)","v":0},{"$f":"SUM(F145:F147)","v":0},{"$f":"SUM(G145:G147)","v":0}]
[null,"TOTAL",{"$f":"SUM(C123,C128,C133,C138,C143,C148)","v":0},{"$f":"SUM(D123,D128,D133,D138,D143,D148)","v":0},{"$f":"SUM(E123,E128,E133,E138,E143,E148)","v":0},{"$f":"SUM(F123,F128,F133,F138,F143,F148)","v":0},{"$f":"SUM(G123,G128,G133,G138,G143,G148)","v":0}]
[]
[]
[null,"E4.2 - VOLUMES"]
[null,"E4.2.1 - NUMBER OF NEW METERS ACQUIRED"]
[null,null,"VOLUMES"]
[null,null,"0s"]
[null,null,{"$f":"dms_y1","v":2017},{"$f":"dms_y2","v":2018},{"$f":"dms_y3","v":2019},{"$f":"dms_y4","v":2020},{"$f":"dms_y5","v":2021}]
[null,"Residential",21642.799999999999,18797.38,18909.749999999996,19363.68,17411.258823529413]
[null,"Industrial and commercial",499.8,348.69,564.48,680.82,883.59405940594058]
[null,"Other"]
[null,"Total",{"$f":"SUM(C157:C159)","v":22142.6},{"$f":"SUM(D157:D159)","v":19146.07},{"$f":"SUM(E157:E159)","v":19474.229999999996},{"$f":"SUM(F157:F159)","v":20044.5},{"$f":"SUM(G157:G159)","v":18294.852882935353}]
[]
[]
[null,"E4.2.2 - NUMBER OF METERS REFURBISHED"]
[null,null,"VOLUMES"]
[null,null,"0s"]
[null,null,{"$f":"dms_y1","v":2017},{"$f":"dms_y2","v":2018},{"$f":"dms_y3","v":2019},{"$f":"dms_y4","v":2020},{"$f":"dms_y5","v":2021}]
[null,"A. REFURBISHABLE METERS REMOVED"]
[null,"Residential",13837.199999999999,19564.62,14265.250000000004,11372.320000000002,9906.7411764705867]
[null,"Industrial and commercial",333.2,242.31,587.52,940.18,1251.4059405940595]
[null,"Other",0,0,0,0,0]
[null,"Total",14170.4,19806.93,14852.770000000004,12312.500000000002,11158.147117064645]
[null,"B. METERS DECOMMISSIONED"]
[null,"Residential"]
[null,"Industrial and commercial"]
[null,"Other meters"]
[null,"Total"]
[null,"TOTAL"]
[]
[]
[null,"E4.2.3 - NUMBER OF METERS INSTALLED"]
[null,null,"VOLUMES"]
[null,null,"0s"]
[null,null,{"$f":"dms_y1","v":2017},{"$f":"dms_y2","v":2018},{"$f":"dms_y3","v":2019},{"$f":"dms_y4","v":2020},{"$f":"dms_y5","v":2021}]
[null,"Residential",35480,38362,33175,30736,27318]
[null,"Industrial and commercial",833,591,1152,1621,2135]
[null,"Other"]
[null,"Total",{"$f":"SUM(C184:C186)","v":36313},{"$f":"SUM(D184:D186)","v":38953},{"$f":"SUM(E184:E186)","v":34327},{"$f":"SUM(F184:F186)","v":32357},{"$f":"SUM(G184:G186)","v":29453}]
[]
[]
[null,"E4.2.4 - NUMBER OF METERS REMOVED / DECOMMISSIONED"]
[null,null,"VOLUMES"]
[null,null,"0s"]
[null,null,{"$f":"dms_y1","v":2017},{"$f":"dms_y2","v":2018},{"$f":"dms_y3","v":2019},{"$f":"dms_y4","v":2020},{"$f":"dms_y5","v":2021}]
[null,"Residential"]
[null,"Industrial and commercial"]
[null,"Other"]
[null,"Total",{"$f":"SUM(C194:C196)","v":0},{"$f":"SUM(D194:D196)","v":0},{"$f":"SUM(E194:E196)","v":0},{"$f":"SUM(F194:F196)","v":0},{"$f":"SUM(G194:G196)","v":0}]
[]
[]
[null,"E4.2.5 - OTHER METER REPLACEMENT VOLUMES"]
[null,null,"VOLUMES"]
[null,null,"0s"]
[null,null,{"$f":"dms_y1","v":2017},{"$f":"dms_y2","v":2018},{"$f":"dms_y3","v":2019},{"$f":"dms_y4","v":2020},{"$f":"dms_y5","v":2021}]
[null,"Residential"]
[null,"Industrial and commercial"]
[null,"Other"]
[null,"Total",{"$f":"SUM(C204:C206)","v":0},{"$f":"SUM(D204:D206)","v":0},{"$f":"SUM(E204:E206)","v":0},{"$f":"SUM(F204:F206)","v":0},{"$f":"SUM(G204:G206)","v":0}]

{"sheet":"E5. New Connections","index":10,"n_rows":284,"n_cols":8,"rows_kept":284,"cut":false,"hidden":false,"merged":[]}
[null,{"$f":"INDEX(dms_Worksheet_List,MATCH(dms_Model,dms_Model_List))","v":"HISTORICAL ANNUAL REPORTING"}]
[null,{"$f":"dms_TradingName","v":"AGN (Albury and Victoria)"}]
[null,{"$f":"dms_Header_Span","v":"2017 to 2021"}]
[null,"E5. NEW CONNECTIONS"]
[]
[null,"E5.1 - EXPENDITURE"]
[null,"E5.1.1 - CAPEX - BY CONNECTION TYPE"]
[null,"A. DIRECT INTERNAL LABOUR EXPENDITURE"]
[null,null,null,"EXPENDITURE"]
[null,null,null,"$0's, Nominal"]
[null,null,null,{"$f":"dms_y1","v":2017},{"$f":"dms_y2","v":2018},{"$f":"dms_y3","v":2019},{"$f":"dms_y4","v":2020},{"$f":"dms_y5","v":2021}]
[null,"(i)  ELECTRICITY TO GAS"]
[null,"Distribution Mains"]
[null,"Inlet service pipes"]
[null,"Meters"]
[null,null,"Total",{"$f":"SUM(D13:D15)","v":0},{"$f":"SUM(E13:E15)","v":0},{"$f":"SUM(F13:F15)","v":0},{"$f":"SUM(G13:G15)","v":0},{"$f":"SUM(H13:H15)","v":0}]
[null,"(ii)  NEW HOMES"]
[null,"Distribution Mains"]
[null,"Inlet service pipes"]
[null,"Meters"]
[null,null,"Total",{"$f":"SUM(D18:D20)","v":0},{"$f":"SUM(E18:E20)","v":0},{"$f":"SUM(F18:F20)","v":0},{"$f":"SUM(G18:G20)","v":0},{"$f":"SUM(H18:H20)","v":0}]
[null,"(iii)  NEW MEDIUM DENSITY / HIGH RISE"]
[null,"Distribution Mains"]
[null,"Inlet service pipes"]
[null,"Meters"]
[null,null,"Total",{"$f":"SUM(D23:D25)","v":0},{"$f":"SUM(E23:E25)","v":0},{"$f":"SUM(F23:F25)","v":0},{"$f":"SUM(G23:G25)","v":0},{"$f":"SUM(H23:H25)","v":0}]
[null,"(iv)  INDUSTRIAL & COMMERCIAL TARIFF"]
[null,"Distribution Mains"]
[null,"Inlet service pipes"]
[null,"Meters"]
[null,null,"Total",{"$f":"SUM(D28:D30)","v":0},{"$f":"SUM(E28:E30)","v":0},{"$f":"SUM(F28:F30)","v":0},{"$f":"SUM(G28:G30)","v":0},{"$f":"SUM(H28:H30)","v":0}]
[null,"(v)  INDUSTRIAL & COMMERCIAL CONTRACT"]
[null,"Distribution Mains"]
[null,"Inlet service pipes"]
[null,"Meters"]
[null,null,"Total",{"$f":"SUM(D33:D35)","v":0},{"$f":"SUM(E33:E35)","v":0},{"$f":"SUM(F33:F35)","v":0},{"$f":"SUM(G33:G35)","v":0},{"$f":"SUM(H33:H35)","v":0}]
[null,null,"TOTAL",{"$f":"SUM(D36,D31,D26,D21,D16)","v":0},{"$f":"SUM(E36,E31,E26,E21,E16)","v":0},{"$f":"SUM(F36,F31,F26,F21,F16)","v":0},{"$f":"SUM(G36,G31,G26,G21,G16)","v":0},{"$f":"SUM(H36,H31,H26,H21,H16)","v":0}]
[]
[null,"B. DIRECT CONTRACTOR EXPENDITURE"]
[null,null,null,"EXPENDITURE"]
[null,null,null,"$0's, Nominal"]
[null,null,null,{"$f":"dms_y1","v":2017},{"$f":"dms_y2","v":2018},{"$f":"dms_y3","v":2019},{"$f":"dms_y4","v":2020},{"$f":"dms_y5","v":2021}]
[null,"(i)  ELECTRICITY TO GAS"]
[null,"Distribution Mains"]
[null,"Inlet service pipes"]
[null,"Meters"]
[null,null,"Total"]
[null,"(ii)  NEW HOMES"]
[null,"Distribution Mains"]
[null,"Inlet service pipes"]
[null,"Meters"]
[null,null,"Total"]
[null,"(iii)  NEW MEDIUM DENSITY / HIGH RISE"]
[null,"Distribution Mains"]
[null,"Inlet service pipes"]
[null,"Meters"]
[null,null,"Total"]
[null,"(iv)  INDUSTRIAL & COMMERCIAL TARIFF"]
[null,"Distribution Mains"]
[null,"Inlet service pipes"]
[null,"Meters"]
[null,null,"Total"]
[null,"(v)  INDUSTRIAL & COMMERCIAL CONTRACT"]
[null,"Distribution Mains"]
[null,"Inlet service pipes"]
[null,"Meters"]
[null,null,"Total"]
[null,null,"TOTAL"]
[]
[null,"C. DIRECT MATERIAL EXPENDITURE"]
[null,null,null,"EXPENDITURE"]
[null,null,null,"$0's, Nominal"]
[null,null,null,{"$f":"dms_y1","v":2017},{"$f":"dms_y2","v":2018},{"$f":"dms_y3","v":2019},{"$f":"dms_y4","v":2020},{"$f":"dms_y5","v":2021}]
[null,"(i)  ELECTRICITY TO GAS"]
[null,"Distribution Mains"]
[null,"Inlet service pipes"]
[null,"Meters"]
[null,null,"Total",{"$f":"SUM(D75:D77)","v":0},{"$f":"SUM(E75:E77)","v":0},{"$f":"SUM(F75:F77)","v":0},{"$f":"SUM(G75:G77)","v":0},{"$f":"SUM(H75:H77)","v":0}]
[null,"(ii)  NEW HOMES"]
[null,"Distribution Mains"]
[null,"Inlet service pipes"]
[null,"Meters"]
[null,null,"Total",{"$f":"SUM(D80:D82)","v":0},{"$f":"SUM(E80:E82)","v":0},{"$f":"SUM(F80:F82)","v":0},{"$f":"SUM(G80:G82)","v":0},{"$f":"SUM(H80:H82)","v":0}]
[null,"(iii)  NEW MEDIUM DENSITY / HIGH RISE"]
[null,"Distribution Mains"]
[null,"Inlet service pipes"]
[null,"Meters"]
[null,null,"Total",{"$f":"SUM(D85:D87)","v":0},{"$f":"SUM(E85:E87)","v":0},{"$f":"SUM(F85:F87)","v":0},{"$f":"SUM(G85:G87)","v":0},{"$f":"SUM(H85:H87)","v":0}]
[null,"(iv)  INDUSTRIAL & COMMERCIAL TARIFF"]
[null,"Distribution Mains"]
[null,"Inlet service pipes"]
[null,"Meters"]
[null,null,"Total",{"$f":"SUM(D90:D92)","v":0},{"$f":"SUM(E90:E92)","v":0},{"$f":"SUM(F90:F92)","v":0},{"$f":"SUM(G90:G92)","v":0},{"$f":"SUM(H90:H92)","v":0}]
[null,"(v)  INDUSTRIAL & COMMERCIAL CONTRACT"]
[null,"Distribution Mains"]
[null,"Inlet service pipes"]
[null,"Meters"]
[null,null,"Total",{"$f":"SUM(D95:D97)","v":0},{"$f":"SUM(E95:E97)","v":0},{"$f":"SUM(F95:F97)","v":0},{"$f":"SUM(G95:G97)","v":0},{"$f":"SUM(H95:H97)","v":0}]
[null,null,"TOTAL",{"$f":"SUM(D98,D93,D88,D83,D78)","v":0},{"$f":"SUM(E98,E93,E88,E83,E78)","v":0},{"$f":"SUM(F98,F93,F88,F83,F78)","v":0},{"$f":"SUM(G98,G93,G88,G83,G78)","v":0},{"$f":"SUM(H98,H93,H88,H83,H78)","v":0}]
[]
[null,"D. OTHER DIRECT EXPENDITURE"]
[null,null,null,"EXPENDITURE"]
[null,null,null,"$0's, Nominal"]
[null,null,null,{"$f":"dms_y1","v":2017},{"$f":"dms_y2","v":2018},{"$f":"dms_y3","v":2019},{"$f":"dms_y4","v":2020},{"$f":"dms_y5","v":2021}]
[null,"(i)  ELECTRICITY TO GAS"]
[null,"Distribution Mains"]
[null,"Inlet service pipes"]
[null,"Meters"]
[null,null,"Total"]
[null,"(ii)  NEW HOMES"]
[null,"Distribution Mains"]
[null,"Inlet service pipes"]
[null,"Meters"]
[null,null,"Total"]
[null,"(iii)  NEW MEDIUM DENSITY / HIGH RISE"]
[null,"Distribution Mains"]
[null,"Inlet service pipes"]
[null,"Meters"]
[null,null,"Total"]
[null,"(iv)  INDUSTRIAL & COMMERCIAL TARIFF"]
[null,"Distribution Mains"]
[null,"Inlet service pipes"]
[null,"Meters"]
[null,null,"Total"]
[null,"(v)  INDUSTRIAL & COMMERCIAL CONTRACT"]
[null,"Distribution Mains"]
[null,"Inlet service pipes"]
[null,"Meters"]
[null,null,"Total"]
[null,null,"TOTAL"]
[]
[null,"E. RELATED PARTY MARGIN EXPENDITURE"]
[null,null,null,"EXPENDITURE"]
[null,null,null,"$0's, Nominal"]
[null,null,null,{"$f":"dms_y1","v":2017},{"$f":"dms_y2","v":2018},{"$f":"dms_y3","v":2019},{"$f":"dms_y4","v":2020},{"$f":"dms_y5","v":2021}]
[null,"(i)  ELECTRICITY TO GAS"]
[null,"Distribution Mains"]
[null,"Inlet service pipes"]
[null,"Meters"]
[null,null,"Total",{"$f":"SUM(D137:D139)","v":0},{"$f":"SUM(E137:E139)","v":0},{"$f":"SUM(F137:F139)","v":0},{"$f":"SUM(G137:G139)","v":0},{"$f":"SUM(H137:H139)","v":0}]
[null,"(ii)  NEW HOMES"]
[null,"Distribution Mains"]
[null,"Inlet service pipes"]
[null,"Meters"]
[null,null,"Total",{"$f":"SUM(D142:D144)","v":0},{"$f":"SUM(E142:E144)","v":0},{"$f":"SUM(F142:F144)","v":0},{"$f":"SUM(G142:G144)","v":0},{"$f":"SUM(H142:H144)","v":0}]
[null,"(iii)  NEW MEDIUM DENSITY / HIGH RISE"]
[null,"Distribution Mains"]
[null,"Inlet service pipes"]
[null,"Meters"]
[null,null,"Total",{"$f":"SUM(D147:D149)","v":0},{"$f":"SUM(E147:E149)","v":0},{"$f":"SUM(F147:F149)","v":0},{"$f":"SUM(G147:G149)","v":0},{"$f":"SUM(H147:H149)","v":0}]
[null,"(iv)  INDUSTRIAL & COMMERCIAL TARIFF"]
[null,"Distribution Mains"]
[null,"Inlet service pipes"]
[null,"Meters"]
[null,null,"Total",{"$f":"SUM(D152:D154)","v":0},{"$f":"SUM(E152:E154)","v":0},{"$f":"SUM(F152:F154)","v":0},{"$f":"SUM(G152:G154)","v":0},{"$f":"SUM(H152:H154)","v":0}]
[null,"(v)  INDUSTRIAL & COMMERCIAL CONTRACT"]
[null,"Distribution Mains"]
[null,"Inlet service pipes"]
[null,"Meters"]
[null,null,"Total",{"$f":"SUM(D157:D159)","v":0},{"$f":"SUM(E157:E159)","v":0},{"$f":"SUM(F157:F159)","v":0},{"$f":"SUM(G157:G159)","v":0},{"$f":"SUM(H157:H159)","v":0}]
[null,null,"TOTAL",{"$f":"SUM(D160,D155,D150,D145,D140)","v":0},{"$f":"SUM(E160,E155,E150,E145,E140)","v":0},{"$f":"SUM(F160,F155,F150,F145,F140)","v":0},{"$f":"SUM(G160,G155,G150,G145,G140)","v":0},{"$f":"SUM(H160,H155,H150,H145,H140)","v":0}]
[]
[null,"F. CAPITAL CONTRIBUTIONS included in the above"]
[null,null,null,"EXPENDITURE"]
[null,null,null,"$0's, Nominal"]
[null,null,null,{"$f":"dms_y1","v":2017},{"$f":"dms_y2","v":2018},{"$f":"dms_y3","v":2019},{"$f":"dms_y4","v":2020},{"$f":"dms_y5","v":2021}]
[null,"(i)  ELECTRICITY TO GAS"]
[null,"Distribution Mains"]
[null,"Inlet service pipes"]
[null,"Meters"]
[null,null,"Total",{"$f":"SUM(D168:D170)","v":0},{"$f":"SUM(E168:E170)","v":0},{"$f":"SUM(F168:F170)","v":0},{"$f":"SUM(G168:G170)","v":0},{"$f":"SUM(H168:H170)","v":0}]
[null,"(ii)  NEW HOMES"]
[null,"Distribution Mains",null,3856822.9892307692,1331598.7685959237,1667564.6646153801,1406697.1598282421,2330864.5042469827]
[null,"Inlet service pipes",null,0,0,0,0,0]
[null,"Meters",null,0,0,0,27721.516579543484,1563267.6381101275]
[null,null,"Total",{"$f":"SUM(D173:D175)","v":3856822.9892307692},{"$f":"SUM(E173:E175)","v":1331598.7685959237},{"$f":"SUM(F173:F175)","v":1667564.6646153801},{"$f":"SUM(G173:G175)","v":1434418.6764077856},{"$f":"SUM(H173:H175)","v":3894132.14235711}]
[null,"(iii)  NEW MEDIUM DENSITY / HIGH RISE"]
[null,"Distribution Mains"]
[null,"Inlet service pipes"]
[null,"Meters"]
[null,null,"Total",{"$f":"SUM(D178:D180)","v":0},{"$f":"SUM(E178:E180)","v":0},{"$f":"SUM(F178:F180)","v":0},{"$f":"SUM(G178:G180)","v":0},{"$f":"SUM(H178:H180)","v":0}]
[null,"(iv)  INDUSTRIAL & COMMERCIAL TARIFF"]
[null,"Distribution Mains"]
[null,"Inlet service pipes"]
[null,"Meters"]
[null,null,"Total",{"$f":"SUM(D183:D185)","v":0},{"$f":"SUM(E183:E185)","v":0},{"$f":"SUM(F183:F185)","v":0},{"$f":"SUM(G183:G185)","v":0},{"$f":"SUM(H183:H185)","v":0}]
[null,"(v)  INDUSTRIAL & COMMERCIAL CONTRACT"]
[null,"Distribution Mains",null,30379.058130790319,762547.65869019541,1721617.9654011794,3273710.4222022039,3684177.8867687788]
[null,"Inlet service pipes",null,197053.0759261378,121653.48661207454,340531.95192848978,290497.3785489435,201522.72068324347]
[null,"Meters",null,348302.50132291776,390048.44427327125,250035.54281309032,540171.16463117732,121391.28093371556]
[null,null,"Total",{"$f":"SUM(D188:D190)","v":575734.63537984586},{"$f":"SUM(E188:E190)","v":1274249.5895755412},{"$f":"SUM(F188:F190)","v":2312185.4601427596},{"$f":"SUM(G188:G190)","v":4104378.9653823245},{"$f":"SUM(H188:H190)","v":4007091.8883857378}]
[null,null,"TOTAL",{"$f":"SUM(D191,D186,D181,D176,D171)","v":4432557.624610615},{"$f":"SUM(E191,E186,E181,E176,E171)","v":2605848.3581714649},{"$f":"SUM(F191,F186,F181,F176,F171)","v":3979750.1247581397},{"$f":"SUM(G191,G186,G181,G176,G171)","v":5538797.6417901106},{"$f":"SUM(H191,H186,H181,H176,H171)","v":7901224.0307428483}]
[]
[]
[null,"E5.2 - UNIT RATES"]
[null,"E5.2.1 - UNIT RATES - PER CONNECTION - BY CONNECTION TYPE"]
[null,null,null,"RATES PER CONNECTION"]
[null,null,null,"$0's, Nominal"]
[null,null,"Units",{"$f":"dms_y1","v":2017},{"$f":"dms_y2","v":2018},{"$f":"dms_y3","v":2019},{"$f":"dms_y4","v":2020},{"$f":"dms_y5","v":2021}]
[null,"A. ELECTRICITY TO GAS"]
[null,"Distribution mains","per metre per connection"]
[null,"Inlet service pipes","per service per connection"]
[null,"Meters","number per connection"]
[null,"B. NEW HOMES"]
[null,"Distribution mains","per metre per connection"]
[null,"Inlet service pipes","per service per connection"]
[null,"Meters","number per connection"]
[null,"C. NEW MEDIUM DENSITY / HIGH RISE"]
[null,"Distribution mains","per metre per connection"]
[null,"Inlet service pipes","per service per connection"]
[null,"Meters","number per connection"]
[null,"D. INDUSTRIAL & COMMERCIAL TARIFF"]
[null,"Distribution mains","per metre per connection"]
[null,"Inlet service pipes","per service per connection"]
[null,"Meters","number per connection"]
[null,"E. INDUSTRIAL & COMMERCIAL CONTRACT"]
[null,"Distribution mains","per metre per connection"]
[null,"Inlet service pipes","per service per connection"]
[null,"Meters","number per connection"]
[]
[]
[]
[]
[null,"E5.3 - VOLUMES"]
[null,"E5.3.1 - NUMBER OF NEW CONNECTIONS"]
[null,null,null,"VOLUMES"]
[null,null,null,"0s"]
[null,null,null,{"$f":"dms_y1","v":2017},{"$f":"dms_y2","v":2018},{"$f":"dms_y3","v":2019},{"$f":"dms_y4","v":2020},{"$f":"dms_y5","v":2021}]
[null,"Electricity to gas",null,737,578,480,495,370]
[null,"New homes",null,13738,15560,15469,13402,13470]
[null,"New medium density / high rise",null,2114,1627,1422,2136,1616]
[null,"Industrial and commericla tariff",null,422,464,415,324,301]
[null,"Industrial and commericla contract"]
[null,null,"Total",{"$f":"SUM(D229:D233)","v":17011},{"$f":"SUM(E229:E233)","v":18229},{"$f":"SUM(F229:F233)","v":17786},{"$f":"SUM(G229:G233)","v":16357},{"$f":"SUM(H229:H233)","v":15757}]
[]
[null,"E5.3.2 - VOLUMES - PER CONNECTION - BY CONNECTION TYPE"]
[null,null,null,"VOLUMES"]
[null,null,null,"0s"]
[null,null,"Units",{"$f":"dms_y1","v":2017},{"$f":"dms_y2","v":2018},{"$f":"dms_y3","v":2019},{"$f":"dms_y4","v":2020},{"$f":"dms_y5","v":2021}]
[null,"A. ELECTRICITY TO GAS"]
[null,"Distribution mains","metres per connection",17.552238805970148,12.697231833910035,14.477083333333333,10.692929292929293,4.5459459459459461]
[null,"Inlet service pipes","number per connection",1,1,1,1,1]
[null,"Meters","number per connection",1,1,1,1,1]
[null,"B. NEW HOMES"]
[null,"Distribution mains","metres per connection",14.238681030717718,12.216516709511568,11.832956235050746,15.552380241754962,11.139495174461766]
[null,"Inlet service pipes","number per connection",1,1,1,1,1]
[null,"Meters","number per connection",1,1,1,1,1]
[null,"C. NEW MEDIUM DENSITY / HIGH RISE"]
[null,"Distribution mains","metres per connection"]
[null,"Inlet service pipes","number per connection",1,1,1,1,1]
[null,"Meters","number per connection",6.3867069486404837,4.544692737430168,2.5529622980251347,4.5738758029978586,4.263852242744063]
[null,"D. INDUSTRIAL & COMMERCIAL TARIFF"]
[null,"Distribution mains","metres per connection",7.2369668246445498,10.228448275862069,7.8554216867469879,3.117283950617284,5.8073089700996681]
[null,"Inlet service pipes","number per connection",0.69668246445497628,0.70258620689655171,0.97590361445783136,0.68827160493827155,0.61794019933554822]
[null,"Meters","number per connection",1,1,1,1,1]
[null,"E. INDUSTRIAL & COMMERCIAL CONTRACT"]
[null,"Distribution mains","metres per connection"]
[null,"Inlet service pipes","number per connection",1,1,1,1,1]
[null,"Meters","number per connection",1,1,1,1,1]
[]
[]
[]
[null,"E5.4 -  CAPITAL CONTRIBUTIONS"]
[null,"E5.4.1 - VALUE OF CAPITAL CONTRIBUTIONS - BY CONNECTION TYPE"]
[null,null,null,"VALUE"]
[null,null,null,"$0's, Nominal"]
[null,null,null,{"$f":"dms_y1","v":2017},{"$f":"dms_y2","v":2018},{"$f":"dms_y3","v":2019},{"$f":"dms_y4","v":2020},{"$f":"dms_y5","v":2021}]
[null,"Electricity to gas",null,0,0,0,0,0]
[null,"New homes",null,3856822.9892307692,1331598.7685959237,1667564.6646153801,1434418.6764077856,3894132.14235711]
[null,"New medium density / high rise",null,0,0,0,0,0]
[null,"Industrial & commercial tariff",null,0,0,0,0,0]
[null,"Industrial & commercial contract",null,575734.63537984597,1274249.5895755412,2312185.4601427596,4104378.9653823245,4007091.8883857373]
[null,null,"Total",{"$f":"SUM(D268:D272)","v":4432557.624610615},{"$f":"SUM(E268:E272)","v":2605848.3581714649},{"$f":"SUM(F268:F272)","v":3979750.1247581397},{"$f":"SUM(G268:G272)","v":5538797.6417901106},{"$f":"SUM(H268:H272)","v":7901224.0307428474}]
[]
[null,"E5.4.2 - NUMBER OF CAPITAL CONTRIBUTIONS - BY CONNECTION TYPE"]
[null,null,null,"VOLUMES"]
[null,null,null,"0's"]
[null,null,null,{"$f":"dms_y1","v":2017},{"$f":"dms_y2","v":2018},{"$f":"dms_y3","v":2019},{"$f":"dms_y4","v":2020},{"$f":"dms_y5","v":2021}]
[null,"Electricity to gas"]
[null,"New homes"]
[null,"New medium density / high rise"]
[null,"Industrial & commercial tariff"]
[null,"Industrial & commercial contract"]
[null,null,"Total",{"$f":"SUM(D279:D283)","v":0},{"$f":"SUM(E279:E283)","v":0},{"$f":"SUM(F279:F283)","v":0},{"$f":"SUM(G279:G283)","v":0},{"$f":"SUM(H279:H283)","v":0}]

{"sheet":"E6. Non-network","index":11,"n_rows":142,"n_cols":7,"rows_kept":142,"cut":false,"hidden":false,"merged":[]}
[null,{"$f":"INDEX(dms_Worksheet_List,MATCH(dms_Model,dms_Model_List))","v":"HISTORICAL ANNUAL REPORTING"}]
[null,{"$f":"dms_TradingName","v":"AGN (Albury and Victoria)"}]
[null,{"$f":"dms_Header_Span","v":"2017 to 2021"}]
[null,"E6. NON-NETWORK EXPENDITURE"]
[]
[null,"E6.5 - TELEMETRY"]
[]
[null,"Please list all projects here:"]
[null,"Project 1"]
[]
[]
[]
[]
[]
[]
[]
[]
[]
[]
[]
[]
[]
[]
[]
[]
[null,"E6.5.1 - CAPEX - BY PROJECT"]
[null,"A. DIRECT INTERNAL LABOUR EXPENDITURE"]
[null,null,"EXPENDITURE"]
[null,null,"$0's, Nominal"]
[null,null,{"$f":"dms_y1","v":2017},{"$f":"dms_y2","v":2018},{"$f":"dms_y3","v":2019},{"$f":"dms_y4","v":2020},{"$f":"dms_y5","v":2021}]
[null,{"$f":"IF(ISBLANK(dms_E65_Projects_01),\"\",dms_E65_Projects_01)","v":"Project 1"}]
[null,{"$f":"IF(ISBLANK(dms_E65_Projects_02),\"\",dms_E65_Projects_02)","v":""}]
[null,{"$f":"IF(ISBLANK(dms_E65_Projects_03),\"\",dms_E65_Projects_03)","v":""}]
[null,{"$f":"IF(ISBLANK(dms_E65_Projects_04),\"\",dms_E65_Projects_04)","v":""}]
[null,{"$f":"IF(ISBLANK(dms_E65_Projects_05),\"\",dms_E65_Projects_05)","v":""}]
[null,{"$f":"IF(ISBLANK(dms_E65_Projects_06),\"\",dms_E65_Projects_06)","v":""}]
[null,{"$f":"IF(ISBLANK(dms_E65_Projects_07),\"\",dms_E65_Projects_07)","v":""}]
[null,{"$f":"IF(ISBLANK(dms_E65_Projects_08),\"\",dms_E65_Projects_08)","v":""}]
[null,{"$f":"IF(ISBLANK(dms_E65_Projects_09),\"\",dms_E65_Projects_09)","v":""}]
[null,{"$f":"IF(ISBLANK(dms_E65_Projects_10),\"\",dms_E65_Projects_10)","v":""}]
[null,{"$f":"IF(ISBLANK(dms_E65_Projects_11),\"\",dms_E65_Projects_11)","v":""}]
[null,{"$f":"IF(ISBLANK(dms_E65_Projects_12),\"\",dms_E65_Projects_12)","v":""}]
[null,{"$f":"IF(ISBLANK(dms_E65_Projects_13),\"\",dms_E65_Projects_13)","v":""}]
[null,{"$f":"IF(ISBLANK(dms_E65_Projects_14),\"\",dms_E65_Projects_14)","v":""}]
[null,{"$f":"IF(ISBLANK(dms_E65_Projects_15),\"\",dms_E65_Projects_15)","v":""}]
[null,"Aggregate of other projects with total expenditure of less than $500,000"]
[null,"Total",{"$f":"SUM(C31:C46)","v":0},{"$f":"SUM(D31:D46)","v":0},{"$f":"SUM(E31:E46)","v":0},{"$f":"SUM(F31:F46)","v":0},{"$f":"SUM(G31:G46)","v":0}]
[]
[null,"B. DIRECT CONTRACTOR EXPENDITURE"]
[null,{"$f":"IF(ISBLANK(dms_E65_Projects_01),\"\",dms_E65_Projects_01)","v":"Project 1"}]
[null,{"$f":"IF(ISBLANK(dms_E65_Projects_02),\"\",dms_E65_Projects_02)","v":""}]
[null,{"$f":"IF(ISBLANK(dms_E65_Projects_03),\"\",dms_E65_Projects_03)","v":""}]
[null,{"$f":"IF(ISBLANK(dms_E65_Projects_04),\"\",dms_E65_Projects_04)","v":""}]
[null,{"$f":"IF(ISBLANK(dms_E65_Projects_05),\"\",dms_E65_Projects_05)","v":""}]
[null,{"$f":"IF(ISBLANK(dms_E65_Projects_06),\"\",dms_E65_Projects_06)","v":""}]
[null,{"$f":"IF(ISBLANK(dms_E65_Projects_07),\"\",dms_E65_Projects_07)","v":""}]
[null,{"$f":"IF(ISBLANK(dms_E65_Projects_08),\"\",dms_E65_Projects_08)","v":""}]
[null,{"$f":"IF(ISBLANK(dms_E65_Projects_09),\"\",dms_E65_Projects_09)","v":""}]
[null,{"$f":"IF(ISBLANK(dms_E65_Projects_10),\"\",dms_E65_Projects_10)","v":""}]
[null,{"$f":"IF(ISBLANK(dms_E65_Projects_11),\"\",dms_E65_Projects_11)","v":""}]
[null,{"$f":"IF(ISBLANK(dms_E65_Projects_12),\"\",dms_E65_Projects_12)","v":""}]
[null,{"$f":"IF(ISBLANK(dms_E65_Projects_13),\"\",dms_E65_Projects_13)","v":""}]
[null,{"$f":"IF(ISBLANK(dms_E65_Projects_14),\"\",dms_E65_Projects_14)","v":""}]
[null,{"$f":"IF(ISBLANK(dms_E65_Projects_15),\"\",dms_E65_Projects_15)","v":""}]
[null,"Aggregate of other projects with total expenditure of less than $500,000",234884.88999999993,288393.33,171343.04000000004,485777.88,400236.41]
[null,"Total",{"$f":"SUM(C50:C65)","v":234884.88999999993},{"$f":"SUM(D50:D65)","v":288393.33},{"$f":"SUM(E50:E65)","v":171343.04000000004},{"$f":"SUM(F50:F65)","v":485777.88},{"$f":"SUM(G50:G65)","v":400236.41}]
[]
[null,"C. DIRECT MATERIAL EXPENDITURE"]
[null,{"$f":"IF(ISBLANK(dms_E65_Projects_01),\"\",dms_E65_Projects_01)","v":"Project 1"}]
[null,{"$f":"IF(ISBLANK(dms_E65_Projects_02),\"\",dms_E65_Projects_02)","v":""}]
[null,{"$f":"IF(ISBLANK(dms_E65_Projects_03),\"\",dms_E65_Projects_03)","v":""}]
[null,{"$f":"IF(ISBLANK(dms_E65_Projects_04),\"\",dms_E65_Projects_04)","v":""}]
[null,{"$f":"IF(ISBLANK(dms_E65_Projects_05),\"\",dms_E65_Projects_05)","v":""}]
[null,{"$f":"IF(ISBLANK(dms_E65_Projects_06),\"\",dms_E65_Projects_06)","v":""}]
[null,{"$f":"IF(ISBLANK(dms_E65_Projects_07),\"\",dms_E65_Projects_07)","v":""}]
[null,{"$f":"IF(ISBLANK(dms_E65_Projects_08),\"\",dms_E65_Projects_08)","v":""}]
[null,{"$f":"IF(ISBLANK(dms_E65_Projects_09),\"\",dms_E65_Projects_09)","v":""}]
[null,{"$f":"IF(ISBLANK(dms_E65_Projects_10),\"\",dms_E65_Projects_10)","v":""}]
[null,{"$f":"IF(ISBLANK(dms_E65_Projects_11),\"\",dms_E65_Projects_11)","v":""}]
[null,{"$f":"IF(ISBLANK(dms_E65_Projects_12),\"\",dms_E65_Projects_12)","v":""}]
[null,{"$f":"IF(ISBLANK(dms_E65_Projects_13),\"\",dms_E65_Projects_13)","v":""}]
[null,{"$f":"IF(ISBLANK(dms_E65_Projects_14),\"\",dms_E65_Projects_14)","v":""}]
[null,{"$f":"IF(ISBLANK(dms_E65_Projects_15),\"\",dms_E65_Projects_15)","v":""}]
[null,"Aggregate of other projects with total expenditure of less than $500,000"]
[null,"Total",{"$f":"SUM(C69:C84)","v":0},{"$f":"SUM(D69:D84)","v":0},{"$f":"SUM(E69:E84)","v":0},{"$f":"SUM(F69:F84)","v":0},{"$f":"SUM(G69:G84)","v":0}]
[]
[null,"D. OTHER DIRECT EXPENDITURE"]
[null,{"$f":"IF(ISBLANK(dms_E65_Projects_01),\"\",dms_E65_Projects_01)","v":"Project 1"}]
[null,{"$f":"IF(ISBLANK(dms_E65_Projects_02),\"\",dms_E65_Projects_02)","v":""}]
[null,{"$f":"IF(ISBLANK(dms_E65_Projects_03),\"\",dms_E65_Projects_03)","v":""}]
[null,{"$f":"IF(ISBLANK(dms_E65_Projects_04),\"\",dms_E65_Projects_04)","v":""}]
[null,{"$f":"IF(ISBLANK(dms_E65_Projects_05),\"\",dms_E65_Projects_05)","v":""}]
[null,{"$f":"IF(ISBLANK(dms_E65_Projects_06),\"\",dms_E65_Projects_06)","v":""}]
[null,{"$f":"IF(ISBLANK(dms_E65_Projects_07),\"\",dms_E65_Projects_07)","v":""}]
[null,{"$f":"IF(ISBLANK(dms_E65_Projects_08),\"\",dms_E65_Projects_08)","v":""}]
[null,{"$f":"IF(ISBLANK(dms_E65_Projects_09),\"\",dms_E65_Projects_09)","v":""}]
[null,{"$f":"IF(ISBLANK(dms_E65_Projects_10),\"\",dms_E65_Projects_10)","v":""}]
[null,{"$f":"IF(ISBLANK(dms_E65_Projects_11),\"\",dms_E65_Projects_11)","v":""}]
[null,{"$f":"IF(ISBLANK(dms_E65_Projects_12),\"\",dms_E65_Projects_12)","v":""}]
[null,{"$f":"IF(ISBLANK(dms_E65_Projects_13),\"\",dms_E65_Projects_13)","v":""}]
[null,{"$f":"IF(ISBLANK(dms_E65_Projects_14),\"\",dms_E65_Projects_14)","v":""}]
[null,{"$f":"IF(ISBLANK(dms_E65_Projects_15),\"\",dms_E65_Projects_15)","v":""}]
[null,"Aggregate of other projects with total expenditure of less than $500,000",25743.937494844518,32443.429036646972,18364.795344343835,45700.656366476054,37384.953609717057]
[null,"Total",{"$f":"SUM(C88:C103)","v":25743.937494844518},{"$f":"SUM(D88:D103)","v":32443.429036646972},{"$f":"SUM(E88:E103)","v":18364.795344343835},{"$f":"SUM(F88:F103)","v":45700.656366476054},{"$f":"SUM(G88:G103)","v":37384.953609717057}]
[]
[null,"E. RELATED PARTY MARGIN EXPENDITURE"]
[null,{"$f":"IF(ISBLANK(dms_E65_Projects_01),\"\",dms_E65_Projects_01)","v":"Project 1"}]
[null,{"$f":"IF(ISBLANK(dms_E65_Projects_02),\"\",dms_E65_Projects_02)","v":""}]
[null,{"$f":"IF(ISBLANK(dms_E65_Projects_03),\"\",dms_E65_Projects_03)","v":""}]
[null,{"$f":"IF(ISBLANK(dms_E65_Projects_04),\"\",dms_E65_Projects_04)","v":""}]
[null,{"$f":"IF(ISBLANK(dms_E65_Projects_05),\"\",dms_E65_Projects_05)","v":""}]
[null,{"$f":"IF(ISBLANK(dms_E65_Projects_06),\"\",dms_E65_Projects_06)","v":""}]
[null,{"$f":"IF(ISBLANK(dms_E65_Projects_07),\"\",dms_E65_Projects_07)","v":""}]
[null,{"$f":"IF(ISBLANK(dms_E65_Projects_08),\"\",dms_E65_Projects_08)","v":""}]
[null,{"$f":"IF(ISBLANK(dms_E65_Projects_09),\"\",dms_E65_Projects_09)","v":""}]
[null,{"$f":"IF(ISBLANK(dms_E65_Projects_10),\"\",dms_E65_Projects_10)","v":""}]
[null,{"$f":"IF(ISBLANK(dms_E65_Projects_11),\"\",dms_E65_Projects_11)","v":""}]
[null,{"$f":"IF(ISBLANK(dms_E65_Projects_12),\"\",dms_E65_Projects_12)","v":""}]
[null,{"$f":"IF(ISBLANK(dms_E65_Projects_13),\"\",dms_E65_Projects_13)","v":""}]
[null,{"$f":"IF(ISBLANK(dms_E65_Projects_14),\"\",dms_E65_Projects_14)","v":""}]
[null,{"$f":"IF(ISBLANK(dms_E65_Projects_15),\"\",dms_E65_Projects_15)","v":""}]
[null,"Aggregate of other projects with total expenditure of less than $500,000"]
[null,"Total",{"$f":"SUM(C107:C122)","v":0},{"$f":"SUM(D107:D122)","v":0},{"$f":"SUM(E107:E122)","v":0},{"$f":"SUM(F107:F122)","v":0},{"$f":"SUM(G107:G122)","v":0}]
[]
[null,"F. CAPITAL CONTRIBUTIONS included in the above"]
[null,{"$f":"IF(ISBLANK(dms_E65_Projects_01),\"\",dms_E65_Projects_01)","v":"Project 1"}]
[null,{"$f":"IF(ISBLANK(dms_E65_Projects_02),\"\",dms_E65_Projects_02)","v":""}]
[null,{"$f":"IF(ISBLANK(dms_E65_Projects_03),\"\",dms_E65_Projects_03)","v":""}]
[null,{"$f":"IF(ISBLANK(dms_E65_Projects_04),\"\",dms_E65_Projects_04)","v":""}]
[null,{"$f":"IF(ISBLANK(dms_E65_Projects_05),\"\",dms_E65_Projects_05)","v":""}]
[null,{"$f":"IF(ISBLANK(dms_E65_Projects_06),\"\",dms_E65_Projects_06)","v":""}]
[null,{"$f":"IF(ISBLANK(dms_E65_Projects_07),\"\",dms_E65_Projects_07)","v":""}]
[null,{"$f":"IF(ISBLANK(dms_E65_Projects_08),\"\",dms_E65_Projects_08)","v":""}]
[null,{"$f":"IF(ISBLANK(dms_E65_Projects_09),\"\",dms_E65_Projects_09)","v":""}]
[null,{"$f":"IF(ISBLANK(dms_E65_Projects_10),\"\",dms_E65_Projects_10)","v":""}]
[null,{"$f":"IF(ISBLANK(dms_E65_Projects_11),\"\",dms_E65_Projects_11)","v":""}]
[null,{"$f":"IF(ISBLANK(dms_E65_Projects_12),\"\",dms_E65_Projects_12)","v":""}]
[null,{"$f":"IF(ISBLANK(dms_E65_Projects_13),\"\",dms_E65_Projects_13)","v":""}]
[null,{"$f":"IF(ISBLANK(dms_E65_Projects_14),\"\",dms_E65_Projects_14)","v":""}]
[null,{"$f":"IF(ISBLANK(dms_E65_Projects_15),\"\",dms_E65_Projects_15)","v":""}]
[null,"Aggregate of other projects with total expenditure of less than $500,000"]
[null,"Total",{"$f":"SUM(C126:C141)","v":0},{"$f":"SUM(D126:D141)","v":0},{"$f":"SUM(E126:E141)","v":0},{"$f":"SUM(F126:F141)","v":0},{"$f":"SUM(G126:G141)","v":0}]

{"sheet":"E10. Overheads","index":12,"n_rows":32,"n_cols":7,"rows_kept":32,"cut":false,"hidden":false,"merged":[]}
[null,{"$f":"INDEX(dms_Worksheet_List,MATCH(dms_Model,dms_Model_List))","v":"HISTORICAL ANNUAL REPORTING"}]
[null,{"$f":"dms_TradingName","v":"AGN (Albury and Victoria)"}]
[null,{"$f":"dms_Header_Span","v":"2017 to 2021"}]
[null,"E10. OVERHEADS EXPENDITURE"]
[]
[null,"E10.1 - NETWORK"]
[null,null,"EXPENDITURE"]
[null,null,"$0's, Nominal"]
[null,null,{"$f":"dms_y1","v":2017},{"$f":"dms_y2","v":2018},{"$f":"dms_y3","v":2019},{"$f":"dms_y4","v":2020},{"$f":"dms_y5","v":2021}]
[null,"E10.1.1 - OPEX"]
[null,"Reference services"]
[null,"Non-reference services"]
[null,"Total",{"$f":"SUM(C11:C12)","v":0},{"$f":"SUM(D11:D12)","v":0},{"$f":"SUM(E11:E12)","v":0},{"$f":"SUM(F11:F12)","v":0},{"$f":"SUM(G11:G12)","v":0}]
[null,"E10.1.2 - CAPEX"]
[null,"Reference services",9998380.2496133707,9051194.6029383726,10534343.825440213,12434001.995286638,13827032.600247484]
[null,"Non-reference services"]
[null,"Total",{"$f":"SUM(C15:C16)","v":9998380.2496133707},{"$f":"SUM(D15:D16)","v":9051194.6029383726},{"$f":"SUM(E15:E16)","v":10534343.825440213},{"$f":"SUM(F15:F16)","v":12434001.995286638},{"$f":"SUM(G15:G16)","v":13827032.600247484}]
[]
[]
[]
[null,"E10.2 - CORPORATE"]
[null,null,"EXPENDITURE"]
[null,null,"$0's, Nominal"]
[null,null,{"$f":"dms_y1","v":2017},{"$f":"dms_y2","v":2018},{"$f":"dms_y3","v":2019},{"$f":"dms_y4","v":2020},{"$f":"dms_y5","v":2021}]
[null,"E10.2.1 - OPEX"]
[null,"Reference services"]
[null,"Non-reference services"]
[null,"Total",{"$f":"SUM(C26:C27)","v":0},{"$f":"SUM(D26:D27)","v":0},{"$f":"SUM(E26:E27)","v":0},{"$f":"SUM(F26:F27)","v":0},{"$f":"SUM(G26:G27)","v":0}]
[null,"E10.2.2 - CAPEX"]
[null,"Reference services"]
[null,"Non-reference services"]
[null,"Total",{"$f":"SUM(C30:C31)","v":0},{"$f":"SUM(D30:D31)","v":0},{"$f":"SUM(E30:E31)","v":0},{"$f":"SUM(F30:F31)","v":0},{"$f":"SUM(G30:G31)","v":0}]

{"sheet":"E12. ICT","index":13,"n_rows":139,"n_cols":7,"rows_kept":139,"cut":false,"hidden":false,"merged":[]}
[null,{"$f":"INDEX(dms_Worksheet_List,MATCH(dms_Model,dms_Model_List))","v":"HISTORICAL ANNUAL REPORTING"}]
[null,{"$f":"dms_TradingName","v":"AGN (Albury and Victoria)"}]
[null,{"$f":"dms_Header_Span","v":"2017 to 2021"}]
[null,"E12. INFORMATION AND COMMUNICATION TECHNOLOGY"]
[]
[null,"Please list all projects here:"]
[null,"3198 MAJOR PROJECTS - GIS CONSOLIDATION"]
[null,"3202 MAJOR PROJECTS - MOBILITY INTEGRATION"]
[null,"3203 MAJOR PROJECTS - BUSINESS INTELLIGENCE"]
[null,"3210 MAJOR PROJECTS - EAM UPGRADE"]
[null,"3229 MAJOR PROJECTS - APPLICATIONS RENEWAL - CC&B UPGRADE"]
[null,"3235 MAJOR PROJECTS - BIZTALK SYSTEM UPGRADE"]
[null,"AGIG IT Strategy and Roadmap"]
[null,"3254 MAJOR PROJECTS - LIFE SUPPORT B2B"]
[]
[]
[]
[]
[]
[]
[]
[]
[null,"E12.1 - CAPEX - BY PROJECT"]
[null,"A. DIRECT INTERNAL LABOUR EXPENDITURE"]
[null,null,"EXPENDITURE"]
[null,null,"$0's, Nominal"]
[null,null,{"$f":"dms_y1","v":2017},{"$f":"dms_y2","v":2018},{"$f":"dms_y3","v":2019},{"$f":"dms_y4","v":2020},{"$f":"dms_y5","v":2021}]
[null,{"$f":"IF(ISBLANK(dms_E12_Projects_01),\"\",dms_E12_Projects_01)","v":"3198 MAJOR PROJECTS - GIS CONSOLIDATION"},0,0,0,0,0]
[null,{"$f":"IF(ISBLANK(dms_E12_Projects_02),\"\",dms_E12_Projects_02)","v":"3202 MAJOR PROJECTS - MOBILITY INTEGRATION"},0,0,0,0,0]
[null,{"$f":"IF(ISBLANK(dms_E12_Projects_03),\"\",dms_E12_Projects_03)","v":"3203 MAJOR PROJECTS - BUSINESS INTELLIGENCE"},0,0,0,0,0]
[null,{"$f":"IF(ISBLANK(dms_E12_Projects_04),\"\",dms_E12_Projects_04)","v":"3210 MAJOR PROJECTS - EAM UPGRADE"},0,0,0,0,0]
[null,{"$f":"IF(ISBLANK(dms_E12_Projects_05),\"\",dms_E12_Projects_05)","v":"3229 MAJOR PROJECTS - APPLICATIONS RENEWAL - CC&B UPGRADE"},0,0,0,0,0]
[null,{"$f":"IF(ISBLANK(dms_E12_Projects_06),\"\",dms_E12_Projects_06)","v":"3235 MAJOR PROJECTS - BIZTALK SYSTEM UPGRADE"},0,0,0,0,0]
[null,{"$f":"IF(ISBLANK(dms_E12_Projects_07),\"\",dms_E12_Projects_07)","v":"AGIG IT Strategy and Roadmap"},0,0,483403.05765520944,762913.75643237517,3400377.9541610163]
[null,{"$f":"IF(ISBLANK(dms_E12_Projects_08),\"\",dms_E12_Projects_08)","v":"3254 MAJOR PROJECTS - LIFE SUPPORT B2B"},0,0,0,0,0]
[null,{"$f":"IF(ISBLANK(dms_E12_Projects_09),\"\",dms_E12_Projects_09)","v":""}]
[null,{"$f":"IF(ISBLANK(dms_E12_Projects_10),\"\",dms_E12_Projects_10)","v":""}]
[null,{"$f":"IF(ISBLANK(dms_E12_Projects_11),\"\",dms_E12_Projects_11)","v":""}]
[null,{"$f":"IF(ISBLANK(dms_E12_Projects_12),\"\",dms_E12_Projects_12)","v":""}]
[null,{"$f":"IF(ISBLANK(dms_E12_Projects_13),\"\",dms_E12_Projects_13)","v":""}]
[null,{"$f":"IF(ISBLANK(dms_E12_Projects_14),\"\",dms_E12_Projects_14)","v":""}]
[null,{"$f":"IF(ISBLANK(dms_E12_Projects_15),\"\",dms_E12_Projects_15)","v":""}]
[null,"Aggregate of other projects with total expenditure of less than $500,000",0,0,0,8054.7400000000016,0]
[null,"Total",{"$f":"SUM(C28:C43)","v":0},{"$f":"SUM(D28:D43)","v":0},{"$f":"SUM(E28:E43)","v":483403.05765520944},{"$f":"SUM(F28:F43)","v":770968.49643237516},{"$f":"SUM(G28:G43)","v":3400377.9541610163}]
[]
[null,"B. DIRECT CONTRACTOR EXPENDITURE"]
[null,{"$f":"IF(ISBLANK(dms_E12_Projects_01),\"\",dms_E12_Projects_01)","v":"3198 MAJOR PROJECTS - GIS CONSOLIDATION"},563314.50535800005,955696.73406965903,2320878.8690792392,3832470.6611955715,6791449.8170065423]
[null,{"$f":"IF(ISBLANK(dms_E12_Projects_02),\"\",dms_E12_Projects_02)","v":"3202 MAJOR PROJECTS - MOBILITY INTEGRATION"},111980,419128.32247943099,439767.70937123866,85765.973886459484,2521578.8145517157]
[null,{"$f":"IF(ISBLANK(dms_E12_Projects_03),\"\",dms_E12_Projects_03)","v":"3203 MAJOR PROJECTS - BUSINESS INTELLIGENCE"},186021.17600000001,269029.57683762,213308.96466684737,0,0]
[null,{"$f":"IF(ISBLANK(dms_E12_Projects_04),\"\",dms_E12_Projects_04)","v":"3210 MAJOR PROJECTS - EAM UPGRADE"},228884.56685599996,690811.56569835695,-20878.01598968538,0,0]
[null,{"$f":"IF(ISBLANK(dms_E12_Projects_05),\"\",dms_E12_Projects_05)","v":"3229 MAJOR PROJECTS - APPLICATIONS RENEWAL - CC&B UPGRADE"},102473.76024600001,531028.34928348497,3158207.7979957825,1575110.0833704495,0]
[null,{"$f":"IF(ISBLANK(dms_E12_Projects_06),\"\",dms_E12_Projects_06)","v":"3235 MAJOR PROJECTS - BIZTALK SYSTEM UPGRADE"},0,501763.38861265202,11008.135477150805,0,0]
[null,{"$f":"IF(ISBLANK(dms_E12_Projects_07),\"\",dms_E12_Projects_07)","v":"AGIG IT Strategy and Roadmap"},0,0,1783.3251815420915,4277.0683928412291,37988.945146233295]
[null,{"$f":"IF(ISBLANK(dms_E12_Projects_08),\"\",dms_E12_Projects_08)","v":"3254 MAJOR PROJECTS - LIFE SUPPORT B2B"},0,0,0,0,1118225.8450606044]
[null,{"$f":"IF(ISBLANK(dms_E12_Projects_09),\"\",dms_E12_Projects_09)","v":""}]
[null,{"$f":"IF(ISBLANK(dms_E12_Projects_10),\"\",dms_E12_Projects_10)","v":""}]
[null,{"$f":"IF(ISBLANK(dms_E12_Projects_11),\"\",dms_E12_Projects_11)","v":""}]
[null,{"$f":"IF(ISBLANK(dms_E12_Projects_12),\"\",dms_E12_Projects_12)","v":""}]
[null,{"$f":"IF(ISBLANK(dms_E12_Projects_13),\"\",dms_E12_Projects_13)","v":""}]
[null,{"$f":"IF(ISBLANK(dms_E12_Projects_14),\"\",dms_E12_Projects_14)","v":""}]
[null,{"$f":"IF(ISBLANK(dms_E12_Projects_15),\"\",dms_E12_Projects_15)","v":""}]
[null,"Aggregate of other projects with total expenditure of less than $500,000",801079.05941700027,569197.23947126837,673638.21149539575,409567.25092017668,651541.89840173605]
[null,"Total",{"$f":"SUM(C47:C62)","v":1993753.0678770002},{"$f":"SUM(D47:D62)","v":3936655.1764524723},{"$f":"SUM(E47:E62)","v":6797714.9972775104},{"$f":"SUM(F47:F62)","v":5907191.0377654983},{"$f":"SUM(G47:G62)","v":11120785.32016683}]
[]
[null,"C. DIRECT MATERIAL EXPENDITURE"]
[null,{"$f":"IF(ISBLANK(dms_E12_Projects_01),\"\",dms_E12_Projects_01)","v":"3198 MAJOR PROJECTS - GIS CONSOLIDATION"}]
[null,{"$f":"IF(ISBLANK(dms_E12_Projects_02),\"\",dms_E12_Projects_02)","v":"3202 MAJOR PROJECTS - MOBILITY INTEGRATION"}]
[null,{"$f":"IF(ISBLANK(dms_E12_Projects_03),\"\",dms_E12_Projects_03)","v":"3203 MAJOR PROJECTS - BUSINESS INTELLIGENCE"}]
[null,{"$f":"IF(ISBLANK(dms_E12_Projects_04),\"\",dms_E12_Projects_04)","v":"3210 MAJOR PROJECTS - EAM UPGRADE"}]
[null,{"$f":"IF(ISBLANK(dms_E12_Projects_05),\"\",dms_E12_Projects_05)","v":"3229 MAJOR PROJECTS - APPLICATIONS RENEWAL - CC&B UPGRADE"}]
[null,{"$f":"IF(ISBLANK(dms_E12_Projects_06),\"\",dms_E12_Projects_06)","v":"3235 MAJOR PROJECTS - BIZTALK SYSTEM UPGRADE"}]
[null,{"$f":"IF(ISBLANK(dms_E12_Projects_07),\"\",dms_E12_Projects_07)","v":"AGIG IT Strategy and Roadmap"}]
[null,{"$f":"IF(ISBLANK(dms_E12_Projects_08),\"\",dms_E12_Projects_08)","v":"3254 MAJOR PROJECTS - LIFE SUPPORT B2B"}]
[null,{"$f":"IF(ISBLANK(dms_E12_Projects_09),\"\",dms_E12_Projects_09)","v":""}]
[null,{"$f":"IF(ISBLANK(dms_E12_Projects_10),\"\",dms_E12_Projects_10)","v":""}]
[null,{"$f":"IF(ISBLANK(dms_E12_Projects_11),\"\",dms_E12_Projects_11)","v":""}]
[null,{"$f":"IF(ISBLANK(dms_E12_Projects_12),\"\",dms_E12_Projects_12)","v":""}]
[null,{"$f":"IF(ISBLANK(dms_E12_Projects_13),\"\",dms_E12_Projects_13)","v":""}]
[null,{"$f":"IF(ISBLANK(dms_E12_Projects_14),\"\",dms_E12_Projects_14)","v":""}]
[null,{"$f":"IF(ISBLANK(dms_E12_Projects_15),\"\",dms_E12_Projects_15)","v":""}]
[null,"Aggregate of other projects with total expenditure of less than $500,000",0,0,53914.634715016815,242109.28478100162,97349.924041999315]
[null,"Total",{"$f":"SUM(C66:C81)","v":0},{"$f":"SUM(D66:D81)","v":0},{"$f":"SUM(E66:E81)","v":53914.634715016815},{"$f":"SUM(F66:F81)","v":242109.28478100162},{"$f":"SUM(G66:G81)","v":97349.924041999315}]
[]
[null,"D. OTHER DIRECT EXPENDITURE"]
[null,{"$f":"IF(ISBLANK(dms_E12_Projects_01),\"\",dms_E12_Projects_01)","v":"3198 MAJOR PROJECTS - GIS CONSOLIDATION"}]
[null,{"$f":"IF(ISBLANK(dms_E12_Projects_02),\"\",dms_E12_Projects_02)","v":"3202 MAJOR PROJECTS - MOBILITY INTEGRATION"}]
[null,{"$f":"IF(ISBLANK(dms_E12_Projects_03),\"\",dms_E12_Projects_03)","v":"3203 MAJOR PROJECTS - BUSINESS INTELLIGENCE"}]
[null,{"$f":"IF(ISBLANK(dms_E12_Projects_04),\"\",dms_E12_Projects_04)","v":"3210 MAJOR PROJECTS - EAM UPGRADE"}]
[null,{"$f":"IF(ISBLANK(dms_E12_Projects_05),\"\",dms_E12_Projects_05)","v":"3229 MAJOR PROJECTS - APPLICATIONS RENEWAL - CC&B UPGRADE"}]
[null,{"$f":"IF(ISBLANK(dms_E12_Projects_06),\"\",dms_E12_Projects_06)","v":"3235 MAJOR PROJECTS - BIZTALK SYSTEM UPGRADE"}]
[null,{"$f":"IF(ISBLANK(dms_E12_Projects_07),\"\",dms_E12_Projects_07)","v":"AGIG IT Strategy and Roadmap"},0,0,352422.78049062996,843035.645451986,339391.92068712378]
[null,{"$f":"IF(ISBLANK(dms_E12_Projects_08),\"\",dms_E12_Projects_08)","v":"3254 MAJOR PROJECTS - LIFE SUPPORT B2B"}]
[null,{"$f":"IF(ISBLANK(dms_E12_Projects_09),\"\",dms_E12_Projects_09)","v":""}]
[null,{"$f":"IF(ISBLANK(dms_E12_Projects_10),\"\",dms_E12_Projects_10)","v":""}]
[null,{"$f":"IF(ISBLANK(dms_E12_Projects_11),\"\",dms_E12_Projects_11)","v":""}]
[null,{"$f":"IF(ISBLANK(dms_E12_Projects_12),\"\",dms_E12_Projects_12)","v":""}]
[null,{"$f":"IF(ISBLANK(dms_E12_Projects_13),\"\",dms_E12_Projects_13)","v":""}]
[null,{"$f":"IF(ISBLANK(dms_E12_Projects_14),\"\",dms_E12_Projects_14)","v":""}]
[null,{"$f":"IF(ISBLANK(dms_E12_Projects_15),\"\",dms_E12_Projects_15)","v":""}]
[null,"Aggregate of other projects with total expenditure of less than $500,000",null,null,407090.24]
[null,"Total",{"$f":"SUM(C85:C100)","v":0},{"$f":"SUM(D85:D100)","v":0},{"$f":"SUM(E85:E100)","v":759513.02049062995},{"$f":"SUM(F85:F100)","v":843035.645451986},{"$f":"SUM(G85:G100)","v":339391.92068712378}]
[]
[null,"E. RELATED PARTY MARGIN EXPENDITURE"]
[null,{"$f":"IF(ISBLANK(dms_E12_Projects_01),\"\",dms_E12_Projects_01)","v":"3198 MAJOR PROJECTS - GIS CONSOLIDATION"}]
[null,{"$f":"IF(ISBLANK(dms_E12_Projects_02),\"\",dms_E12_Projects_02)","v":"3202 MAJOR PROJECTS - MOBILITY INTEGRATION"}]
[null,{"$f":"IF(ISBLANK(dms_E12_Projects_03),\"\",dms_E12_Projects_03)","v":"3203 MAJOR PROJECTS - BUSINESS INTELLIGENCE"}]
[null,{"$f":"IF(ISBLANK(dms_E12_Projects_04),\"\",dms_E12_Projects_04)","v":"3210 MAJOR PROJECTS - EAM UPGRADE"}]
[null,{"$f":"IF(ISBLANK(dms_E12_Projects_05),\"\",dms_E12_Projects_05)","v":"3229 MAJOR PROJECTS - APPLICATIONS RENEWAL - CC&B UPGRADE"}]
[null,{"$f":"IF(ISBLANK(dms_E12_Projects_06),\"\",dms_E12_Projects_06)","v":"3235 MAJOR PROJECTS - BIZTALK SYSTEM UPGRADE"}]
[null,{"$f":"IF(ISBLANK(dms_E12_Projects_07),\"\",dms_E12_Projects_07)","v":"AGIG IT Strategy and Roadmap"}]
[null,{"$f":"IF(ISBLANK(dms_E12_Projects_08),\"\",dms_E12_Projects_08)","v":"3254 MAJOR PROJECTS - LIFE SUPPORT B2B"}]
[null,{"$f":"IF(ISBLANK(dms_E12_Projects_09),\"\",dms_E12_Projects_09)","v":""}]
[null,{"$f":"IF(ISBLANK(dms_E12_Projects_10),\"\",dms_E12_Projects_10)","v":""}]
[null,{"$f":"IF(ISBLANK(dms_E12_Projects_11),\"\",dms_E12_Projects_11)","v":""}]
[null,{"$f":"IF(ISBLANK(dms_E12_Projects_12),\"\",dms_E12_Projects_12)","v":""}]
[null,{"$f":"IF(ISBLANK(dms_E12_Projects_13),\"\",dms_E12_Projects_13)","v":""}]
[null,{"$f":"IF(ISBLANK(dms_E12_Projects_14),\"\",dms_E12_Projects_14)","v":""}]
[null,{"$f":"IF(ISBLANK(dms_E12_Projects_15),\"\",dms_E12_Projects_15)","v":""}]
[null,"Aggregate of other projects with total expenditure of less than $500,000"]
[null,"Total",{"$f":"SUM(C104:C119)","v":0},{"$f":"SUM(D104:D119)","v":0},{"$f":"SUM(E104:E119)","v":0},{"$f":"SUM(F104:F119)","v":0},{"$f":"SUM(G104:G119)","v":0}]
[]
[null,"F. CAPITAL CONTRIBUTIONS included in the above"]
[null,{"$f":"IF(ISBLANK(dms_E12_Projects_01),\"\",dms_E12_Projects_01)","v":"3198 MAJOR PROJECTS - GIS CONSOLIDATION"}]
[null,{"$f":"IF(ISBLANK(dms_E12_Projects_02),\"\",dms_E12_Projects_02)","v":"3202 MAJOR PROJECTS - MOBILITY INTEGRATION"}]
[null,{"$f":"IF(ISBLANK(dms_E12_Projects_03),\"\",dms_E12_Projects_03)","v":"3203 MAJOR PROJECTS - BUSINESS INTELLIGENCE"}]
[null,{"$f":"IF(ISBLANK(dms_E12_Projects_04),\"\",dms_E12_Projects_04)","v":"3210 MAJOR PROJECTS - EAM UPGRADE"}]
[null,{"$f":"IF(ISBLANK(dms_E12_Projects_05),\"\",dms_E12_Projects_05)","v":"3229 MAJOR PROJECTS - APPLICATIONS RENEWAL - CC&B UPGRADE"}]
[null,{"$f":"IF(ISBLANK(dms_E12_Projects_06),\"\",dms_E12_Projects_06)","v":"3235 MAJOR PROJECTS - BIZTALK SYSTEM UPGRADE"}]
[null,{"$f":"IF(ISBLANK(dms_E12_Projects_07),\"\",dms_E12_Projects_07)","v":"AGIG IT Strategy and Roadmap"}]
[null,{"$f":"IF(ISBLANK(dms_E12_Projects_08),\"\",dms_E12_Projects_08)","v":"3254 MAJOR PROJECTS - LIFE SUPPORT B2B"}]
[null,{"$f":"IF(ISBLANK(dms_E12_Projects_09),\"\",dms_E12_Projects_09)","v":""}]
[null,{"$f":"IF(ISBLANK(dms_E12_Projects_10),\"\",dms_E12_Projects_10)","v":""}]
[null,{"$f":"IF(ISBLANK(dms_E12_Projects_11),\"\",dms_E12_Projects_11)","v":""}]
[null,{"$f":"IF(ISBLANK(dms_E12_Projects_12),\"\",dms_E12_Projects_12)","v":""}]
[null,{"$f":"IF(ISBLANK(dms_E12_Projects_13),\"\",dms_E12_Projects_13)","v":""}]
[null,{"$f":"IF(ISBLANK(dms_E12_Projects_14),\"\",dms_E12_Projects_14)","v":""}]
[null,{"$f":"IF(ISBLANK(dms_E12_Projects_15),\"\",dms_E12_Projects_15)","v":""}]
[null,"Aggregate of other projects with total expenditure of less than $500,000"]
[null,"Total",{"$f":"SUM(C123:C138)","v":0},{"$f":"SUM(D123:D138)","v":0},{"$f":"SUM(E123:E138)","v":0},{"$f":"SUM(F123:F138)","v":0},{"$f":"SUM(G123:G138)","v":0}]

{"sheet":"E13. Other capex","index":14,"n_rows":314,"n_cols":7,"rows_kept":314,"cut":false,"hidden":false,"merged":[]}
[null,{"$f":"INDEX(dms_Worksheet_List,MATCH(dms_Model,dms_Model_List))","v":"HISTORICAL ANNUAL REPORTING"}]
[null,{"$f":"dms_TradingName","v":"AGN (Albury and Victoria)"}]
[null,{"$f":"dms_Header_Span","v":"2017 to 2021"}]
[null,"E13. OTHER CAPITAL EXPENDITURE"]
[]
[null,"Please list all projects here:"]
[null,"3056 MAJOR PROJECTS - MELBOURNE METRO RAIL"]
[null,"3006 MAJOR PROJECTS - PAKENHAM CITY GATE"]
[null,"3053 MAJOR PROJECTS - RACV CAPE SCHANK"]
[null,"2130 MAINS ALTERATIONS - CHARGEABLE - CAPEX - CMA Plenty rd Mernda Rail Ext"]
[null,"2130 MAINS ALTERATIONS - CHARGEABLE - CAPEX - V_CMA_CY19 Thompsons Rd"]
[null,"2130 MAINS ALTERATIONS - CHARGEABLE - CAPEX - V_MA_CY19 O'Herns Rd Epping"]
[null,"2130 MAINS ALTERATIONS - CHARGEABLE - CAPEX - V_CMA_CY20 NELA_CPB"]
[null,"2130 MAINS ALTERATIONS - CHARGEABLE - CAPEX - V_MA_CY20_O'Herns Rd S2"]
[null,"2130 MAINS ALTERATIONS - CHARGEABLE - CAPEX - V_CMA_CY20 Plenty Rd Stg2"]
[null,"2130 MAINS ALTERATIONS - CHARGEABLE - CAPEX - V_CMA_CY20_NELP EW STG1"]
[null,"2130 MAINS ALTERATIONS - CHARGEABLE - CAPEX - V_CMA_CY20 West Gate Tunnel"]
[null,"2130 MAINS ALTERATIONS - CHARGEABLE - CAPEX - V_CMA_CY20 RWA Plenty Rd Stg 2"]
[null,"2130 MAINS ALTERATIONS - CHARGEABLE - CAPEX - V_CMA_CY20 NELP EW STG2"]
[null,"2130 MAINS ALTERATIONS - CHARGEABLE - CAPEX - V_CMA_CY20 RWA RMH Gratten St"]
[null,"2130 MAINS ALTERATIONS - CHARGEABLE - CAPEX - V_CMA_CY21 O'Shea Monash Fwy"]
[null,"2130 MAINS ALTERATIONS - CHARGEABLE - CAPEX - V_CMA_CY21 RWA LXRA Berwick"]
[null,"2130 MAINS ALTERATION - CHARGEABLE - CAPEX <$500K"]
[null,"2106 C P - CORROSION PROTECTION - CAPEX <$500K"]
[null,"2106 C P - CORROSION PROTECTION - CAPEX - V_CP_CY20 TP Coating Repairs"]
[null,"2131 MAINS ALTERATION - NON CHARGEABLE - CAPEX"]
[null,"2139 NETWORK - REGULATOR STAY IN BUSINESS"]
[null,"2142 NETWORK - REGULATOR CAPEX"]
[null,"2152 NETWORK - STOPPLE EQUIPMENT"]
[null,"2190 OTHER - NON RETIC CAPITAL"]
[null,"MAJOR PROJECTS  - CAPEX <$500K"]
[null,"3111 MAJOR PROJECTS - LOGIC INDUSTRY PARK WODONGA"]
[null,"2140 WATER BATH OVERHAUL"]
[null,"2107 PIPELINE PIGGING (NO MODIFICATIONS)"]
[null,"2108 PIPELINE DCVG SURVEY"]
[null,"2461 TRANSMISSION PIPELINE - ENHANCEMENTS"]
[null,"3106 MAJOR PROJECTS - H07 CRANBOURNE HP AUGMENTATION - CITY GATE"]
[]
[]
[]
[]
[]
[]
[]
[]
[]
[]
[null,"E13.1 - CAPEX - BY PROJECT"]
[null,null,"EXPENDITURE"]
[null,null,"$0's, Nominal"]
[null,null,{"$f":"dms_y1","v":2017},{"$f":"dms_y2","v":2018},{"$f":"dms_y3","v":2019},{"$f":"dms_y4","v":2020},{"$f":"dms_y5","v":2021}]
[null,"A. DIRECT INTERNAL LABOUR EXPENDITURE"]
[null,{"$f":"IF(ISBLANK(dms_E13_Projects_01),\"\",dms_E13_Projects_01)","v":"3056 MAJOR PROJECTS - MELBOURNE METRO RAIL"}]
[null,{"$f":"IF(ISBLANK(dms_E13_Projects_02),\"\",dms_E13_Projects_02)","v":"3006 MAJOR PROJECTS - PAKENHAM CITY GATE"}]
[null,{"$f":"IF(ISBLANK(dms_E13_Projects_03),\"\",dms_E13_Projects_03)","v":"3053 MAJOR PROJECTS - RACV CAPE SCHANK"}]
[null,{"$f":"IF(ISBLANK(dms_E13_Projects_04),\"\",dms_E13_Projects_04)","v":"2130 MAINS ALTERATIONS - CHARGEABLE - CAPEX - CMA Plenty rd Mernda Rail Ext"}]
[null,{"$f":"IF(ISBLANK(dms_E13_Projects_05),\"\",dms_E13_Projects_05)","v":"2130 MAINS ALTERATIONS - CHARGEABLE - CAPEX - V_CMA_CY19 Thompsons Rd"}]
[null,{"$f":"IF(ISBLANK(dms_E13_Projects_06),\"\",dms_E13_Projects_06)","v":"2130 MAINS ALTERATIONS - CHARGEABLE - CAPEX - V_MA_CY19 O'Herns Rd Epping"}]
[null,{"$f":"IF(ISBLANK(dms_E13_Projects_07),\"\",dms_E13_Projects_07)","v":"2130 MAINS ALTERATIONS - CHARGEABLE - CAPEX - V_CMA_CY20 NELA_CPB"}]
[null,{"$f":"IF(ISBLANK(dms_E13_Projects_08),\"\",dms_E13_Projects_08)","v":"2130 MAINS ALTERATIONS - CHARGEABLE - CAPEX - V_MA_CY20_O'Herns Rd S2"}]
[null,{"$f":"IF(ISBLANK(dms_E13_Projects_09),\"\",dms_E13_Projects_09)","v":"2130 MAINS ALTERATIONS - CHARGEABLE - CAPEX - V_CMA_CY20 Plenty Rd Stg2"}]
[null,{"$f":"IF(ISBLANK(dms_E13_Projects_10),\"\",dms_E13_Projects_10)","v":"2130 MAINS ALTERATIONS - CHARGEABLE - CAPEX - V_CMA_CY20_NELP EW STG1"}]
[null,{"$f":"IF(ISBLANK(dms_E13_Projects_11),\"\",dms_E13_Projects_11)","v":"2130 MAINS ALTERATIONS - CHARGEABLE - CAPEX - V_CMA_CY20 West Gate Tunnel"}]
[null,{"$f":"IF(ISBLANK(dms_E13_Projects_12),\"\",dms_E13_Projects_12)","v":"2130 MAINS ALTERATIONS - CHARGEABLE - CAPEX - V_CMA_CY20 RWA Plenty Rd Stg 2"}]
[null,{"$f":"IF(ISBLANK(dms_E13_Projects_13),\"\",dms_E13_Projects_13)","v":"2130 MAINS ALTERATIONS - CHARGEABLE - CAPEX - V_CMA_CY20 NELP EW STG2"}]
[null,{"$f":"IF(ISBLANK(dms_E13_Projects_14),\"\",dms_E13_Projects_14)","v":"2130 MAINS ALTERATIONS - CHARGEABLE - CAPEX - V_CMA_CY20 RWA RMH Gratten St"}]
[null,{"$f":"IF(ISBLANK(dms_E13_Projects_15),\"\",dms_E13_Projects_15)","v":"2130 MAINS ALTERATIONS - CHARGEABLE - CAPEX - V_CMA_CY21 O'Shea Monash Fwy"}]
[null,{"$f":"IF(ISBLANK(dms_E13_Projects_16),\"\",dms_E13_Projects_16)","v":"2130 MAINS ALTERATIONS - CHARGEABLE - CAPEX - V_CMA_CY21 RWA LXRA Berwick"}]
[null,{"$f":"IF(ISBLANK(dms_E13_Projects_17),\"\",dms_E13_Projects_17)","v":"2130 MAINS ALTERATION - CHARGEABLE - CAPEX <$500K"}]
[null,{"$f":"IF(ISBLANK(dms_E13_Projects_18),\"\",dms_E13_Projects_18)","v":"2106 C P - CORROSION PROTECTION - CAPEX <$500K"}]
[null,{"$f":"IF(ISBLANK(dms_E13_Projects_19),\"\",dms_E13_Projects_19)","v":"2106 C P - CORROSION PROTECTION - CAPEX - V_CP_CY20 TP Coating Repairs"}]
[null,{"$f":"IF(ISBLANK(dms_E13_Projects_20),\"\",dms_E13_Projects_20)","v":"2131 MAINS ALTERATION - NON CHARGEABLE - CAPEX"}]
[null,{"$f":"IF(ISBLANK(dms_E13_Projects_21),\"\",dms_E13_Projects_21)","v":"2139 NETWORK - REGULATOR STAY IN BUSINESS"}]
[null,{"$f":"IF(ISBLANK(dms_E13_Projects_22),\"\",dms_E13_Projects_22)","v":"2142 NETWORK - REGULATOR CAPEX"}]
[null,{"$f":"IF(ISBLANK(dms_E13_Projects_23),\"\",dms_E13_Projects_23)","v":"2152 NETWORK - STOPPLE EQUIPMENT"}]
[null,{"$f":"IF(ISBLANK(dms_E13_Projects_24),\"\",dms_E13_Projects_24)","v":"2190 OTHER - NON RETIC CAPITAL"}]
[null,{"$f":"IF(ISBLANK(dms_E13_Projects_25),\"\",dms_E13_Projects_25)","v":"MAJOR PROJECTS  - CAPEX <$500K"}]
[null,{"$f":"IF(ISBLANK(dms_E13_Projects_26),\"\",dms_E13_Projects_26)","v":"3111 MAJOR PROJECTS - LOGIC INDUSTRY PARK WODONGA"}]
[null,{"$f":"IF(ISBLANK(dms_E13_Projects_27),\"\",dms_E13_Projects_27)","v":"2140 WATER BATH OVERHAUL"}]
[null,{"$f":"IF(ISBLANK(dms_E13_Projects_28),\"\",dms_E13_Projects_28)","v":"2107 PIPELINE PIGGING (NO MODIFICATIONS)"}]
[null,{"$f":"IF(ISBLANK(dms_E13_Projects_29),\"\",dms_E13_Projects_29)","v":"2108 PIPELINE DCVG SURVEY"}]
[null,{"$f":"IF(ISBLANK(dms_E13_Projects_30),\"\",dms_E13_Projects_30)","v":"2461 TRANSMISSION PIPELINE - ENHANCEMENTS"}]
[null,{"$f":"IF(ISBLANK(dms_E13_Projects_31),\"\",dms_E13_Projects_31)","v":"3106 MAJOR PROJECTS - H07 CRANBOURNE HP AUGMENTATION - CITY GATE"}]
[null,{"$f":"IF(ISBLANK(dms_E13_Projects_32),\"\",dms_E13_Projects_32)","v":""}]
[null,{"$f":"IF(ISBLANK(dms_E13_Projects_33),\"\",dms_E13_Projects_33)","v":""}]
[null,{"$f":"IF(ISBLANK(dms_E13_Projects_34),\"\",dms_E13_Projects_34)","v":""}]
[null,{"$f":"IF(ISBLANK(dms_E13_Projects_35),\"\",dms_E13_Projects_35)","v":""}]
[null,{"$f":"IF(ISBLANK(dms_E13_Projects_36),\"\",dms_E13_Projects_36)","v":""}]
[null,{"$f":"IF(ISBLANK(dms_E13_Projects_37),\"\",dms_E13_Projects_37)","v":""}]
[null,{"$f":"IF(ISBLANK(dms_E13_Projects_38),\"\",dms_E13_Projects_38)","v":""}]
[null,{"$f":"IF(ISBLANK(dms_E13_Projects_39),\"\",dms_E13_Projects_39)","v":""}]
[null,{"$f":"IF(ISBLANK(dms_E13_Projects_40),\"\",dms_E13_Projects_40)","v":""}]
[null,"Aggregate of other projects with total expenditure of less than $500,000"]
[null,"Total",{"$f":"SUM(C53:C93)","v":0},{"$f":"SUM(D53:D93)","v":0},{"$f":"SUM(E53:E93)","v":0},{"$f":"SUM(F53:F93)","v":0},{"$f":"SUM(G53:G93)","v":0}]
[]
[null,"B. DIRECT CONTRACTOR EXPENDITURE"]
[null,{"$f":"IF(ISBLANK(dms_E13_Projects_01),\"\",dms_E13_Projects_01)","v":"3056 MAJOR PROJECTS - MELBOURNE METRO RAIL"}]
[null,{"$f":"IF(ISBLANK(dms_E13_Projects_02),\"\",dms_E13_Projects_02)","v":"3006 MAJOR PROJECTS - PAKENHAM CITY GATE"}]
[null,{"$f":"IF(ISBLANK(dms_E13_Projects_03),\"\",dms_E13_Projects_03)","v":"3053 MAJOR PROJECTS - RACV CAPE SCHANK"}]
[null,{"$f":"IF(ISBLANK(dms_E13_Projects_04),\"\",dms_E13_Projects_04)","v":"2130 MAINS ALTERATIONS - CHARGEABLE - CAPEX - CMA Plenty rd Mernda Rail Ext"}]
[null,{"$f":"IF(ISBLANK(dms_E13_Projects_05),\"\",dms_E13_Projects_05)","v":"2130 MAINS ALTERATIONS - CHARGEABLE - CAPEX - V_CMA_CY19 Thompsons Rd"}]
[null,{"$f":"IF(ISBLANK(dms_E13_Projects_06),\"\",dms_E13_Projects_06)","v":"2130 MAINS ALTERATIONS - CHARGEABLE - CAPEX - V_MA_CY19 O'Herns Rd Epping"}]
[null,{"$f":"IF(ISBLANK(dms_E13_Projects_07),\"\",dms_E13_Projects_07)","v":"2130 MAINS ALTERATIONS - CHARGEABLE - CAPEX - V_CMA_CY20 NELA_CPB"}]
[null,{"$f":"IF(ISBLANK(dms_E13_Projects_08),\"\",dms_E13_Projects_08)","v":"2130 MAINS ALTERATIONS - CHARGEABLE - CAPEX - V_MA_CY20_O'Herns Rd S2"}]
[null,{"$f":"IF(ISBLANK(dms_E13_Projects_09),\"\",dms_E13_Projects_09)","v":"2130 MAINS ALTERATIONS - CHARGEABLE - CAPEX - V_CMA_CY20 Plenty Rd Stg2"}]
[null,{"$f":"IF(ISBLANK(dms_E13_Projects_10),\"\",dms_E13_Projects_10)","v":"2130 MAINS ALTERATIONS - CHARGEABLE - CAPEX - V_CMA_CY20_NELP EW STG1"}]
[null,{"$f":"IF(ISBLANK(dms_E13_Projects_11),\"\",dms_E13_Projects_11)","v":"2130 MAINS ALTERATIONS - CHARGEABLE - CAPEX - V_CMA_CY20 West Gate Tunnel"}]
[null,{"$f":"IF(ISBLANK(dms_E13_Projects_12),\"\",dms_E13_Projects_12)","v":"2130 MAINS ALTERATIONS - CHARGEABLE - CAPEX - V_CMA_CY20 RWA Plenty Rd Stg 2"}]
[null,{"$f":"IF(ISBLANK(dms_E13_Projects_13),\"\",dms_E13_Projects_13)","v":"2130 MAINS ALTERATIONS - CHARGEABLE - CAPEX - V_CMA_CY20 NELP EW STG2"}]
[null,{"$f":"IF(ISBLANK(dms_E13_Projects_14),\"\",dms_E13_Projects_14)","v":"2130 MAINS ALTERATIONS - CHARGEABLE - CAPEX - V_CMA_CY20 RWA RMH Gratten St"}]
[null,{"$f":"IF(ISBLANK(dms_E13_Projects_15),\"\",dms_E13_Projects_15)","v":"2130 MAINS ALTERATIONS - CHARGEABLE - CAPEX - V_CMA_CY21 O'Shea Monash Fwy"}]
[null,{"$f":"IF(ISBLANK(dms_E13_Projects_16),\"\",dms_E13_Projects_16)","v":"2130 MAINS ALTERATIONS - CHARGEABLE - CAPEX - V_CMA_CY21 RWA LXRA Berwick"}]
[null,{"$f":"IF(ISBLANK(dms_E13_Projects_17),\"\",dms_E13_Projects_17)","v":"2130 MAINS ALTERATION - CHARGEABLE - CAPEX <$500K"}]
[null,{"$f":"IF(ISBLANK(dms_E13_Projects_18),\"\",dms_E13_Projects_18)","v":"2106 C P - CORROSION PROTECTION - CAPEX <$500K"}]
[null,{"$f":"IF(ISBLANK(dms_E13_Projects_19),\"\",dms_E13_Projects_19)","v":"2106 C P - CORROSION PROTECTION - CAPEX - V_CP_CY20 TP Coating Repairs"}]
[null,{"$f":"IF(ISBLANK(dms_E13_Projects_20),\"\",dms_E13_Projects_20)","v":"2131 MAINS ALTERATION - NON CHARGEABLE - CAPEX"}]
[null,{"$f":"IF(ISBLANK(dms_E13_Projects_21),\"\",dms_E13_Projects_21)","v":"2139 NETWORK - REGULATOR STAY IN BUSINESS"}]
[null,{"$f":"IF(ISBLANK(dms_E13_Projects_22),\"\",dms_E13_Projects_22)","v":"2142 NETWORK - REGULATOR CAPEX"}]
[null,{"$f":"IF(ISBLANK(dms_E13_Projects_23),\"\",dms_E13_Projects_23)","v":"2152 NETWORK - STOPPLE EQUIPMENT"}]
[null,{"$f":"IF(ISBLANK(dms_E13_Projects_24),\"\",dms_E13_Projects_24)","v":"2190 OTHER - NON RETIC CAPITAL"}]
[null,{"$f":"IF(ISBLANK(dms_E13_Projects_25),\"\",dms_E13_Projects_25)","v":"MAJOR PROJECTS  - CAPEX <$500K"}]
[null,{"$f":"IF(ISBLANK(dms_E13_Projects_26),\"\",dms_E13_Projects_26)","v":"3111 MAJOR PROJECTS - LOGIC INDUSTRY PARK WODONGA"}]
[null,{"$f":"IF(ISBLANK(dms_E13_Projects_27),\"\",dms_E13_Projects_27)","v":"2140 WATER BATH OVERHAUL"}]
[null,{"$f":"IF(ISBLANK(dms_E13_Projects_28),\"\",dms_E13_Projects_28)","v":"2107 PIPELINE PIGGING (NO MODIFICATIONS)"}]
[null,{"$f":"IF(ISBLANK(dms_E13_Projects_29),\"\",dms_E13_Projects_29)","v":"2108 PIPELINE DCVG SURVEY"}]
[null,{"$f":"IF(ISBLANK(dms_E13_Projects_30),\"\",dms_E13_Projects_30)","v":"2461 TRANSMISSION PIPELINE - ENHANCEMENTS"}]
[null,{"$f":"IF(ISBLANK(dms_E13_Projects_31),\"\",dms_E13_Projects_31)","v":"3106 MAJOR PROJECTS - H07 CRANBOURNE HP AUGMENTATION - CITY GATE"}]
[null,{"$f":"IF(ISBLANK(dms_E13_Projects_32),\"\",dms_E13_Projects_32)","v":""}]
[null,{"$f":"IF(ISBLANK(dms_E13_Projects_33),\"\",dms_E13_Projects_33)","v":""}]
[null,{"$f":"IF(ISBLANK(dms_E13_Projects_34),\"\",dms_E13_Projects_34)","v":""}]
[null,{"$f":"IF(ISBLANK(dms_E13_Projects_35),\"\",dms_E13_Projects_35)","v":""}]
[null,{"$f":"IF(ISBLANK(dms_E13_Projects_36),\"\",dms_E13_Projects_36)","v":""}]
[null,{"$f":"IF(ISBLANK(dms_E13_Projects_37),\"\",dms_E13_Projects_37)","v":""}]
[null,{"$f":"IF(ISBLANK(dms_E13_Projects_38),\"\",dms_E13_Projects_38)","v":""}]
[null,{"$f":"IF(ISBLANK(dms_E13_Projects_39),\"\",dms_E13_Projects_39)","v":""}]
[null,{"$f":"IF(ISBLANK(dms_E13_Projects_40),\"\",dms_E13_Projects_40)","v":""}]
[null,"Aggregate of other projects with total expenditure of less than $500,000"]
[null,"Total"]
[]
[null,"C. DIRECT MATERIAL EXPENDITURE"]
[null,{"$f":"IF(ISBLANK(dms_E13_Projects_01),\"\",dms_E13_Projects_01)","v":"3056 MAJOR PROJECTS - MELBOURNE METRO RAIL"}]
[null,{"$f":"IF(ISBLANK(dms_E13_Projects_02),\"\",dms_E13_Projects_02)","v":"3006 MAJOR PROJECTS - PAKENHAM CITY GATE"}]
[null,{"$f":"IF(ISBLANK(dms_E13_Projects_03),\"\",dms_E13_Projects_03)","v":"3053 MAJOR PROJECTS - RACV CAPE SCHANK"}]
[null,{"$f":"IF(ISBLANK(dms_E13_Projects_04),\"\",dms_E13_Projects_04)","v":"2130 MAINS ALTERATIONS - CHARGEABLE - CAPEX - CMA Plenty rd Mernda Rail Ext"}]
[null,{"$f":"IF(ISBLANK(dms_E13_Projects_05),\"\",dms_E13_Projects_05)","v":"2130 MAINS ALTERATIONS - CHARGEABLE - CAPEX - V_CMA_CY19 Thompsons Rd"}]
[null,{"$f":"IF(ISBLANK(dms_E13_Projects_06),\"\",dms_E13_Projects_06)","v":"2130 MAINS ALTERATIONS - CHARGEABLE - CAPEX - V_MA_CY19 O'Herns Rd Epping"}]
[null,{"$f":"IF(ISBLANK(dms_E13_Projects_07),\"\",dms_E13_Projects_07)","v":"2130 MAINS ALTERATIONS - CHARGEABLE - CAPEX - V_CMA_CY20 NELA_CPB"}]
[null,{"$f":"IF(ISBLANK(dms_E13_Projects_08),\"\",dms_E13_Projects_08)","v":"2130 MAINS ALTERATIONS - CHARGEABLE - CAPEX - V_MA_CY20_O'Herns Rd S2"}]
[null,{"$f":"IF(ISBLANK(dms_E13_Projects_09),\"\",dms_E13_Projects_09)","v":"2130 MAINS ALTERATIONS - CHARGEABLE - CAPEX - V_CMA_CY20 Plenty Rd Stg2"}]
[null,{"$f":"IF(ISBLANK(dms_E13_Projects_10),\"\",dms_E13_Projects_10)","v":"2130 MAINS ALTERATIONS - CHARGEABLE - CAPEX - V_CMA_CY20_NELP EW STG1"}]
[null,{"$f":"IF(ISBLANK(dms_E13_Projects_11),\"\",dms_E13_Projects_11)","v":"2130 MAINS ALTERATIONS - CHARGEABLE - CAPEX - V_CMA_CY20 West Gate Tunnel"}]
[null,{"$f":"IF(ISBLANK(dms_E13_Projects_12),\"\",dms_E13_Projects_12)","v":"2130 MAINS ALTERATIONS - CHARGEABLE - CAPEX - V_CMA_CY20 RWA Plenty Rd Stg 2"}]
[null,{"$f":"IF(ISBLANK(dms_E13_Projects_13),\"\",dms_E13_Projects_13)","v":"2130 MAINS ALTERATIONS - CHARGEABLE - CAPEX - V_CMA_CY20 NELP EW STG2"}]
[null,{"$f":"IF(ISBLANK(dms_E13_Projects_14),\"\",dms_E13_Projects_14)","v":"2130 MAINS ALTERATIONS - CHARGEABLE - CAPEX - V_CMA_CY20 RWA RMH Gratten St"}]
[null,{"$f":"IF(ISBLANK(dms_E13_Projects_15),\"\",dms_E13_Projects_15)","v":"2130 MAINS ALTERATIONS - CHARGEABLE - CAPEX - V_CMA_CY21 O'Shea Monash Fwy"}]
[null,{"$f":"IF(ISBLANK(dms_E13_Projects_16),\"\",dms_E13_Projects_16)","v":"2130 MAINS ALTERATIONS - CHARGEABLE - CAPEX - V_CMA_CY21 RWA LXRA Berwick"}]
[null,{"$f":"IF(ISBLANK(dms_E13_Projects_17),\"\",dms_E13_Projects_17)","v":"2130 MAINS ALTERATION - CHARGEABLE - CAPEX <$500K"}]
[null,{"$f":"IF(ISBLANK(dms_E13_Projects_18),\"\",dms_E13_Projects_18)","v":"2106 C P - CORROSION PROTECTION - CAPEX <$500K"}]
[null,{"$f":"IF(ISBLANK(dms_E13_Projects_19),\"\",dms_E13_Projects_19)","v":"2106 C P - CORROSION PROTECTION - CAPEX - V_CP_CY20 TP Coating Repairs"}]
[null,{"$f":"IF(ISBLANK(dms_E13_Projects_20),\"\",dms_E13_Projects_20)","v":"2131 MAINS ALTERATION - NON CHARGEABLE - CAPEX"}]
[null,{"$f":"IF(ISBLANK(dms_E13_Projects_21),\"\",dms_E13_Projects_21)","v":"2139 NETWORK - REGULATOR STAY IN BUSINESS"}]
[null,{"$f":"IF(ISBLANK(dms_E13_Projects_22),\"\",dms_E13_Projects_22)","v":"2142 NETWORK - REGULATOR CAPEX"}]
[null,{"$f":"IF(ISBLANK(dms_E13_Projects_23),\"\",dms_E13_Projects_23)","v":"2152 NETWORK - STOPPLE EQUIPMENT"}]
[null,{"$f":"IF(ISBLANK(dms_E13_Projects_24),\"\",dms_E13_Projects_24)","v":"2190 OTHER - NON RETIC CAPITAL"}]
[null,{"$f":"IF(ISBLANK(dms_E13_Projects_25),\"\",dms_E13_Projects_25)","v":"MAJOR PROJECTS  - CAPEX <$500K"},null,null,null,175229.72300831389,9733.2145193264823]
[null,{"$f":"IF(ISBLANK(dms_E13_Projects_26),\"\",dms_E13_Projects_26)","v":"3111 MAJOR PROJECTS - LOGIC INDUSTRY PARK WODONGA"}]
[null,{"$f":"IF(ISBLANK(dms_E13_Projects_27),\"\",dms_E13_Projects_27)","v":"2140 WATER BATH OVERHAUL"}]
[null,{"$f":"IF(ISBLANK(dms_E13_Projects_28),\"\",dms_E13_Projects_28)","v":"2107 PIPELINE PIGGING (NO MODIFICATIONS)"}]
[null,{"$f":"IF(ISBLANK(dms_E13_Projects_29),\"\",dms_E13_Projects_29)","v":"2108 PIPELINE DCVG SURVEY"}]
[null,{"$f":"IF(ISBLANK(dms_E13_Projects_30),\"\",dms_E13_Projects_30)","v":"2461 TRANSMISSION PIPELINE - ENHANCEMENTS"}]
[null,{"$f":"IF(ISBLANK(dms_E13_Projects_31),\"\",dms_E13_Projects_31)","v":"3106 MAJOR PROJECTS - H07 CRANBOURNE HP AUGMENTATION - CITY GATE"}]
[null,{"$f":"IF(ISBLANK(dms_E13_Projects_32),\"\",dms_E13_Projects_32)","v":""}]
[null,{"$f":"IF(ISBLANK(dms_E13_Projects_33),\"\",dms_E13_Projects_33)","v":""}]
[null,{"$f":"IF(ISBLANK(dms_E13_Projects_34),\"\",dms_E13_Projects_34)","v":""}]
[null,{"$f":"IF(ISBLANK(dms_E13_Projects_35),\"\",dms_E13_Projects_35)","v":""}]
[null,{"$f":"IF(ISBLANK(dms_E13_Projects_36),\"\",dms_E13_Projects_36)","v":""}]
[null,{"$f":"IF(ISBLANK(dms_E13_Projects_37),\"\",dms_E13_Projects_37)","v":""}]
[null,{"$f":"IF(ISBLANK(dms_E13_Projects_38),\"\",dms_E13_Projects_38)","v":""}]
[null,{"$f":"IF(ISBLANK(dms_E13_Projects_39),\"\",dms_E13_Projects_39)","v":""}]
[null,{"$f":"IF(ISBLANK(dms_E13_Projects_40),\"\",dms_E13_Projects_40)","v":""}]
[null,"Aggregate of other projects with total expenditure of less than $500,000"]
[null,"Total",{"$f":"SUM(C141:C181)","v":0},{"$f":"SUM(D141:D181)","v":0},{"$f":"SUM(E141:E181)","v":0},{"$f":"SUM(F141:F181)","v":175229.72300831389},{"$f":"SUM(G141:G181)","v":9733.2145193264823}]
[]
[null,"D. OTHER DIRECT EXPENDITURE"]
[null,{"$f":"IF(ISBLANK(dms_E13_Projects_01),\"\",dms_E13_Projects_01)","v":"3056 MAJOR PROJECTS - MELBOURNE METRO RAIL"}]
[null,{"$f":"IF(ISBLANK(dms_E13_Projects_02),\"\",dms_E13_Projects_02)","v":"3006 MAJOR PROJECTS - PAKENHAM CITY GATE"}]
[null,{"$f":"IF(ISBLANK(dms_E13_Projects_03),\"\",dms_E13_Projects_03)","v":"3053 MAJOR PROJECTS - RACV CAPE SCHANK"}]
[null,{"$f":"IF(ISBLANK(dms_E13_Projects_04),\"\",dms_E13_Projects_04)","v":"2130 MAINS ALTERATIONS - CHARGEABLE - CAPEX - CMA Plenty rd Mernda Rail Ext"}]
[null,{"$f":"IF(ISBLANK(dms_E13_Projects_05),\"\",dms_E13_Projects_05)","v":"2130 MAINS ALTERATIONS - CHARGEABLE - CAPEX - V_CMA_CY19 Thompsons Rd"}]
[null,{"$f":"IF(ISBLANK(dms_E13_Projects_06),\"\",dms_E13_Projects_06)","v":"2130 MAINS ALTERATIONS - CHARGEABLE - CAPEX - V_MA_CY19 O'Herns Rd Epping"}]
[null,{"$f":"IF(ISBLANK(dms_E13_Projects_07),\"\",dms_E13_Projects_07)","v":"2130 MAINS ALTERATIONS - CHARGEABLE - CAPEX - V_CMA_CY20 NELA_CPB"}]
[null,{"$f":"IF(ISBLANK(dms_E13_Projects_08),\"\",dms_E13_Projects_08)","v":"2130 MAINS ALTERATIONS - CHARGEABLE - CAPEX - V_MA_CY20_O'Herns Rd S2"}]
[null,{"$f":"IF(ISBLANK(dms_E13_Projects_09),\"\",dms_E13_Projects_09)","v":"2130 MAINS ALTERATIONS - CHARGEABLE - CAPEX - V_CMA_CY20 Plenty Rd Stg2"}]
[null,{"$f":"IF(ISBLANK(dms_E13_Projects_10),\"\",dms_E13_Projects_10)","v":"2130 MAINS ALTERATIONS - CHARGEABLE - CAPEX - V_CMA_CY20_NELP EW STG1"}]
[null,{"$f":"IF(ISBLANK(dms_E13_Projects_11),\"\",dms_E13_Projects_11)","v":"2130 MAINS ALTERATIONS - CHARGEABLE - CAPEX - V_CMA_CY20 West Gate Tunnel"}]
[null,{"$f":"IF(ISBLANK(dms_E13_Projects_12),\"\",dms_E13_Projects_12)","v":"2130 MAINS ALTERATIONS - CHARGEABLE - CAPEX - V_CMA_CY20 RWA Plenty Rd Stg 2"}]
[null,{"$f":"IF(ISBLANK(dms_E13_Projects_13),\"\",dms_E13_Projects_13)","v":"2130 MAINS ALTERATIONS - CHARGEABLE - CAPEX - V_CMA_CY20 NELP EW STG2"}]
[null,{"$f":"IF(ISBLANK(dms_E13_Projects_14),\"\",dms_E13_Projects_14)","v":"2130 MAINS ALTERATIONS - CHARGEABLE - CAPEX - V_CMA_CY20 RWA RMH Gratten St"}]
[null,{"$f":"IF(ISBLANK(dms_E13_Projects_15),\"\",dms_E13_Projects_15)","v":"2130 MAINS ALTERATIONS - CHARGEABLE - CAPEX - V_CMA_CY21 O'Shea Monash Fwy"}]
[null,{"$f":"IF(ISBLANK(dms_E13_Projects_16),\"\",dms_E13_Projects_16)","v":"2130 MAINS ALTERATIONS - CHARGEABLE - CAPEX - V_CMA_CY21 RWA LXRA Berwick"}]
[null,{"$f":"IF(ISBLANK(dms_E13_Projects_17),\"\",dms_E13_Projects_17)","v":"2130 MAINS ALTERATION - CHARGEABLE - CAPEX <$500K"}]
[null,{"$f":"IF(ISBLANK(dms_E13_Projects_18),\"\",dms_E13_Projects_18)","v":"2106 C P - CORROSION PROTECTION - CAPEX <$500K"}]
[null,{"$f":"IF(ISBLANK(dms_E13_Projects_19),\"\",dms_E13_Projects_19)","v":"2106 C P - CORROSION PROTECTION - CAPEX - V_CP_CY20 TP Coating Repairs"}]
[null,{"$f":"IF(ISBLANK(dms_E13_Projects_20),\"\",dms_E13_Projects_20)","v":"2131 MAINS ALTERATION - NON CHARGEABLE - CAPEX"}]
[null,{"$f":"IF(ISBLANK(dms_E13_Projects_21),\"\",dms_E13_Projects_21)","v":"2139 NETWORK - REGULATOR STAY IN BUSINESS"}]
[null,{"$f":"IF(ISBLANK(dms_E13_Projects_22),\"\",dms_E13_Projects_22)","v":"2142 NETWORK - REGULATOR CAPEX"}]
[null,{"$f":"IF(ISBLANK(dms_E13_Projects_23),\"\",dms_E13_Projects_23)","v":"2152 NETWORK - STOPPLE EQUIPMENT"}]
[null,{"$f":"IF(ISBLANK(dms_E13_Projects_24),\"\",dms_E13_Projects_24)","v":"2190 OTHER - NON RETIC CAPITAL"}]
[null,{"$f":"IF(ISBLANK(dms_E13_Projects_25),\"\",dms_E13_Projects_25)","v":"MAJOR PROJECTS  - CAPEX <$500K"}]
[null,{"$f":"IF(ISBLANK(dms_E13_Projects_26),\"\",dms_E13_Projects_26)","v":"3111 MAJOR PROJECTS - LOGIC INDUSTRY PARK WODONGA"}]
[null,{"$f":"IF(ISBLANK(dms_E13_Projects_27),\"\",dms_E13_Projects_27)","v":"2140 WATER BATH OVERHAUL"}]
[null,{"$f":"IF(ISBLANK(dms_E13_Projects_28),\"\",dms_E13_Projects_28)","v":"2107 PIPELINE PIGGING (NO MODIFICATIONS)"}]
[null,{"$f":"IF(ISBLANK(dms_E13_Projects_29),\"\",dms_E13_Projects_29)","v":"2108 PIPELINE DCVG SURVEY"}]
[null,{"$f":"IF(ISBLANK(dms_E13_Projects_30),\"\",dms_E13_Projects_30)","v":"2461 TRANSMISSION PIPELINE - ENHANCEMENTS"}]
[null,{"$f":"IF(ISBLANK(dms_E13_Projects_31),\"\",dms_E13_Projects_31)","v":"3106 MAJOR PROJECTS - H07 CRANBOURNE HP AUGMENTATION - CITY GATE"}]
[null,{"$f":"IF(ISBLANK(dms_E13_Projects_32),\"\",dms_E13_Projects_32)","v":""}]
[null,{"$f":"IF(ISBLANK(dms_E13_Projects_33),\"\",dms_E13_Projects_33)","v":""}]
[null,{"$f":"IF(ISBLANK(dms_E13_Projects_34),\"\",dms_E13_Projects_34)","v":""}]
[null,{"$f":"IF(ISBLANK(dms_E13_Projects_35),\"\",dms_E13_Projects_35)","v":""}]
[null,{"$f":"IF(ISBLANK(dms_E13_Projects_36),\"\",dms_E13_Projects_36)","v":""}]
[null,{"$f":"IF(ISBLANK(dms_E13_Projects_37),\"\",dms_E13_Projects_37)","v":""}]
[null,{"$f":"IF(ISBLANK(dms_E13_Projects_38),\"\",dms_E13_Projects_38)","v":""}]
[null,{"$f":"IF(ISBLANK(dms_E13_Projects_39),\"\",dms_E13_Projects_39)","v":""}]
[null,{"$f":"IF(ISBLANK(dms_E13_Projects_40),\"\",dms_E13_Projects_40)","v":""}]
[null,"Aggregate of other projects with total expenditure of less than $500,000"]
[null,"Total"]
[]
[null,"E. RELATED PARTY MARGIN EXPENDITURE"]
[null,{"$f":"IF(ISBLANK(dms_E13_Projects_01),\"\",dms_E13_Projects_01)","v":"3056 MAJOR PROJECTS - MELBOURNE METRO RAIL"}]
[null,{"$f":"IF(ISBLANK(dms_E13_Projects_02),\"\",dms_E13_Projects_02)","v":"3006 MAJOR PROJECTS - PAKENHAM CITY GATE"}]
[null,{"$f":"IF(ISBLANK(dms_E13_Projects_03),\"\",dms_E13_Projects_03)","v":"3053 MAJOR PROJECTS - RACV CAPE SCHANK"}]
[null,{"$f":"IF(ISBLANK(dms_E13_Projects_04),\"\",dms_E13_Projects_04)","v":"2130 MAINS ALTERATIONS - CHARGEABLE - CAPEX - CMA Plenty rd Mernda Rail Ext"}]
[null,{"$f":"IF(ISBLANK(dms_E13_Projects_05),\"\",dms_E13_Projects_05)","v":"2130 MAINS ALTERATIONS - CHARGEABLE - CAPEX - V_CMA_CY19 Thompsons Rd"}]
[null,{"$f":"IF(ISBLANK(dms_E13_Projects_06),\"\",dms_E13_Projects_06)","v":"2130 MAINS ALTERATIONS - CHARGEABLE - CAPEX - V_MA_CY19 O'Herns Rd Epping"}]
[null,{"$f":"IF(ISBLANK(dms_E13_Projects_07),\"\",dms_E13_Projects_07)","v":"2130 MAINS ALTERATIONS - CHARGEABLE - CAPEX - V_CMA_CY20 NELA_CPB"}]
[null,{"$f":"IF(ISBLANK(dms_E13_Projects_08),\"\",dms_E13_Projects_08)","v":"2130 MAINS ALTERATIONS - CHARGEABLE - CAPEX - V_MA_CY20_O'Herns Rd S2"}]
[null,{"$f":"IF(ISBLANK(dms_E13_Projects_09),\"\",dms_E13_Projects_09)","v":"2130 MAINS ALTERATIONS - CHARGEABLE - CAPEX - V_CMA_CY20 Plenty Rd Stg2"}]
[null,{"$f":"IF(ISBLANK(dms_E13_Projects_10),\"\",dms_E13_Projects_10)","v":"2130 MAINS ALTERATIONS - CHARGEABLE - CAPEX - V_CMA_CY20_NELP EW STG1"}]
[null,{"$f":"IF(ISBLANK(dms_E13_Projects_11),\"\",dms_E13_Projects_11)","v":"2130 MAINS ALTERATIONS - CHARGEABLE - CAPEX - V_CMA_CY20 West Gate Tunnel"}]
[null,{"$f":"IF(ISBLANK(dms_E13_Projects_12),\"\",dms_E13_Projects_12)","v":"2130 MAINS ALTERATIONS - CHARGEABLE - CAPEX - V_CMA_CY20 RWA Plenty Rd Stg 2"}]
[null,{"$f":"IF(ISBLANK(dms_E13_Projects_13),\"\",dms_E13_Projects_13)","v":"2130 MAINS ALTERATIONS - CHARGEABLE - CAPEX - V_CMA_CY20 NELP EW STG2"}]
[null,{"$f":"IF(ISBLANK(dms_E13_Projects_14),\"\",dms_E13_Projects_14)","v":"2130 MAINS ALTERATIONS - CHARGEABLE - CAPEX - V_CMA_CY20 RWA RMH Gratten St"}]
[null,{"$f":"IF(ISBLANK(dms_E13_Projects_15),\"\",dms_E13_Projects_15)","v":"2130 MAINS ALTERATIONS - CHARGEABLE - CAPEX - V_CMA_CY21 O'Shea Monash Fwy"}]
[null,{"$f":"IF(ISBLANK(dms_E13_Projects_16),\"\",dms_E13_Projects_16)","v":"2130 MAINS ALTERATIONS - CHARGEABLE - CAPEX - V_CMA_CY21 RWA LXRA Berwick"}]
[null,{"$f":"IF(ISBLANK(dms_E13_Projects_17),\"\",dms_E13_Projects_17)","v":"2130 MAINS ALTERATION - CHARGEABLE - CAPEX <$500K"}]
[null,{"$f":"IF(ISBLANK(dms_E13_Projects_18),\"\",dms_E13_Projects_18)","v":"2106 C P - CORROSION PROTECTION - CAPEX <$500K"}]
[null,{"$f":"IF(ISBLANK(dms_E13_Projects_19),\"\",dms_E13_Projects_19)","v":"2106 C P - CORROSION PROTECTION - CAPEX - V_CP_CY20 TP Coating Repairs"}]
[null,{"$f":"IF(ISBLANK(dms_E13_Projects_20),\"\",dms_E13_Projects_20)","v":"2131 MAINS ALTERATION - NON CHARGEABLE - CAPEX"}]
[null,{"$f":"IF(ISBLANK(dms_E13_Projects_21),\"\",dms_E13_Projects_21)","v":"2139 NETWORK - REGULATOR STAY IN BUSINESS"}]
[null,{"$f":"IF(ISBLANK(dms_E13_Projects_22),\"\",dms_E13_Projects_22)","v":"2142 NETWORK - REGULATOR CAPEX"}]
[null,{"$f":"IF(ISBLANK(dms_E13_Projects_23),\"\",dms_E13_Projects_23)","v":"2152 NETWORK - STOPPLE EQUIPMENT"}]
[null,{"$f":"IF(ISBLANK(dms_E13_Projects_24),\"\",dms_E13_Projects_24)","v":"2190 OTHER - NON RETIC CAPITAL"}]
[null,{"$f":"IF(ISBLANK(dms_E13_Projects_25),\"\",dms_E13_Projects_25)","v":"MAJOR PROJECTS  - CAPEX <$500K"}]
[null,{"$f":"IF(ISBLANK(dms_E13_Projects_26),\"\",dms_E13_Projects_26)","v":"3111 MAJOR PROJECTS - LOGIC INDUSTRY PARK WODONGA"}]
[null,{"$f":"IF(ISBLANK(dms_E13_Projects_27),\"\",dms_E13_Projects_27)","v":"2140 WATER BATH OVERHAUL"}]
[null,{"$f":"IF(ISBLANK(dms_E13_Projects_28),\"\",dms_E13_Projects_28)","v":"2107 PIPELINE PIGGING (NO MODIFICATIONS)"}]
[null,{"$f":"IF(ISBLANK(dms_E13_Projects_29),\"\",dms_E13_Projects_29)","v":"2108 PIPELINE DCVG SURVEY"}]
[null,{"$f":"IF(ISBLANK(dms_E13_Projects_30),\"\",dms_E13_Projects_30)","v":"2461 TRANSMISSION PIPELINE - ENHANCEMENTS"}]
[null,{"$f":"IF(ISBLANK(dms_E13_Projects_31),\"\",dms_E13_Projects_31)","v":"3106 MAJOR PROJECTS - H07 CRANBOURNE HP AUGMENTATION - CITY GATE"}]
[null,{"$f":"IF(ISBLANK(dms_E13_Projects_32),\"\",dms_E13_Projects_32)","v":""}]
[null,{"$f":"IF(ISBLANK(dms_E13_Projects_33),\"\",dms_E13_Projects_33)","v":""}]
[null,{"$f":"IF(ISBLANK(dms_E13_Projects_34),\"\",dms_E13_Projects_34)","v":""}]
[null,{"$f":"IF(ISBLANK(dms_E13_Projects_35),\"\",dms_E13_Projects_35)","v":""}]
[null,{"$f":"IF(ISBLANK(dms_E13_Projects_36),\"\",dms_E13_Projects_36)","v":""}]
[null,{"$f":"IF(ISBLANK(dms_E13_Projects_37),\"\",dms_E13_Projects_37)","v":""}]
[null,{"$f":"IF(ISBLANK(dms_E13_Projects_38),\"\",dms_E13_Projects_38)","v":""}]
[null,{"$f":"IF(ISBLANK(dms_E13_Projects_39),\"\",dms_E13_Projects_39)","v":""}]
[null,{"$f":"IF(ISBLANK(dms_E13_Projects_40),\"\",dms_E13_Projects_40)","v":""}]
[null,"Aggregate of other projects with total expenditure of less than $500,000"]
[null,"Total",{"$f":"SUM(C229:C269)","v":0},{"$f":"SUM(D229:D269)","v":0},{"$f":"SUM(E229:E269)","v":0},{"$f":"SUM(F229:F269)","v":0},{"$f":"SUM(G229:G269)","v":0}]
[]
[null,"F. CAPITAL CONTRIBUTIONS included in the above"]
[null,{"$f":"IF(ISBLANK(dms_E13_Projects_01),\"\",dms_E13_Projects_01)","v":"3056 MAJOR PROJECTS - MELBOURNE METRO RAIL"}]
[null,{"$f":"IF(ISBLANK(dms_E13_Projects_02),\"\",dms_E13_Projects_02)","v":"3006 MAJOR PROJECTS - PAKENHAM CITY GATE"}]
[null,{"$f":"IF(ISBLANK(dms_E13_Projects_03),\"\",dms_E13_Projects_03)","v":"3053 MAJOR PROJECTS - RACV CAPE SCHANK"}]
[null,{"$f":"IF(ISBLANK(dms_E13_Projects_04),\"\",dms_E13_Projects_04)","v":"2130 MAINS ALTERATIONS - CHARGEABLE - CAPEX - CMA Plenty rd Mernda Rail Ext"}]
[null,{"$f":"IF(ISBLANK(dms_E13_Projects_05),\"\",dms_E13_Projects_05)","v":"2130 MAINS ALTERATIONS - CHARGEABLE - CAPEX - V_CMA_CY19 Thompsons Rd"}]
[null,{"$f":"IF(ISBLANK(dms_E13_Projects_06),\"\",dms_E13_Projects_06)","v":"2130 MAINS ALTERATIONS - CHARGEABLE - CAPEX - V_MA_CY19 O'Herns Rd Epping"}]
[null,{"$f":"IF(ISBLANK(dms_E13_Projects_07),\"\",dms_E13_Projects_07)","v":"2130 MAINS ALTERATIONS - CHARGEABLE - CAPEX - V_CMA_CY20 NELA_CPB"}]
[null,{"$f":"IF(ISBLANK(dms_E13_Projects_08),\"\",dms_E13_Projects_08)","v":"2130 MAINS ALTERATIONS - CHARGEABLE - CAPEX - V_MA_CY20_O'Herns Rd S2"}]
[null,{"$f":"IF(ISBLANK(dms_E13_Projects_09),\"\",dms_E13_Projects_09)","v":"2130 MAINS ALTERATIONS - CHARGEABLE - CAPEX - V_CMA_CY20 Plenty Rd Stg2"}]
[null,{"$f":"IF(ISBLANK(dms_E13_Projects_10),\"\",dms_E13_Projects_10)","v":"2130 MAINS ALTERATIONS - CHARGEABLE - CAPEX - V_CMA_CY20_NELP EW STG1"}]
[null,{"$f":"IF(ISBLANK(dms_E13_Projects_11),\"\",dms_E13_Projects_11)","v":"2130 MAINS ALTERATIONS - CHARGEABLE - CAPEX - V_CMA_CY20 West Gate Tunnel"}]
[null,{"$f":"IF(ISBLANK(dms_E13_Projects_12),\"\",dms_E13_Projects_12)","v":"2130 MAINS ALTERATIONS - CHARGEABLE - CAPEX - V_CMA_CY20 RWA Plenty Rd Stg 2"}]
[null,{"$f":"IF(ISBLANK(dms_E13_Projects_13),\"\",dms_E13_Projects_13)","v":"2130 MAINS ALTERATIONS - CHARGEABLE - CAPEX - V_CMA_CY20 NELP EW STG2"}]
[null,{"$f":"IF(ISBLANK(dms_E13_Projects_14),\"\",dms_E13_Projects_14)","v":"2130 MAINS ALTERATIONS - CHARGEABLE - CAPEX - V_CMA_CY20 RWA RMH Gratten St"}]
[null,{"$f":"IF(ISBLANK(dms_E13_Projects_15),\"\",dms_E13_Projects_15)","v":"2130 MAINS ALTERATIONS - CHARGEABLE - CAPEX - V_CMA_CY21 O'Shea Monash Fwy"}]
[null,{"$f":"IF(ISBLANK(dms_E13_Projects_16),\"\",dms_E13_Projects_16)","v":"2130 MAINS ALTERATIONS - CHARGEABLE - CAPEX - V_CMA_CY21 RWA LXRA Berwick"}]
[null,{"$f":"IF(ISBLANK(dms_E13_Projects_17),\"\",dms_E13_Projects_17)","v":"2130 MAINS ALTERATION - CHARGEABLE - CAPEX <$500K"}]
[null,{"$f":"IF(ISBLANK(dms_E13_Projects_18),\"\",dms_E13_Projects_18)","v":"2106 C P - CORROSION PROTECTION - CAPEX <$500K"}]
[null,{"$f":"IF(ISBLANK(dms_E13_Projects_19),\"\",dms_E13_Projects_19)","v":"2106 C P - CORROSION PROTECTION - CAPEX - V_CP_CY20 TP Coating Repairs"}]
[null,{"$f":"IF(ISBLANK(dms_E13_Projects_20),\"\",dms_E13_Projects_20)","v":"2131 MAINS ALTERATION - NON CHARGEABLE - CAPEX"}]
[null,{"$f":"IF(ISBLANK(dms_E13_Projects_21),\"\",dms_E13_Projects_21)","v":"2139 NETWORK - REGULATOR STAY IN BUSINESS"}]
[null,{"$f":"IF(ISBLANK(dms_E13_Projects_22),\"\",dms_E13_Projects_22)","v":"2142 NETWORK - REGULATOR CAPEX"}]
[null,{"$f":"IF(ISBLANK(dms_E13_Projects_23),\"\",dms_E13_Projects_23)","v":"2152 NETWORK - STOPPLE EQUIPMENT"}]
[null,{"$f":"IF(ISBLANK(dms_E13_Projects_24),\"\",dms_E13_Projects_24)","v":"2190 OTHER - NON RETIC CAPITAL"}]
[null,{"$f":"IF(ISBLANK(dms_E13_Projects_25),\"\",dms_E13_Projects_25)","v":"MAJOR PROJECTS  - CAPEX <$500K"}]
[null,{"$f":"IF(ISBLANK(dms_E13_Projects_26),\"\",dms_E13_Projects_26)","v":"3111 MAJOR PROJECTS - LOGIC INDUSTRY PARK WODONGA"}]
[null,{"$f":"IF(ISBLANK(dms_E13_Projects_27),\"\",dms_E13_Projects_27)","v":"2140 WATER BATH OVERHAUL"}]
[null,{"$f":"IF(ISBLANK(dms_E13_Projects_28),\"\",dms_E13_Projects_28)","v":"2107 PIPELINE PIGGING (NO MODIFICATIONS)"}]
[null,{"$f":"IF(ISBLANK(dms_E13_Projects_29),\"\",dms_E13_Projects_29)","v":"2108 PIPELINE DCVG SURVEY"}]
[null,{"$f":"IF(ISBLANK(dms_E13_Projects_30),\"\",dms_E13_Projects_30)","v":"2461 TRANSMISSION PIPELINE - ENHANCEMENTS"}]
[null,{"$f":"IF(ISBLANK(dms_E13_Projects_31),\"\",dms_E13_Projects_31)","v":"3106 MAJOR PROJECTS - H07 CRANBOURNE HP AUGMENTATION - CITY GATE"}]
[null,{"$f":"IF(ISBLANK(dms_E13_Projects_32),\"\",dms_E13_Projects_32)","v":""}]
[null,{"$f":"IF(ISBLANK(dms_E13_Projects_33),\"\",dms_E13_Projects_33)","v":""}]
[null,{"$f":"IF(ISBLANK(dms_E13_Projects_34),\"\",dms_E13_Projects_34)","v":""}]
[null,{"$f":"IF(ISBLANK(dms_E13_Projects_35),\"\",dms_E13_Projects_35)","v":""}]
[null,{"$f":"IF(ISBLANK(dms_E13_Projects_36),\"\",dms_E13_Projects_36)","v":""}]
[null,{"$f":"IF(ISBLANK(dms_E13_Projects_37),\"\",dms_E13_Projects_37)","v":""}]
[null,{"$f":"IF(ISBLANK(dms_E13_Projects_38),\"\",dms_E13_Projects_38)","v":""}]
[null,{"$f":"IF(ISBLANK(dms_E13_Projects_39),\"\",dms_E13_Projects_39)","v":""}]
[null,{"$f":"IF(ISBLANK(dms_E13_Projects_40),\"\",dms_E13_Projects_40)","v":""}]
[null,"Aggregate of other projects with total expenditure of less than $500,000"]
[null,"Total",{"$f":"SUM(C273:C313)","v":0},{"$f":"SUM(D273:D313)","v":0},{"$f":"SUM(E273:E313)","v":0},{"$f":"SUM(F273:F313)","v":0},{"$f":"SUM(G273:G313)","v":0}]

{"sheet":"Additional disclosures","index":15,"n_rows":0,"n_cols":0,"rows_kept":0,"cut":false,"hidden":false,"merged":[]}